Workbook

Sheet 使い方
E1: 【使い方】
E2: ①基データシートに人事から受領した人件費予算データを貼付ける。
E3: 現業職員賞与一覧表に部課コードの無い行があれば、1つ上の行と同じコードを入力する。
E4: ②このシートのB7に年度、C7に夏季又は冬季を入力する。
E5: ③このシートの「見積額計上」ボタンを押すとCO伝票シートに対応する月の仕訳が作成されるので、
B6: 年度 | C6: 夏季/冬季 | E6: 「ファイル作成」ボタンを押し、トランザクションYR990001でSAPに取り込む。
B7: 2023 | C7: 夏季
B8: 済 | C8: =IF($C$7="夏季",$B$7*10000+430,$B$7*10000+1031) -> 20230430 | E8: 【補足】出向者の賞与配賦について
B9: 済 | C9: =IF($C$7="夏季",$B$7*10000+531,$B$7*10000+1130) -> 20230531 | E9: 国内出向者は毎月賞与引当金相当額を出向先に請求し、その際貸方に帰属0191の賞与が計上される。
B10: 済 | C10: =IF($C$7="夏季",$B$7*10000+630,$B$7*10000+1231) -> 20230630 | E10: ⇒出向先請求額控除前の予算額を6分割することで、毎月の賞与計上額が平準化される。
B11: 済 | C11: =IF($C$7="夏季",$B$7*10000+731,$B$7*10000+10131) -> 20230731 | E11: 海外出向者は賞与支給月に半期分の実費±αを出向先に請求し、その際貸方に帰属0204等の賞与が計上される。
B12: 済 | C12: =IF($C$7="夏季",$B$7*10000+831,$B$7*10000+10228) -> 20230831 | E12: ⇒出向先請求額控除後の予算額を6分割することで、毎月の賞与計上額が平準化される。
B13: 済 | C13: =IF($C$7="夏季",$B$7*10000+930,$B$7*10000+10331) -> 20230930 | E13: このため、配賦額シートでは国内出向者(0191)のみ計算式が異なっている。

Sheet CO伝票
A1: 利益センタ伝票登録
A2: 会社コード | B2: 転記日付 | C2: 勘定コード | D2: 利益センタ | E2: 明細額 | F2: テキスト
A3: NS | B3: 20230930 | C3: 7700303 | D3: NS-0102 | E3: 7000000 | F3: 2023夏季賞与見積
C4: 7700303 | D4: NS-0106 | E4: 151250 | F4: 2023夏季賞与見積
C5: 7700303 | D5: NS-0110 | E5: 1680793 | F5: 2023夏季賞与見積
C6: 7700303 | D6: NS-0112 | E6: 733667 | F6: 2023夏季賞与見積
C7: 7700303 | D7: NS-0113 | E7: 1030167 | F7: 2023夏季賞与見積
C8: 7700303 | D8: NS-0114 | E8: 814667 | F8: 2023夏季賞与見積
C9: 7700303 | D9: NS-0115 | E9: 1417833 | F9: 2023夏季賞与見積
C10: 7700303 | D10: NS-0116 | E10: 680833 | F10: 2023夏季賞与見積
C11: 7700303 | D11: NS-0120 | E11: 1362000 | F11: 2023夏季賞与見積
C12: 7700303 | D12: NS-0121 | E12: 972333 | F12: 2023夏季賞与見積
C13: 7700303 | D13: NS-0123 | E13: 981250 | F13: 2023夏季賞与見積
C14: 7700303 | D14: NS-0127 | E14: 1875833 | F14: 2023夏季賞与見積
C15: 7700303 | D15: NS-0130 | E15: 1157333 | F15: 2023夏季賞与見積
C16: 7700303 | D16: NS-0131 | E16: 907500 | F16: 2023夏季賞与見積
C17: 7700303 | D17: NS-0134 | E17: 1369667 | F17: 2023夏季賞与見積
C18: 7700303 | D18: NS-0139 | E18: 594833 | F18: 2023夏季賞与見積
C19: 7700303 | D19: NS-0140 | E19: 1447667 | F19: 2023夏季賞与見積
C20: 7700303 | D20: NS-0141 | E20: 1108167 | F20: 2023夏季賞与見積
C21: 7700303 | D21: NS-0142 | E21: 871000 | F21: 2023夏季賞与見積
C22: 7700303 | D22: NS-0143 | E22: 550333 | F22: 2023夏季賞与見積
C23: 7700303 | D23: NS-0144 | E23: 1009667 | F23: 2023夏季賞与見積
C24: 7700303 | D24: NS-0145 | E24: 474583 | F24: 2023夏季賞与見積
C25: 7700303 | D25: NS-0147 | E25: 932349 | F25: 2023夏季賞与見積
C26: 7700303 | D26: NS-0149 | E26: 718333 | F26: 2023夏季賞与見積
C27: 7700303 | D27: NS-0150 | E27: 581500 | F27: 2023夏季賞与見積
C28: 7700303 | D28: NS-0160 | E28: 937500 | F28: 2023夏季賞与見積
C29: 7700303 | D29: NS-0161 | E29: 675333 | F29: 2023夏季賞与見積
C30: 7700303 | D30: NS-0162 | E30: 717583 | F30: 2023夏季賞与見積
C31: 7700303 | D31: NS-0164 | E31: 439333 | F31: 2023夏季賞与見積
C32: 7700303 | D32: NS-0191 | E32: 11778117 | F32: 2023夏季賞与見積
C33: 7700303 | D33: NS-0193 | E33: 16667 | F33: 2023夏季賞与見積
C34: 7700303 | D34: NS-0205 | E34: 570500 | F34: 2023夏季賞与見積
C35: 7700303 | D35: NS-0207 | E35: 2199765 | F35: 2023夏季賞与見積
C36: 7700303 | D36: NS-0209 | E36: 1804071 | F36: 2023夏季賞与見積
C37: 7700303 | D37: NS-0236 | E37: 182500 | F37: 2023夏季賞与見積
C38: 7700303 | D38: NS-0250 | E38: 1121083 | F38: 2023夏季賞与見積
C39: 7700303 | D39: NS-0254 | E39: 427000 | F39: 2023夏季賞与見積
C40: 7700303 | D40: NS-0255 | E40: 369417 | F40: 2023夏季賞与見積
C41: 7700303 | D41: NS-0259 | E41: 277000 | F41: 2023夏季賞与見積
C42: 7700303 | D42: NS-0260 | E42: 555000 | F42: 2023夏季賞与見積
C43: 7700303 | D43: NS-0270 | E43: 1464083 | F43: 2023夏季賞与見積
C44: 7700303 | D44: NS-0274 | E44: 1517833 | F44: 2023夏季賞与見積
C45: 7700303 | D45: NS-0275 | E45: 386500 | F45: 2023夏季賞与見積
C46: 7700303 | D46: NS-0276 | E46: 285833 | F46: 2023夏季賞与見積
C47: 7700303 | D47: NS-0279 | E47: 837833 | F47: 2023夏季賞与見積
C48: 7700303 | D48: NS-0280 | E48: 324000 | F48: 2023夏季賞与見積
C49: 7700303 | D49: NS-0281 | E49: 415667 | F49: 2023夏季賞与見積
C50: 7700303 | D50: NS-0282 | E50: 705000 | F50: 2023夏季賞与見積
C51: 7700303 | D51: NS-0283 | E51: 1586167 | F51: 2023夏季賞与見積
C52: 7700303 | D52: NS-0285 | E52: 708500 | F52: 2023夏季賞与見積
C53: 7700303 | D53: NS-0291 | E53: 1896167 | F53: 2023夏季賞与見積
C54: 7700303 | D54: NS-0292 | E54: 1592333 | F54: 2023夏季賞与見積
C55: 7700303 | D55: NS-0296 | E55: 420000 | F55: 2023夏季賞与見積
C56: 7700303 | D56: NS-0297 | E56: 160667 | F56: 2023夏季賞与見積
C57: 7700303 | D57: NS-0300 | E57: 290000 | F57: 2023夏季賞与見積
C58: 7700303 | D58: NS-0310 | E58: 1643917 | F58: 2023夏季賞与見積
C59: 7700303 | D59: NS-0311 | E59: 1156500 | F59: 2023夏季賞与見積
C60: 7700303 | D60: NS-0312 | E60: 1247667 | F60: 2023夏季賞与見積
C61: 7700303 | D61: NS-0313 | E61: 1246167 | F61: 2023夏季賞与見積
C62: 7700303 | D62: NS-0314 | E62: 255667 | F62: 2023夏季賞与見積
C63: 7700303 | D63: NS-0315 | E63: 1460833 | F63: 2023夏季賞与見積
C64: 7700303 | D64: NS-0320 | E64: 1638167 | F64: 2023夏季賞与見積
C65: 7700303 | D65: NS-0323 | E65: 1599333 | F65: 2023夏季賞与見積
C66: 7700303 | D66: NS-0325 | E66: 2030667 | F66: 2023夏季賞与見積
C67: 7700303 | D67: NS-0328 | E67: 558500 | F67: 2023夏季賞与見積
C68: 7700303 | D68: NS-0329 | E68: 400167 | F68: 2023夏季賞与見積
C69: 7700303 | D69: NS-0330 | E69: 1697233 | F69: 2023夏季賞与見積
C70: 7700303 | D70: NS-0331 | E70: 390500 | F70: 2023夏季賞与見積
C71: 7700303 | D71: NS-0340 | E71: 665500 | F71: 2023夏季賞与見積
C72: 7700303 | D72: NS-0341 | E72: 248167 | F72: 2023夏季賞与見積
C73: 7700303 | D73: NS-0342 | E73: 1059667 | F73: 2023夏季賞与見積
C74: 7700303 | D74: NS-0345 | E74: 608833 | F74: 2023夏季賞与見積
C75: 7700303 | D75: NS-0346 | E75: 508500 | F75: 2023夏季賞与見積
C76: 7700303 | D76: NS-0350 | E76: 475667 | F76: 2023夏季賞与見積
C77: 7700303 | D77: NS-0351 | E77: 432500 | F77: 2023夏季賞与見積
C78: 7700303 | D78: NS-0354 | E78: 151333 | F78: 2023夏季賞与見積
C79: 7700303 | D79: NS-0359 | E79: 829500 | F79: 2023夏季賞与見積
C80: 7700303 | D80: NS-0374 | E80: 783167 | F80: 2023夏季賞与見積
C81: 7700303 | D81: NS-0377 | E81: 402500 | F81: 2023夏季賞与見積
C82: 7700303 | D82: NS-0378 | E82: 247500 | F82: 2023夏季賞与見積
C83: 7700303 | D83: NS-0379 | E83: 923833 | F83: 2023夏季賞与見積
C84: 7700303 | D84: NS-0383 | E84: 459667 | F84: 2023夏季賞与見積
C85: 7700303 | D85: NS-0384 | E85: 117167 | F85: 2023夏季賞与見積
C86: 7700303 | D86: NS-0392 | E86: 1331833 | F86: 2023夏季賞与見積
C87: 7700303 | D87: NS-0393 | E87: 285333 | F87: 2023夏季賞与見積
C88: 7700303 | D88: NS-0394 | E88: 418000 | F88: 2023夏季賞与見積
C89: 7700303 | D89: NS-0398 | E89: 425167 | F89: 2023夏季賞与見積
C90: 7700303 | D90: NS-0402 | E90: 1050333 | F90: 2023夏季賞与見積
C91: 7700303 | D91: NS-0403 | E91: 1301333 | F91: 2023夏季賞与見積
C92: 4600018 | D92: NS-0100 | E92: =-SUM(E3:E91) -> -93135828
A93: NS | B93: 20230930 | C93: 7700303 | D93: NS-0410 | E93: 1030000 | F93: 2023夏季賞与見積
C94: 7700303 | D94: NS-0412 | E94: 1191667 | F94: 2023夏季賞与見積
C95: 7700303 | D95: NS-0413 | E95: 1045167 | F95: 2023夏季賞与見積
C96: 7700303 | D96: NS-0414 | E96: 990833 | F96: 2023夏季賞与見積
C97: 7700303 | D97: NS-0415 | E97: 285833 | F97: 2023夏季賞与見積
C98: 7700303 | D98: NS-0419 | E98: 1926333 | F98: 2023夏季賞与見積
C99: 7700303 | D99: NS-0421 | E99: 761000 | F99: 2023夏季賞与見積
C100: 7700303 | D100: NS-0424 | E100: 378000 | F100: 2023夏季賞与見積
C101: 7700303 | D101: NS-0427 | E101: 784667 | F101: 2023夏季賞与見積
C102: 7700303 | D102: NS-0430 | E102: 1390333 | F102: 2023夏季賞与見積
C103: 7700303 | D103: NS-0433 | E103: 475500 | F103: 2023夏季賞与見積
C104: 7700303 | D104: NS-0434 | E104: 360167 | F104: 2023夏季賞与見積
C105: 7700303 | D105: NS-0436 | E105: 116667 | F105: 2023夏季賞与見積
C106: 7700303 | D106: NS-0441 | E106: 1691000 | F106: 2023夏季賞与見積
C107: 7700303 | D107: NS-0442 | E107: 1404500 | F107: 2023夏季賞与見積
C108: 7700303 | D108: NS-0443 | E108: 1071833 | F108: 2023夏季賞与見積
C109: 7700303 | D109: NS-0446 | E109: 210667 | F109: 2023夏季賞与見積
C110: 7700303 | D110: NS-0447 | E110: 1123667 | F110: 2023夏季賞与見積
C111: 7700303 | D111: NS-0450 | E111: 744167 | F111: 2023夏季賞与見積
C112: 7700303 | D112: NS-0451 | E112: 1353000 | F112: 2023夏季賞与見積
C113: 7700303 | D113: NS-0457 | E113: 822500 | F113: 2023夏季賞与見積
C114: 7700303 | D114: NS-0464 | E114: 603667 | F114: 2023夏季賞与見積
C115: 7700303 | D115: NS-0468 | E115: 1144667 | F115: 2023夏季賞与見積
C116: 7700303 | D116: NS-0469 | E116: 1477667 | F116: 2023夏季賞与見積
C117: 7700303 | D117: NS-0470 | E117: 557667 | F117: 2023夏季賞与見積
C118: 7700303 | D118: NS-0472 | E118: 746667 | F118: 2023夏季賞与見積
C119: 7700303 | D119: NS-0474 | E119: 513167 | F119: 2023夏季賞与見積
C120: 7700303 | D120: NS-0477 | E120: 749500 | F120: 2023夏季賞与見積
C121: 7700303 | D121: NS-0481 | E121: 2028167 | F121: 2023夏季賞与見積
C122: 7700303 | D122: NS-0482 | E122: 1782333 | F122: 2023夏季賞与見積
C123: 7700303 | D123: NS-0483 | E123: 612833 | F123: 2023夏季賞与見積
C124: 7700303 | D124: NS-0484 | E124: 564667 | F124: 2023夏季賞与見積
C125: 7700303 | D125: NS-0487 | E125: 1920167 | F125: 2023夏季賞与見積
C126: 7700303 | D126: NS-0490 | E126: 996500 | F126: 2023夏季賞与見積
C127: 7700303 | D127: NS-0491 | E127: 490667 | F127: 2023夏季賞与見積
C128: 7700303 | D128: NS-0494 | E128: 2025500 | F128: 2023夏季賞与見積
C129: 7700303 | D129: NS-0495 | E129: 281167 | F129: 2023夏季賞与見積
C130: 7700303 | D130: NS-0501 | E130: 834167 | F130: 2023夏季賞与見積
C131: 7700303 | D131: NS-0503 | E131: 959167 | F131: 2023夏季賞与見積
C132: 7700303 | D132: NS-0506 | E132: 991567 | F132: 2023夏季賞与見積
C133: 7700303 | D133: NS-0511 | E133: 698833 | F133: 2023夏季賞与見積
C134: 7700303 | D134: NS-0513 | E134: 766833 | F134: 2023夏季賞与見積
C135: 7700303 | D135: NS-0516 | E135: 780000 | F135: 2023夏季賞与見積
C136: 7700303 | D136: NS-0520 | E136: 994500 | F136: 2023夏季賞与見積
C137: 7700303 | D137: NS-0522 | E137: 2184500 | F137: 2023夏季賞与見積
C138: 7700303 | D138: NS-0523 | E138: 1436833 | F138: 2023夏季賞与見積
C139: 7700303 | D139: NS-0526 | E139: 520500 | F139: 2023夏季賞与見積
C140: 7700303 | D140: NS-0531 | E140: 875000 | F140: 2023夏季賞与見積
C141: 7700303 | D141: NS-0532 | E141: 571667 | F141: 2023夏季賞与見積
C142: 7700303 | D142: NS-0536 | E142: 278167 | F142: 2023夏季賞与見積
C143: 7700303 | D143: NS-0541 | E143: 152167 | F143: 2023夏季賞与見積
C144: 7700303 | D144: NS-0544 | E144: 517333 | F144: 2023夏季賞与見積
C145: 7700303 | D145: NS-0545 | E145: 550333 | F145: 2023夏季賞与見積
C146: 7700303 | D146: NS-0547 | E146: 416167 | F146: 2023夏季賞与見積
C147: 7700303 | D147: NS-0550 | E147: 610833 | F147: 2023夏季賞与見積
C148: 7700303 | D148: NS-0551 | E148: 1286067 | F148: 2023夏季賞与見積
C149: 7700303 | D149: NS-0552 | E149: 637500 | F149: 2023夏季賞与見積
C150: 7700303 | D150: NS-0554 | E150: 590167 | F150: 2023夏季賞与見積
C151: 7700303 | D151: NS-0556 | E151: 1328500 | F151: 2023夏季賞与見積
C152: 7700303 | D152: NS-0559 | E152: 301667 | F152: 2023夏季賞与見積
C153: 7700303 | D153: NS-0560 | E153: 1258900 | F153: 2023夏季賞与見積
C154: 7700303 | D154: NS-0561 | E154: 1630500 | F154: 2023夏季賞与見積
C155: 7700303 | D155: NS-0565 | E155: 1384333 | F155: 2023夏季賞与見積
C156: 7700303 | D156: NS-0566 | E156: 1121667 | F156: 2023夏季賞与見積
C157: 7700303 | D157: NS-0567 | E157: 740000 | F157: 2023夏季賞与見積
C158: 7700303 | D158: NS-0569 | E158: 404500 | F158: 2023夏季賞与見積
C159: 7700303 | D159: NS-0570 | E159: 987167 | F159: 2023夏季賞与見積
C160: 7700303 | D160: NS-0571 | E160: 1589500 | F160: 2023夏季賞与見積
C161: 7700303 | D161: NS-0572 | E161: 2162000 | F161: 2023夏季賞与見積
C162: 7700303 | D162: NS-0574 | E162: 129500 | F162: 2023夏季賞与見積
C163: 7700303 | D163: NS-0577 | E163: 1918500 | F163: 2023夏季賞与見積
C164: 7700303 | D164: NS-0580 | E164: 3118033 | F164: 2023夏季賞与見積
C165: 7700303 | D165: NS-0583 | E165: 205667 | F165: 2023夏季賞与見積
C166: 7700303 | D166: NS-0584 | E166: 329333 | F166: 2023夏季賞与見積
C167: 7700303 | D167: NS-0585 | E167: 687333 | F167: 2023夏季賞与見積
C168: 7700303 | D168: NS-0586 | E168: 157000 | F168: 2023夏季賞与見積
C169: 7700303 | D169: NS-0587 | E169: 1931333 | F169: 2023夏季賞与見積
C170: 7700303 | D170: NS-0589 | E170: 434167 | F170: 2023夏季賞与見積
C171: 7700303 | D171: NS-0590 | E171: 1329500 | F171: 2023夏季賞与見積
C172: 7700303 | D172: NS-0591 | E172: 828333 | F172: 2023夏季賞与見積
C173: 7700303 | D173: NS-0593 | E173: 1216667 | F173: 2023夏季賞与見積
C174: 7700303 | D174: NS-0594 | E174: 763000 | F174: 2023夏季賞与見積
C175: 7700303 | D175: NS-0595 | E175: 1071333 | F175: 2023夏季賞与見積
C176: 7700303 | D176: NS-0597 | E176: 1184000 | F176: 2023夏季賞与見積
C177: 7700303 | D177: NS-0598 | E177: 151333 | F177: 2023夏季賞与見積
C178: 7700303 | D178: NS-0599 | E178: 976833 | F178: 2023夏季賞与見積
C179: 7700303 | D179: NS-0600 | E179: 1178667 | F179: 2023夏季賞与見積
C180: 7700303 | D180: NS-0607 | E180: 697167 | F180: 2023夏季賞与見積
C181: 7700303 | D181: NS-0609 | E181: 1285333 | F181: 2023夏季賞与見積
C182: 4600018 | D182: NS-0100 | E182: =-SUM(E93:E181) -> -84806571
A183: NS | B183: 20230930 | C183: 7700303 | D183: NS-0610 | E183: 1119000 | F183: 2023夏季賞与見積
C184: 7700303 | D184: NS-0611 | E184: 255667 | F184: 2023夏季賞与見積
C185: 7700303 | D185: NS-0612 | E185: 1419833 | F185: 2023夏季賞与見積
C186: 7700303 | D186: NS-0613 | E186: 587167 | F186: 2023夏季賞与見積
C187: 7700303 | D187: NS-0614 | E187: 1095500 | F187: 2023夏季賞与見積
C188: 7700303 | D188: NS-0615 | E188: 402667 | F188: 2023夏季賞与見積
C189: 7700303 | D189: NS-0618 | E189: 831833 | F189: 2023夏季賞与見積
C190: 7700303 | D190: NS-0623 | E190: 1708500 | F190: 2023夏季賞与見積
C191: 7700303 | D191: NS-0624 | E191: 332833 | F191: 2023夏季賞与見積
C192: 7700303 | D192: NS-0625 | E192: 1694167 | F192: 2023夏季賞与見積
C193: 7700303 | D193: NS-0627 | E193: 84167 | F193: 2023夏季賞与見積
C194: 7700303 | D194: NS-0628 | E194: 1112000 | F194: 2023夏季賞与見積
C195: 7700303 | D195: NS-0629 | E195: 129500 | F195: 2023夏季賞与見積
C196: 7700303 | D196: NS-0637 | E196: 545333 | F196: 2023夏季賞与見積
C197: 7700303 | D197: NS-0638 | E197: 274333 | F197: 2023夏季賞与見積
C198: 7700303 | D198: NS-0642 | E198: 1077167 | F198: 2023夏季賞与見積
C199: 7700303 | D199: NS-0643 | E199: 1058833 | F199: 2023夏季賞与見積
C200: 7700303 | D200: NS-0644 | E200: 767500 | F200: 2023夏季賞与見積
... 343 more rows

Sheet 基データ
A4: 収支部 | B4: 部店名 | C4: 収支課 | D4: 賞与 | E4: 出向請求 （賞与） | F4: 中国賞与返金 | G4: 海外出向 賞与請求 | H4: 調整 （賞与） | I4: 賞与計 | J4: 賞与 法定福利 | K4: 海外出向 賞与請求 （法定福利） | L4: 賞与 法定福利計 | O4: 収支部 | P4: 部 | Q4: 収支課 | R4: 勘定科目 | S4: 人数 | T4: 夏季賞与 | U4: 賞与 法定福利
A5: 10 | B5: 本社 | C5: 0100 | D5: 0 | E5: 0 | F5: 0 | G5: 0 | H5: 0 | I5: 0 | J5: 0 | K5: 0 | L5: 0 | O5: 10 | P5: 人事部 | Q5: 0149 | R5: 824200 | S5: 1 | T5: 50000 | U5: 7755 | V5: 沿岸作業員の新入社員
A6: 10 | B6: 本社 | C6: 0101 | D6: 0 | E6: 0 | F6: 0 | G6: 0 | H6: 0 | I6: 0 | J6: 0 | K6: 0 | L6: 0 | O6: 10 | P6: 日新陸運 | Q6: 0191 | R6: 351211 | S6: 15 | T6: 9878000 | U6: 1597266
A7: 10 | B7: 本社 | C7: 0102 | D7: 42000000 | E7: 0 | F7: 0 | G7: 0 | H7: 0 | I7: 42000000 | J7: 3478500 | K7: 0 | L7: 3478500 | O7: 33 | P7: 京浜支店 | Q7: 0383 | R7: 351215 | S7: 29 | T7: 18354000 | U7: 3081478
A8: 10 | B8: 本社 | C8: 0105 | D8: 0 | E8: 0 | F8: 0 | G8: 0 | H8: 0 | I8: 0 | J8: 0 | K8: 0 | L8: 0 | O8: 33 | P8: 京浜支店 | Q8: 0383 | R8: 351213 | S8: 6 | T8: 4046000 | U8: 676510
A9: 10 | B9: 本社 | C9: 0106 | D9: 907500 | E9: 0 | F9: 0 | G9: 0 | H9: 0 | I9: 907500 | J9: 148919 | K9: 0 | L9: 148919 | O9: 35 | P9: 海貨事業 | Q9: 0283 | R9: 351211 | S9: 16 | T9: 10678000 | U9: 1795875
A10: 10 | B10: 本社 | C10: 0147 | D10: 5594093 | E10: 0 | F10: 0 | G10: 0 | H10: 0 | I10: 5594093 | J10: 745093 | K10: 0 | L10: 745093 | O10: 総計 | S10: 67 | T10: 43006000 | U10: 7158884
A11: 10 | B11: 本社 | C11: 0149 | D11: 4310000 | E11: 0 | F11: 0 | G11: 0 | H11: 0 | I11: 4310000 | J11: 668481 | K11: 0 | L11: 668481
A12: 10 | B12: 本社 | C12: 0191 | D12: 70668700 | E12: -55231776 | F12: 0 | G12: 0 | H12: 0 | I12: 15436924 | J12: 10386216 | K12: 0 | L12: 10386216
A13: 10 | B13: 本社 | C13: 0193 | D13: 100000 | E13: 0 | F13: 0 | G13: 0 | H13: 0 | I13: 100000 | J13: 6360 | K13: 0 | L13: 6360
A14: 10 | B14: 本社 | C14: 0194 | D14: 0 | E14: 0 | F14: 0 | G14: 0 | H14: 0 | I14: 0 | J14: 0 | K14: 0 | L14: 0
A15: 10 | B15: 本社 | C15: 0204 | D15: 37146008 | E15: 0 | F15: 0 | G15: -37146008 | H15: 0 | I15: 0 | J15: 4668008 | K15: -4668008 | L15: 0
A16: 10 | B16: 本社 | C16: 0206 | D16: 11368775 | E16: 0 | F16: 0 | G16: -11368775 | H16: 0 | I16: 0 | J16: 1389775 | K16: -1389775 | L16: 0
A17: 10 | B17: 本社 | C17: 0207 | D17: 46211865 | E17: 0 | F17: 0 | G17: -33013273 | H17: 0 | I17: 13198592 | J17: 5589865 | K17: -4001273 | L17: 1588592
A18: 10 | B18: 本社 | C18: 0209 | D18: 70976988 | E18: 0 | F18: 0 | G18: -60152565 | H18: 0 | I18: 10824423 | J18: 8814988 | K18: -7494565 | L18: 1320423
A19: 10 集計 | D19: 289283929 | E19: -55231776 | F19: 0 | G19: -141680621 | H19: 0 | I19: 92371532 | J19: 35896205 | K19: -17553621 | L19: 18342584
A20: 11 | B20: 情報システム部 | C20: 0110 | D20: 10084759 | E20: 0 | F20: 0 | G20: 0 | H20: 0 | I20: 10084759 | J20: 1399398 | K20: 0 | L20: 1399398
A21: 11 | B21: 情報システム部 | C21: 0112 | D21: 4402000 | E21: 0 | F21: 0 | G21: 0 | H21: 0 | I21: 4402000 | J21: 682408 | K21: 0 | L21: 682408
A22: 11 | B22: 情報システム部 | C22: 0113 | D22: 6181000 | E22: 0 | F22: 0 | G22: 0 | H22: 0 | I22: 6181000 | J22: 966434 | K22: 0 | L22: 966434
A23: 11 | B23: 情報システム部 | C23: 0114 | D23: 4888000 | E23: 0 | F23: 0 | G23: 0 | H23: 0 | I23: 4888000 | J23: 751535 | K23: 0 | L23: 751535
A24: 11 | B24: 情報システム部 | C24: 0115 | D24: 8507000 | E24: 0 | F24: 0 | G24: 0 | H24: 0 | I24: 8507000 | J24: 1332753 | K24: 0 | L24: 1332753
A25: 11 | B25: 情報システム部 | C25: 0116 | D25: 4085000 | E25: 0 | F25: 0 | G25: 0 | H25: 0 | I25: 4085000 | J25: 646074 | K25: 0 | L25: 646074
A26: 11 集計 | D26: 38147759 | E26: 0 | F26: 0 | G26: 0 | H26: 0 | I26: 38147759 | J26: 5778602 | K26: 0 | L26: 5778602
A27: 12 | B27: 総務部 | C27: 0120 | D27: 8172000 | E27: 0 | F27: 0 | G27: 0 | H27: 0 | I27: 8172000 | J27: 1142286 | K27: 0 | L27: 1142286
A28: 12 | B28: 総務部 | C28: 0121 | D28: 5834000 | E28: 0 | F28: 0 | G28: 0 | H28: 0 | I28: 5834000 | J28: 912200 | K28: 0 | L28: 912200
A29: 12 | B29: 総務部 | C29: 0123 | D29: 5887500 | E29: 0 | F29: 0 | G29: 0 | H29: 0 | I29: 5887500 | J29: 931235 | K29: 0 | L29: 931235
A30: 12 | B30: 総務部 | C30: 0124 | D30: 0 | E30: 0 | F30: 0 | G30: 0 | H30: 0 | I30: 0 | J30: 0 | K30: 0 | L30: 0
A31: 12 | B31: 総務部 | C31: 0128 | D31: 0 | E31: 0 | F31: 0 | G31: 0 | H31: 0 | I31: 0 | J31: 0 | K31: 0 | L31: 0
A32: 12 集計 | D32: 19893500 | E32: 0 | F32: 0 | G32: 0 | H32: 0 | I32: 19893500 | J32: 2985721 | K32: 0 | L32: 2985721
A33: 13 | B33: 経理部 | C33: 0130 | D33: 6944000 | E33: 0 | F33: 0 | G33: 0 | H33: 0 | I33: 6944000 | J33: 942449 | K33: 0 | L33: 942449
A34: 13 | B34: 経理部 | C34: 0131 | D34: 5445000 | E34: 0 | F34: 0 | G34: 0 | H34: 0 | I34: 5445000 | J34: 826309 | K34: 0 | L34: 826309
A35: 13 | B35: 経理部 | C35: 0134 | D35: 8218000 | E35: 0 | F35: 0 | G35: 0 | H35: 0 | I35: 8218000 | J35: 1328343 | K35: 0 | L35: 1328343
A36: 13 | B36: 経理部 | C36: 0139 | D36: 3569000 | E36: 0 | F36: 0 | G36: 0 | H36: 0 | I36: 3569000 | J36: 557824 | K36: 0 | L36: 557824
A37: 13 | B37: 経理部 | C37: 0402 | D37: 6302000 | E37: 0 | F37: 0 | G37: 0 | H37: 0 | I37: 6302000 | J37: 988292 | K37: 0 | L37: 988292
A38: 13 | B38: 経理部 | C38: 0403 | D38: 7808000 | E38: 0 | F38: 0 | G38: 0 | H38: 0 | I38: 7808000 | J38: 1208099 | K38: 0 | L38: 1208099
A39: 13 集計 | D39: 38286000 | E39: 0 | F39: 0 | G39: 0 | H39: 0 | I39: 38286000 | J39: 5851316 | K39: 0 | L39: 5851316
A40: 14 | B40: 人事部 | C40: 0140 | D40: 8686000 | E40: 0 | F40: 0 | G40: 0 | H40: 0 | I40: 8686000 | J40: 1179602 | K40: 0 | L40: 1179602
A41: 14 | B41: 人事部 | C41: 0141 | D41: 6649000 | E41: 0 | F41: 0 | G41: 0 | H41: 0 | I41: 6649000 | J41: 1038992 | K41: 0 | L41: 1038992
A42: 14 | B42: 人事部 | C42: 0142 | D42: 5226000 | E42: 0 | F42: 0 | G42: 0 | H42: 0 | I42: 5226000 | J42: 824105 | K42: 0 | L42: 824105
A43: 14 | B43: 人事部 | C43: 0143 | D43: 3302000 | E43: 0 | F43: 0 | G43: 0 | H43: 0 | I43: 3302000 | J43: 514419 | K43: 0 | L43: 514419
A44: 14 | B44: 人事部 | C44: 0144 | D44: 6058000 | E44: 0 | F44: 0 | G44: 0 | H44: 0 | I44: 6058000 | J44: 813986 | K44: 0 | L44: 813986
A45: 14 | B45: 人事部 | C45: 0145 | D45: 2847500 | E45: 0 | F45: 0 | G45: 0 | H45: 0 | I45: 2847500 | J45: 442987 | K45: 0 | L45: 442987
A46: 14 | B46: 人事部 | C46: 0146 | D46: 0 | E46: 0 | F46: 0 | G46: 0 | H46: 0 | I46: 0 | J46: 0 | K46: 0 | L46: 0
A47: 14 集計 | D47: 32768500 | E47: 0 | F47: 0 | G47: 0 | H47: 0 | I47: 32768500 | J47: 4814091 | K47: 0 | L47: 4814091
A48: 15 | B48: 法務コンプライアンス室 | C48: 0127 | D48: 11255000 | E48: 0 | F48: 0 | G48: 0 | H48: 0 | I48: 11255000 | J48: 1642122 | K48: 0 | L48: 1642122
A49: 15 集計 | D49: 11255000 | E49: 0 | F49: 0 | G49: 0 | H49: 0 | I49: 11255000 | J49: 1642122 | K49: 0 | L49: 1642122
A50: 16 | B50: 安全環境管理部 | C50: 0160 | D50: 5625000 | E50: 0 | F50: 0 | G50: 0 | H50: 0 | I50: 5625000 | J50: 815549 | K50: 0 | L50: 815549
A51: 16 | B51: 安全環境管理部 | C51: 0161 | D51: 4052000 | E51: 0 | F51: 0 | G51: 0 | H51: 0 | I51: 4052000 | J51: 651755 | K51: 0 | L51: 651755
A52: 16 | B52: 安全環境管理部 | C52: 0162 | D52: 4305500 | E52: 0 | F52: 0 | G52: 0 | H52: 0 | I52: 4305500 | J52: 693355 | K52: 0 | L52: 693355
A53: 16 集計 | D53: 13982500 | E53: 0 | F53: 0 | G53: 0 | H53: 0 | I53: 13982500 | J53: 2160659 | K53: 0 | L53: 2160659
A54: 18 | B54: 秘書室 | C54: 0150 | D54: 3489000 | E54: 0 | F54: 0 | G54: 0 | H54: 0 | I54: 3489000 | J54: 566917 | K54: 0 | L54: 566917
A55: 18 集計 | D55: 3489000 | E55: 0 | F55: 0 | G55: 0 | H55: 0 | I55: 3489000 | J55: 566917 | K55: 0 | L55: 566917
A56: 26 | B56: 陸運事業室 | C56: 0260 | D56: 3330000 | E56: 0 | F56: 0 | G56: 0 | H56: 0 | I56: 3330000 | J56: 462618 | K56: 0 | L56: 462618
A57: 26 | B57: 陸運事業室 | C57: 0255 | D57: 2216500 | E57: 0 | F57: 0 | G57: 0 | H57: 0 | I57: 2216500 | J57: 356362 | K57: 0 | L57: 356362
A58: 26 | B58: 陸運事業室 | C58: 0259 | D58: 1662000 | E58: 0 | F58: 0 | G58: 0 | H58: 0 | I58: 1662000 | J58: 280212 | K58: 0 | L58: 280212
A59: 26 集計 | D59: 7208500 | E59: 0 | F59: 0 | G59: 0 | H59: 0 | I59: 7208500 | J59: 1099192 | K59: 0 | L59: 1099192
A60: 27 | B60: グローバルロジスティクス営業部 | C60: 0270 | D60: 8784500 | E60: 0 | F60: 0 | G60: 0 | H60: 0 | I60: 8784500 | J60: 1212716 | K60: 0 | L60: 1212716
A61: 27 | B61: グローバルロジスティクス営業部 | C61: 0274 | D61: 9107000 | E61: 0 | F61: 0 | G61: 0 | H61: 0 | I61: 9107000 | J61: 1458114 | K61: 0 | L61: 1458114
A62: 27 | B62: グローバルロジスティクス営業部 | C62: 0315 | D62: 8765000 | E62: 0 | F62: 0 | G62: 0 | H62: 0 | I62: 8765000 | J62: 1389827 | K62: 0 | L62: 1389827
A63: 27 | B63: グローバルロジスティクス営業部 | C63: 0436 | D63: 700000 | E63: 0 | F63: 0 | G63: 0 | H63: 0 | I63: 700000 | J63: 108570 | K63: 0 | L63: 108570
A64: 27 | B64: グローバルロジスティクス営業部 | C64: 0441 | D64: 10146000 | E64: 0 | F64: 0 | G64: 0 | H64: 0 | I64: 10146000 | J64: 1608740 | K64: 0 | L64: 1608740
A65: 27 | B65: グローバルロジスティクス営業部 | C65: 0443 | D65: 6431000 | E65: 0 | F65: 0 | G65: 0 | H65: 0 | I65: 6431000 | J65: 988671 | K65: 0 | L65: 988671
A66: 27 | B66: グローバルロジスティクス営業部 | C66: 0450 | D66: 4465000 | E66: 0 | F66: 0 | G66: 0 | H66: 0 | I66: 4465000 | J66: 708131 | K66: 0 | L66: 708131
A67: 27 | B67: グローバルロジスティクス営業部 | C67: 0451 | D67: 8118000 | E67: 0 | F67: 0 | G67: 0 | H67: 0 | I67: 8118000 | J67: 1263278 | K67: 0 | L67: 1263278
A68: 27 集計 | D68: 56516500 | E68: 0 | F68: 0 | G68: 0 | H68: 0 | I68: 56516500 | J68: 8738047 | K68: 0 | L68: 8738047
A69: 30 | B69: 海運・港運事業部 | C69: 0300 | D69: 1740000 | E69: 0 | F69: 0 | G69: 0 | H69: 0 | I69: 1740000 | J69: 279224 | K69: 0 | L69: 279224
A70: 30 集計 | D70: 1740000 | E70: 0 | F70: 0 | G70: 0 | H70: 0 | I70: 1740000 | J70: 279224 | K70: 0 | L70: 279224
A71: 31 | B71: 食品物流営業部 | C71: 0254 | D71: 2562000 | E71: 0 | F71: 0 | G71: 0 | H71: 0 | I71: 2562000 | J71: 431952 | K71: 0 | L71: 431952
A72: 31 | B72: 食品物流営業部 | C72: 0310 | D72: 9863500 | E72: 0 | F72: 0 | G72: 0 | H72: 0 | I72: 9863500 | J72: 1392279 | K72: 0 | L72: 1392279
A73: 31 | B73: 食品物流営業部 | C73: 0311 | D73: 6939000 | E73: 0 | F73: 0 | G73: 0 | H73: 0 | I73: 6939000 | J73: 1106763 | K73: 0 | L73: 1106763
A74: 31 | B74: 食品物流営業部 | C74: 0312 | D74: 7486000 | E74: 0 | F74: 0 | G74: 0 | H74: 0 | I74: 7486000 | J74: 1033735 | K74: 0 | L74: 1033735
A75: 31 | B75: 食品物流営業部 | C75: 0313 | D75: 7477000 | E75: 0 | F75: 0 | G75: 0 | H75: 0 | I75: 7477000 | J75: 1162309 | K75: 0 | L75: 1162309
A76: 31 | B76: 食品物流営業部 | C76: 0446 | D76: 1264000 | E76: 0 | F76: 0 | G76: 0 | H76: 0 | I76: 1264000 | J76: 206809 | K76: 0 | L76: 206809
A77: 31 | B77: 食品物流営業部 | C77: 0447 | D77: 6742000 | E77: 0 | F77: 0 | G77: 0 | H77: 0 | I77: 6742000 | J77: 1040700 | K77: 0 | L77: 1040700
A78: 31 | B78: 食品物流営業部 | C78: 0314 | D78: 1534000 | E78: 0 | F78: 0 | G78: 0 | H78: 0 | I78: 1534000 | J78: 237923 | K78: 0 | L78: 237923
A79: 31 集計 | D79: 43867500 | E79: 0 | F79: 0 | G79: 0 | H79: 0 | I79: 43867500 | J79: 6612470 | K79: 0 | L79: 6612470
A80: 32 | B80: 港運部 | C80: 0320 | D80: 9829000 | E80: 0 | F80: 0 | G80: 0 | H80: 0 | I80: 9829000 | J80: 1399834 | K80: 0 | L80: 1399834
A81: 32 | B81: 港運部 | C81: 0323 | D81: 9596000 | E81: 0 | F81: 0 | G81: 0 | H81: 0 | I81: 9596000 | J81: 1526143 | K81: 0 | L81: 1526143
A82: 32 | B82: 港運部 | C82: 0325 | D82: 12184000 | E82: 0 | F82: 0 | G82: 0 | H82: 0 | I82: 12184000 | J82: 1920661 | K82: 0 | L82: 1920661
A83: 32 | B83: 港運部 | C83: 0328 | D83: 3351000 | E83: 0 | F83: 0 | G83: 0 | H83: 0 | I83: 3351000 | J83: 521233 | K83: 0 | L83: 521233
A84: 32 | B84: 港運部 | C84: 0329 | D84: 2401000 | E84: 0 | F84: 0 | G84: 0 | H84: 0 | I84: 2401000 | J84: 367414 | K84: 0 | L84: 367414
A85: 32 | B85: 港運部 | C85: 0464 | D85: 3622000 | E85: 0 | F85: 0 | G85: 0 | H85: 0 | I85: 3622000 | J85: 557471 | K85: 0 | L85: 557471
A86: 32 | B86: 港運部 | C86: 0468 | D86: 6868000 | E86: 0 | F86: 0 | G86: 0 | H86: 0 | I86: 6868000 | J86: 1087265 | K86: 0 | L86: 1087265
A87: 32 | B87: 港運部 | C87: 0469 | D87: 8866000 | E87: 0 | F87: 0 | G87: 0 | H87: 0 | I87: 8866000 | J87: 1398756 | K87: 0 | L87: 1398756
A88: 32 集計 | D88: 56717000 | E88: 0 | F88: 0 | G88: 0 | H88: 0 | I88: 56717000 | J88: 8778777 | K88: 0 | L88: 8778777
A89: 33 | B89: 京浜支店 | C89: 0282 | D89: 4230000 | E89: 0 | F89: 0 | G89: 0 | H89: 0 | I89: 4230000 | J89: 683229 | K89: 0 | L89: 683229
A90: 33 | B90: 京浜支店 | C90: 0285 | D90: 4251000 | E90: 0 | F90: 0 | G90: 0 | H90: 0 | I90: 4251000 | J90: 682828 | K90: 0 | L90: 682828
A91: 33 | B91: 京浜支店 | C91: 0330 | D91: 10183400 | E91: 0 | F91: 0 | G91: 0 | H91: 0 | I91: 10183400 | J91: 1492089 | K91: 0 | L91: 1492089
A92: 33 | B92: 京浜支店 | C92: 0331 | D92: 2343000 | E92: 0 | F92: 0 | G92: 0 | H92: 0 | I92: 2343000 | J92: 358584 | K92: 0 | L92: 358584
A93: 33 | B93: 京浜支店 | C93: 0340 | D93: 3993000 | E93: 0 | F93: 0 | G93: 0 | H93: 0 | I93: 3993000 | J93: 630155 | K93: 0 | L93: 630155
A94: 33 | B94: 京浜支店 | C94: 0341 | D94: 1489000 | E94: 0 | F94: 0 | G94: 0 | H94: 0 | I94: 1489000 | J94: 237644 | K94: 0 | L94: 237644
A95: 33 | B95: 京浜支店 | C95: 0342 | D95: 6358000 | E95: 0 | F95: 0 | G95: 0 | H95: 0 | I95: 6358000 | J95: 1025577 | K95: 0 | L95: 1025577
A96: 33 | B96: 京浜支店 | C96: 0354 | D96: 908000 | E96: 0 | F96: 0 | G96: 0 | H96: 0 | I96: 908000 | J96: 149002 | K96: 0 | L96: 149002
A97: 33 | B97: 京浜支店 | C97: 0359 | D97: 4977000 | E97: 0 | F97: 0 | G97: 0 | H97: 0 | I97: 4977000 | J97: 778467 | K97: 0 | L97: 778467
A98: 33 | B98: 京浜支店 | C98: 0374 | D98: 4699000 | E98: 0 | F98: 0 | G98: 0 | H98: 0 | I98: 4699000 | J98: 728833 | K98: 0 | L98: 728833
A99: 33 | B99: 京浜支店 | C99: 0377 | D99: 2415000 | E99: 0 | F99: 0 | G99: 0 | H99: 0 | I99: 2415000 | J99: 378673 | K99: 0 | L99: 378673
A100: 33 | B100: 京浜支店 | C100: 0378 | D100: 1485000 | E100: 0 | F100: 0 | G100: 0 | H100: 0 | I100: 1485000 | J100: 230323 | K100: 0 | L100: 230323
A101: 33 | B101: 京浜支店 | C101: 0379 | D101: 5543000 | E101: 0 | F101: 0 | G101: 0 | H101: 0 | I101: 5543000 | J101: 874560 | K101: 0 | L101: 874560
A102: 33 | B102: 京浜支店 | C102: 0383 | D102: 2758000 | E102: 0 | F102: 0 | G102: 0 | H102: 0 | I102: 2758000 | J102: 432091 | K102: 0 | L102: 432091
A103: 33 | B103: 京浜支店 | C103: 0384 | D103: 703000 | E103: 0 | F103: 0 | G103: 0 | H103: 0 | I103: 703000 | J103: 115362 | K103: 0 | L103: 115362
A104: 33 | B104: 京浜支店 | C104: 0392 | D104: 7991000 | E104: 0 | F104: 0 | G104: 0 | H104: 0 | I104: 7991000 | J104: 1260264 | K104: 0 | L104: 1260264
A105: 33 | B105: 京浜支店 | C105: 0394 | D105: 2508000 | E105: 0 | F105: 0 | G105: 0 | H105: 0 | I105: 2508000 | J105: 403389 | K105: 0 | L105: 403389
A106: 33 | B106: 京浜支店 | C106: 0398 | D106: 2551000 | E106: 0 | F106: 0 | G106: 0 | H106: 0 | I106: 2551000 | J106: 395659 | K106: 0 | L106: 395659
A107: 33 | B107: 京浜支店 | C107: 0414 | D107: 5945000 | E107: 0 | F107: 0 | G107: 0 | H107: 0 | I107: 5945000 | J107: 924976 | K107: 0 | L107: 924976
A108: 33 | B108: 京浜支店 | C108: 0424 | D108: 2268000 | E108: 0 | F108: 0 | G108: 0 | H108: 0 | I108: 2268000 | J108: 372178 | K108: 0 | L108: 372178
A109: 33 | B109: 京浜支店 | C109: 0659 | D109: 2527000 | E109: 0 | F109: 0 | G109: 0 | H109: 0 | I109: 2527000 | J109: 409090 | K109: 0 | L109: 409090
A110: 33 | B110: 京浜支店 | C110: 0281 | D110: 2494000 | E110: 0 | F110: 0 | G110: 0 | H110: 0 | I110: 2494000 | J110: 420488 | K110: 0 | L110: 420488
A111: 33 | B111: 京浜支店 | C111: 0345 | D111: 3653000 | E111: 0 | F111: 0 | G111: 0 | H111: 0 | I111: 3653000 | J111: 570022 | K111: 0 | L111: 570022
A112: 33 | B112: 京浜支店 | C112: 0393 | D112: 1712000 | E112: 0 | F112: 0 | G112: 0 | H112: 0 | I112: 1712000 | J112: 261541 | K112: 0 | L112: 261541
A113: 33 | B113: 京浜支店 | C113: 0346 | D113: 3051000 | E113: 0 | F113: 0 | G113: 0 | H113: 0 | I113: 3051000 | J113: 481429 | K113: 0 | L113: 481429
A114: 33 集計 | D114: 91035400 | E114: 0 | F114: 0 | G114: 0 | H114: 0 | I114: 91035400 | J114: 14296453 | K114: 0 | L114: 14296453
A115: 34 | B115: 関東倉庫事業部 | C115: 0833 | D115: 4297000 | E115: 0 | F115: 0 | G115: 0 | H115: 0 | I115: 4297000 | J115: 659815 | K115: 0 | L115: 659815
A116: 34 | B116: 関東倉庫事業部 | C116: 0350 | D116: 2854000 | E116: 0 | F116: 0 | G116: 0 | H116: 0 | I116: 2854000 | J116: 344450 | K116: 0 | L116: 344450
A117: 34 | B117: 関東倉庫事業部 | C117: 0351 | D117: 2595000 | E117: 0 | F117: 0 | G117: 0 | H117: 0 | I117: 2595000 | J117: 397669 | K117: 0 | L117: 397669
A118: 34 集計 | D118: 9746000 | E118: 0 | F118: 0 | G118: 0 | H118: 0 | I118: 9746000 | J118: 1401934 | K118: 0 | L118: 1401934
A119: 35 | B119: 海貨事業室 | C119: 0280 | D119: 1944000 | E119: 0 | F119: 0 | G119: 0 | H119: 0 | I119: 1944000 | J119: 278384 | K119: 0 | L119: 278384
A120: 35 | B120: 海貨事業室 | C120: 0283 | D120: 9517000 | E120: 0 | F120: 0 | G120: 0 | H120: 0 | I120: 9517000 | J120: 1563174 | K120: 0 | L120: 1563174
A121: 35 集計 | D121: 11461000 | E121: 0 | F121: 0 | G121: 0 | H121: 0 | I121: 11461000 | J121: 1841558 | K121: 0 | L121: 1841558
A122: 36 | B122: 複合輸送営業部 | C122: 0250 | D122: 6726500 | E122: 0 | F122: 0 | G122: 0 | H122: 0 | I122: 6726500 | J122: 906400 | K122: 0 | L122: 906400
A123: 36 | B123: 複合輸送営業部 | C123: 0275 | D123: 2319000 | E123: 0 | F123: 0 | G123: 0 | H123: 0 | I123: 2319000 | J123: 365327 | K123: 0 | L123: 365327
A124: 36 | B124: 複合輸送営業部 | C124: 0291 | D124: 11377000 | E124: 0 | F124: 0 | G124: 0 | H124: 0 | I124: 11377000 | J124: 1794203 | K124: 0 | L124: 1794203
A125: 36 | B125: 複合輸送営業部 | C125: 0292 | D125: 9554000 | E125: 0 | F125: 0 | G125: 0 | H125: 0 | I125: 9554000 | J125: 1506961 | K125: 0 | L125: 1506961
A126: 36 | B126: 複合輸送営業部 | C126: 0296 | D126: 2520000 | E126: 0 | F126: 0 | G126: 0 | H126: 0 | I126: 2520000 | J126: 390850 | K126: 0 | L126: 390850
A127: 36 | B127: 複合輸送営業部 | C127: 0740 | D127: 913000 | E127: 0 | F127: 0 | G127: 0 | H127: 0 | I127: 913000 | J127: 141606 | K127: 0 | L127: 141606
A128: 36 | B128: 複合輸送営業部 | C128: 0276 | D128: 1715000 | E128: 0 | F128: 0 | G128: 0 | H128: 0 | I128: 1715000 | J128: 261759 | K128: 0 | L128: 261759
A129: 36 | B129: 複合輸送営業部 | C129: 0279 | D129: 5027000 | E129: 0 | F129: 0 | G129: 0 | H129: 0 | I129: 5027000 | J129: 651984 | K129: 0 | L129: 651984
A130: 36 | B130: 複合輸送営業部 | C130: 0297 | D130: 964000 | E130: 0 | F130: 0 | G130: 0 | H130: 0 | I130: 964000 | J130: 149516 | K130: 0 | L130: 149516
A131: 36 集計 | D131: 41115500 | E131: 0 | F131: 0 | G131: 0 | H131: 0 | I131: 41115500 | J131: 6168606 | K131: 0 | L131: 6168606
A132: 41 | B132: 化学品営業第一部 | C132: 0410 | D132: 6180000 | E132: 0 | F132: 0 | G132: 0 | H132: 0 | I132: 6180000 | J132: 860417 | K132: 0 | L132: 860417
A133: 41 | B133: 化学品営業第一部 | C133: 0413 | D133: 6271000 | E133: 0 | F133: 0 | G133: 0 | H133: 0 | I133: 6271000 | J133: 957989 | K133: 0 | L133: 957989
A134: 41 | B134: 化学品営業第一部 | C134: 0421 | D134: 4566000 | E134: 0 | F134: 0 | G134: 0 | H134: 0 | I134: 4566000 | J134: 717769 | K134: 0 | L134: 717769
A135: 41 | B135: 化学品営業第一部 | C135: 0427 | D135: 4708000 | E135: 0 | F135: 0 | G135: 0 | H135: 0 | I135: 4708000 | J135: 725971 | K135: 0 | L135: 725971
A136: 41 | B136: 化学品営業第一部 | C136: 0415 | D136: 1715000 | E136: 0 | F136: 0 | G136: 0 | H136: 0 | I136: 1715000 | J136: 269477 | K136: 0 | L136: 269477
A137: 41 集計 | D137: 23440000 | E137: 0 | F137: 0 | G137: 0 | H137: 0 | I137: 23440000 | J137: 3531623 | K137: 0 | L137: 3531623
A138: 43 | B138: 化学品営業第二部 | C138: 0236 | D138: 1095000 | E138: 0 | F138: 0 | G138: 0 | H138: 0 | I138: 1095000 | J138: 179689 | K138: 0 | L138: 179689
A139: 43 | B139: 化学品営業第二部 | C139: 0412 | D139: 7150000 | E139: 0 | F139: 0 | G139: 0 | H139: 0 | I139: 7150000 | J139: 1108904 | K139: 0 | L139: 1108904
A140: 43 | B140: 化学品営業第二部 | C140: 0419 | D140: 11558000 | E140: 0 | F140: 0 | G140: 0 | H140: 0 | I140: 11558000 | J140: 1809988 | K140: 0 | L140: 1809988
A141: 43 | B141: 化学品営業第二部 | C141: 0430 | D141: 8342000 | E141: 0 | F141: 0 | G141: 0 | H141: 0 | I141: 8342000 | J141: 1154628 | K141: 0 | L141: 1154628
A142: 43 | B142: 化学品営業第二部 | C142: 0433 | D142: 2853000 | E142: 0 | F142: 0 | G142: 0 | H142: 0 | I142: 2853000 | J142: 337815 | K142: 0 | L142: 337815
A143: 43 | B143: 化学品営業第二部 | C143: 0434 | D143: 2161000 | E143: 0 | F143: 0 | G143: 0 | H143: 0 | I143: 2161000 | J143: 339805 | K143: 0 | L143: 339805
A144: 43 | B144: 化学品営業第二部 | C144: 0442 | D144: 8427000 | E144: 0 | F144: 0 | G144: 0 | H144: 0 | I144: 8427000 | J144: 1306169 | K144: 0 | L144: 1306169
A145: 43 集計 | D145: 41586000 | E145: 0 | F145: 0 | G145: 0 | H145: 0 | I145: 41586000 | J145: 6236998 | K145: 0 | L145: 6236998
A146: 47 | B146: 千葉支店 | C146: 0470 | D146: 3346000 | E146: 0 | F146: 0 | G146: 0 | H146: 0 | I146: 3346000 | J146: 448794 | K146: 0 | L146: 448794
A147: 47 | B147: 千葉支店 | C147: 0472 | D147: 4480000 | E147: 0 | F147: 0 | G147: 0 | H147: 0 | I147: 4480000 | J147: 705683 | K147: 0 | L147: 705683
A148: 47 | B148: 千葉支店 | C148: 0477 | D148: 4497000 | E148: 0 | F148: 0 | G148: 0 | H148: 0 | I148: 4497000 | J148: 711871 | K148: 0 | L148: 711871
A149: 47 | B149: 千葉支店 | C149: 0474 | D149: 3079000 | E149: 0 | F149: 0 | G149: 0 | H149: 0 | I149: 3079000 | J149: 495794 | K149: 0 | L149: 495794
A150: 47 集計 | D150: 15402000 | E150: 0 | F150: 0 | G150: 0 | H150: 0 | I150: 15402000 | J150: 2362142 | K150: 0 | L150: 2362142
A151: 48 | B151: 車両事業部 | C151: 0912 | D151: 1371000 | E151: 0 | F151: 0 | G151: 0 | H151: 0 | I151: 1371000 | J151: 221690 | K151: 0 | L151: 221690
A152: 48 集計 | D152: 1371000 | E152: 0 | F152: 0 | G152: 0 | H152: 0 | I152: 1371000 | J152: 221690 | K152: 0 | L152: 221690
A153: 49 | B153: 通関部 | C153: 0481 | D153: 12169000 | E153: 0 | F153: 0 | G153: 0 | H153: 0 | I153: 12169000 | J153: 1917388 | K153: 0 | L153: 1917388
A154: 49 | B154: 通関部 | C154: 0482 | D154: 10694000 | E154: 0 | F154: 0 | G154: 0 | H154: 0 | I154: 10694000 | J154: 1683944 | K154: 0 | L154: 1683944
A155: 49 | B155: 通関部 | C155: 0483 | D155: 3677000 | E155: 0 | F155: 0 | G155: 0 | H155: 0 | I155: 3677000 | J155: 598003 | K155: 0 | L155: 598003
A156: 49 | B156: 通関部 | C156: 0484 | D156: 3388000 | E156: 0 | F156: 0 | G156: 0 | H156: 0 | I156: 3388000 | J156: 528976 | K156: 0 | L156: 528976
A157: 49 | B157: 通関部 | C157: 0487 | D157: 11521000 | E157: 0 | F157: 0 | G157: 0 | H157: 0 | I157: 11521000 | J157: 1857425 | K157: 0 | L157: 1857425
A158: 49 | B158: 通関部 | C158: 0490 | D158: 5979000 | E158: 0 | F158: 0 | G158: 0 | H158: 0 | I158: 5979000 | J158: 845825 | K158: 0 | L158: 845825
A159: 49 | B159: 通関部 | C159: 0491 | D159: 2944000 | E159: 0 | F159: 0 | G159: 0 | H159: 0 | I159: 2944000 | J159: 433484 | K159: 0 | L159: 433484
A160: 49 | B160: 通関部 | C160: 0494 | D160: 12153000 | E160: 0 | F160: 0 | G160: 0 | H160: 0 | I160: 12153000 | J160: 1898548 | K160: 0 | L160: 1898548
A161: 49 | B161: 通関部 | C161: 0495 | D161: 1687000 | E161: 0 | F161: 0 | G161: 0 | H161: 0 | I161: 1687000 | J161: 276836 | K161: 0 | L161: 276836
A162: 49 | B162: 通関部 | C162: 0850 | D162: 2944000 | E162: 0 | F162: 0 | G162: 0 | H162: 0 | I162: 2944000 | J162: 442484 | K162: 0 | L162: 442484
A163: 49 | B163: 通関部 | C163: 0855 | D163: 9529000 | E163: 0 | F163: 0 | G163: 0 | H163: 0 | I163: 9529000 | J163: 1505467 | K163: 0 | L163: 1505467
A164: 49 | B164: 通関部 | C164: 0857 | D164: 9516000 | E164: 0 | F164: 0 | G164: 0 | H164: 0 | I164: 9516000 | J164: 1389463 | K164: 0 | L164: 1389463
A165: 49 | B165: 通関部 | C165: 0858 | D165: 5182000 | E165: 0 | F165: 0 | G165: 0 | H165: 0 | I165: 5182000 | J165: 835936 | K165: 0 | L165: 835936
A166: 49 | B166: 通関部 | C166: 0860 | D166: 2944000 | E166: 0 | F166: 0 | G166: 0 | H166: 0 | I166: 2944000 | J166: 442484 | K166: 0 | L166: 442484
A167: 49 | B167: 通関部 | C167: 0863 | D167: 9688000 | E167: 0 | F167: 0 | G167: 0 | H167: 0 | I167: 9688000 | J167: 1539199 | K167: 0 | L167: 1539199
A168: 49 | B168: 通関部 | C168: 0864 | D168: 6981000 | E168: 0 | F168: 0 | G168: 0 | H168: 0 | I168: 6981000 | J168: 1115373 | K168: 0 | L168: 1115373
A169: 49 | B169: 通関部 | C169: 0865 | D169: 4818000 | E169: 0 | F169: 0 | G169: 0 | H169: 0 | I169: 4818000 | J169: 783315 | K169: 0 | L169: 783315
A170: 49 集計 | D170: 115814000 | E170: 0 | F170: 0 | G170: 0 | H170: 0 | I170: 115814000 | J170: 18094150 | K170: 0 | L170: 18094150
A171: 50 | B171: 関西管理室 | C171: 0164 | D171: 2636000 | E171: 0 | F171: 0 | G171: 0 | H171: 0 | I171: 2636000 | J171: 400646 | K171: 0 | L171: 400646
A172: 50 | B172: 関西管理室 | C172: 0501 | D172: 5005000 | E172: 0 | F172: 0 | G172: 0 | H172: 0 | I172: 5005000 | J172: 744733 | K172: 0 | L172: 744733
A173: 50 | B173: 関西管理室 | C173: 0503 | D173: 5755000 | E173: 0 | F173: 0 | G173: 0 | H173: 0 | I173: 5755000 | J173: 904127 | K173: 0 | L173: 904127
A174: 50 | B174: 関西管理室 | C174: 0506 | D174: 5949400 | E174: 0 | F174: 0 | G174: 0 | H174: 0 | I174: 5949400 | J174: 848251 | K174: 0 | L174: 848251
A175: 50 | B175: 関西管理室 | C175: 0872 | D175: 6174000 | E175: 0 | F175: 0 | G175: 0 | H175: 0 | I175: 6174000 | J175: 951297 | K175: 0 | L175: 951297
A176: 50 集計 | D176: 25519400 | E176: 0 | F176: 0 | G176: 0 | H176: 0 | I176: 25519400 | J176: 3849054 | K176: 0 | L176: 3849054
A177: 52 | B177: 阪神港運部 | C177: 0520 | D177: 5967000 | E177: 0 | F177: 0 | G177: 0 | H177: 0 | I177: 5967000 | J177: 844953 | K177: 0 | L177: 844953
A178: 52 | B178: 阪神港運部 | C178: 0522 | D178: 13107000 | E178: 0 | F178: 0 | G178: 0 | H178: 0 | I178: 13107000 | J178: 2098274 | K178: 0 | L178: 2098274
A179: 52 | B179: 阪神港運部 | C179: 0523 | D179: 8621000 | E179: 0 | F179: 0 | G179: 0 | H179: 0 | I179: 8621000 | J179: 1372293 | K179: 0 | L179: 1372293
A180: 52 | B180: 阪神港運部 | C180: 0541 | D180: 913000 | E180: 0 | F180: 0 | G180: 0 | H180: 0 | I180: 913000 | J180: 149823 | K180: 0 | L180: 149823
A181: 52 | B181: 阪神港運部 | C181: 0587 | D181: 11588000 | E181: 0 | F181: 0 | G181: 0 | H181: 0 | I181: 11588000 | J181: 1849727 | K181: 0 | L181: 1849727
A182: 52 | B182: 阪神港運部 | C182: 0586 | D182: 942000 | E182: 0 | F182: 0 | G182: 0 | H182: 0 | I182: 942000 | J182: 154582 | K182: 0 | L182: 154582
A183: 52 集計 | D183: 41138000 | E183: 0 | F183: 0 | G183: 0 | H183: 0 | I183: 41138000 | J183: 6469652 | K183: 0 | L183: 6469652
A184: 55 | B184: 電機・電子営業部 | C184: 0551 | D184: 7716400 | E184: 0 | F184: 0 | G184: 0 | H184: 0 | I184: 7716400 | J184: 1108935 | K184: 0 | L184: 1108935
A185: 55 | B185: 電機・電子営業部 | C185: 0552 | D185: 3825000 | E185: 0 | F185: 0 | G185: 0 | H185: 0 | I185: 3825000 | J185: 619508 | K185: 0 | L185: 619508
A186: 55 | B186: 電機・電子営業部 | C186: 0554 | D186: 3541000 | E186: 0 | F186: 0 | G186: 0 | H186: 0 | I186: 3541000 | J186: 541010 | K186: 0 | L186: 541010
A187: 55 | B187: 電機・電子営業部 | C187: 0556 | D187: 7971000 | E187: 0 | F187: 0 | G187: 0 | H187: 0 | I187: 7971000 | J187: 1252641 | K187: 0 | L187: 1252641
A188: 55 | B188: 電機・電子営業部 | C188: 0559 | D188: 1810000 | E188: 0 | F188: 0 | G188: 0 | H188: 0 | I188: 1810000 | J188: 297020 | K188: 0 | L188: 297020
A189: 55 | B189: 電機・電子営業部 | C189: 0789 | D189: 7032000 | E189: 0 | F189: 0 | G189: 0 | H189: 0 | I189: 7032000 | J189: 1115169 | K189: 0 | L189: 1115169
A190: 55 | B190: 電機・電子営業部 | C190: 0791 | D190: 5282000 | E190: 0 | F190: 0 | G190: 0 | H190: 0 | I190: 5282000 | J190: 848749 | K190: 0 | L190: 848749
A191: 55 | B191: 電機・電子営業部 | C191: 0550 | D191: 3665000 | E191: 0 | F191: 0 | G191: 0 | H191: 0 | I191: 3665000 | J191: 568306 | K191: 0 | L191: 568306
A192: 55 集計 | D192: 40842400 | E192: 0 | F192: 0 | G192: 0 | H192: 0 | I192: 40842400 | J192: 6351338 | K192: 0 | L192: 6351338
A193: 56 | B193: 大阪営業第二部 | C193: 0531 | D193: 5250000 | E193: 0 | F193: 0 | G193: 0 | H193: 0 | I193: 5250000 | J193: 836044 | K193: 0 | L193: 836044
A194: 56 | B194: 大阪営業第二部 | C194: 0532 | D194: 3430000 | E194: 0 | F194: 0 | G194: 0 | H194: 0 | I194: 3430000 | J194: 554645 | K194: 0 | L194: 554645
A195: 56 | B195: 大阪営業第二部 | C195: 0560 | D195: 7553400 | E195: 0 | F195: 0 | G195: 0 | H195: 0 | I195: 7553400 | J195: 1071024 | K195: 0 | L195: 1071024
A196: 56 | B196: 大阪営業第二部 | C196: 0565 | D196: 8306000 | E196: 0 | F196: 0 | G196: 0 | H196: 0 | I196: 8306000 | J196: 1309046 | K196: 0 | L196: 1309046
A197: 56 | B197: 大阪営業第二部 | C197: 0566 | D197: 6730000 | E197: 0 | F197: 0 | G197: 0 | H197: 0 | I197: 6730000 | J197: 1073778 | K197: 0 | L197: 1073778
A198: 56 | B198: 大阪営業第二部 | C198: 0567 | D198: 4440000 | E198: 0 | F198: 0 | G198: 0 | H198: 0 | I198: 4440000 | J198: 676928 | K198: 0 | L198: 676928
A199: 56 | B199: 大阪営業第二部 | C199: 0569 | D199: 2427000 | E199: 0 | F199: 0 | G199: 0 | H199: 0 | I199: 2427000 | J199: 385670 | K199: 0 | L199: 385670
A200: 56 | B200: 大阪営業第二部 | C200: 0571 | D200: 9537000 | E200: 0 | F200: 0 | G200: 0 | H200: 0 | I200: 9537000 | J200: 1375575 | K200: 0 | L200: 1375575
A201: 56 | B201: 大阪営業第二部 | C201: 0574 | D201: 777000 | E201: 0 | F201: 0 | G201: 0 | H201: 0 | I201: 777000 | J201: 120512 | K201: 0 | L201: 120512
A202: 56 集計 | D202: 48450400 | E202: 0 | F202: 0 | G202: 0 | H202: 0 | I202: 48450400 | J202: 7403222 | K202: 0 | L202: 7403222
A203: 57 | B203: 大阪営業第一部 | C203: 0561 | D203: 9783000 | E203: 0 | F203: 0 | G203: 0 | H203: 0 | I203: 9783000 | J203: 1493383 | K203: 0 | L203: 1493383
... 127 more rows

Sheet 配賦額
B1: 人件費賞与配賦(支給月以外) | G1: 人件費賞与配賦(支給月) | L1: 人件費賞与配賦戻し(支給月) | Q1: 人件費法定福利費配賦(支給月以外) | V1: 人件費法定福利費配賦(支給月) | AA1: 人件費法定福利費配賦戻し(支給月) | AF1: 作業費賞与配賦(支給月以外) | AK1: 作業費賞与配賦(支給月) | AP1: 作業費賞与配賦戻し(支給月) | AU1: 作業費法定福利費配賦(支給月以外) | AZ1: 作業費法定福利費配賦(支給月) | BE1: 作業費法定福利費配賦戻し(支給月)
B2: 勘定コード | C2: 利益センタ | D2: 金額 | E2: テキスト | G2: 勘定コード | H2: 利益センタ | I2: 金額 | J2: テキスト | L2: 勘定コード | M2: 利益センタ | N2: 金額 | O2: テキスト | Q2: 勘定コード | R2: 利益センタ | S2: 金額 | T2: テキスト | V2: 勘定コード | W2: 利益センタ | X2: 金額 | Y2: テキスト | AA2: 勘定コード | AB2: 利益センタ | AC2: 金額 | AD2: テキスト | AF2: 勘定コード | AG2: 利益センタ | AH2: 金額 | AI2: テキスト | AK2: 勘定コード | AL2: 利益センタ | AM2: 金額 | AN2: テキスト | AP2: 勘定コード | AQ2: 利益センタ | AR2: 金額 | AS2: テキスト | AU2: 勘定コード | AV2: 利益センタ | AW2: 金額 | AX2: テキスト | AZ2: 勘定コード | BA2: 利益センタ | BB2: 金額 | BC2: テキスト | BE2: 勘定コード | BF2: 利益センタ | BG2: 金額 | BH2: テキスト
B3: 7700303 | C3: NS-0100 | D3: =IFERROR(ROUND(SUMIF(基データ!$C:$C,RIGHT(配賦額!C3,4),基データ!$I:$I)/6,0),0) -> 0 | E3: =使い方!$B$7&使い方!$C$7&"賞与見積" -> 2023夏季賞与見積 | G3: 7700303 | H3: NS-0100 | I3: =IFERROR(ROUND((SUMIF(基データ!$C:$C,RIGHT(配賦額!H3,4),基データ!$I:$I)-D3*5),0),0) -> 0 | J3: =使い方!$B$7&使い方!$C$7&"賞与見積" -> 2023夏季賞与見積 | L3: 7700303 | M3: NS-0100 | N3: =-IFERROR(ROUND(SUMIF(基データ!$C:$C,RIGHT(配賦額!M3,4),基データ!$I:$I),0),0) -> 0 | O3: =使い方!$B$7&使い方!$C$7&"賞与見積戻し" -> 2023夏季賞与見積戻し | Q3: 7700305 | R3: NS-0100 | S3: =IFERROR(ROUND(SUMIF(基データ!$C:$C,RIGHT(配賦額!R3,4),基データ!$L:$L)/6,0),0) -> 0 | T3: =使い方!$B$7&使い方!$C$7&"賞与法定福利見積" -> 2023夏季賞与法定福利見積 | V3: 7700305 | W3: NS-0100 | X3: =IFERROR(ROUND((SUMIF(基データ!$C:$C,RIGHT(配賦額!W3,4),基データ!$L:$L)-S3*5),0),0) -> 0 | Y3: =使い方!$B$7&使い方!$C$7&"賞与法定福利見積" -> 2023夏季賞与法定福利見積 | AA3: 7700305 | AB3: NS-0100 | AC3: =-IFERROR(ROUND(SUMIF(基データ!$C:$C,RIGHT(配賦額!AB3,4),基データ!$L:$L),0),0) -> 0 | AD3: =使い方!$B$7&使い方!$C$7&"賞与法定福利見積戻し" -> 2023夏季賞与法定福利見積戻し | AF3: 7700201 | AG3: NS-0100 | AH3: =IFERROR(ROUND(SUMIF(基データ!$Q:$Q,RIGHT(配賦額!AG3,4),基データ!$T:$T)/6,0),0) -> 0 | AI3: =使い方!$B$7&使い方!$C$7&"賞与見積(現業)" -> 2023夏季賞与見積(現業) | AK3: 7700201 | AL3: NS-0100 | AM3: =IFERROR(ROUND((SUMIF(基データ!$Q:$Q,RIGHT(配賦額!AL3,4),基データ!$T:$T)-AH3*5),0),0) -> 0 | AN3: =使い方!$B$7&使い方!$C$7&"賞与見積(現業)" -> 2023夏季賞与見積(現業) | AP3: 7700201 | AQ3: NS-0100 | AR3: =-IFERROR(ROUND(SUMIF(基データ!$Q:$Q,RIGHT(配賦額!AQ3,4),基データ!$T:$T),0),0) -> 0 | AS3: =使い方!$B$7&使い方!$C$7&"賞与見積戻し(現業)" -> 2023夏季賞与見積戻し(現業) | AU3: 7700202 | AV3: NS-0100 | AW3: =IFERROR(ROUND(SUMIF(基データ!$Q:$Q,RIGHT(配賦額!AV3,4),基データ!$U:$U)/6,0),0) -> 0 | AX3: =使い方!$B$7&使い方!$C$7&"賞与法定福利見積(現業)" -> 2023夏季賞与法定福利見積(現業) | AZ3: 7700202 | BA3: NS-0100 | BB3: =IFERROR(ROUND((SUMIF(基データ!$Q:$Q,RIGHT(配賦額!BA3,4),基データ!$U:$U)-AW3*5),0),0) -> 0 | BC3: =使い方!$B$7&使い方!$C$7&"賞与法定福利見積(現業)" -> 2023夏季賞与法定福利見積(現業) | BE3: 7700202 | BF3: NS-0100 | BG3: =-IFERROR(ROUND(SUMIF(基データ!$Q:$Q,RIGHT(配賦額!BF3,4),基データ!$U:$U),0),0) -> 0 | BH3: =使い方!$B$7&使い方!$C$7&"賞与法定福利見積戻し(現業)" -> 2023夏季賞与法定福利見積戻し(現業)
B4: 7700303 | C4: NS-0101 | D4: =IFERROR(ROUND(SUMIF(基データ!$C:$C,RIGHT(配賦額!C4,4),基データ!$I:$I)/6,0),0) -> 0 | E4: =使い方!$B$7&使い方!$C$7&"賞与見積" -> 2023夏季賞与見積 | G4: 7700303 | H4: NS-0101 | I4: =IFERROR(ROUND((SUMIF(基データ!$C:$C,RIGHT(配賦額!H4,4),基データ!$I:$I)-D4*5),0),0) -> 0 | J4: =使い方!$B$7&使い方!$C$7&"賞与見積" -> 2023夏季賞与見積 | L4: 7700303 | M4: NS-0101 | N4: =-IFERROR(ROUND(SUMIF(基データ!$C:$C,RIGHT(配賦額!M4,4),基データ!$I:$I),0),0) -> 0 | O4: =使い方!$B$7&使い方!$C$7&"賞与見積戻し" -> 2023夏季賞与見積戻し | Q4: 7700305 | R4: NS-0101 | S4: =IFERROR(ROUND(SUMIF(基データ!$C:$C,RIGHT(配賦額!R4,4),基データ!$L:$L)/6,0),0) -> 0 | T4: =使い方!$B$7&使い方!$C$7&"賞与法定福利見積" -> 2023夏季賞与法定福利見積 | V4: 7700305 | W4: NS-0101 | X4: =IFERROR(ROUND((SUMIF(基データ!$C:$C,RIGHT(配賦額!W4,4),基データ!$L:$L)-S4*5),0),0) -> 0 | Y4: =使い方!$B$7&使い方!$C$7&"賞与法定福利見積" -> 2023夏季賞与法定福利見積 | AA4: 7700305 | AB4: NS-0101 | AC4: =-IFERROR(ROUND(SUMIF(基データ!$C:$C,RIGHT(配賦額!AB4,4),基データ!$L:$L),0),0) -> 0 | AD4: =使い方!$B$7&使い方!$C$7&"賞与法定福利見積戻し" -> 2023夏季賞与法定福利見積戻し | AF4: 7700201 | AG4: NS-0101 | AH4: =IFERROR(ROUND(SUMIF(基データ!$Q:$Q,RIGHT(配賦額!AG4,4),基データ!$T:$T)/6,0),0) -> 0 | AI4: =使い方!$B$7&使い方!$C$7&"賞与見積(現業)" -> 2023夏季賞与見積(現業) | AK4: 7700201 | AL4: NS-0101 | AM4: =IFERROR(ROUND((SUMIF(基データ!$Q:$Q,RIGHT(配賦額!AL4,4),基データ!$T:$T)-AH4*5),0),0) -> 0 | AN4: =使い方!$B$7&使い方!$C$7&"賞与見積(現業)" -> 2023夏季賞与見積(現業) | AP4: 7700201 | AQ4: NS-0101 | AR4: =-IFERROR(ROUND(SUMIF(基データ!$Q:$Q,RIGHT(配賦額!AQ4,4),基データ!$T:$T),0),0) -> 0 | AS4: =使い方!$B$7&使い方!$C$7&"賞与見積戻し(現業)" -> 2023夏季賞与見積戻し(現業) | AU4: 7700202 | AV4: NS-0101 | AW4: =IFERROR(ROUND(SUMIF(基データ!$Q:$Q,RIGHT(配賦額!AV4,4),基データ!$U:$U)/6,0),0) -> 0 | AX4: =使い方!$B$7&使い方!$C$7&"賞与法定福利見積(現業)" -> 2023夏季賞与法定福利見積(現業) | AZ4: 7700202 | BA4: NS-0101 | BB4: =IFERROR(ROUND((SUMIF(基データ!$Q:$Q,RIGHT(配賦額!BA4,4),基データ!$U:$U)-AW4*5),0),0) -> 0 | BC4: =使い方!$B$7&使い方!$C$7&"賞与法定福利見積(現業)" -> 2023夏季賞与法定福利見積(現業) | BE4: 7700202 | BF4: NS-0101 | BG4: =-IFERROR(ROUND(SUMIF(基データ!$Q:$Q,RIGHT(配賦額!BF4,4),基データ!$U:$U),0),0) -> 0 | BH4: =使い方!$B$7&使い方!$C$7&"賞与法定福利見積戻し(現業)" -> 2023夏季賞与法定福利見積戻し(現業)
B5: 7700303 | C5: NS-0102 | D5: =IFERROR(ROUND(SUMIF(基データ!$C:$C,RIGHT(配賦額!C5,4),基データ!$I:$I)/6,0),0) -> 7000000 | E5: =使い方!$B$7&使い方!$C$7&"賞与見積" -> 2023夏季賞与見積 | G5: 7700303 | H5: NS-0102 | I5: =IFERROR(ROUND((SUMIF(基データ!$C:$C,RIGHT(配賦額!H5,4),基データ!$I:$I)-D5*5),0),0) -> 7000000 | J5: =使い方!$B$7&使い方!$C$7&"賞与見積" -> 2023夏季賞与見積 | L5: 7700303 | M5: NS-0102 | N5: =-IFERROR(ROUND(SUMIF(基データ!$C:$C,RIGHT(配賦額!M5,4),基データ!$I:$I),0),0) -> -42000000 | O5: =使い方!$B$7&使い方!$C$7&"賞与見積戻し" -> 2023夏季賞与見積戻し | Q5: 7700305 | R5: NS-0102 | S5: =IFERROR(ROUND(SUMIF(基データ!$C:$C,RIGHT(配賦額!R5,4),基データ!$L:$L)/6,0),0) -> 579750 | T5: =使い方!$B$7&使い方!$C$7&"賞与法定福利見積" -> 2023夏季賞与法定福利見積 | V5: 7700305 | W5: NS-0102 | X5: =IFERROR(ROUND((SUMIF(基データ!$C:$C,RIGHT(配賦額!W5,4),基データ!$L:$L)-S5*5),0),0) -> 579750 | Y5: =使い方!$B$7&使い方!$C$7&"賞与法定福利見積" -> 2023夏季賞与法定福利見積 | AA5: 7700305 | AB5: NS-0102 | AC5: =-IFERROR(ROUND(SUMIF(基データ!$C:$C,RIGHT(配賦額!AB5,4),基データ!$L:$L),0),0) -> -3478500 | AD5: =使い方!$B$7&使い方!$C$7&"賞与法定福利見積戻し" -> 2023夏季賞与法定福利見積戻し | AF5: 7700201 | AG5: NS-0102 | AH5: =IFERROR(ROUND(SUMIF(基データ!$Q:$Q,RIGHT(配賦額!AG5,4),基データ!$T:$T)/6,0),0) -> 0 | AI5: =使い方!$B$7&使い方!$C$7&"賞与見積(現業)" -> 2023夏季賞与見積(現業) | AK5: 7700201 | AL5: NS-0102 | AM5: =IFERROR(ROUND((SUMIF(基データ!$Q:$Q,RIGHT(配賦額!AL5,4),基データ!$T:$T)-AH5*5),0),0) -> 0 | AN5: =使い方!$B$7&使い方!$C$7&"賞与見積(現業)" -> 2023夏季賞与見積(現業) | AP5: 7700201 | AQ5: NS-0102 | AR5: =-IFERROR(ROUND(SUMIF(基データ!$Q:$Q,RIGHT(配賦額!AQ5,4),基データ!$T:$T),0),0) -> 0 | AS5: =使い方!$B$7&使い方!$C$7&"賞与見積戻し(現業)" -> 2023夏季賞与見積戻し(現業) | AU5: 7700202 | AV5: NS-0102 | AW5: =IFERROR(ROUND(SUMIF(基データ!$Q:$Q,RIGHT(配賦額!AV5,4),基データ!$U:$U)/6,0),0) -> 0 | AX5: =使い方!$B$7&使い方!$C$7&"賞与法定福利見積(現業)" -> 2023夏季賞与法定福利見積(現業) | AZ5: 7700202 | BA5: NS-0102 | BB5: =IFERROR(ROUND((SUMIF(基データ!$Q:$Q,RIGHT(配賦額!BA5,4),基データ!$U:$U)-AW5*5),0),0) -> 0 | BC5: =使い方!$B$7&使い方!$C$7&"賞与法定福利見積(現業)" -> 2023夏季賞与法定福利見積(現業) | BE5: 7700202 | BF5: NS-0102 | BG5: =-IFERROR(ROUND(SUMIF(基データ!$Q:$Q,RIGHT(配賦額!BF5,4),基データ!$U:$U),0),0) -> 0 | BH5: =使い方!$B$7&使い方!$C$7&"賞与法定福利見積戻し(現業)" -> 2023夏季賞与法定福利見積戻し(現業)
B6: 7700303 | C6: NS-0103 | D6: =IFERROR(ROUND(SUMIF(基データ!$C:$C,RIGHT(配賦額!C6,4),基データ!$I:$I)/6,0),0) -> 0 | E6: =使い方!$B$7&使い方!$C$7&"賞与見積" -> 2023夏季賞与見積 | G6: 7700303 | H6: NS-0103 | I6: =IFERROR(ROUND((SUMIF(基データ!$C:$C,RIGHT(配賦額!H6,4),基データ!$I:$I)-D6*5),0),0) -> 0 | J6: =使い方!$B$7&使い方!$C$7&"賞与見積" -> 2023夏季賞与見積 | L6: 7700303 | M6: NS-0103 | N6: =-IFERROR(ROUND(SUMIF(基データ!$C:$C,RIGHT(配賦額!M6,4),基データ!$I:$I),0),0) -> 0 | O6: =使い方!$B$7&使い方!$C$7&"賞与見積戻し" -> 2023夏季賞与見積戻し | Q6: 7700305 | R6: NS-0103 | S6: =IFERROR(ROUND(SUMIF(基データ!$C:$C,RIGHT(配賦額!R6,4),基データ!$L:$L)/6,0),0) -> 0 | T6: =使い方!$B$7&使い方!$C$7&"賞与法定福利見積" -> 2023夏季賞与法定福利見積 | V6: 7700305 | W6: NS-0103 | X6: =IFERROR(ROUND((SUMIF(基データ!$C:$C,RIGHT(配賦額!W6,4),基データ!$L:$L)-S6*5),0),0) -> 0 | Y6: =使い方!$B$7&使い方!$C$7&"賞与法定福利見積" -> 2023夏季賞与法定福利見積 | AA6: 7700305 | AB6: NS-0103 | AC6: =-IFERROR(ROUND(SUMIF(基データ!$C:$C,RIGHT(配賦額!AB6,4),基データ!$L:$L),0),0) -> 0 | AD6: =使い方!$B$7&使い方!$C$7&"賞与法定福利見積戻し" -> 2023夏季賞与法定福利見積戻し | AF6: 7700201 | AG6: NS-0103 | AH6: =IFERROR(ROUND(SUMIF(基データ!$Q:$Q,RIGHT(配賦額!AG6,4),基データ!$T:$T)/6,0),0) -> 0 | AI6: =使い方!$B$7&使い方!$C$7&"賞与見積(現業)" -> 2023夏季賞与見積(現業) | AK6: 7700201 | AL6: NS-0103 | AM6: =IFERROR(ROUND((SUMIF(基データ!$Q:$Q,RIGHT(配賦額!AL6,4),基データ!$T:$T)-AH6*5),0),0) -> 0 | AN6: =使い方!$B$7&使い方!$C$7&"賞与見積(現業)" -> 2023夏季賞与見積(現業) | AP6: 7700201 | AQ6: NS-0103 | AR6: =-IFERROR(ROUND(SUMIF(基データ!$Q:$Q,RIGHT(配賦額!AQ6,4),基データ!$T:$T),0),0) -> 0 | AS6: =使い方!$B$7&使い方!$C$7&"賞与見積戻し(現業)" -> 2023夏季賞与見積戻し(現業) | AU6: 7700202 | AV6: NS-0103 | AW6: =IFERROR(ROUND(SUMIF(基データ!$Q:$Q,RIGHT(配賦額!AV6,4),基データ!$U:$U)/6,0),0) -> 0 | AX6: =使い方!$B$7&使い方!$C$7&"賞与法定福利見積(現業)" -> 2023夏季賞与法定福利見積(現業) | AZ6: 7700202 | BA6: NS-0103 | BB6: =IFERROR(ROUND((SUMIF(基データ!$Q:$Q,RIGHT(配賦額!BA6,4),基データ!$U:$U)-AW6*5),0),0) -> 0 | BC6: =使い方!$B$7&使い方!$C$7&"賞与法定福利見積(現業)" -> 2023夏季賞与法定福利見積(現業) | BE6: 7700202 | BF6: NS-0103 | BG6: =-IFERROR(ROUND(SUMIF(基データ!$Q:$Q,RIGHT(配賦額!BF6,4),基データ!$U:$U),0),0) -> 0 | BH6: =使い方!$B$7&使い方!$C$7&"賞与法定福利見積戻し(現業)" -> 2023夏季賞与法定福利見積戻し(現業)
B7: 7700303 | C7: NS-0104 | D7: =IFERROR(ROUND(SUMIF(基データ!$C:$C,RIGHT(配賦額!C7,4),基データ!$I:$I)/6,0),0) -> 0 | E7: =使い方!$B$7&使い方!$C$7&"賞与見積" -> 2023夏季賞与見積 | G7: 7700303 | H7: NS-0104 | I7: =IFERROR(ROUND((SUMIF(基データ!$C:$C,RIGHT(配賦額!H7,4),基データ!$I:$I)-D7*5),0),0) -> 0 | J7: =使い方!$B$7&使い方!$C$7&"賞与見積" -> 2023夏季賞与見積 | L7: 7700303 | M7: NS-0104 | N7: =-IFERROR(ROUND(SUMIF(基データ!$C:$C,RIGHT(配賦額!M7,4),基データ!$I:$I),0),0) -> 0 | O7: =使い方!$B$7&使い方!$C$7&"賞与見積戻し" -> 2023夏季賞与見積戻し | Q7: 7700305 | R7: NS-0104 | S7: =IFERROR(ROUND(SUMIF(基データ!$C:$C,RIGHT(配賦額!R7,4),基データ!$L:$L)/6,0),0) -> 0 | T7: =使い方!$B$7&使い方!$C$7&"賞与法定福利見積" -> 2023夏季賞与法定福利見積 | V7: 7700305 | W7: NS-0104 | X7: =IFERROR(ROUND((SUMIF(基データ!$C:$C,RIGHT(配賦額!W7,4),基データ!$L:$L)-S7*5),0),0) -> 0 | Y7: =使い方!$B$7&使い方!$C$7&"賞与法定福利見積" -> 2023夏季賞与法定福利見積 | AA7: 7700305 | AB7: NS-0104 | AC7: =-IFERROR(ROUND(SUMIF(基データ!$C:$C,RIGHT(配賦額!AB7,4),基データ!$L:$L),0),0) -> 0 | AD7: =使い方!$B$7&使い方!$C$7&"賞与法定福利見積戻し" -> 2023夏季賞与法定福利見積戻し | AF7: 7700201 | AG7: NS-0104 | AH7: =IFERROR(ROUND(SUMIF(基データ!$Q:$Q,RIGHT(配賦額!AG7,4),基データ!$T:$T)/6,0),0) -> 0 | AI7: =使い方!$B$7&使い方!$C$7&"賞与見積(現業)" -> 2023夏季賞与見積(現業) | AK7: 7700201 | AL7: NS-0104 | AM7: =IFERROR(ROUND((SUMIF(基データ!$Q:$Q,RIGHT(配賦額!AL7,4),基データ!$T:$T)-AH7*5),0),0) -> 0 | AN7: =使い方!$B$7&使い方!$C$7&"賞与見積(現業)" -> 2023夏季賞与見積(現業) | AP7: 7700201 | AQ7: NS-0104 | AR7: =-IFERROR(ROUND(SUMIF(基データ!$Q:$Q,RIGHT(配賦額!AQ7,4),基データ!$T:$T),0),0) -> 0 | AS7: =使い方!$B$7&使い方!$C$7&"賞与見積戻し(現業)" -> 2023夏季賞与見積戻し(現業) | AU7: 7700202 | AV7: NS-0104 | AW7: =IFERROR(ROUND(SUMIF(基データ!$Q:$Q,RIGHT(配賦額!AV7,4),基データ!$U:$U)/6,0),0) -> 0 | AX7: =使い方!$B$7&使い方!$C$7&"賞与法定福利見積(現業)" -> 2023夏季賞与法定福利見積(現業) | AZ7: 7700202 | BA7: NS-0104 | BB7: =IFERROR(ROUND((SUMIF(基データ!$Q:$Q,RIGHT(配賦額!BA7,4),基データ!$U:$U)-AW7*5),0),0) -> 0 | BC7: =使い方!$B$7&使い方!$C$7&"賞与法定福利見積(現業)" -> 2023夏季賞与法定福利見積(現業) | BE7: 7700202 | BF7: NS-0104 | BG7: =-IFERROR(ROUND(SUMIF(基データ!$Q:$Q,RIGHT(配賦額!BF7,4),基データ!$U:$U),0),0) -> 0 | BH7: =使い方!$B$7&使い方!$C$7&"賞与法定福利見積戻し(現業)" -> 2023夏季賞与法定福利見積戻し(現業)
B8: 7700303 | C8: NS-0105 | D8: =IFERROR(ROUND(SUMIF(基データ!$C:$C,RIGHT(配賦額!C8,4),基データ!$I:$I)/6,0),0) -> 0 | E8: =使い方!$B$7&使い方!$C$7&"賞与見積" -> 2023夏季賞与見積 | G8: 7700303 | H8: NS-0105 | I8: =IFERROR(ROUND((SUMIF(基データ!$C:$C,RIGHT(配賦額!H8,4),基データ!$I:$I)-D8*5),0),0) -> 0 | J8: =使い方!$B$7&使い方!$C$7&"賞与見積" -> 2023夏季賞与見積 | L8: 7700303 | M8: NS-0105 | N8: =-IFERROR(ROUND(SUMIF(基データ!$C:$C,RIGHT(配賦額!M8,4),基データ!$I:$I),0),0) -> 0 | O8: =使い方!$B$7&使い方!$C$7&"賞与見積戻し" -> 2023夏季賞与見積戻し | Q8: 7700305 | R8: NS-0105 | S8: =IFERROR(ROUND(SUMIF(基データ!$C:$C,RIGHT(配賦額!R8,4),基データ!$L:$L)/6,0),0) -> 0 | T8: =使い方!$B$7&使い方!$C$7&"賞与法定福利見積" -> 2023夏季賞与法定福利見積 | V8: 7700305 | W8: NS-0105 | X8: =IFERROR(ROUND((SUMIF(基データ!$C:$C,RIGHT(配賦額!W8,4),基データ!$L:$L)-S8*5),0),0) -> 0 | Y8: =使い方!$B$7&使い方!$C$7&"賞与法定福利見積" -> 2023夏季賞与法定福利見積 | AA8: 7700305 | AB8: NS-0105 | AC8: =-IFERROR(ROUND(SUMIF(基データ!$C:$C,RIGHT(配賦額!AB8,4),基データ!$L:$L),0),0) -> 0 | AD8: =使い方!$B$7&使い方!$C$7&"賞与法定福利見積戻し" -> 2023夏季賞与法定福利見積戻し | AF8: 7700201 | AG8: NS-0105 | AH8: =IFERROR(ROUND(SUMIF(基データ!$Q:$Q,RIGHT(配賦額!AG8,4),基データ!$T:$T)/6,0),0) -> 0 | AI8: =使い方!$B$7&使い方!$C$7&"賞与見積(現業)" -> 2023夏季賞与見積(現業) | AK8: 7700201 | AL8: NS-0105 | AM8: =IFERROR(ROUND((SUMIF(基データ!$Q:$Q,RIGHT(配賦額!AL8,4),基データ!$T:$T)-AH8*5),0),0) -> 0 | AN8: =使い方!$B$7&使い方!$C$7&"賞与見積(現業)" -> 2023夏季賞与見積(現業) | AP8: 7700201 | AQ8: NS-0105 | AR8: =-IFERROR(ROUND(SUMIF(基データ!$Q:$Q,RIGHT(配賦額!AQ8,4),基データ!$T:$T),0),0) -> 0 | AS8: =使い方!$B$7&使い方!$C$7&"賞与見積戻し(現業)" -> 2023夏季賞与見積戻し(現業) | AU8: 7700202 | AV8: NS-0105 | AW8: =IFERROR(ROUND(SUMIF(基データ!$Q:$Q,RIGHT(配賦額!AV8,4),基データ!$U:$U)/6,0),0) -> 0 | AX8: =使い方!$B$7&使い方!$C$7&"賞与法定福利見積(現業)" -> 2023夏季賞与法定福利見積(現業) | AZ8: 7700202 | BA8: NS-0105 | BB8: =IFERROR(ROUND((SUMIF(基データ!$Q:$Q,RIGHT(配賦額!BA8,4),基データ!$U:$U)-AW8*5),0),0) -> 0 | BC8: =使い方!$B$7&使い方!$C$7&"賞与法定福利見積(現業)" -> 2023夏季賞与法定福利見積(現業) | BE8: 7700202 | BF8: NS-0105 | BG8: =-IFERROR(ROUND(SUMIF(基データ!$Q:$Q,RIGHT(配賦額!BF8,4),基データ!$U:$U),0),0) -> 0 | BH8: =使い方!$B$7&使い方!$C$7&"賞与法定福利見積戻し(現業)" -> 2023夏季賞与法定福利見積戻し(現業)
B9: 7700303 | C9: NS-0106 | D9: =IFERROR(ROUND(SUMIF(基データ!$C:$C,RIGHT(配賦額!C9,4),基データ!$I:$I)/6,0),0) -> 151250 | E9: =使い方!$B$7&使い方!$C$7&"賞与見積" -> 2023夏季賞与見積 | G9: 7700303 | H9: NS-0106 | I9: =IFERROR(ROUND((SUMIF(基データ!$C:$C,RIGHT(配賦額!H9,4),基データ!$I:$I)-D9*5),0),0) -> 151250 | J9: =使い方!$B$7&使い方!$C$7&"賞与見積" -> 2023夏季賞与見積 | L9: 7700303 | M9: NS-0106 | N9: =-IFERROR(ROUND(SUMIF(基データ!$C:$C,RIGHT(配賦額!M9,4),基データ!$I:$I),0),0) -> -907500 | O9: =使い方!$B$7&使い方!$C$7&"賞与見積戻し" -> 2023夏季賞与見積戻し | Q9: 7700305 | R9: NS-0106 | S9: =IFERROR(ROUND(SUMIF(基データ!$C:$C,RIGHT(配賦額!R9,4),基データ!$L:$L)/6,0),0) -> 24820 | T9: =使い方!$B$7&使い方!$C$7&"賞与法定福利見積" -> 2023夏季賞与法定福利見積 | V9: 7700305 | W9: NS-0106 | X9: =IFERROR(ROUND((SUMIF(基データ!$C:$C,RIGHT(配賦額!W9,4),基データ!$L:$L)-S9*5),0),0) -> 24819 | Y9: =使い方!$B$7&使い方!$C$7&"賞与法定福利見積" -> 2023夏季賞与法定福利見積 | AA9: 7700305 | AB9: NS-0106 | AC9: =-IFERROR(ROUND(SUMIF(基データ!$C:$C,RIGHT(配賦額!AB9,4),基データ!$L:$L),0),0) -> -148919 | AD9: =使い方!$B$7&使い方!$C$7&"賞与法定福利見積戻し" -> 2023夏季賞与法定福利見積戻し | AF9: 7700201 | AG9: NS-0106 | AH9: =IFERROR(ROUND(SUMIF(基データ!$Q:$Q,RIGHT(配賦額!AG9,4),基データ!$T:$T)/6,0),0) -> 0 | AI9: =使い方!$B$7&使い方!$C$7&"賞与見積(現業)" -> 2023夏季賞与見積(現業) | AK9: 7700201 | AL9: NS-0106 | AM9: =IFERROR(ROUND((SUMIF(基データ!$Q:$Q,RIGHT(配賦額!AL9,4),基データ!$T:$T)-AH9*5),0),0) -> 0 | AN9: =使い方!$B$7&使い方!$C$7&"賞与見積(現業)" -> 2023夏季賞与見積(現業) | AP9: 7700201 | AQ9: NS-0106 | AR9: =-IFERROR(ROUND(SUMIF(基データ!$Q:$Q,RIGHT(配賦額!AQ9,4),基データ!$T:$T),0),0) -> 0 | AS9: =使い方!$B$7&使い方!$C$7&"賞与見積戻し(現業)" -> 2023夏季賞与見積戻し(現業) | AU9: 7700202 | AV9: NS-0106 | AW9: =IFERROR(ROUND(SUMIF(基データ!$Q:$Q,RIGHT(配賦額!AV9,4),基データ!$U:$U)/6,0),0) -> 0 | AX9: =使い方!$B$7&使い方!$C$7&"賞与法定福利見積(現業)" -> 2023夏季賞与法定福利見積(現業) | AZ9: 7700202 | BA9: NS-0106 | BB9: =IFERROR(ROUND((SUMIF(基データ!$Q:$Q,RIGHT(配賦額!BA9,4),基データ!$U:$U)-AW9*5),0),0) -> 0 | BC9: =使い方!$B$7&使い方!$C$7&"賞与法定福利見積(現業)" -> 2023夏季賞与法定福利見積(現業) | BE9: 7700202 | BF9: NS-0106 | BG9: =-IFERROR(ROUND(SUMIF(基データ!$Q:$Q,RIGHT(配賦額!BF9,4),基データ!$U:$U),0),0) -> 0 | BH9: =使い方!$B$7&使い方!$C$7&"賞与法定福利見積戻し(現業)" -> 2023夏季賞与法定福利見積戻し(現業)
B10: 7700303 | C10: NS-0107 | D10: =IFERROR(ROUND(SUMIF(基データ!$C:$C,RIGHT(配賦額!C10,4),基データ!$I:$I)/6,0),0) -> 0 | E10: =使い方!$B$7&使い方!$C$7&"賞与見積" -> 2023夏季賞与見積 | G10: 7700303 | H10: NS-0107 | I10: =IFERROR(ROUND((SUMIF(基データ!$C:$C,RIGHT(配賦額!H10,4),基データ!$I:$I)-D10*5),0),0) -> 0 | J10: =使い方!$B$7&使い方!$C$7&"賞与見積" -> 2023夏季賞与見積 | L10: 7700303 | M10: NS-0107 | N10: =-IFERROR(ROUND(SUMIF(基データ!$C:$C,RIGHT(配賦額!M10,4),基データ!$I:$I),0),0) -> 0 | O10: =使い方!$B$7&使い方!$C$7&"賞与見積戻し" -> 2023夏季賞与見積戻し | Q10: 7700305 | R10: NS-0107 | S10: =IFERROR(ROUND(SUMIF(基データ!$C:$C,RIGHT(配賦額!R10,4),基データ!$L:$L)/6,0),0) -> 0 | T10: =使い方!$B$7&使い方!$C$7&"賞与法定福利見積" -> 2023夏季賞与法定福利見積 | V10: 7700305 | W10: NS-0107 | X10: =IFERROR(ROUND((SUMIF(基データ!$C:$C,RIGHT(配賦額!W10,4),基データ!$L:$L)-S10*5),0),0) -> 0 | Y10: =使い方!$B$7&使い方!$C$7&"賞与法定福利見積" -> 2023夏季賞与法定福利見積 | AA10: 7700305 | AB10: NS-0107 | AC10: =-IFERROR(ROUND(SUMIF(基データ!$C:$C,RIGHT(配賦額!AB10,4),基データ!$L:$L),0),0) -> 0 | AD10: =使い方!$B$7&使い方!$C$7&"賞与法定福利見積戻し" -> 2023夏季賞与法定福利見積戻し | AF10: 7700201 | AG10: NS-0107 | AH10: =IFERROR(ROUND(SUMIF(基データ!$Q:$Q,RIGHT(配賦額!AG10,4),基データ!$T:$T)/6,0),0) -> 0 | AI10: =使い方!$B$7&使い方!$C$7&"賞与見積(現業)" -> 2023夏季賞与見積(現業) | AK10: 7700201 | AL10: NS-0107 | AM10: =IFERROR(ROUND((SUMIF(基データ!$Q:$Q,RIGHT(配賦額!AL10,4),基データ!$T:$T)-AH10*5),0),0) -> 0 | AN10: =使い方!$B$7&使い方!$C$7&"賞与見積(現業)" -> 2023夏季賞与見積(現業) | AP10: 7700201 | AQ10: NS-0107 | AR10: =-IFERROR(ROUND(SUMIF(基データ!$Q:$Q,RIGHT(配賦額!AQ10,4),基データ!$T:$T),0),0) -> 0 | AS10: =使い方!$B$7&使い方!$C$7&"賞与見積戻し(現業)" -> 2023夏季賞与見積戻し(現業) | AU10: 7700202 | AV10: NS-0107 | AW10: =IFERROR(ROUND(SUMIF(基データ!$Q:$Q,RIGHT(配賦額!AV10,4),基データ!$U:$U)/6,0),0) -> 0 | AX10: =使い方!$B$7&使い方!$C$7&"賞与法定福利見積(現業)" -> 2023夏季賞与法定福利見積(現業) | AZ10: 7700202 | BA10: NS-0107 | BB10: =IFERROR(ROUND((SUMIF(基データ!$Q:$Q,RIGHT(配賦額!BA10,4),基データ!$U:$U)-AW10*5),0),0) -> 0 | BC10: =使い方!$B$7&使い方!$C$7&"賞与法定福利見積(現業)" -> 2023夏季賞与法定福利見積(現業) | BE10: 7700202 | BF10: NS-0107 | BG10: =-IFERROR(ROUND(SUMIF(基データ!$Q:$Q,RIGHT(配賦額!BF10,4),基データ!$U:$U),0),0) -> 0 | BH10: =使い方!$B$7&使い方!$C$7&"賞与法定福利見積戻し(現業)" -> 2023夏季賞与法定福利見積戻し(現業)
B11: 7700303 | C11: NS-0108 | D11: =IFERROR(ROUND(SUMIF(基データ!$C:$C,RIGHT(配賦額!C11,4),基データ!$I:$I)/6,0),0) -> 0 | E11: =使い方!$B$7&使い方!$C$7&"賞与見積" -> 2023夏季賞与見積 | G11: 7700303 | H11: NS-0108 | I11: =IFERROR(ROUND((SUMIF(基データ!$C:$C,RIGHT(配賦額!H11,4),基データ!$I:$I)-D11*5),0),0) -> 0 | J11: =使い方!$B$7&使い方!$C$7&"賞与見積" -> 2023夏季賞与見積 | L11: 7700303 | M11: NS-0108 | N11: =-IFERROR(ROUND(SUMIF(基データ!$C:$C,RIGHT(配賦額!M11,4),基データ!$I:$I),0),0) -> 0 | O11: =使い方!$B$7&使い方!$C$7&"賞与見積戻し" -> 2023夏季賞与見積戻し | Q11: 7700305 | R11: NS-0108 | S11: =IFERROR(ROUND(SUMIF(基データ!$C:$C,RIGHT(配賦額!R11,4),基データ!$L:$L)/6,0),0) -> 0 | T11: =使い方!$B$7&使い方!$C$7&"賞与法定福利見積" -> 2023夏季賞与法定福利見積 | V11: 7700305 | W11: NS-0108 | X11: =IFERROR(ROUND((SUMIF(基データ!$C:$C,RIGHT(配賦額!W11,4),基データ!$L:$L)-S11*5),0),0) -> 0 | Y11: =使い方!$B$7&使い方!$C$7&"賞与法定福利見積" -> 2023夏季賞与法定福利見積 | AA11: 7700305 | AB11: NS-0108 | AC11: =-IFERROR(ROUND(SUMIF(基データ!$C:$C,RIGHT(配賦額!AB11,4),基データ!$L:$L),0),0) -> 0 | AD11: =使い方!$B$7&使い方!$C$7&"賞与法定福利見積戻し" -> 2023夏季賞与法定福利見積戻し | AF11: 7700201 | AG11: NS-0108 | AH11: =IFERROR(ROUND(SUMIF(基データ!$Q:$Q,RIGHT(配賦額!AG11,4),基データ!$T:$T)/6,0),0) -> 0 | AI11: =使い方!$B$7&使い方!$C$7&"賞与見積(現業)" -> 2023夏季賞与見積(現業) | AK11: 7700201 | AL11: NS-0108 | AM11: =IFERROR(ROUND((SUMIF(基データ!$Q:$Q,RIGHT(配賦額!AL11,4),基データ!$T:$T)-AH11*5),0),0) -> 0 | AN11: =使い方!$B$7&使い方!$C$7&"賞与見積(現業)" -> 2023夏季賞与見積(現業) | AP11: 7700201 | AQ11: NS-0108 | AR11: =-IFERROR(ROUND(SUMIF(基データ!$Q:$Q,RIGHT(配賦額!AQ11,4),基データ!$T:$T),0),0) -> 0 | AS11: =使い方!$B$7&使い方!$C$7&"賞与見積戻し(現業)" -> 2023夏季賞与見積戻し(現業) | AU11: 7700202 | AV11: NS-0108 | AW11: =IFERROR(ROUND(SUMIF(基データ!$Q:$Q,RIGHT(配賦額!AV11,4),基データ!$U:$U)/6,0),0) -> 0 | AX11: =使い方!$B$7&使い方!$C$7&"賞与法定福利見積(現業)" -> 2023夏季賞与法定福利見積(現業) | AZ11: 7700202 | BA11: NS-0108 | BB11: =IFERROR(ROUND((SUMIF(基データ!$Q:$Q,RIGHT(配賦額!BA11,4),基データ!$U:$U)-AW11*5),0),0) -> 0 | BC11: =使い方!$B$7&使い方!$C$7&"賞与法定福利見積(現業)" -> 2023夏季賞与法定福利見積(現業) | BE11: 7700202 | BF11: NS-0108 | BG11: =-IFERROR(ROUND(SUMIF(基データ!$Q:$Q,RIGHT(配賦額!BF11,4),基データ!$U:$U),0),0) -> 0 | BH11: =使い方!$B$7&使い方!$C$7&"賞与法定福利見積戻し(現業)" -> 2023夏季賞与法定福利見積戻し(現業)
B12: 7700303 | C12: NS-0109 | D12: =IFERROR(ROUND(SUMIF(基データ!$C:$C,RIGHT(配賦額!C12,4),基データ!$I:$I)/6,0),0) -> 0 | E12: =使い方!$B$7&使い方!$C$7&"賞与見積" -> 2023夏季賞与見積 | G12: 7700303 | H12: NS-0109 | I12: =IFERROR(ROUND((SUMIF(基データ!$C:$C,RIGHT(配賦額!H12,4),基データ!$I:$I)-D12*5),0),0) -> 0 | J12: =使い方!$B$7&使い方!$C$7&"賞与見積" -> 2023夏季賞与見積 | L12: 7700303 | M12: NS-0109 | N12: =-IFERROR(ROUND(SUMIF(基データ!$C:$C,RIGHT(配賦額!M12,4),基データ!$I:$I),0),0) -> 0 | O12: =使い方!$B$7&使い方!$C$7&"賞与見積戻し" -> 2023夏季賞与見積戻し | Q12: 7700305 | R12: NS-0109 | S12: =IFERROR(ROUND(SUMIF(基データ!$C:$C,RIGHT(配賦額!R12,4),基データ!$L:$L)/6,0),0) -> 0 | T12: =使い方!$B$7&使い方!$C$7&"賞与法定福利見積" -> 2023夏季賞与法定福利見積 | V12: 7700305 | W12: NS-0109 | X12: =IFERROR(ROUND((SUMIF(基データ!$C:$C,RIGHT(配賦額!W12,4),基データ!$L:$L)-S12*5),0),0) -> 0 | Y12: =使い方!$B$7&使い方!$C$7&"賞与法定福利見積" -> 2023夏季賞与法定福利見積 | AA12: 7700305 | AB12: NS-0109 | AC12: =-IFERROR(ROUND(SUMIF(基データ!$C:$C,RIGHT(配賦額!AB12,4),基データ!$L:$L),0),0) -> 0 | AD12: =使い方!$B$7&使い方!$C$7&"賞与法定福利見積戻し" -> 2023夏季賞与法定福利見積戻し | AF12: 7700201 | AG12: NS-0109 | AH12: =IFERROR(ROUND(SUMIF(基データ!$Q:$Q,RIGHT(配賦額!AG12,4),基データ!$T:$T)/6,0),0) -> 0 | AI12: =使い方!$B$7&使い方!$C$7&"賞与見積(現業)" -> 2023夏季賞与見積(現業) | AK12: 7700201 | AL12: NS-0109 | AM12: =IFERROR(ROUND((SUMIF(基データ!$Q:$Q,RIGHT(配賦額!AL12,4),基データ!$T:$T)-AH12*5),0),0) -> 0 | AN12: =使い方!$B$7&使い方!$C$7&"賞与見積(現業)" -> 2023夏季賞与見積(現業) | AP12: 7700201 | AQ12: NS-0109 | AR12: =-IFERROR(ROUND(SUMIF(基データ!$Q:$Q,RIGHT(配賦額!AQ12,4),基データ!$T:$T),0),0) -> 0 | AS12: =使い方!$B$7&使い方!$C$7&"賞与見積戻し(現業)" -> 2023夏季賞与見積戻し(現業) | AU12: 7700202 | AV12: NS-0109 | AW12: =IFERROR(ROUND(SUMIF(基データ!$Q:$Q,RIGHT(配賦額!AV12,4),基データ!$U:$U)/6,0),0) -> 0 | AX12: =使い方!$B$7&使い方!$C$7&"賞与法定福利見積(現業)" -> 2023夏季賞与法定福利見積(現業) | AZ12: 7700202 | BA12: NS-0109 | BB12: =IFERROR(ROUND((SUMIF(基データ!$Q:$Q,RIGHT(配賦額!BA12,4),基データ!$U:$U)-AW12*5),0),0) -> 0 | BC12: =使い方!$B$7&使い方!$C$7&"賞与法定福利見積(現業)" -> 2023夏季賞与法定福利見積(現業) | BE12: 7700202 | BF12: NS-0109 | BG12: =-IFERROR(ROUND(SUMIF(基データ!$Q:$Q,RIGHT(配賦額!BF12,4),基データ!$U:$U),0),0) -> 0 | BH12: =使い方!$B$7&使い方!$C$7&"賞与法定福利見積戻し(現業)" -> 2023夏季賞与法定福利見積戻し(現業)
B13: 7700303 | C13: NS-0110 | D13: =IFERROR(ROUND(SUMIF(基データ!$C:$C,RIGHT(配賦額!C13,4),基データ!$I:$I)/6,0),0) -> 1680793 | E13: =使い方!$B$7&使い方!$C$7&"賞与見積" -> 2023夏季賞与見積 | G13: 7700303 | H13: NS-0110 | I13: =IFERROR(ROUND((SUMIF(基データ!$C:$C,RIGHT(配賦額!H13,4),基データ!$I:$I)-D13*5),0),0) -> 1680794 | J13: =使い方!$B$7&使い方!$C$7&"賞与見積" -> 2023夏季賞与見積 | L13: 7700303 | M13: NS-0110 | N13: =-IFERROR(ROUND(SUMIF(基データ!$C:$C,RIGHT(配賦額!M13,4),基データ!$I:$I),0),0) -> -10084759 | O13: =使い方!$B$7&使い方!$C$7&"賞与見積戻し" -> 2023夏季賞与見積戻し | Q13: 7700305 | R13: NS-0110 | S13: =IFERROR(ROUND(SUMIF(基データ!$C:$C,RIGHT(配賦額!R13,4),基データ!$L:$L)/6,0),0) -> 233233 | T13: =使い方!$B$7&使い方!$C$7&"賞与法定福利見積" -> 2023夏季賞与法定福利見積 | V13: 7700305 | W13: NS-0110 | X13: =IFERROR(ROUND((SUMIF(基データ!$C:$C,RIGHT(配賦額!W13,4),基データ!$L:$L)-S13*5),0),0) -> 233233 | Y13: =使い方!$B$7&使い方!$C$7&"賞与法定福利見積" -> 2023夏季賞与法定福利見積 | AA13: 7700305 | AB13: NS-0110 | AC13: =-IFERROR(ROUND(SUMIF(基データ!$C:$C,RIGHT(配賦額!AB13,4),基データ!$L:$L),0),0) -> -1399398 | AD13: =使い方!$B$7&使い方!$C$7&"賞与法定福利見積戻し" -> 2023夏季賞与法定福利見積戻し | AF13: 7700201 | AG13: NS-0110 | AH13: =IFERROR(ROUND(SUMIF(基データ!$Q:$Q,RIGHT(配賦額!AG13,4),基データ!$T:$T)/6,0),0) -> 0 | AI13: =使い方!$B$7&使い方!$C$7&"賞与見積(現業)" -> 2023夏季賞与見積(現業) | AK13: 7700201 | AL13: NS-0110 | AM13: =IFERROR(ROUND((SUMIF(基データ!$Q:$Q,RIGHT(配賦額!AL13,4),基データ!$T:$T)-AH13*5),0),0) -> 0 | AN13: =使い方!$B$7&使い方!$C$7&"賞与見積(現業)" -> 2023夏季賞与見積(現業) | AP13: 7700201 | AQ13: NS-0110 | AR13: =-IFERROR(ROUND(SUMIF(基データ!$Q:$Q,RIGHT(配賦額!AQ13,4),基データ!$T:$T),0),0) -> 0 | AS13: =使い方!$B$7&使い方!$C$7&"賞与見積戻し(現業)" -> 2023夏季賞与見積戻し(現業) | AU13: 7700202 | AV13: NS-0110 | AW13: =IFERROR(ROUND(SUMIF(基データ!$Q:$Q,RIGHT(配賦額!AV13,4),基データ!$U:$U)/6,0),0) -> 0 | AX13: =使い方!$B$7&使い方!$C$7&"賞与法定福利見積(現業)" -> 2023夏季賞与法定福利見積(現業) | AZ13: 7700202 | BA13: NS-0110 | BB13: =IFERROR(ROUND((SUMIF(基データ!$Q:$Q,RIGHT(配賦額!BA13,4),基データ!$U:$U)-AW13*5),0),0) -> 0 | BC13: =使い方!$B$7&使い方!$C$7&"賞与法定福利見積(現業)" -> 2023夏季賞与法定福利見積(現業) | BE13: 7700202 | BF13: NS-0110 | BG13: =-IFERROR(ROUND(SUMIF(基データ!$Q:$Q,RIGHT(配賦額!BF13,4),基データ!$U:$U),0),0) -> 0 | BH13: =使い方!$B$7&使い方!$C$7&"賞与法定福利見積戻し(現業)" -> 2023夏季賞与法定福利見積戻し(現業)
B14: 7700303 | C14: NS-0111 | D14: =IFERROR(ROUND(SUMIF(基データ!$C:$C,RIGHT(配賦額!C14,4),基データ!$I:$I)/6,0),0) -> 0 | E14: =使い方!$B$7&使い方!$C$7&"賞与見積" -> 2023夏季賞与見積 | G14: 7700303 | H14: NS-0111 | I14: =IFERROR(ROUND((SUMIF(基データ!$C:$C,RIGHT(配賦額!H14,4),基データ!$I:$I)-D14*5),0),0) -> 0 | J14: =使い方!$B$7&使い方!$C$7&"賞与見積" -> 2023夏季賞与見積 | L14: 7700303 | M14: NS-0111 | N14: =-IFERROR(ROUND(SUMIF(基データ!$C:$C,RIGHT(配賦額!M14,4),基データ!$I:$I),0),0) -> 0 | O14: =使い方!$B$7&使い方!$C$7&"賞与見積戻し" -> 2023夏季賞与見積戻し | Q14: 7700305 | R14: NS-0111 | S14: =IFERROR(ROUND(SUMIF(基データ!$C:$C,RIGHT(配賦額!R14,4),基データ!$L:$L)/6,0),0) -> 0 | T14: =使い方!$B$7&使い方!$C$7&"賞与法定福利見積" -> 2023夏季賞与法定福利見積 | V14: 7700305 | W14: NS-0111 | X14: =IFERROR(ROUND((SUMIF(基データ!$C:$C,RIGHT(配賦額!W14,4),基データ!$L:$L)-S14*5),0),0) -> 0 | Y14: =使い方!$B$7&使い方!$C$7&"賞与法定福利見積" -> 2023夏季賞与法定福利見積 | AA14: 7700305 | AB14: NS-0111 | AC14: =-IFERROR(ROUND(SUMIF(基データ!$C:$C,RIGHT(配賦額!AB14,4),基データ!$L:$L),0),0) -> 0 | AD14: =使い方!$B$7&使い方!$C$7&"賞与法定福利見積戻し" -> 2023夏季賞与法定福利見積戻し | AF14: 7700201 | AG14: NS-0111 | AH14: =IFERROR(ROUND(SUMIF(基データ!$Q:$Q,RIGHT(配賦額!AG14,4),基データ!$T:$T)/6,0),0) -> 0 | AI14: =使い方!$B$7&使い方!$C$7&"賞与見積(現業)" -> 2023夏季賞与見積(現業) | AK14: 7700201 | AL14: NS-0111 | AM14: =IFERROR(ROUND((SUMIF(基データ!$Q:$Q,RIGHT(配賦額!AL14,4),基データ!$T:$T)-AH14*5),0),0) -> 0 | AN14: =使い方!$B$7&使い方!$C$7&"賞与見積(現業)" -> 2023夏季賞与見積(現業) | AP14: 7700201 | AQ14: NS-0111 | AR14: =-IFERROR(ROUND(SUMIF(基データ!$Q:$Q,RIGHT(配賦額!AQ14,4),基データ!$T:$T),0),0) -> 0 | AS14: =使い方!$B$7&使い方!$C$7&"賞与見積戻し(現業)" -> 2023夏季賞与見積戻し(現業) | AU14: 7700202 | AV14: NS-0111 | AW14: =IFERROR(ROUND(SUMIF(基データ!$Q:$Q,RIGHT(配賦額!AV14,4),基データ!$U:$U)/6,0),0) -> 0 | AX14: =使い方!$B$7&使い方!$C$7&"賞与法定福利見積(現業)" -> 2023夏季賞与法定福利見積(現業) | AZ14: 7700202 | BA14: NS-0111 | BB14: =IFERROR(ROUND((SUMIF(基データ!$Q:$Q,RIGHT(配賦額!BA14,4),基データ!$U:$U)-AW14*5),0),0) -> 0 | BC14: =使い方!$B$7&使い方!$C$7&"賞与法定福利見積(現業)" -> 2023夏季賞与法定福利見積(現業) | BE14: 7700202 | BF14: NS-0111 | BG14: =-IFERROR(ROUND(SUMIF(基データ!$Q:$Q,RIGHT(配賦額!BF14,4),基データ!$U:$U),0),0) -> 0 | BH14: =使い方!$B$7&使い方!$C$7&"賞与法定福利見積戻し(現業)" -> 2023夏季賞与法定福利見積戻し(現業)
B15: 7700303 | C15: NS-0112 | D15: =IFERROR(ROUND(SUMIF(基データ!$C:$C,RIGHT(配賦額!C15,4),基データ!$I:$I)/6,0),0) -> 733667 | E15: =使い方!$B$7&使い方!$C$7&"賞与見積" -> 2023夏季賞与見積 | G15: 7700303 | H15: NS-0112 | I15: =IFERROR(ROUND((SUMIF(基データ!$C:$C,RIGHT(配賦額!H15,4),基データ!$I:$I)-D15*5),0),0) -> 733665 | J15: =使い方!$B$7&使い方!$C$7&"賞与見積" -> 2023夏季賞与見積 | L15: 7700303 | M15: NS-0112 | N15: =-IFERROR(ROUND(SUMIF(基データ!$C:$C,RIGHT(配賦額!M15,4),基データ!$I:$I),0),0) -> -4402000 | O15: =使い方!$B$7&使い方!$C$7&"賞与見積戻し" -> 2023夏季賞与見積戻し | Q15: 7700305 | R15: NS-0112 | S15: =IFERROR(ROUND(SUMIF(基データ!$C:$C,RIGHT(配賦額!R15,4),基データ!$L:$L)/6,0),0) -> 113735 | T15: =使い方!$B$7&使い方!$C$7&"賞与法定福利見積" -> 2023夏季賞与法定福利見積 | V15: 7700305 | W15: NS-0112 | X15: =IFERROR(ROUND((SUMIF(基データ!$C:$C,RIGHT(配賦額!W15,4),基データ!$L:$L)-S15*5),0),0) -> 113733 | Y15: =使い方!$B$7&使い方!$C$7&"賞与法定福利見積" -> 2023夏季賞与法定福利見積 | AA15: 7700305 | AB15: NS-0112 | AC15: =-IFERROR(ROUND(SUMIF(基データ!$C:$C,RIGHT(配賦額!AB15,4),基データ!$L:$L),0),0) -> -682408 | AD15: =使い方!$B$7&使い方!$C$7&"賞与法定福利見積戻し" -> 2023夏季賞与法定福利見積戻し | AF15: 7700201 | AG15: NS-0112 | AH15: =IFERROR(ROUND(SUMIF(基データ!$Q:$Q,RIGHT(配賦額!AG15,4),基データ!$T:$T)/6,0),0) -> 0 | AI15: =使い方!$B$7&使い方!$C$7&"賞与見積(現業)" -> 2023夏季賞与見積(現業) | AK15: 7700201 | AL15: NS-0112 | AM15: =IFERROR(ROUND((SUMIF(基データ!$Q:$Q,RIGHT(配賦額!AL15,4),基データ!$T:$T)-AH15*5),0),0) -> 0 | AN15: =使い方!$B$7&使い方!$C$7&"賞与見積(現業)" -> 2023夏季賞与見積(現業) | AP15: 7700201 | AQ15: NS-0112 | AR15: =-IFERROR(ROUND(SUMIF(基データ!$Q:$Q,RIGHT(配賦額!AQ15,4),基データ!$T:$T),0),0) -> 0 | AS15: =使い方!$B$7&使い方!$C$7&"賞与見積戻し(現業)" -> 2023夏季賞与見積戻し(現業) | AU15: 7700202 | AV15: NS-0112 | AW15: =IFERROR(ROUND(SUMIF(基データ!$Q:$Q,RIGHT(配賦額!AV15,4),基データ!$U:$U)/6,0),0) -> 0 | AX15: =使い方!$B$7&使い方!$C$7&"賞与法定福利見積(現業)" -> 2023夏季賞与法定福利見積(現業) | AZ15: 7700202 | BA15: NS-0112 | BB15: =IFERROR(ROUND((SUMIF(基データ!$Q:$Q,RIGHT(配賦額!BA15,4),基データ!$U:$U)-AW15*5),0),0) -> 0 | BC15: =使い方!$B$7&使い方!$C$7&"賞与法定福利見積(現業)" -> 2023夏季賞与法定福利見積(現業) | BE15: 7700202 | BF15: NS-0112 | BG15: =-IFERROR(ROUND(SUMIF(基データ!$Q:$Q,RIGHT(配賦額!BF15,4),基データ!$U:$U),0),0) -> 0 | BH15: =使い方!$B$7&使い方!$C$7&"賞与法定福利見積戻し(現業)" -> 2023夏季賞与法定福利見積戻し(現業)
B16: 7700303 | C16: NS-0113 | D16: =IFERROR(ROUND(SUMIF(基データ!$C:$C,RIGHT(配賦額!C16,4),基データ!$I:$I)/6,0),0) -> 1030167 | E16: =使い方!$B$7&使い方!$C$7&"賞与見積" -> 2023夏季賞与見積 | G16: 7700303 | H16: NS-0113 | I16: =IFERROR(ROUND((SUMIF(基データ!$C:$C,RIGHT(配賦額!H16,4),基データ!$I:$I)-D16*5),0),0) -> 1030165 | J16: =使い方!$B$7&使い方!$C$7&"賞与見積" -> 2023夏季賞与見積 | L16: 7700303 | M16: NS-0113 | N16: =-IFERROR(ROUND(SUMIF(基データ!$C:$C,RIGHT(配賦額!M16,4),基データ!$I:$I),0),0) -> -6181000 | O16: =使い方!$B$7&使い方!$C$7&"賞与見積戻し" -> 2023夏季賞与見積戻し | Q16: 7700305 | R16: NS-0113 | S16: =IFERROR(ROUND(SUMIF(基データ!$C:$C,RIGHT(配賦額!R16,4),基データ!$L:$L)/6,0),0) -> 161072 | T16: =使い方!$B$7&使い方!$C$7&"賞与法定福利見積" -> 2023夏季賞与法定福利見積 | V16: 7700305 | W16: NS-0113 | X16: =IFERROR(ROUND((SUMIF(基データ!$C:$C,RIGHT(配賦額!W16,4),基データ!$L:$L)-S16*5),0),0) -> 161074 | Y16: =使い方!$B$7&使い方!$C$7&"賞与法定福利見積" -> 2023夏季賞与法定福利見積 | AA16: 7700305 | AB16: NS-0113 | AC16: =-IFERROR(ROUND(SUMIF(基データ!$C:$C,RIGHT(配賦額!AB16,4),基データ!$L:$L),0),0) -> -966434 | AD16: =使い方!$B$7&使い方!$C$7&"賞与法定福利見積戻し" -> 2023夏季賞与法定福利見積戻し | AF16: 7700201 | AG16: NS-0113 | AH16: =IFERROR(ROUND(SUMIF(基データ!$Q:$Q,RIGHT(配賦額!AG16,4),基データ!$T:$T)/6,0),0) -> 0 | AI16: =使い方!$B$7&使い方!$C$7&"賞与見積(現業)" -> 2023夏季賞与見積(現業) | AK16: 7700201 | AL16: NS-0113 | AM16: =IFERROR(ROUND((SUMIF(基データ!$Q:$Q,RIGHT(配賦額!AL16,4),基データ!$T:$T)-AH16*5),0),0) -> 0 | AN16: =使い方!$B$7&使い方!$C$7&"賞与見積(現業)" -> 2023夏季賞与見積(現業) | AP16: 7700201 | AQ16: NS-0113 | AR16: =-IFERROR(ROUND(SUMIF(基データ!$Q:$Q,RIGHT(配賦額!AQ16,4),基データ!$T:$T),0),0) -> 0 | AS16: =使い方!$B$7&使い方!$C$7&"賞与見積戻し(現業)" -> 2023夏季賞与見積戻し(現業) | AU16: 7700202 | AV16: NS-0113 | AW16: =IFERROR(ROUND(SUMIF(基データ!$Q:$Q,RIGHT(配賦額!AV16,4),基データ!$U:$U)/6,0),0) -> 0 | AX16: =使い方!$B$7&使い方!$C$7&"賞与法定福利見積(現業)" -> 2023夏季賞与法定福利見積(現業) | AZ16: 7700202 | BA16: NS-0113 | BB16: =IFERROR(ROUND((SUMIF(基データ!$Q:$Q,RIGHT(配賦額!BA16,4),基データ!$U:$U)-AW16*5),0),0) -> 0 | BC16: =使い方!$B$7&使い方!$C$7&"賞与法定福利見積(現業)" -> 2023夏季賞与法定福利見積(現業) | BE16: 7700202 | BF16: NS-0113 | BG16: =-IFERROR(ROUND(SUMIF(基データ!$Q:$Q,RIGHT(配賦額!BF16,4),基データ!$U:$U),0),0) -> 0 | BH16: =使い方!$B$7&使い方!$C$7&"賞与法定福利見積戻し(現業)" -> 2023夏季賞与法定福利見積戻し(現業)
B17: 7700303 | C17: NS-0114 | D17: =IFERROR(ROUND(SUMIF(基データ!$C:$C,RIGHT(配賦額!C17,4),基データ!$I:$I)/6,0),0) -> 814667 | E17: =使い方!$B$7&使い方!$C$7&"賞与見積" -> 2023夏季賞与見積 | G17: 7700303 | H17: NS-0114 | I17: =IFERROR(ROUND((SUMIF(基データ!$C:$C,RIGHT(配賦額!H17,4),基データ!$I:$I)-D17*5),0),0) -> 814665 | J17: =使い方!$B$7&使い方!$C$7&"賞与見積" -> 2023夏季賞与見積 | L17: 7700303 | M17: NS-0114 | N17: =-IFERROR(ROUND(SUMIF(基データ!$C:$C,RIGHT(配賦額!M17,4),基データ!$I:$I),0),0) -> -4888000 | O17: =使い方!$B$7&使い方!$C$7&"賞与見積戻し" -> 2023夏季賞与見積戻し | Q17: 7700305 | R17: NS-0114 | S17: =IFERROR(ROUND(SUMIF(基データ!$C:$C,RIGHT(配賦額!R17,4),基データ!$L:$L)/6,0),0) -> 125256 | T17: =使い方!$B$7&使い方!$C$7&"賞与法定福利見積" -> 2023夏季賞与法定福利見積 | V17: 7700305 | W17: NS-0114 | X17: =IFERROR(ROUND((SUMIF(基データ!$C:$C,RIGHT(配賦額!W17,4),基データ!$L:$L)-S17*5),0),0) -> 125255 | Y17: =使い方!$B$7&使い方!$C$7&"賞与法定福利見積" -> 2023夏季賞与法定福利見積 | AA17: 7700305 | AB17: NS-0114 | AC17: =-IFERROR(ROUND(SUMIF(基データ!$C:$C,RIGHT(配賦額!AB17,4),基データ!$L:$L),0),0) -> -751535 | AD17: =使い方!$B$7&使い方!$C$7&"賞与法定福利見積戻し" -> 2023夏季賞与法定福利見積戻し | AF17: 7700201 | AG17: NS-0114 | AH17: =IFERROR(ROUND(SUMIF(基データ!$Q:$Q,RIGHT(配賦額!AG17,4),基データ!$T:$T)/6,0),0) -> 0 | AI17: =使い方!$B$7&使い方!$C$7&"賞与見積(現業)" -> 2023夏季賞与見積(現業) | AK17: 7700201 | AL17: NS-0114 | AM17: =IFERROR(ROUND((SUMIF(基データ!$Q:$Q,RIGHT(配賦額!AL17,4),基データ!$T:$T)-AH17*5),0),0) -> 0 | AN17: =使い方!$B$7&使い方!$C$7&"賞与見積(現業)" -> 2023夏季賞与見積(現業) | AP17: 7700201 | AQ17: NS-0114 | AR17: =-IFERROR(ROUND(SUMIF(基データ!$Q:$Q,RIGHT(配賦額!AQ17,4),基データ!$T:$T),0),0) -> 0 | AS17: =使い方!$B$7&使い方!$C$7&"賞与見積戻し(現業)" -> 2023夏季賞与見積戻し(現業) | AU17: 7700202 | AV17: NS-0114 | AW17: =IFERROR(ROUND(SUMIF(基データ!$Q:$Q,RIGHT(配賦額!AV17,4),基データ!$U:$U)/6,0),0) -> 0 | AX17: =使い方!$B$7&使い方!$C$7&"賞与法定福利見積(現業)" -> 2023夏季賞与法定福利見積(現業) | AZ17: 7700202 | BA17: NS-0114 | BB17: =IFERROR(ROUND((SUMIF(基データ!$Q:$Q,RIGHT(配賦額!BA17,4),基データ!$U:$U)-AW17*5),0),0) -> 0 | BC17: =使い方!$B$7&使い方!$C$7&"賞与法定福利見積(現業)" -> 2023夏季賞与法定福利見積(現業) | BE17: 7700202 | BF17: NS-0114 | BG17: =-IFERROR(ROUND(SUMIF(基データ!$Q:$Q,RIGHT(配賦額!BF17,4),基データ!$U:$U),0),0) -> 0 | BH17: =使い方!$B$7&使い方!$C$7&"賞与法定福利見積戻し(現業)" -> 2023夏季賞与法定福利見積戻し(現業)
B18: 7700303 | C18: NS-0115 | D18: =IFERROR(ROUND(SUMIF(基データ!$C:$C,RIGHT(配賦額!C18,4),基データ!$I:$I)/6,0),0) -> 1417833 | E18: =使い方!$B$7&使い方!$C$7&"賞与見積" -> 2023夏季賞与見積 | G18: 7700303 | H18: NS-0115 | I18: =IFERROR(ROUND((SUMIF(基データ!$C:$C,RIGHT(配賦額!H18,4),基データ!$I:$I)-D18*5),0),0) -> 1417835 | J18: =使い方!$B$7&使い方!$C$7&"賞与見積" -> 2023夏季賞与見積 | L18: 7700303 | M18: NS-0115 | N18: =-IFERROR(ROUND(SUMIF(基データ!$C:$C,RIGHT(配賦額!M18,4),基データ!$I:$I),0),0) -> -8507000 | O18: =使い方!$B$7&使い方!$C$7&"賞与見積戻し" -> 2023夏季賞与見積戻し | Q18: 7700305 | R18: NS-0115 | S18: =IFERROR(ROUND(SUMIF(基データ!$C:$C,RIGHT(配賦額!R18,4),基データ!$L:$L)/6,0),0) -> 222126 | T18: =使い方!$B$7&使い方!$C$7&"賞与法定福利見積" -> 2023夏季賞与法定福利見積 | V18: 7700305 | W18: NS-0115 | X18: =IFERROR(ROUND((SUMIF(基データ!$C:$C,RIGHT(配賦額!W18,4),基データ!$L:$L)-S18*5),0),0) -> 222123 | Y18: =使い方!$B$7&使い方!$C$7&"賞与法定福利見積" -> 2023夏季賞与法定福利見積 | AA18: 7700305 | AB18: NS-0115 | AC18: =-IFERROR(ROUND(SUMIF(基データ!$C:$C,RIGHT(配賦額!AB18,4),基データ!$L:$L),0),0) -> -1332753 | AD18: =使い方!$B$7&使い方!$C$7&"賞与法定福利見積戻し" -> 2023夏季賞与法定福利見積戻し | AF18: 7700201 | AG18: NS-0115 | AH18: =IFERROR(ROUND(SUMIF(基データ!$Q:$Q,RIGHT(配賦額!AG18,4),基データ!$T:$T)/6,0),0) -> 0 | AI18: =使い方!$B$7&使い方!$C$7&"賞与見積(現業)" -> 2023夏季賞与見積(現業) | AK18: 7700201 | AL18: NS-0115 | AM18: =IFERROR(ROUND((SUMIF(基データ!$Q:$Q,RIGHT(配賦額!AL18,4),基データ!$T:$T)-AH18*5),0),0) -> 0 | AN18: =使い方!$B$7&使い方!$C$7&"賞与見積(現業)" -> 2023夏季賞与見積(現業) | AP18: 7700201 | AQ18: NS-0115 | AR18: =-IFERROR(ROUND(SUMIF(基データ!$Q:$Q,RIGHT(配賦額!AQ18,4),基データ!$T:$T),0),0) -> 0 | AS18: =使い方!$B$7&使い方!$C$7&"賞与見積戻し(現業)" -> 2023夏季賞与見積戻し(現業) | AU18: 7700202 | AV18: NS-0115 | AW18: =IFERROR(ROUND(SUMIF(基データ!$Q:$Q,RIGHT(配賦額!AV18,4),基データ!$U:$U)/6,0),0) -> 0 | AX18: =使い方!$B$7&使い方!$C$7&"賞与法定福利見積(現業)" -> 2023夏季賞与法定福利見積(現業) | AZ18: 7700202 | BA18: NS-0115 | BB18: =IFERROR(ROUND((SUMIF(基データ!$Q:$Q,RIGHT(配賦額!BA18,4),基データ!$U:$U)-AW18*5),0),0) -> 0 | BC18: =使い方!$B$7&使い方!$C$7&"賞与法定福利見積(現業)" -> 2023夏季賞与法定福利見積(現業) | BE18: 7700202 | BF18: NS-0115 | BG18: =-IFERROR(ROUND(SUMIF(基データ!$Q:$Q,RIGHT(配賦額!BF18,4),基データ!$U:$U),0),0) -> 0 | BH18: =使い方!$B$7&使い方!$C$7&"賞与法定福利見積戻し(現業)" -> 2023夏季賞与法定福利見積戻し(現業)
B19: 7700303 | C19: NS-0116 | D19: =IFERROR(ROUND(SUMIF(基データ!$C:$C,RIGHT(配賦額!C19,4),基データ!$I:$I)/6,0),0) -> 680833 | E19: =使い方!$B$7&使い方!$C$7&"賞与見積" -> 2023夏季賞与見積 | G19: 7700303 | H19: NS-0116 | I19: =IFERROR(ROUND((SUMIF(基データ!$C:$C,RIGHT(配賦額!H19,4),基データ!$I:$I)-D19*5),0),0) -> 680835 | J19: =使い方!$B$7&使い方!$C$7&"賞与見積" -> 2023夏季賞与見積 | L19: 7700303 | M19: NS-0116 | N19: =-IFERROR(ROUND(SUMIF(基データ!$C:$C,RIGHT(配賦額!M19,4),基データ!$I:$I),0),0) -> -4085000 | O19: =使い方!$B$7&使い方!$C$7&"賞与見積戻し" -> 2023夏季賞与見積戻し | Q19: 7700305 | R19: NS-0116 | S19: =IFERROR(ROUND(SUMIF(基データ!$C:$C,RIGHT(配賦額!R19,4),基データ!$L:$L)/6,0),0) -> 107679 | T19: =使い方!$B$7&使い方!$C$7&"賞与法定福利見積" -> 2023夏季賞与法定福利見積 | V19: 7700305 | W19: NS-0116 | X19: =IFERROR(ROUND((SUMIF(基データ!$C:$C,RIGHT(配賦額!W19,4),基データ!$L:$L)-S19*5),0),0) -> 107679 | Y19: =使い方!$B$7&使い方!$C$7&"賞与法定福利見積" -> 2023夏季賞与法定福利見積 | AA19: 7700305 | AB19: NS-0116 | AC19: =-IFERROR(ROUND(SUMIF(基データ!$C:$C,RIGHT(配賦額!AB19,4),基データ!$L:$L),0),0) -> -646074 | AD19: =使い方!$B$7&使い方!$C$7&"賞与法定福利見積戻し" -> 2023夏季賞与法定福利見積戻し | AF19: 7700201 | AG19: NS-0116 | AH19: =IFERROR(ROUND(SUMIF(基データ!$Q:$Q,RIGHT(配賦額!AG19,4),基データ!$T:$T)/6,0),0) -> 0 | AI19: =使い方!$B$7&使い方!$C$7&"賞与見積(現業)" -> 2023夏季賞与見積(現業) | AK19: 7700201 | AL19: NS-0116 | AM19: =IFERROR(ROUND((SUMIF(基データ!$Q:$Q,RIGHT(配賦額!AL19,4),基データ!$T:$T)-AH19*5),0),0) -> 0 | AN19: =使い方!$B$7&使い方!$C$7&"賞与見積(現業)" -> 2023夏季賞与見積(現業) | AP19: 7700201 | AQ19: NS-0116 | AR19: =-IFERROR(ROUND(SUMIF(基データ!$Q:$Q,RIGHT(配賦額!AQ19,4),基データ!$T:$T),0),0) -> 0 | AS19: =使い方!$B$7&使い方!$C$7&"賞与見積戻し(現業)" -> 2023夏季賞与見積戻し(現業) | AU19: 7700202 | AV19: NS-0116 | AW19: =IFERROR(ROUND(SUMIF(基データ!$Q:$Q,RIGHT(配賦額!AV19,4),基データ!$U:$U)/6,0),0) -> 0 | AX19: =使い方!$B$7&使い方!$C$7&"賞与法定福利見積(現業)" -> 2023夏季賞与法定福利見積(現業) | AZ19: 7700202 | BA19: NS-0116 | BB19: =IFERROR(ROUND((SUMIF(基データ!$Q:$Q,RIGHT(配賦額!BA19,4),基データ!$U:$U)-AW19*5),0),0) -> 0 | BC19: =使い方!$B$7&使い方!$C$7&"賞与法定福利見積(現業)" -> 2023夏季賞与法定福利見積(現業) | BE19: 7700202 | BF19: NS-0116 | BG19: =-IFERROR(ROUND(SUMIF(基データ!$Q:$Q,RIGHT(配賦額!BF19,4),基データ!$U:$U),0),0) -> 0 | BH19: =使い方!$B$7&使い方!$C$7&"賞与法定福利見積戻し(現業)" -> 2023夏季賞与法定福利見積戻し(現業)
B20: 7700303 | C20: NS-0117 | D20: =IFERROR(ROUND(SUMIF(基データ!$C:$C,RIGHT(配賦額!C20,4),基データ!$I:$I)/6,0),0) -> 0 | E20: =使い方!$B$7&使い方!$C$7&"賞与見積" -> 2023夏季賞与見積 | G20: 7700303 | H20: NS-0117 | I20: =IFERROR(ROUND((SUMIF(基データ!$C:$C,RIGHT(配賦額!H20,4),基データ!$I:$I)-D20*5),0),0) -> 0 | J20: =使い方!$B$7&使い方!$C$7&"賞与見積" -> 2023夏季賞与見積 | L20: 7700303 | M20: NS-0117 | N20: =-IFERROR(ROUND(SUMIF(基データ!$C:$C,RIGHT(配賦額!M20,4),基データ!$I:$I),0),0) -> 0 | O20: =使い方!$B$7&使い方!$C$7&"賞与見積戻し" -> 2023夏季賞与見積戻し | Q20: 7700305 | R20: NS-0117 | S20: =IFERROR(ROUND(SUMIF(基データ!$C:$C,RIGHT(配賦額!R20,4),基データ!$L:$L)/6,0),0) -> 0 | T20: =使い方!$B$7&使い方!$C$7&"賞与法定福利見積" -> 2023夏季賞与法定福利見積 | V20: 7700305 | W20: NS-0117 | X20: =IFERROR(ROUND((SUMIF(基データ!$C:$C,RIGHT(配賦額!W20,4),基データ!$L:$L)-S20*5),0),0) -> 0 | Y20: =使い方!$B$7&使い方!$C$7&"賞与法定福利見積" -> 2023夏季賞与法定福利見積 | AA20: 7700305 | AB20: NS-0117 | AC20: =-IFERROR(ROUND(SUMIF(基データ!$C:$C,RIGHT(配賦額!AB20,4),基データ!$L:$L),0),0) -> 0 | AD20: =使い方!$B$7&使い方!$C$7&"賞与法定福利見積戻し" -> 2023夏季賞与法定福利見積戻し | AF20: 7700201 | AG20: NS-0117 | AH20: =IFERROR(ROUND(SUMIF(基データ!$Q:$Q,RIGHT(配賦額!AG20,4),基データ!$T:$T)/6,0),0) -> 0 | AI20: =使い方!$B$7&使い方!$C$7&"賞与見積(現業)" -> 2023夏季賞与見積(現業) | AK20: 7700201 | AL20: NS-0117 | AM20: =IFERROR(ROUND((SUMIF(基データ!$Q:$Q,RIGHT(配賦額!AL20,4),基データ!$T:$T)-AH20*5),0),0) -> 0 | AN20: =使い方!$B$7&使い方!$C$7&"賞与見積(現業)" -> 2023夏季賞与見積(現業) | AP20: 7700201 | AQ20: NS-0117 | AR20: =-IFERROR(ROUND(SUMIF(基データ!$Q:$Q,RIGHT(配賦額!AQ20,4),基データ!$T:$T),0),0) -> 0 | AS20: =使い方!$B$7&使い方!$C$7&"賞与見積戻し(現業)" -> 2023夏季賞与見積戻し(現業) | AU20: 7700202 | AV20: NS-0117 | AW20: =IFERROR(ROUND(SUMIF(基データ!$Q:$Q,RIGHT(配賦額!AV20,4),基データ!$U:$U)/6,0),0) -> 0 | AX20: =使い方!$B$7&使い方!$C$7&"賞与法定福利見積(現業)" -> 2023夏季賞与法定福利見積(現業) | AZ20: 7700202 | BA20: NS-0117 | BB20: =IFERROR(ROUND((SUMIF(基データ!$Q:$Q,RIGHT(配賦額!BA20,4),基データ!$U:$U)-AW20*5),0),0) -> 0 | BC20: =使い方!$B$7&使い方!$C$7&"賞与法定福利見積(現業)" -> 2023夏季賞与法定福利見積(現業) | BE20: 7700202 | BF20: NS-0117 | BG20: =-IFERROR(ROUND(SUMIF(基データ!$Q:$Q,RIGHT(配賦額!BF20,4),基データ!$U:$U),0),0) -> 0 | BH20: =使い方!$B$7&使い方!$C$7&"賞与法定福利見積戻し(現業)" -> 2023夏季賞与法定福利見積戻し(現業)
B21: 7700303 | C21: NS-0118 | D21: =IFERROR(ROUND(SUMIF(基データ!$C:$C,RIGHT(配賦額!C21,4),基データ!$I:$I)/6,0),0) -> 0 | E21: =使い方!$B$7&使い方!$C$7&"賞与見積" -> 2023夏季賞与見積 | G21: 7700303 | H21: NS-0118 | I21: =IFERROR(ROUND((SUMIF(基データ!$C:$C,RIGHT(配賦額!H21,4),基データ!$I:$I)-D21*5),0),0) -> 0 | J21: =使い方!$B$7&使い方!$C$7&"賞与見積" -> 2023夏季賞与見積 | L21: 7700303 | M21: NS-0118 | N21: =-IFERROR(ROUND(SUMIF(基データ!$C:$C,RIGHT(配賦額!M21,4),基データ!$I:$I),0),0) -> 0 | O21: =使い方!$B$7&使い方!$C$7&"賞与見積戻し" -> 2023夏季賞与見積戻し | Q21: 7700305 | R21: NS-0118 | S21: =IFERROR(ROUND(SUMIF(基データ!$C:$C,RIGHT(配賦額!R21,4),基データ!$L:$L)/6,0),0) -> 0 | T21: =使い方!$B$7&使い方!$C$7&"賞与法定福利見積" -> 2023夏季賞与法定福利見積 | V21: 7700305 | W21: NS-0118 | X21: =IFERROR(ROUND((SUMIF(基データ!$C:$C,RIGHT(配賦額!W21,4),基データ!$L:$L)-S21*5),0),0) -> 0 | Y21: =使い方!$B$7&使い方!$C$7&"賞与法定福利見積" -> 2023夏季賞与法定福利見積 | AA21: 7700305 | AB21: NS-0118 | AC21: =-IFERROR(ROUND(SUMIF(基データ!$C:$C,RIGHT(配賦額!AB21,4),基データ!$L:$L),0),0) -> 0 | AD21: =使い方!$B$7&使い方!$C$7&"賞与法定福利見積戻し" -> 2023夏季賞与法定福利見積戻し | AF21: 7700201 | AG21: NS-0118 | AH21: =IFERROR(ROUND(SUMIF(基データ!$Q:$Q,RIGHT(配賦額!AG21,4),基データ!$T:$T)/6,0),0) -> 0 | AI21: =使い方!$B$7&使い方!$C$7&"賞与見積(現業)" -> 2023夏季賞与見積(現業) | AK21: 7700201 | AL21: NS-0118 | AM21: =IFERROR(ROUND((SUMIF(基データ!$Q:$Q,RIGHT(配賦額!AL21,4),基データ!$T:$T)-AH21*5),0),0) -> 0 | AN21: =使い方!$B$7&使い方!$C$7&"賞与見積(現業)" -> 2023夏季賞与見積(現業) | AP21: 7700201 | AQ21: NS-0118 | AR21: =-IFERROR(ROUND(SUMIF(基データ!$Q:$Q,RIGHT(配賦額!AQ21,4),基データ!$T:$T),0),0) -> 0 | AS21: =使い方!$B$7&使い方!$C$7&"賞与見積戻し(現業)" -> 2023夏季賞与見積戻し(現業) | AU21: 7700202 | AV21: NS-0118 | AW21: =IFERROR(ROUND(SUMIF(基データ!$Q:$Q,RIGHT(配賦額!AV21,4),基データ!$U:$U)/6,0),0) -> 0 | AX21: =使い方!$B$7&使い方!$C$7&"賞与法定福利見積(現業)" -> 2023夏季賞与法定福利見積(現業) | AZ21: 7700202 | BA21: NS-0118 | BB21: =IFERROR(ROUND((SUMIF(基データ!$Q:$Q,RIGHT(配賦額!BA21,4),基データ!$U:$U)-AW21*5),0),0) -> 0 | BC21: =使い方!$B$7&使い方!$C$7&"賞与法定福利見積(現業)" -> 2023夏季賞与法定福利見積(現業) | BE21: 7700202 | BF21: NS-0118 | BG21: =-IFERROR(ROUND(SUMIF(基データ!$Q:$Q,RIGHT(配賦額!BF21,4),基データ!$U:$U),0),0) -> 0 | BH21: =使い方!$B$7&使い方!$C$7&"賞与法定福利見積戻し(現業)" -> 2023夏季賞与法定福利見積戻し(現業)
B22: 7700303 | C22: NS-0119 | D22: =IFERROR(ROUND(SUMIF(基データ!$C:$C,RIGHT(配賦額!C22,4),基データ!$I:$I)/6,0),0) -> 0 | E22: =使い方!$B$7&使い方!$C$7&"賞与見積" -> 2023夏季賞与見積 | G22: 7700303 | H22: NS-0119 | I22: =IFERROR(ROUND((SUMIF(基データ!$C:$C,RIGHT(配賦額!H22,4),基データ!$I:$I)-D22*5),0),0) -> 0 | J22: =使い方!$B$7&使い方!$C$7&"賞与見積" -> 2023夏季賞与見積 | L22: 7700303 | M22: NS-0119 | N22: =-IFERROR(ROUND(SUMIF(基データ!$C:$C,RIGHT(配賦額!M22,4),基データ!$I:$I),0),0) -> 0 | O22: =使い方!$B$7&使い方!$C$7&"賞与見積戻し" -> 2023夏季賞与見積戻し | Q22: 7700305 | R22: NS-0119 | S22: =IFERROR(ROUND(SUMIF(基データ!$C:$C,RIGHT(配賦額!R22,4),基データ!$L:$L)/6,0),0) -> 0 | T22: =使い方!$B$7&使い方!$C$7&"賞与法定福利見積" -> 2023夏季賞与法定福利見積 | V22: 7700305 | W22: NS-0119 | X22: =IFERROR(ROUND((SUMIF(基データ!$C:$C,RIGHT(配賦額!W22,4),基データ!$L:$L)-S22*5),0),0) -> 0 | Y22: =使い方!$B$7&使い方!$C$7&"賞与法定福利見積" -> 2023夏季賞与法定福利見積 | AA22: 7700305 | AB22: NS-0119 | AC22: =-IFERROR(ROUND(SUMIF(基データ!$C:$C,RIGHT(配賦額!AB22,4),基データ!$L:$L),0),0) -> 0 | AD22: =使い方!$B$7&使い方!$C$7&"賞与法定福利見積戻し" -> 2023夏季賞与法定福利見積戻し | AF22: 7700201 | AG22: NS-0119 | AH22: =IFERROR(ROUND(SUMIF(基データ!$Q:$Q,RIGHT(配賦額!AG22,4),基データ!$T:$T)/6,0),0) -> 0 | AI22: =使い方!$B$7&使い方!$C$7&"賞与見積(現業)" -> 2023夏季賞与見積(現業) | AK22: 7700201 | AL22: NS-0119 | AM22: =IFERROR(ROUND((SUMIF(基データ!$Q:$Q,RIGHT(配賦額!AL22,4),基データ!$T:$T)-AH22*5),0),0) -> 0 | AN22: =使い方!$B$7&使い方!$C$7&"賞与見積(現業)" -> 2023夏季賞与見積(現業) | AP22: 7700201 | AQ22: NS-0119 | AR22: =-IFERROR(ROUND(SUMIF(基データ!$Q:$Q,RIGHT(配賦額!AQ22,4),基データ!$T:$T),0),0) -> 0 | AS22: =使い方!$B$7&使い方!$C$7&"賞与見積戻し(現業)" -> 2023夏季賞与見積戻し(現業) | AU22: 7700202 | AV22: NS-0119 | AW22: =IFERROR(ROUND(SUMIF(基データ!$Q:$Q,RIGHT(配賦額!AV22,4),基データ!$U:$U)/6,0),0) -> 0 | AX22: =使い方!$B$7&使い方!$C$7&"賞与法定福利見積(現業)" -> 2023夏季賞与法定福利見積(現業) | AZ22: 7700202 | BA22: NS-0119 | BB22: =IFERROR(ROUND((SUMIF(基データ!$Q:$Q,RIGHT(配賦額!BA22,4),基データ!$U:$U)-AW22*5),0),0) -> 0 | BC22: =使い方!$B$7&使い方!$C$7&"賞与法定福利見積(現業)" -> 2023夏季賞与法定福利見積(現業) | BE22: 7700202 | BF22: NS-0119 | BG22: =-IFERROR(ROUND(SUMIF(基データ!$Q:$Q,RIGHT(配賦額!BF22,4),基データ!$U:$U),0),0) -> 0 | BH22: =使い方!$B$7&使い方!$C$7&"賞与法定福利見積戻し(現業)" -> 2023夏季賞与法定福利見積戻し(現業)
B23: 7700303 | C23: NS-0120 | D23: =IFERROR(ROUND(SUMIF(基データ!$C:$C,RIGHT(配賦額!C23,4),基データ!$I:$I)/6,0),0) -> 1362000 | E23: =使い方!$B$7&使い方!$C$7&"賞与見積" -> 2023夏季賞与見積 | G23: 7700303 | H23: NS-0120 | I23: =IFERROR(ROUND((SUMIF(基データ!$C:$C,RIGHT(配賦額!H23,4),基データ!$I:$I)-D23*5),0),0) -> 1362000 | J23: =使い方!$B$7&使い方!$C$7&"賞与見積" -> 2023夏季賞与見積 | L23: 7700303 | M23: NS-0120 | N23: =-IFERROR(ROUND(SUMIF(基データ!$C:$C,RIGHT(配賦額!M23,4),基データ!$I:$I),0),0) -> -8172000 | O23: =使い方!$B$7&使い方!$C$7&"賞与見積戻し" -> 2023夏季賞与見積戻し | Q23: 7700305 | R23: NS-0120 | S23: =IFERROR(ROUND(SUMIF(基データ!$C:$C,RIGHT(配賦額!R23,4),基データ!$L:$L)/6,0),0) -> 190381 | T23: =使い方!$B$7&使い方!$C$7&"賞与法定福利見積" -> 2023夏季賞与法定福利見積 | V23: 7700305 | W23: NS-0120 | X23: =IFERROR(ROUND((SUMIF(基データ!$C:$C,RIGHT(配賦額!W23,4),基データ!$L:$L)-S23*5),0),0) -> 190381 | Y23: =使い方!$B$7&使い方!$C$7&"賞与法定福利見積" -> 2023夏季賞与法定福利見積 | AA23: 7700305 | AB23: NS-0120 | AC23: =-IFERROR(ROUND(SUMIF(基データ!$C:$C,RIGHT(配賦額!AB23,4),基データ!$L:$L),0),0) -> -1142286 | AD23: =使い方!$B$7&使い方!$C$7&"賞与法定福利見積戻し" -> 2023夏季賞与法定福利見積戻し | AF23: 7700201 | AG23: NS-0120 | AH23: =IFERROR(ROUND(SUMIF(基データ!$Q:$Q,RIGHT(配賦額!AG23,4),基データ!$T:$T)/6,0),0) -> 0 | AI23: =使い方!$B$7&使い方!$C$7&"賞与見積(現業)" -> 2023夏季賞与見積(現業) | AK23: 7700201 | AL23: NS-0120 | AM23: =IFERROR(ROUND((SUMIF(基データ!$Q:$Q,RIGHT(配賦額!AL23,4),基データ!$T:$T)-AH23*5),0),0) -> 0 | AN23: =使い方!$B$7&使い方!$C$7&"賞与見積(現業)" -> 2023夏季賞与見積(現業) | AP23: 7700201 | AQ23: NS-0120 | AR23: =-IFERROR(ROUND(SUMIF(基データ!$Q:$Q,RIGHT(配賦額!AQ23,4),基データ!$T:$T),0),0) -> 0 | AS23: =使い方!$B$7&使い方!$C$7&"賞与見積戻し(現業)" -> 2023夏季賞与見積戻し(現業) | AU23: 7700202 | AV23: NS-0120 | AW23: =IFERROR(ROUND(SUMIF(基データ!$Q:$Q,RIGHT(配賦額!AV23,4),基データ!$U:$U)/6,0),0) -> 0 | AX23: =使い方!$B$7&使い方!$C$7&"賞与法定福利見積(現業)" -> 2023夏季賞与法定福利見積(現業) | AZ23: 7700202 | BA23: NS-0120 | BB23: =IFERROR(ROUND((SUMIF(基データ!$Q:$Q,RIGHT(配賦額!BA23,4),基データ!$U:$U)-AW23*5),0),0) -> 0 | BC23: =使い方!$B$7&使い方!$C$7&"賞与法定福利見積(現業)" -> 2023夏季賞与法定福利見積(現業) | BE23: 7700202 | BF23: NS-0120 | BG23: =-IFERROR(ROUND(SUMIF(基データ!$Q:$Q,RIGHT(配賦額!BF23,4),基データ!$U:$U),0),0) -> 0 | BH23: =使い方!$B$7&使い方!$C$7&"賞与法定福利見積戻し(現業)" -> 2023夏季賞与法定福利見積戻し(現業)
B24: 7700303 | C24: NS-0121 | D24: =IFERROR(ROUND(SUMIF(基データ!$C:$C,RIGHT(配賦額!C24,4),基データ!$I:$I)/6,0),0) -> 972333 | E24: =使い方!$B$7&使い方!$C$7&"賞与見積" -> 2023夏季賞与見積 | G24: 7700303 | H24: NS-0121 | I24: =IFERROR(ROUND((SUMIF(基データ!$C:$C,RIGHT(配賦額!H24,4),基データ!$I:$I)-D24*5),0),0) -> 972335 | J24: =使い方!$B$7&使い方!$C$7&"賞与見積" -> 2023夏季賞与見積 | L24: 7700303 | M24: NS-0121 | N24: =-IFERROR(ROUND(SUMIF(基データ!$C:$C,RIGHT(配賦額!M24,4),基データ!$I:$I),0),0) -> -5834000 | O24: =使い方!$B$7&使い方!$C$7&"賞与見積戻し" -> 2023夏季賞与見積戻し | Q24: 7700305 | R24: NS-0121 | S24: =IFERROR(ROUND(SUMIF(基データ!$C:$C,RIGHT(配賦額!R24,4),基データ!$L:$L)/6,0),0) -> 152033 | T24: =使い方!$B$7&使い方!$C$7&"賞与法定福利見積" -> 2023夏季賞与法定福利見積 | V24: 7700305 | W24: NS-0121 | X24: =IFERROR(ROUND((SUMIF(基データ!$C:$C,RIGHT(配賦額!W24,4),基データ!$L:$L)-S24*5),0),0) -> 152035 | Y24: =使い方!$B$7&使い方!$C$7&"賞与法定福利見積" -> 2023夏季賞与法定福利見積 | AA24: 7700305 | AB24: NS-0121 | AC24: =-IFERROR(ROUND(SUMIF(基データ!$C:$C,RIGHT(配賦額!AB24,4),基データ!$L:$L),0),0) -> -912200 | AD24: =使い方!$B$7&使い方!$C$7&"賞与法定福利見積戻し" -> 2023夏季賞与法定福利見積戻し | AF24: 7700201 | AG24: NS-0121 | AH24: =IFERROR(ROUND(SUMIF(基データ!$Q:$Q,RIGHT(配賦額!AG24,4),基データ!$T:$T)/6,0),0) -> 0 | AI24: =使い方!$B$7&使い方!$C$7&"賞与見積(現業)" -> 2023夏季賞与見積(現業) | AK24: 7700201 | AL24: NS-0121 | AM24: =IFERROR(ROUND((SUMIF(基データ!$Q:$Q,RIGHT(配賦額!AL24,4),基データ!$T:$T)-AH24*5),0),0) -> 0 | AN24: =使い方!$B$7&使い方!$C$7&"賞与見積(現業)" -> 2023夏季賞与見積(現業) | AP24: 7700201 | AQ24: NS-0121 | AR24: =-IFERROR(ROUND(SUMIF(基データ!$Q:$Q,RIGHT(配賦額!AQ24,4),基データ!$T:$T),0),0) -> 0 | AS24: =使い方!$B$7&使い方!$C$7&"賞与見積戻し(現業)" -> 2023夏季賞与見積戻し(現業) | AU24: 7700202 | AV24: NS-0121 | AW24: =IFERROR(ROUND(SUMIF(基データ!$Q:$Q,RIGHT(配賦額!AV24,4),基データ!$U:$U)/6,0),0) -> 0 | AX24: =使い方!$B$7&使い方!$C$7&"賞与法定福利見積(現業)" -> 2023夏季賞与法定福利見積(現業) | AZ24: 7700202 | BA24: NS-0121 | BB24: =IFERROR(ROUND((SUMIF(基データ!$Q:$Q,RIGHT(配賦額!BA24,4),基データ!$U:$U)-AW24*5),0),0) -> 0 | BC24: =使い方!$B$7&使い方!$C$7&"賞与法定福利見積(現業)" -> 2023夏季賞与法定福利見積(現業) | BE24: 7700202 | BF24: NS-0121 | BG24: =-IFERROR(ROUND(SUMIF(基データ!$Q:$Q,RIGHT(配賦額!BF24,4),基データ!$U:$U),0),0) -> 0 | BH24: =使い方!$B$7&使い方!$C$7&"賞与法定福利見積戻し(現業)" -> 2023夏季賞与法定福利見積戻し(現業)
B25: 7700303 | C25: NS-0122 | D25: =IFERROR(ROUND(SUMIF(基データ!$C:$C,RIGHT(配賦額!C25,4),基データ!$I:$I)/6,0),0) -> 0 | E25: =使い方!$B$7&使い方!$C$7&"賞与見積" -> 2023夏季賞与見積 | G25: 7700303 | H25: NS-0122 | I25: =IFERROR(ROUND((SUMIF(基データ!$C:$C,RIGHT(配賦額!H25,4),基データ!$I:$I)-D25*5),0),0) -> 0 | J25: =使い方!$B$7&使い方!$C$7&"賞与見積" -> 2023夏季賞与見積 | L25: 7700303 | M25: NS-0122 | N25: =-IFERROR(ROUND(SUMIF(基データ!$C:$C,RIGHT(配賦額!M25,4),基データ!$I:$I),0),0) -> 0 | O25: =使い方!$B$7&使い方!$C$7&"賞与見積戻し" -> 2023夏季賞与見積戻し | Q25: 7700305 | R25: NS-0122 | S25: =IFERROR(ROUND(SUMIF(基データ!$C:$C,RIGHT(配賦額!R25,4),基データ!$L:$L)/6,0),0) -> 0 | T25: =使い方!$B$7&使い方!$C$7&"賞与法定福利見積" -> 2023夏季賞与法定福利見積 | V25: 7700305 | W25: NS-0122 | X25: =IFERROR(ROUND((SUMIF(基データ!$C:$C,RIGHT(配賦額!W25,4),基データ!$L:$L)-S25*5),0),0) -> 0 | Y25: =使い方!$B$7&使い方!$C$7&"賞与法定福利見積" -> 2023夏季賞与法定福利見積 | AA25: 7700305 | AB25: NS-0122 | AC25: =-IFERROR(ROUND(SUMIF(基データ!$C:$C,RIGHT(配賦額!AB25,4),基データ!$L:$L),0),0) -> 0 | AD25: =使い方!$B$7&使い方!$C$7&"賞与法定福利見積戻し" -> 2023夏季賞与法定福利見積戻し | AF25: 7700201 | AG25: NS-0122 | AH25: =IFERROR(ROUND(SUMIF(基データ!$Q:$Q,RIGHT(配賦額!AG25,4),基データ!$T:$T)/6,0),0) -> 0 | AI25: =使い方!$B$7&使い方!$C$7&"賞与見積(現業)" -> 2023夏季賞与見積(現業) | AK25: 7700201 | AL25: NS-0122 | AM25: =IFERROR(ROUND((SUMIF(基データ!$Q:$Q,RIGHT(配賦額!AL25,4),基データ!$T:$T)-AH25*5),0),0) -> 0 | AN25: =使い方!$B$7&使い方!$C$7&"賞与見積(現業)" -> 2023夏季賞与見積(現業) | AP25: 7700201 | AQ25: NS-0122 | AR25: =-IFERROR(ROUND(SUMIF(基データ!$Q:$Q,RIGHT(配賦額!AQ25,4),基データ!$T:$T),0),0) -> 0 | AS25: =使い方!$B$7&使い方!$C$7&"賞与見積戻し(現業)" -> 2023夏季賞与見積戻し(現業) | AU25: 7700202 | AV25: NS-0122 | AW25: =IFERROR(ROUND(SUMIF(基データ!$Q:$Q,RIGHT(配賦額!AV25,4),基データ!$U:$U)/6,0),0) -> 0 | AX25: =使い方!$B$7&使い方!$C$7&"賞与法定福利見積(現業)" -> 2023夏季賞与法定福利見積(現業) | AZ25: 7700202 | BA25: NS-0122 | BB25: =IFERROR(ROUND((SUMIF(基データ!$Q:$Q,RIGHT(配賦額!BA25,4),基データ!$U:$U)-AW25*5),0),0) -> 0 | BC25: =使い方!$B$7&使い方!$C$7&"賞与法定福利見積(現業)" -> 2023夏季賞与法定福利見積(現業) | BE25: 7700202 | BF25: NS-0122 | BG25: =-IFERROR(ROUND(SUMIF(基データ!$Q:$Q,RIGHT(配賦額!BF25,4),基データ!$U:$U),0),0) -> 0 | BH25: =使い方!$B$7&使い方!$C$7&"賞与法定福利見積戻し(現業)" -> 2023夏季賞与法定福利見積戻し(現業)
B26: 7700303 | C26: NS-0123 | D26: =IFERROR(ROUND(SUMIF(基データ!$C:$C,RIGHT(配賦額!C26,4),基データ!$I:$I)/6,0),0) -> 981250 | E26: =使い方!$B$7&使い方!$C$7&"賞与見積" -> 2023夏季賞与見積 | G26: 7700303 | H26: NS-0123 | I26: =IFERROR(ROUND((SUMIF(基データ!$C:$C,RIGHT(配賦額!H26,4),基データ!$I:$I)-D26*5),0),0) -> 981250 | J26: =使い方!$B$7&使い方!$C$7&"賞与見積" -> 2023夏季賞与見積 | L26: 7700303 | M26: NS-0123 | N26: =-IFERROR(ROUND(SUMIF(基データ!$C:$C,RIGHT(配賦額!M26,4),基データ!$I:$I),0),0) -> -5887500 | O26: =使い方!$B$7&使い方!$C$7&"賞与見積戻し" -> 2023夏季賞与見積戻し | Q26: 7700305 | R26: NS-0123 | S26: =IFERROR(ROUND(SUMIF(基データ!$C:$C,RIGHT(配賦額!R26,4),基データ!$L:$L)/6,0),0) -> 155206 | T26: =使い方!$B$7&使い方!$C$7&"賞与法定福利見積" -> 2023夏季賞与法定福利見積 | V26: 7700305 | W26: NS-0123 | X26: =IFERROR(ROUND((SUMIF(基データ!$C:$C,RIGHT(配賦額!W26,4),基データ!$L:$L)-S26*5),0),0) -> 155205 | Y26: =使い方!$B$7&使い方!$C$7&"賞与法定福利見積" -> 2023夏季賞与法定福利見積 | AA26: 7700305 | AB26: NS-0123 | AC26: =-IFERROR(ROUND(SUMIF(基データ!$C:$C,RIGHT(配賦額!AB26,4),基データ!$L:$L),0),0) -> -931235 | AD26: =使い方!$B$7&使い方!$C$7&"賞与法定福利見積戻し" -> 2023夏季賞与法定福利見積戻し | AF26: 7700201 | AG26: NS-0123 | AH26: =IFERROR(ROUND(SUMIF(基データ!$Q:$Q,RIGHT(配賦額!AG26,4),基データ!$T:$T)/6,0),0) -> 0 | AI26: =使い方!$B$7&使い方!$C$7&"賞与見積(現業)" -> 2023夏季賞与見積(現業) | AK26: 7700201 | AL26: NS-0123 | AM26: =IFERROR(ROUND((SUMIF(基データ!$Q:$Q,RIGHT(配賦額!AL26,4),基データ!$T:$T)-AH26*5),0),0) -> 0 | AN26: =使い方!$B$7&使い方!$C$7&"賞与見積(現業)" -> 2023夏季賞与見積(現業) | AP26: 7700201 | AQ26: NS-0123 | AR26: =-IFERROR(ROUND(SUMIF(基データ!$Q:$Q,RIGHT(配賦額!AQ26,4),基データ!$T:$T),0),0) -> 0 | AS26: =使い方!$B$7&使い方!$C$7&"賞与見積戻し(現業)" -> 2023夏季賞与見積戻し(現業) | AU26: 7700202 | AV26: NS-0123 | AW26: =IFERROR(ROUND(SUMIF(基データ!$Q:$Q,RIGHT(配賦額!AV26,4),基データ!$U:$U)/6,0),0) -> 0 | AX26: =使い方!$B$7&使い方!$C$7&"賞与法定福利見積(現業)" -> 2023夏季賞与法定福利見積(現業) | AZ26: 7700202 | BA26: NS-0123 | BB26: =IFERROR(ROUND((SUMIF(基データ!$Q:$Q,RIGHT(配賦額!BA26,4),基データ!$U:$U)-AW26*5),0),0) -> 0 | BC26: =使い方!$B$7&使い方!$C$7&"賞与法定福利見積(現業)" -> 2023夏季賞与法定福利見積(現業) | BE26: 7700202 | BF26: NS-0123 | BG26: =-IFERROR(ROUND(SUMIF(基データ!$Q:$Q,RIGHT(配賦額!BF26,4),基データ!$U:$U),0),0) -> 0 | BH26: =使い方!$B$7&使い方!$C$7&"賞与法定福利見積戻し(現業)" -> 2023夏季賞与法定福利見積戻し(現業)
B27: 7700303 | C27: NS-0124 | D27: =IFERROR(ROUND(SUMIF(基データ!$C:$C,RIGHT(配賦額!C27,4),基データ!$I:$I)/6,0),0) -> 0 | E27: =使い方!$B$7&使い方!$C$7&"賞与見積" -> 2023夏季賞与見積 | G27: 7700303 | H27: NS-0124 | I27: =IFERROR(ROUND((SUMIF(基データ!$C:$C,RIGHT(配賦額!H27,4),基データ!$I:$I)-D27*5),0),0) -> 0 | J27: =使い方!$B$7&使い方!$C$7&"賞与見積" -> 2023夏季賞与見積 | L27: 7700303 | M27: NS-0124 | N27: =-IFERROR(ROUND(SUMIF(基データ!$C:$C,RIGHT(配賦額!M27,4),基データ!$I:$I),0),0) -> 0 | O27: =使い方!$B$7&使い方!$C$7&"賞与見積戻し" -> 2023夏季賞与見積戻し | Q27: 7700305 | R27: NS-0124 | S27: =IFERROR(ROUND(SUMIF(基データ!$C:$C,RIGHT(配賦額!R27,4),基データ!$L:$L)/6,0),0) -> 0 | T27: =使い方!$B$7&使い方!$C$7&"賞与法定福利見積" -> 2023夏季賞与法定福利見積 | V27: 7700305 | W27: NS-0124 | X27: =IFERROR(ROUND((SUMIF(基データ!$C:$C,RIGHT(配賦額!W27,4),基データ!$L:$L)-S27*5),0),0) -> 0 | Y27: =使い方!$B$7&使い方!$C$7&"賞与法定福利見積" -> 2023夏季賞与法定福利見積 | AA27: 7700305 | AB27: NS-0124 | AC27: =-IFERROR(ROUND(SUMIF(基データ!$C:$C,RIGHT(配賦額!AB27,4),基データ!$L:$L),0),0) -> 0 | AD27: =使い方!$B$7&使い方!$C$7&"賞与法定福利見積戻し" -> 2023夏季賞与法定福利見積戻し | AF27: 7700201 | AG27: NS-0124 | AH27: =IFERROR(ROUND(SUMIF(基データ!$Q:$Q,RIGHT(配賦額!AG27,4),基データ!$T:$T)/6,0),0) -> 0 | AI27: =使い方!$B$7&使い方!$C$7&"賞与見積(現業)" -> 2023夏季賞与見積(現業) | AK27: 7700201 | AL27: NS-0124 | AM27: =IFERROR(ROUND((SUMIF(基データ!$Q:$Q,RIGHT(配賦額!AL27,4),基データ!$T:$T)-AH27*5),0),0) -> 0 | AN27: =使い方!$B$7&使い方!$C$7&"賞与見積(現業)" -> 2023夏季賞与見積(現業) | AP27: 7700201 | AQ27: NS-0124 | AR27: =-IFERROR(ROUND(SUMIF(基データ!$Q:$Q,RIGHT(配賦額!AQ27,4),基データ!$T:$T),0),0) -> 0 | AS27: =使い方!$B$7&使い方!$C$7&"賞与見積戻し(現業)" -> 2023夏季賞与見積戻し(現業) | AU27: 7700202 | AV27: NS-0124 | AW27: =IFERROR(ROUND(SUMIF(基データ!$Q:$Q,RIGHT(配賦額!AV27,4),基データ!$U:$U)/6,0),0) -> 0 | AX27: =使い方!$B$7&使い方!$C$7&"賞与法定福利見積(現業)" -> 2023夏季賞与法定福利見積(現業) | AZ27: 7700202 | BA27: NS-0124 | BB27: =IFERROR(ROUND((SUMIF(基データ!$Q:$Q,RIGHT(配賦額!BA27,4),基データ!$U:$U)-AW27*5),0),0) -> 0 | BC27: =使い方!$B$7&使い方!$C$7&"賞与法定福利見積(現業)" -> 2023夏季賞与法定福利見積(現業) | BE27: 7700202 | BF27: NS-0124 | BG27: =-IFERROR(ROUND(SUMIF(基データ!$Q:$Q,RIGHT(配賦額!BF27,4),基データ!$U:$U),0),0) -> 0 | BH27: =使い方!$B$7&使い方!$C$7&"賞与法定福利見積戻し(現業)" -> 2023夏季賞与法定福利見積戻し(現業)
B28: 7700303 | C28: NS-0125 | D28: =IFERROR(ROUND(SUMIF(基データ!$C:$C,RIGHT(配賦額!C28,4),基データ!$I:$I)/6,0),0) -> 0 | E28: =使い方!$B$7&使い方!$C$7&"賞与見積" -> 2023夏季賞与見積 | G28: 7700303 | H28: NS-0125 | I28: =IFERROR(ROUND((SUMIF(基データ!$C:$C,RIGHT(配賦額!H28,4),基データ!$I:$I)-D28*5),0),0) -> 0 | J28: =使い方!$B$7&使い方!$C$7&"賞与見積" -> 2023夏季賞与見積 | L28: 7700303 | M28: NS-0125 | N28: =-IFERROR(ROUND(SUMIF(基データ!$C:$C,RIGHT(配賦額!M28,4),基データ!$I:$I),0),0) -> 0 | O28: =使い方!$B$7&使い方!$C$7&"賞与見積戻し" -> 2023夏季賞与見積戻し | Q28: 7700305 | R28: NS-0125 | S28: =IFERROR(ROUND(SUMIF(基データ!$C:$C,RIGHT(配賦額!R28,4),基データ!$L:$L)/6,0),0) -> 0 | T28: =使い方!$B$7&使い方!$C$7&"賞与法定福利見積" -> 2023夏季賞与法定福利見積 | V28: 7700305 | W28: NS-0125 | X28: =IFERROR(ROUND((SUMIF(基データ!$C:$C,RIGHT(配賦額!W28,4),基データ!$L:$L)-S28*5),0),0) -> 0 | Y28: =使い方!$B$7&使い方!$C$7&"賞与法定福利見積" -> 2023夏季賞与法定福利見積 | AA28: 7700305 | AB28: NS-0125 | AC28: =-IFERROR(ROUND(SUMIF(基データ!$C:$C,RIGHT(配賦額!AB28,4),基データ!$L:$L),0),0) -> 0 | AD28: =使い方!$B$7&使い方!$C$7&"賞与法定福利見積戻し" -> 2023夏季賞与法定福利見積戻し | AF28: 7700201 | AG28: NS-0125 | AH28: =IFERROR(ROUND(SUMIF(基データ!$Q:$Q,RIGHT(配賦額!AG28,4),基データ!$T:$T)/6,0),0) -> 0 | AI28: =使い方!$B$7&使い方!$C$7&"賞与見積(現業)" -> 2023夏季賞与見積(現業) | AK28: 7700201 | AL28: NS-0125 | AM28: =IFERROR(ROUND((SUMIF(基データ!$Q:$Q,RIGHT(配賦額!AL28,4),基データ!$T:$T)-AH28*5),0),0) -> 0 | AN28: =使い方!$B$7&使い方!$C$7&"賞与見積(現業)" -> 2023夏季賞与見積(現業) | AP28: 7700201 | AQ28: NS-0125 | AR28: =-IFERROR(ROUND(SUMIF(基データ!$Q:$Q,RIGHT(配賦額!AQ28,4),基データ!$T:$T),0),0) -> 0 | AS28: =使い方!$B$7&使い方!$C$7&"賞与見積戻し(現業)" -> 2023夏季賞与見積戻し(現業) | AU28: 7700202 | AV28: NS-0125 | AW28: =IFERROR(ROUND(SUMIF(基データ!$Q:$Q,RIGHT(配賦額!AV28,4),基データ!$U:$U)/6,0),0) -> 0 | AX28: =使い方!$B$7&使い方!$C$7&"賞与法定福利見積(現業)" -> 2023夏季賞与法定福利見積(現業) | AZ28: 7700202 | BA28: NS-0125 | BB28: =IFERROR(ROUND((SUMIF(基データ!$Q:$Q,RIGHT(配賦額!BA28,4),基データ!$U:$U)-AW28*5),0),0) -> 0 | BC28: =使い方!$B$7&使い方!$C$7&"賞与法定福利見積(現業)" -> 2023夏季賞与法定福利見積(現業) | BE28: 7700202 | BF28: NS-0125 | BG28: =-IFERROR(ROUND(SUMIF(基データ!$Q:$Q,RIGHT(配賦額!BF28,4),基データ!$U:$U),0),0) -> 0 | BH28: =使い方!$B$7&使い方!$C$7&"賞与法定福利見積戻し(現業)" -> 2023夏季賞与法定福利見積戻し(現業)
B29: 7700303 | C29: NS-0126 | D29: =IFERROR(ROUND(SUMIF(基データ!$C:$C,RIGHT(配賦額!C29,4),基データ!$I:$I)/6,0),0) -> 0 | E29: =使い方!$B$7&使い方!$C$7&"賞与見積" -> 2023夏季賞与見積 | G29: 7700303 | H29: NS-0126 | I29: =IFERROR(ROUND((SUMIF(基データ!$C:$C,RIGHT(配賦額!H29,4),基データ!$I:$I)-D29*5),0),0) -> 0 | J29: =使い方!$B$7&使い方!$C$7&"賞与見積" -> 2023夏季賞与見積 | L29: 7700303 | M29: NS-0126 | N29: =-IFERROR(ROUND(SUMIF(基データ!$C:$C,RIGHT(配賦額!M29,4),基データ!$I:$I),0),0) -> 0 | O29: =使い方!$B$7&使い方!$C$7&"賞与見積戻し" -> 2023夏季賞与見積戻し | Q29: 7700305 | R29: NS-0126 | S29: =IFERROR(ROUND(SUMIF(基データ!$C:$C,RIGHT(配賦額!R29,4),基データ!$L:$L)/6,0),0) -> 0 | T29: =使い方!$B$7&使い方!$C$7&"賞与法定福利見積" -> 2023夏季賞与法定福利見積 | V29: 7700305 | W29: NS-0126 | X29: =IFERROR(ROUND((SUMIF(基データ!$C:$C,RIGHT(配賦額!W29,4),基データ!$L:$L)-S29*5),0),0) -> 0 | Y29: =使い方!$B$7&使い方!$C$7&"賞与法定福利見積" -> 2023夏季賞与法定福利見積 | AA29: 7700305 | AB29: NS-0126 | AC29: =-IFERROR(ROUND(SUMIF(基データ!$C:$C,RIGHT(配賦額!AB29,4),基データ!$L:$L),0),0) -> 0 | AD29: =使い方!$B$7&使い方!$C$7&"賞与法定福利見積戻し" -> 2023夏季賞与法定福利見積戻し | AF29: 7700201 | AG29: NS-0126 | AH29: =IFERROR(ROUND(SUMIF(基データ!$Q:$Q,RIGHT(配賦額!AG29,4),基データ!$T:$T)/6,0),0) -> 0 | AI29: =使い方!$B$7&使い方!$C$7&"賞与見積(現業)" -> 2023夏季賞与見積(現業) | AK29: 7700201 | AL29: NS-0126 | AM29: =IFERROR(ROUND((SUMIF(基データ!$Q:$Q,RIGHT(配賦額!AL29,4),基データ!$T:$T)-AH29*5),0),0) -> 0 | AN29: =使い方!$B$7&使い方!$C$7&"賞与見積(現業)" -> 2023夏季賞与見積(現業) | AP29: 7700201 | AQ29: NS-0126 | AR29: =-IFERROR(ROUND(SUMIF(基データ!$Q:$Q,RIGHT(配賦額!AQ29,4),基データ!$T:$T),0),0) -> 0 | AS29: =使い方!$B$7&使い方!$C$7&"賞与見積戻し(現業)" -> 2023夏季賞与見積戻し(現業) | AU29: 7700202 | AV29: NS-0126 | AW29: =IFERROR(ROUND(SUMIF(基データ!$Q:$Q,RIGHT(配賦額!AV29,4),基データ!$U:$U)/6,0),0) -> 0 | AX29: =使い方!$B$7&使い方!$C$7&"賞与法定福利見積(現業)" -> 2023夏季賞与法定福利見積(現業) | AZ29: 7700202 | BA29: NS-0126 | BB29: =IFERROR(ROUND((SUMIF(基データ!$Q:$Q,RIGHT(配賦額!BA29,4),基データ!$U:$U)-AW29*5),0),0) -> 0 | BC29: =使い方!$B$7&使い方!$C$7&"賞与法定福利見積(現業)" -> 2023夏季賞与法定福利見積(現業) | BE29: 7700202 | BF29: NS-0126 | BG29: =-IFERROR(ROUND(SUMIF(基データ!$Q:$Q,RIGHT(配賦額!BF29,4),基データ!$U:$U),0),0) -> 0 | BH29: =使い方!$B$7&使い方!$C$7&"賞与法定福利見積戻し(現業)" -> 2023夏季賞与法定福利見積戻し(現業)
B30: 7700303 | C30: NS-0127 | D30: =IFERROR(ROUND(SUMIF(基データ!$C:$C,RIGHT(配賦額!C30,4),基データ!$I:$I)/6,0),0) -> 1875833 | E30: =使い方!$B$7&使い方!$C$7&"賞与見積" -> 2023夏季賞与見積 | G30: 7700303 | H30: NS-0127 | I30: =IFERROR(ROUND((SUMIF(基データ!$C:$C,RIGHT(配賦額!H30,4),基データ!$I:$I)-D30*5),0),0) -> 1875835 | J30: =使い方!$B$7&使い方!$C$7&"賞与見積" -> 2023夏季賞与見積 | L30: 7700303 | M30: NS-0127 | N30: =-IFERROR(ROUND(SUMIF(基データ!$C:$C,RIGHT(配賦額!M30,4),基データ!$I:$I),0),0) -> -11255000 | O30: =使い方!$B$7&使い方!$C$7&"賞与見積戻し" -> 2023夏季賞与見積戻し | Q30: 7700305 | R30: NS-0127 | S30: =IFERROR(ROUND(SUMIF(基データ!$C:$C,RIGHT(配賦額!R30,4),基データ!$L:$L)/6,0),0) -> 273687 | T30: =使い方!$B$7&使い方!$C$7&"賞与法定福利見積" -> 2023夏季賞与法定福利見積 | V30: 7700305 | W30: NS-0127 | X30: =IFERROR(ROUND((SUMIF(基データ!$C:$C,RIGHT(配賦額!W30,4),基データ!$L:$L)-S30*5),0),0) -> 273687 | Y30: =使い方!$B$7&使い方!$C$7&"賞与法定福利見積" -> 2023夏季賞与法定福利見積 | AA30: 7700305 | AB30: NS-0127 | AC30: =-IFERROR(ROUND(SUMIF(基データ!$C:$C,RIGHT(配賦額!AB30,4),基データ!$L:$L),0),0) -> -1642122 | AD30: =使い方!$B$7&使い方!$C$7&"賞与法定福利見積戻し" -> 2023夏季賞与法定福利見積戻し | AF30: 7700201 | AG30: NS-0127 | AH30: =IFERROR(ROUND(SUMIF(基データ!$Q:$Q,RIGHT(配賦額!AG30,4),基データ!$T:$T)/6,0),0) -> 0 | AI30: =使い方!$B$7&使い方!$C$7&"賞与見積(現業)" -> 2023夏季賞与見積(現業) | AK30: 7700201 | AL30: NS-0127 | AM30: =IFERROR(ROUND((SUMIF(基データ!$Q:$Q,RIGHT(配賦額!AL30,4),基データ!$T:$T)-AH30*5),0),0) -> 0 | AN30: =使い方!$B$7&使い方!$C$7&"賞与見積(現業)" -> 2023夏季賞与見積(現業) | AP30: 7700201 | AQ30: NS-0127 | AR30: =-IFERROR(ROUND(SUMIF(基データ!$Q:$Q,RIGHT(配賦額!AQ30,4),基データ!$T:$T),0),0) -> 0 | AS30: =使い方!$B$7&使い方!$C$7&"賞与見積戻し(現業)" -> 2023夏季賞与見積戻し(現業) | AU30: 7700202 | AV30: NS-0127 | AW30: =IFERROR(ROUND(SUMIF(基データ!$Q:$Q,RIGHT(配賦額!AV30,4),基データ!$U:$U)/6,0),0) -> 0 | AX30: =使い方!$B$7&使い方!$C$7&"賞与法定福利見積(現業)" -> 2023夏季賞与法定福利見積(現業) | AZ30: 7700202 | BA30: NS-0127 | BB30: =IFERROR(ROUND((SUMIF(基データ!$Q:$Q,RIGHT(配賦額!BA30,4),基データ!$U:$U)-AW30*5),0),0) -> 0 | BC30: =使い方!$B$7&使い方!$C$7&"賞与法定福利見積(現業)" -> 2023夏季賞与法定福利見積(現業) | BE30: 7700202 | BF30: NS-0127 | BG30: =-IFERROR(ROUND(SUMIF(基データ!$Q:$Q,RIGHT(配賦額!BF30,4),基データ!$U:$U),0),0) -> 0 | BH30: =使い方!$B$7&使い方!$C$7&"賞与法定福利見積戻し(現業)" -> 2023夏季賞与法定福利見積戻し(現業)
B31: 7700303 | C31: NS-0128 | D31: =IFERROR(ROUND(SUMIF(基データ!$C:$C,RIGHT(配賦額!C31,4),基データ!$I:$I)/6,0),0) -> 0 | E31: =使い方!$B$7&使い方!$C$7&"賞与見積" -> 2023夏季賞与見積 | G31: 7700303 | H31: NS-0128 | I31: =IFERROR(ROUND((SUMIF(基データ!$C:$C,RIGHT(配賦額!H31,4),基データ!$I:$I)-D31*5),0),0) -> 0 | J31: =使い方!$B$7&使い方!$C$7&"賞与見積" -> 2023夏季賞与見積 | L31: 7700303 | M31: NS-0128 | N31: =-IFERROR(ROUND(SUMIF(基データ!$C:$C,RIGHT(配賦額!M31,4),基データ!$I:$I),0),0) -> 0 | O31: =使い方!$B$7&使い方!$C$7&"賞与見積戻し" -> 2023夏季賞与見積戻し | Q31: 7700305 | R31: NS-0128 | S31: =IFERROR(ROUND(SUMIF(基データ!$C:$C,RIGHT(配賦額!R31,4),基データ!$L:$L)/6,0),0) -> 0 | T31: =使い方!$B$7&使い方!$C$7&"賞与法定福利見積" -> 2023夏季賞与法定福利見積 | V31: 7700305 | W31: NS-0128 | X31: =IFERROR(ROUND((SUMIF(基データ!$C:$C,RIGHT(配賦額!W31,4),基データ!$L:$L)-S31*5),0),0) -> 0 | Y31: =使い方!$B$7&使い方!$C$7&"賞与法定福利見積" -> 2023夏季賞与法定福利見積 | AA31: 7700305 | AB31: NS-0128 | AC31: =-IFERROR(ROUND(SUMIF(基データ!$C:$C,RIGHT(配賦額!AB31,4),基データ!$L:$L),0),0) -> 0 | AD31: =使い方!$B$7&使い方!$C$7&"賞与法定福利見積戻し" -> 2023夏季賞与法定福利見積戻し | AF31: 7700201 | AG31: NS-0128 | AH31: =IFERROR(ROUND(SUMIF(基データ!$Q:$Q,RIGHT(配賦額!AG31,4),基データ!$T:$T)/6,0),0) -> 0 | AI31: =使い方!$B$7&使い方!$C$7&"賞与見積(現業)" -> 2023夏季賞与見積(現業) | AK31: 7700201 | AL31: NS-0128 | AM31: =IFERROR(ROUND((SUMIF(基データ!$Q:$Q,RIGHT(配賦額!AL31,4),基データ!$T:$T)-AH31*5),0),0) -> 0 | AN31: =使い方!$B$7&使い方!$C$7&"賞与見積(現業)" -> 2023夏季賞与見積(現業) | AP31: 7700201 | AQ31: NS-0128 | AR31: =-IFERROR(ROUND(SUMIF(基データ!$Q:$Q,RIGHT(配賦額!AQ31,4),基データ!$T:$T),0),0) -> 0 | AS31: =使い方!$B$7&使い方!$C$7&"賞与見積戻し(現業)" -> 2023夏季賞与見積戻し(現業) | AU31: 7700202 | AV31: NS-0128 | AW31: =IFERROR(ROUND(SUMIF(基データ!$Q:$Q,RIGHT(配賦額!AV31,4),基データ!$U:$U)/6,0),0) -> 0 | AX31: =使い方!$B$7&使い方!$C$7&"賞与法定福利見積(現業)" -> 2023夏季賞与法定福利見積(現業) | AZ31: 7700202 | BA31: NS-0128 | BB31: =IFERROR(ROUND((SUMIF(基データ!$Q:$Q,RIGHT(配賦額!BA31,4),基データ!$U:$U)-AW31*5),0),0) -> 0 | BC31: =使い方!$B$7&使い方!$C$7&"賞与法定福利見積(現業)" -> 2023夏季賞与法定福利見積(現業) | BE31: 7700202 | BF31: NS-0128 | BG31: =-IFERROR(ROUND(SUMIF(基データ!$Q:$Q,RIGHT(配賦額!BF31,4),基データ!$U:$U),0),0) -> 0 | BH31: =使い方!$B$7&使い方!$C$7&"賞与法定福利見積戻し(現業)" -> 2023夏季賞与法定福利見積戻し(現業)
B32: 7700303 | C32: NS-0129 | D32: =IFERROR(ROUND(SUMIF(基データ!$C:$C,RIGHT(配賦額!C32,4),基データ!$I:$I)/6,0),0) -> 0 | E32: =使い方!$B$7&使い方!$C$7&"賞与見積" -> 2023夏季賞与見積 | G32: 7700303 | H32: NS-0129 | I32: =IFERROR(ROUND((SUMIF(基データ!$C:$C,RIGHT(配賦額!H32,4),基データ!$I:$I)-D32*5),0),0) -> 0 | J32: =使い方!$B$7&使い方!$C$7&"賞与見積" -> 2023夏季賞与見積 | L32: 7700303 | M32: NS-0129 | N32: =-IFERROR(ROUND(SUMIF(基データ!$C:$C,RIGHT(配賦額!M32,4),基データ!$I:$I),0),0) -> 0 | O32: =使い方!$B$7&使い方!$C$7&"賞与見積戻し" -> 2023夏季賞与見積戻し | Q32: 7700305 | R32: NS-0129 | S32: =IFERROR(ROUND(SUMIF(基データ!$C:$C,RIGHT(配賦額!R32,4),基データ!$L:$L)/6,0),0) -> 0 | T32: =使い方!$B$7&使い方!$C$7&"賞与法定福利見積" -> 2023夏季賞与法定福利見積 | V32: 7700305 | W32: NS-0129 | X32: =IFERROR(ROUND((SUMIF(基データ!$C:$C,RIGHT(配賦額!W32,4),基データ!$L:$L)-S32*5),0),0) -> 0 | Y32: =使い方!$B$7&使い方!$C$7&"賞与法定福利見積" -> 2023夏季賞与法定福利見積 | AA32: 7700305 | AB32: NS-0129 | AC32: =-IFERROR(ROUND(SUMIF(基データ!$C:$C,RIGHT(配賦額!AB32,4),基データ!$L:$L),0),0) -> 0 | AD32: =使い方!$B$7&使い方!$C$7&"賞与法定福利見積戻し" -> 2023夏季賞与法定福利見積戻し | AF32: 7700201 | AG32: NS-0129 | AH32: =IFERROR(ROUND(SUMIF(基データ!$Q:$Q,RIGHT(配賦額!AG32,4),基データ!$T:$T)/6,0),0) -> 0 | AI32: =使い方!$B$7&使い方!$C$7&"賞与見積(現業)" -> 2023夏季賞与見積(現業) | AK32: 7700201 | AL32: NS-0129 | AM32: =IFERROR(ROUND((SUMIF(基データ!$Q:$Q,RIGHT(配賦額!AL32,4),基データ!$T:$T)-AH32*5),0),0) -> 0 | AN32: =使い方!$B$7&使い方!$C$7&"賞与見積(現業)" -> 2023夏季賞与見積(現業) | AP32: 7700201 | AQ32: NS-0129 | AR32: =-IFERROR(ROUND(SUMIF(基データ!$Q:$Q,RIGHT(配賦額!AQ32,4),基データ!$T:$T),0),0) -> 0 | AS32: =使い方!$B$7&使い方!$C$7&"賞与見積戻し(現業)" -> 2023夏季賞与見積戻し(現業) | AU32: 7700202 | AV32: NS-0129 | AW32: =IFERROR(ROUND(SUMIF(基データ!$Q:$Q,RIGHT(配賦額!AV32,4),基データ!$U:$U)/6,0),0) -> 0 | AX32: =使い方!$B$7&使い方!$C$7&"賞与法定福利見積(現業)" -> 2023夏季賞与法定福利見積(現業) | AZ32: 7700202 | BA32: NS-0129 | BB32: =IFERROR(ROUND((SUMIF(基データ!$Q:$Q,RIGHT(配賦額!BA32,4),基データ!$U:$U)-AW32*5),0),0) -> 0 | BC32: =使い方!$B$7&使い方!$C$7&"賞与法定福利見積(現業)" -> 2023夏季賞与法定福利見積(現業) | BE32: 7700202 | BF32: NS-0129 | BG32: =-IFERROR(ROUND(SUMIF(基データ!$Q:$Q,RIGHT(配賦額!BF32,4),基データ!$U:$U),0),0) -> 0 | BH32: =使い方!$B$7&使い方!$C$7&"賞与法定福利見積戻し(現業)" -> 2023夏季賞与法定福利見積戻し(現業)
B33: 7700303 | C33: NS-0130 | D33: =IFERROR(ROUND(SUMIF(基データ!$C:$C,RIGHT(配賦額!C33,4),基データ!$I:$I)/6,0),0) -> 1157333 | E33: =使い方!$B$7&使い方!$C$7&"賞与見積" -> 2023夏季賞与見積 | G33: 7700303 | H33: NS-0130 | I33: =IFERROR(ROUND((SUMIF(基データ!$C:$C,RIGHT(配賦額!H33,4),基データ!$I:$I)-D33*5),0),0) -> 1157335 | J33: =使い方!$B$7&使い方!$C$7&"賞与見積" -> 2023夏季賞与見積 | L33: 7700303 | M33: NS-0130 | N33: =-IFERROR(ROUND(SUMIF(基データ!$C:$C,RIGHT(配賦額!M33,4),基データ!$I:$I),0),0) -> -6944000 | O33: =使い方!$B$7&使い方!$C$7&"賞与見積戻し" -> 2023夏季賞与見積戻し | Q33: 7700305 | R33: NS-0130 | S33: =IFERROR(ROUND(SUMIF(基データ!$C:$C,RIGHT(配賦額!R33,4),基データ!$L:$L)/6,0),0) -> 157075 | T33: =使い方!$B$7&使い方!$C$7&"賞与法定福利見積" -> 2023夏季賞与法定福利見積 | V33: 7700305 | W33: NS-0130 | X33: =IFERROR(ROUND((SUMIF(基データ!$C:$C,RIGHT(配賦額!W33,4),基データ!$L:$L)-S33*5),0),0) -> 157074 | Y33: =使い方!$B$7&使い方!$C$7&"賞与法定福利見積" -> 2023夏季賞与法定福利見積 | AA33: 7700305 | AB33: NS-0130 | AC33: =-IFERROR(ROUND(SUMIF(基データ!$C:$C,RIGHT(配賦額!AB33,4),基データ!$L:$L),0),0) -> -942449 | AD33: =使い方!$B$7&使い方!$C$7&"賞与法定福利見積戻し" -> 2023夏季賞与法定福利見積戻し | AF33: 7700201 | AG33: NS-0130 | AH33: =IFERROR(ROUND(SUMIF(基データ!$Q:$Q,RIGHT(配賦額!AG33,4),基データ!$T:$T)/6,0),0) -> 0 | AI33: =使い方!$B$7&使い方!$C$7&"賞与見積(現業)" -> 2023夏季賞与見積(現業) | AK33: 7700201 | AL33: NS-0130 | AM33: =IFERROR(ROUND((SUMIF(基データ!$Q:$Q,RIGHT(配賦額!AL33,4),基データ!$T:$T)-AH33*5),0),0) -> 0 | AN33: =使い方!$B$7&使い方!$C$7&"賞与見積(現業)" -> 2023夏季賞与見積(現業) | AP33: 7700201 | AQ33: NS-0130 | AR33: =-IFERROR(ROUND(SUMIF(基データ!$Q:$Q,RIGHT(配賦額!AQ33,4),基データ!$T:$T),0),0) -> 0 | AS33: =使い方!$B$7&使い方!$C$7&"賞与見積戻し(現業)" -> 2023夏季賞与見積戻し(現業) | AU33: 7700202 | AV33: NS-0130 | AW33: =IFERROR(ROUND(SUMIF(基データ!$Q:$Q,RIGHT(配賦額!AV33,4),基データ!$U:$U)/6,0),0) -> 0 | AX33: =使い方!$B$7&使い方!$C$7&"賞与法定福利見積(現業)" -> 2023夏季賞与法定福利見積(現業) | AZ33: 7700202 | BA33: NS-0130 | BB33: =IFERROR(ROUND((SUMIF(基データ!$Q:$Q,RIGHT(配賦額!BA33,4),基データ!$U:$U)-AW33*5),0),0) -> 0 | BC33: =使い方!$B$7&使い方!$C$7&"賞与法定福利見積(現業)" -> 2023夏季賞与法定福利見積(現業) | BE33: 7700202 | BF33: NS-0130 | BG33: =-IFERROR(ROUND(SUMIF(基データ!$Q:$Q,RIGHT(配賦額!BF33,4),基データ!$U:$U),0),0) -> 0 | BH33: =使い方!$B$7&使い方!$C$7&"賞与法定福利見積戻し(現業)" -> 2023夏季賞与法定福利見積戻し(現業)
B34: 7700303 | C34: NS-0131 | D34: =IFERROR(ROUND(SUMIF(基データ!$C:$C,RIGHT(配賦額!C34,4),基データ!$I:$I)/6,0),0) -> 907500 | E34: =使い方!$B$7&使い方!$C$7&"賞与見積" -> 2023夏季賞与見積 | G34: 7700303 | H34: NS-0131 | I34: =IFERROR(ROUND((SUMIF(基データ!$C:$C,RIGHT(配賦額!H34,4),基データ!$I:$I)-D34*5),0),0) -> 907500 | J34: =使い方!$B$7&使い方!$C$7&"賞与見積" -> 2023夏季賞与見積 | L34: 7700303 | M34: NS-0131 | N34: =-IFERROR(ROUND(SUMIF(基データ!$C:$C,RIGHT(配賦額!M34,4),基データ!$I:$I),0),0) -> -5445000 | O34: =使い方!$B$7&使い方!$C$7&"賞与見積戻し" -> 2023夏季賞与見積戻し | Q34: 7700305 | R34: NS-0131 | S34: =IFERROR(ROUND(SUMIF(基データ!$C:$C,RIGHT(配賦額!R34,4),基データ!$L:$L)/6,0),0) -> 137718 | T34: =使い方!$B$7&使い方!$C$7&"賞与法定福利見積" -> 2023夏季賞与法定福利見積 | V34: 7700305 | W34: NS-0131 | X34: =IFERROR(ROUND((SUMIF(基データ!$C:$C,RIGHT(配賦額!W34,4),基データ!$L:$L)-S34*5),0),0) -> 137719 | Y34: =使い方!$B$7&使い方!$C$7&"賞与法定福利見積" -> 2023夏季賞与法定福利見積 | AA34: 7700305 | AB34: NS-0131 | AC34: =-IFERROR(ROUND(SUMIF(基データ!$C:$C,RIGHT(配賦額!AB34,4),基データ!$L:$L),0),0) -> -826309 | AD34: =使い方!$B$7&使い方!$C$7&"賞与法定福利見積戻し" -> 2023夏季賞与法定福利見積戻し | AF34: 7700201 | AG34: NS-0131 | AH34: =IFERROR(ROUND(SUMIF(基データ!$Q:$Q,RIGHT(配賦額!AG34,4),基データ!$T:$T)/6,0),0) -> 0 | AI34: =使い方!$B$7&使い方!$C$7&"賞与見積(現業)" -> 2023夏季賞与見積(現業) | AK34: 7700201 | AL34: NS-0131 | AM34: =IFERROR(ROUND((SUMIF(基データ!$Q:$Q,RIGHT(配賦額!AL34,4),基データ!$T:$T)-AH34*5),0),0) -> 0 | AN34: =使い方!$B$7&使い方!$C$7&"賞与見積(現業)" -> 2023夏季賞与見積(現業) | AP34: 7700201 | AQ34: NS-0131 | AR34: =-IFERROR(ROUND(SUMIF(基データ!$Q:$Q,RIGHT(配賦額!AQ34,4),基データ!$T:$T),0),0) -> 0 | AS34: =使い方!$B$7&使い方!$C$7&"賞与見積戻し(現業)" -> 2023夏季賞与見積戻し(現業) | AU34: 7700202 | AV34: NS-0131 | AW34: =IFERROR(ROUND(SUMIF(基データ!$Q:$Q,RIGHT(配賦額!AV34,4),基データ!$U:$U)/6,0),0) -> 0 | AX34: =使い方!$B$7&使い方!$C$7&"賞与法定福利見積(現業)" -> 2023夏季賞与法定福利見積(現業) | AZ34: 7700202 | BA34: NS-0131 | BB34: =IFERROR(ROUND((SUMIF(基データ!$Q:$Q,RIGHT(配賦額!BA34,4),基データ!$U:$U)-AW34*5),0),0) -> 0 | BC34: =使い方!$B$7&使い方!$C$7&"賞与法定福利見積(現業)" -> 2023夏季賞与法定福利見積(現業) | BE34: 7700202 | BF34: NS-0131 | BG34: =-IFERROR(ROUND(SUMIF(基データ!$Q:$Q,RIGHT(配賦額!BF34,4),基データ!$U:$U),0),0) -> 0 | BH34: =使い方!$B$7&使い方!$C$7&"賞与法定福利見積戻し(現業)" -> 2023夏季賞与法定福利見積戻し(現業)
B35: 7700303 | C35: NS-0132 | D35: =IFERROR(ROUND(SUMIF(基データ!$C:$C,RIGHT(配賦額!C35,4),基データ!$I:$I)/6,0),0) -> 0 | E35: =使い方!$B$7&使い方!$C$7&"賞与見積" -> 2023夏季賞与見積 | G35: 7700303 | H35: NS-0132 | I35: =IFERROR(ROUND((SUMIF(基データ!$C:$C,RIGHT(配賦額!H35,4),基データ!$I:$I)-D35*5),0),0) -> 0 | J35: =使い方!$B$7&使い方!$C$7&"賞与見積" -> 2023夏季賞与見積 | L35: 7700303 | M35: NS-0132 | N35: =-IFERROR(ROUND(SUMIF(基データ!$C:$C,RIGHT(配賦額!M35,4),基データ!$I:$I),0),0) -> 0 | O35: =使い方!$B$7&使い方!$C$7&"賞与見積戻し" -> 2023夏季賞与見積戻し | Q35: 7700305 | R35: NS-0132 | S35: =IFERROR(ROUND(SUMIF(基データ!$C:$C,RIGHT(配賦額!R35,4),基データ!$L:$L)/6,0),0) -> 0 | T35: =使い方!$B$7&使い方!$C$7&"賞与法定福利見積" -> 2023夏季賞与法定福利見積 | V35: 7700305 | W35: NS-0132 | X35: =IFERROR(ROUND((SUMIF(基データ!$C:$C,RIGHT(配賦額!W35,4),基データ!$L:$L)-S35*5),0),0) -> 0 | Y35: =使い方!$B$7&使い方!$C$7&"賞与法定福利見積" -> 2023夏季賞与法定福利見積 | AA35: 7700305 | AB35: NS-0132 | AC35: =-IFERROR(ROUND(SUMIF(基データ!$C:$C,RIGHT(配賦額!AB35,4),基データ!$L:$L),0),0) -> 0 | AD35: =使い方!$B$7&使い方!$C$7&"賞与法定福利見積戻し" -> 2023夏季賞与法定福利見積戻し | AF35: 7700201 | AG35: NS-0132 | AH35: =IFERROR(ROUND(SUMIF(基データ!$Q:$Q,RIGHT(配賦額!AG35,4),基データ!$T:$T)/6,0),0) -> 0 | AI35: =使い方!$B$7&使い方!$C$7&"賞与見積(現業)" -> 2023夏季賞与見積(現業) | AK35: 7700201 | AL35: NS-0132 | AM35: =IFERROR(ROUND((SUMIF(基データ!$Q:$Q,RIGHT(配賦額!AL35,4),基データ!$T:$T)-AH35*5),0),0) -> 0 | AN35: =使い方!$B$7&使い方!$C$7&"賞与見積(現業)" -> 2023夏季賞与見積(現業) | AP35: 7700201 | AQ35: NS-0132 | AR35: =-IFERROR(ROUND(SUMIF(基データ!$Q:$Q,RIGHT(配賦額!AQ35,4),基データ!$T:$T),0),0) -> 0 | AS35: =使い方!$B$7&使い方!$C$7&"賞与見積戻し(現業)" -> 2023夏季賞与見積戻し(現業) | AU35: 7700202 | AV35: NS-0132 | AW35: =IFERROR(ROUND(SUMIF(基データ!$Q:$Q,RIGHT(配賦額!AV35,4),基データ!$U:$U)/6,0),0) -> 0 | AX35: =使い方!$B$7&使い方!$C$7&"賞与法定福利見積(現業)" -> 2023夏季賞与法定福利見積(現業) | AZ35: 7700202 | BA35: NS-0132 | BB35: =IFERROR(ROUND((SUMIF(基データ!$Q:$Q,RIGHT(配賦額!BA35,4),基データ!$U:$U)-AW35*5),0),0) -> 0 | BC35: =使い方!$B$7&使い方!$C$7&"賞与法定福利見積(現業)" -> 2023夏季賞与法定福利見積(現業) | BE35: 7700202 | BF35: NS-0132 | BG35: =-IFERROR(ROUND(SUMIF(基データ!$Q:$Q,RIGHT(配賦額!BF35,4),基データ!$U:$U),0),0) -> 0 | BH35: =使い方!$B$7&使い方!$C$7&"賞与法定福利見積戻し(現業)" -> 2023夏季賞与法定福利見積戻し(現業)
B36: 7700303 | C36: NS-0133 | D36: =IFERROR(ROUND(SUMIF(基データ!$C:$C,RIGHT(配賦額!C36,4),基データ!$I:$I)/6,0),0) -> 0 | E36: =使い方!$B$7&使い方!$C$7&"賞与見積" -> 2023夏季賞与見積 | G36: 7700303 | H36: NS-0133 | I36: =IFERROR(ROUND((SUMIF(基データ!$C:$C,RIGHT(配賦額!H36,4),基データ!$I:$I)-D36*5),0),0) -> 0 | J36: =使い方!$B$7&使い方!$C$7&"賞与見積" -> 2023夏季賞与見積 | L36: 7700303 | M36: NS-0133 | N36: =-IFERROR(ROUND(SUMIF(基データ!$C:$C,RIGHT(配賦額!M36,4),基データ!$I:$I),0),0) -> 0 | O36: =使い方!$B$7&使い方!$C$7&"賞与見積戻し" -> 2023夏季賞与見積戻し | Q36: 7700305 | R36: NS-0133 | S36: =IFERROR(ROUND(SUMIF(基データ!$C:$C,RIGHT(配賦額!R36,4),基データ!$L:$L)/6,0),0) -> 0 | T36: =使い方!$B$7&使い方!$C$7&"賞与法定福利見積" -> 2023夏季賞与法定福利見積 | V36: 7700305 | W36: NS-0133 | X36: =IFERROR(ROUND((SUMIF(基データ!$C:$C,RIGHT(配賦額!W36,4),基データ!$L:$L)-S36*5),0),0) -> 0 | Y36: =使い方!$B$7&使い方!$C$7&"賞与法定福利見積" -> 2023夏季賞与法定福利見積 | AA36: 7700305 | AB36: NS-0133 | AC36: =-IFERROR(ROUND(SUMIF(基データ!$C:$C,RIGHT(配賦額!AB36,4),基データ!$L:$L),0),0) -> 0 | AD36: =使い方!$B$7&使い方!$C$7&"賞与法定福利見積戻し" -> 2023夏季賞与法定福利見積戻し | AF36: 7700201 | AG36: NS-0133 | AH36: =IFERROR(ROUND(SUMIF(基データ!$Q:$Q,RIGHT(配賦額!AG36,4),基データ!$T:$T)/6,0),0) -> 0 | AI36: =使い方!$B$7&使い方!$C$7&"賞与見積(現業)" -> 2023夏季賞与見積(現業) | AK36: 7700201 | AL36: NS-0133 | AM36: =IFERROR(ROUND((SUMIF(基データ!$Q:$Q,RIGHT(配賦額!AL36,4),基データ!$T:$T)-AH36*5),0),0) -> 0 | AN36: =使い方!$B$7&使い方!$C$7&"賞与見積(現業)" -> 2023夏季賞与見積(現業) | AP36: 7700201 | AQ36: NS-0133 | AR36: =-IFERROR(ROUND(SUMIF(基データ!$Q:$Q,RIGHT(配賦額!AQ36,4),基データ!$T:$T),0),0) -> 0 | AS36: =使い方!$B$7&使い方!$C$7&"賞与見積戻し(現業)" -> 2023夏季賞与見積戻し(現業) | AU36: 7700202 | AV36: NS-0133 | AW36: =IFERROR(ROUND(SUMIF(基データ!$Q:$Q,RIGHT(配賦額!AV36,4),基データ!$U:$U)/6,0),0) -> 0 | AX36: =使い方!$B$7&使い方!$C$7&"賞与法定福利見積(現業)" -> 2023夏季賞与法定福利見積(現業) | AZ36: 7700202 | BA36: NS-0133 | BB36: =IFERROR(ROUND((SUMIF(基データ!$Q:$Q,RIGHT(配賦額!BA36,4),基データ!$U:$U)-AW36*5),0),0) -> 0 | BC36: =使い方!$B$7&使い方!$C$7&"賞与法定福利見積(現業)" -> 2023夏季賞与法定福利見積(現業) | BE36: 7700202 | BF36: NS-0133 | BG36: =-IFERROR(ROUND(SUMIF(基データ!$Q:$Q,RIGHT(配賦額!BF36,4),基データ!$U:$U),0),0) -> 0 | BH36: =使い方!$B$7&使い方!$C$7&"賞与法定福利見積戻し(現業)" -> 2023夏季賞与法定福利見積戻し(現業)
B37: 7700303 | C37: NS-0134 | D37: =IFERROR(ROUND(SUMIF(基データ!$C:$C,RIGHT(配賦額!C37,4),基データ!$I:$I)/6,0),0) -> 1369667 | E37: =使い方!$B$7&使い方!$C$7&"賞与見積" -> 2023夏季賞与見積 | G37: 7700303 | H37: NS-0134 | I37: =IFERROR(ROUND((SUMIF(基データ!$C:$C,RIGHT(配賦額!H37,4),基データ!$I:$I)-D37*5),0),0) -> 1369665 | J37: =使い方!$B$7&使い方!$C$7&"賞与見積" -> 2023夏季賞与見積 | L37: 7700303 | M37: NS-0134 | N37: =-IFERROR(ROUND(SUMIF(基データ!$C:$C,RIGHT(配賦額!M37,4),基データ!$I:$I),0),0) -> -8218000 | O37: =使い方!$B$7&使い方!$C$7&"賞与見積戻し" -> 2023夏季賞与見積戻し | Q37: 7700305 | R37: NS-0134 | S37: =IFERROR(ROUND(SUMIF(基データ!$C:$C,RIGHT(配賦額!R37,4),基データ!$L:$L)/6,0),0) -> 221391 | T37: =使い方!$B$7&使い方!$C$7&"賞与法定福利見積" -> 2023夏季賞与法定福利見積 | V37: 7700305 | W37: NS-0134 | X37: =IFERROR(ROUND((SUMIF(基データ!$C:$C,RIGHT(配賦額!W37,4),基データ!$L:$L)-S37*5),0),0) -> 221388 | Y37: =使い方!$B$7&使い方!$C$7&"賞与法定福利見積" -> 2023夏季賞与法定福利見積 | AA37: 7700305 | AB37: NS-0134 | AC37: =-IFERROR(ROUND(SUMIF(基データ!$C:$C,RIGHT(配賦額!AB37,4),基データ!$L:$L),0),0) -> -1328343 | AD37: =使い方!$B$7&使い方!$C$7&"賞与法定福利見積戻し" -> 2023夏季賞与法定福利見積戻し | AF37: 7700201 | AG37: NS-0134 | AH37: =IFERROR(ROUND(SUMIF(基データ!$Q:$Q,RIGHT(配賦額!AG37,4),基データ!$T:$T)/6,0),0) -> 0 | AI37: =使い方!$B$7&使い方!$C$7&"賞与見積(現業)" -> 2023夏季賞与見積(現業) | AK37: 7700201 | AL37: NS-0134 | AM37: =IFERROR(ROUND((SUMIF(基データ!$Q:$Q,RIGHT(配賦額!AL37,4),基データ!$T:$T)-AH37*5),0),0) -> 0 | AN37: =使い方!$B$7&使い方!$C$7&"賞与見積(現業)" -> 2023夏季賞与見積(現業) | AP37: 7700201 | AQ37: NS-0134 | AR37: =-IFERROR(ROUND(SUMIF(基データ!$Q:$Q,RIGHT(配賦額!AQ37,4),基データ!$T:$T),0),0) -> 0 | AS37: =使い方!$B$7&使い方!$C$7&"賞与見積戻し(現業)" -> 2023夏季賞与見積戻し(現業) | AU37: 7700202 | AV37: NS-0134 | AW37: =IFERROR(ROUND(SUMIF(基データ!$Q:$Q,RIGHT(配賦額!AV37,4),基データ!$U:$U)/6,0),0) -> 0 | AX37: =使い方!$B$7&使い方!$C$7&"賞与法定福利見積(現業)" -> 2023夏季賞与法定福利見積(現業) | AZ37: 7700202 | BA37: NS-0134 | BB37: =IFERROR(ROUND((SUMIF(基データ!$Q:$Q,RIGHT(配賦額!BA37,4),基データ!$U:$U)-AW37*5),0),0) -> 0 | BC37: =使い方!$B$7&使い方!$C$7&"賞与法定福利見積(現業)" -> 2023夏季賞与法定福利見積(現業) | BE37: 7700202 | BF37: NS-0134 | BG37: =-IFERROR(ROUND(SUMIF(基データ!$Q:$Q,RIGHT(配賦額!BF37,4),基データ!$U:$U),0),0) -> 0 | BH37: =使い方!$B$7&使い方!$C$7&"賞与法定福利見積戻し(現業)" -> 2023夏季賞与法定福利見積戻し(現業)
B38: 7700303 | C38: NS-0135 | D38: =IFERROR(ROUND(SUMIF(基データ!$C:$C,RIGHT(配賦額!C38,4),基データ!$I:$I)/6,0),0) -> 0 | E38: =使い方!$B$7&使い方!$C$7&"賞与見積" -> 2023夏季賞与見積 | G38: 7700303 | H38: NS-0135 | I38: =IFERROR(ROUND((SUMIF(基データ!$C:$C,RIGHT(配賦額!H38,4),基データ!$I:$I)-D38*5),0),0) -> 0 | J38: =使い方!$B$7&使い方!$C$7&"賞与見積" -> 2023夏季賞与見積 | L38: 7700303 | M38: NS-0135 | N38: =-IFERROR(ROUND(SUMIF(基データ!$C:$C,RIGHT(配賦額!M38,4),基データ!$I:$I),0),0) -> 0 | O38: =使い方!$B$7&使い方!$C$7&"賞与見積戻し" -> 2023夏季賞与見積戻し | Q38: 7700305 | R38: NS-0135 | S38: =IFERROR(ROUND(SUMIF(基データ!$C:$C,RIGHT(配賦額!R38,4),基データ!$L:$L)/6,0),0) -> 0 | T38: =使い方!$B$7&使い方!$C$7&"賞与法定福利見積" -> 2023夏季賞与法定福利見積 | V38: 7700305 | W38: NS-0135 | X38: =IFERROR(ROUND((SUMIF(基データ!$C:$C,RIGHT(配賦額!W38,4),基データ!$L:$L)-S38*5),0),0) -> 0 | Y38: =使い方!$B$7&使い方!$C$7&"賞与法定福利見積" -> 2023夏季賞与法定福利見積 | AA38: 7700305 | AB38: NS-0135 | AC38: =-IFERROR(ROUND(SUMIF(基データ!$C:$C,RIGHT(配賦額!AB38,4),基データ!$L:$L),0),0) -> 0 | AD38: =使い方!$B$7&使い方!$C$7&"賞与法定福利見積戻し" -> 2023夏季賞与法定福利見積戻し | AF38: 7700201 | AG38: NS-0135 | AH38: =IFERROR(ROUND(SUMIF(基データ!$Q:$Q,RIGHT(配賦額!AG38,4),基データ!$T:$T)/6,0),0) -> 0 | AI38: =使い方!$B$7&使い方!$C$7&"賞与見積(現業)" -> 2023夏季賞与見積(現業) | AK38: 7700201 | AL38: NS-0135 | AM38: =IFERROR(ROUND((SUMIF(基データ!$Q:$Q,RIGHT(配賦額!AL38,4),基データ!$T:$T)-AH38*5),0),0) -> 0 | AN38: =使い方!$B$7&使い方!$C$7&"賞与見積(現業)" -> 2023夏季賞与見積(現業) | AP38: 7700201 | AQ38: NS-0135 | AR38: =-IFERROR(ROUND(SUMIF(基データ!$Q:$Q,RIGHT(配賦額!AQ38,4),基データ!$T:$T),0),0) -> 0 | AS38: =使い方!$B$7&使い方!$C$7&"賞与見積戻し(現業)" -> 2023夏季賞与見積戻し(現業) | AU38: 7700202 | AV38: NS-0135 | AW38: =IFERROR(ROUND(SUMIF(基データ!$Q:$Q,RIGHT(配賦額!AV38,4),基データ!$U:$U)/6,0),0) -> 0 | AX38: =使い方!$B$7&使い方!$C$7&"賞与法定福利見積(現業)" -> 2023夏季賞与法定福利見積(現業) | AZ38: 7700202 | BA38: NS-0135 | BB38: =IFERROR(ROUND((SUMIF(基データ!$Q:$Q,RIGHT(配賦額!BA38,4),基データ!$U:$U)-AW38*5),0),0) -> 0 | BC38: =使い方!$B$7&使い方!$C$7&"賞与法定福利見積(現業)" -> 2023夏季賞与法定福利見積(現業) | BE38: 7700202 | BF38: NS-0135 | BG38: =-IFERROR(ROUND(SUMIF(基データ!$Q:$Q,RIGHT(配賦額!BF38,4),基データ!$U:$U),0),0) -> 0 | BH38: =使い方!$B$7&使い方!$C$7&"賞与法定福利見積戻し(現業)" -> 2023夏季賞与法定福利見積戻し(現業)
B39: 7700303 | C39: NS-0136 | D39: =IFERROR(ROUND(SUMIF(基データ!$C:$C,RIGHT(配賦額!C39,4),基データ!$I:$I)/6,0),0) -> 0 | E39: =使い方!$B$7&使い方!$C$7&"賞与見積" -> 2023夏季賞与見積 | G39: 7700303 | H39: NS-0136 | I39: =IFERROR(ROUND((SUMIF(基データ!$C:$C,RIGHT(配賦額!H39,4),基データ!$I:$I)-D39*5),0),0) -> 0 | J39: =使い方!$B$7&使い方!$C$7&"賞与見積" -> 2023夏季賞与見積 | L39: 7700303 | M39: NS-0136 | N39: =-IFERROR(ROUND(SUMIF(基データ!$C:$C,RIGHT(配賦額!M39,4),基データ!$I:$I),0),0) -> 0 | O39: =使い方!$B$7&使い方!$C$7&"賞与見積戻し" -> 2023夏季賞与見積戻し | Q39: 7700305 | R39: NS-0136 | S39: =IFERROR(ROUND(SUMIF(基データ!$C:$C,RIGHT(配賦額!R39,4),基データ!$L:$L)/6,0),0) -> 0 | T39: =使い方!$B$7&使い方!$C$7&"賞与法定福利見積" -> 2023夏季賞与法定福利見積 | V39: 7700305 | W39: NS-0136 | X39: =IFERROR(ROUND((SUMIF(基データ!$C:$C,RIGHT(配賦額!W39,4),基データ!$L:$L)-S39*5),0),0) -> 0 | Y39: =使い方!$B$7&使い方!$C$7&"賞与法定福利見積" -> 2023夏季賞与法定福利見積 | AA39: 7700305 | AB39: NS-0136 | AC39: =-IFERROR(ROUND(SUMIF(基データ!$C:$C,RIGHT(配賦額!AB39,4),基データ!$L:$L),0),0) -> 0 | AD39: =使い方!$B$7&使い方!$C$7&"賞与法定福利見積戻し" -> 2023夏季賞与法定福利見積戻し | AF39: 7700201 | AG39: NS-0136 | AH39: =IFERROR(ROUND(SUMIF(基データ!$Q:$Q,RIGHT(配賦額!AG39,4),基データ!$T:$T)/6,0),0) -> 0 | AI39: =使い方!$B$7&使い方!$C$7&"賞与見積(現業)" -> 2023夏季賞与見積(現業) | AK39: 7700201 | AL39: NS-0136 | AM39: =IFERROR(ROUND((SUMIF(基データ!$Q:$Q,RIGHT(配賦額!AL39,4),基データ!$T:$T)-AH39*5),0),0) -> 0 | AN39: =使い方!$B$7&使い方!$C$7&"賞与見積(現業)" -> 2023夏季賞与見積(現業) | AP39: 7700201 | AQ39: NS-0136 | AR39: =-IFERROR(ROUND(SUMIF(基データ!$Q:$Q,RIGHT(配賦額!AQ39,4),基データ!$T:$T),0),0) -> 0 | AS39: =使い方!$B$7&使い方!$C$7&"賞与見積戻し(現業)" -> 2023夏季賞与見積戻し(現業) | AU39: 7700202 | AV39: NS-0136 | AW39: =IFERROR(ROUND(SUMIF(基データ!$Q:$Q,RIGHT(配賦額!AV39,4),基データ!$U:$U)/6,0),0) -> 0 | AX39: =使い方!$B$7&使い方!$C$7&"賞与法定福利見積(現業)" -> 2023夏季賞与法定福利見積(現業) | AZ39: 7700202 | BA39: NS-0136 | BB39: =IFERROR(ROUND((SUMIF(基データ!$Q:$Q,RIGHT(配賦額!BA39,4),基データ!$U:$U)-AW39*5),0),0) -> 0 | BC39: =使い方!$B$7&使い方!$C$7&"賞与法定福利見積(現業)" -> 2023夏季賞与法定福利見積(現業) | BE39: 7700202 | BF39: NS-0136 | BG39: =-IFERROR(ROUND(SUMIF(基データ!$Q:$Q,RIGHT(配賦額!BF39,4),基データ!$U:$U),0),0) -> 0 | BH39: =使い方!$B$7&使い方!$C$7&"賞与法定福利見積戻し(現業)" -> 2023夏季賞与法定福利見積戻し(現業)
B40: 7700303 | C40: NS-0137 | D40: =IFERROR(ROUND(SUMIF(基データ!$C:$C,RIGHT(配賦額!C40,4),基データ!$I:$I)/6,0),0) -> 0 | E40: =使い方!$B$7&使い方!$C$7&"賞与見積" -> 2023夏季賞与見積 | G40: 7700303 | H40: NS-0137 | I40: =IFERROR(ROUND((SUMIF(基データ!$C:$C,RIGHT(配賦額!H40,4),基データ!$I:$I)-D40*5),0),0) -> 0 | J40: =使い方!$B$7&使い方!$C$7&"賞与見積" -> 2023夏季賞与見積 | L40: 7700303 | M40: NS-0137 | N40: =-IFERROR(ROUND(SUMIF(基データ!$C:$C,RIGHT(配賦額!M40,4),基データ!$I:$I),0),0) -> 0 | O40: =使い方!$B$7&使い方!$C$7&"賞与見積戻し" -> 2023夏季賞与見積戻し | Q40: 7700305 | R40: NS-0137 | S40: =IFERROR(ROUND(SUMIF(基データ!$C:$C,RIGHT(配賦額!R40,4),基データ!$L:$L)/6,0),0) -> 0 | T40: =使い方!$B$7&使い方!$C$7&"賞与法定福利見積" -> 2023夏季賞与法定福利見積 | V40: 7700305 | W40: NS-0137 | X40: =IFERROR(ROUND((SUMIF(基データ!$C:$C,RIGHT(配賦額!W40,4),基データ!$L:$L)-S40*5),0),0) -> 0 | Y40: =使い方!$B$7&使い方!$C$7&"賞与法定福利見積" -> 2023夏季賞与法定福利見積 | AA40: 7700305 | AB40: NS-0137 | AC40: =-IFERROR(ROUND(SUMIF(基データ!$C:$C,RIGHT(配賦額!AB40,4),基データ!$L:$L),0),0) -> 0 | AD40: =使い方!$B$7&使い方!$C$7&"賞与法定福利見積戻し" -> 2023夏季賞与法定福利見積戻し | AF40: 7700201 | AG40: NS-0137 | AH40: =IFERROR(ROUND(SUMIF(基データ!$Q:$Q,RIGHT(配賦額!AG40,4),基データ!$T:$T)/6,0),0) -> 0 | AI40: =使い方!$B$7&使い方!$C$7&"賞与見積(現業)" -> 2023夏季賞与見積(現業) | AK40: 7700201 | AL40: NS-0137 | AM40: =IFERROR(ROUND((SUMIF(基データ!$Q:$Q,RIGHT(配賦額!AL40,4),基データ!$T:$T)-AH40*5),0),0) -> 0 | AN40: =使い方!$B$7&使い方!$C$7&"賞与見積(現業)" -> 2023夏季賞与見積(現業) | AP40: 7700201 | AQ40: NS-0137 | AR40: =-IFERROR(ROUND(SUMIF(基データ!$Q:$Q,RIGHT(配賦額!AQ40,4),基データ!$T:$T),0),0) -> 0 | AS40: =使い方!$B$7&使い方!$C$7&"賞与見積戻し(現業)" -> 2023夏季賞与見積戻し(現業) | AU40: 7700202 | AV40: NS-0137 | AW40: =IFERROR(ROUND(SUMIF(基データ!$Q:$Q,RIGHT(配賦額!AV40,4),基データ!$U:$U)/6,0),0) -> 0 | AX40: =使い方!$B$7&使い方!$C$7&"賞与法定福利見積(現業)" -> 2023夏季賞与法定福利見積(現業) | AZ40: 7700202 | BA40: NS-0137 | BB40: =IFERROR(ROUND((SUMIF(基データ!$Q:$Q,RIGHT(配賦額!BA40,4),基データ!$U:$U)-AW40*5),0),0) -> 0 | BC40: =使い方!$B$7&使い方!$C$7&"賞与法定福利見積(現業)" -> 2023夏季賞与法定福利見積(現業) | BE40: 7700202 | BF40: NS-0137 | BG40: =-IFERROR(ROUND(SUMIF(基データ!$Q:$Q,RIGHT(配賦額!BF40,4),基データ!$U:$U),0),0) -> 0 | BH40: =使い方!$B$7&使い方!$C$7&"賞与法定福利見積戻し(現業)" -> 2023夏季賞与法定福利見積戻し(現業)
B41: 7700303 | C41: NS-0138 | D41: =IFERROR(ROUND(SUMIF(基データ!$C:$C,RIGHT(配賦額!C41,4),基データ!$I:$I)/6,0),0) -> 0 | E41: =使い方!$B$7&使い方!$C$7&"賞与見積" -> 2023夏季賞与見積 | G41: 7700303 | H41: NS-0138 | I41: =IFERROR(ROUND((SUMIF(基データ!$C:$C,RIGHT(配賦額!H41,4),基データ!$I:$I)-D41*5),0),0) -> 0 | J41: =使い方!$B$7&使い方!$C$7&"賞与見積" -> 2023夏季賞与見積 | L41: 7700303 | M41: NS-0138 | N41: =-IFERROR(ROUND(SUMIF(基データ!$C:$C,RIGHT(配賦額!M41,4),基データ!$I:$I),0),0) -> 0 | O41: =使い方!$B$7&使い方!$C$7&"賞与見積戻し" -> 2023夏季賞与見積戻し | Q41: 7700305 | R41: NS-0138 | S41: =IFERROR(ROUND(SUMIF(基データ!$C:$C,RIGHT(配賦額!R41,4),基データ!$L:$L)/6,0),0) -> 0 | T41: =使い方!$B$7&使い方!$C$7&"賞与法定福利見積" -> 2023夏季賞与法定福利見積 | V41: 7700305 | W41: NS-0138 | X41: =IFERROR(ROUND((SUMIF(基データ!$C:$C,RIGHT(配賦額!W41,4),基データ!$L:$L)-S41*5),0),0) -> 0 | Y41: =使い方!$B$7&使い方!$C$7&"賞与法定福利見積" -> 2023夏季賞与法定福利見積 | AA41: 7700305 | AB41: NS-0138 | AC41: =-IFERROR(ROUND(SUMIF(基データ!$C:$C,RIGHT(配賦額!AB41,4),基データ!$L:$L),0),0) -> 0 | AD41: =使い方!$B$7&使い方!$C$7&"賞与法定福利見積戻し" -> 2023夏季賞与法定福利見積戻し | AF41: 7700201 | AG41: NS-0138 | AH41: =IFERROR(ROUND(SUMIF(基データ!$Q:$Q,RIGHT(配賦額!AG41,4),基データ!$T:$T)/6,0),0) -> 0 | AI41: =使い方!$B$7&使い方!$C$7&"賞与見積(現業)" -> 2023夏季賞与見積(現業) | AK41: 7700201 | AL41: NS-0138 | AM41: =IFERROR(ROUND((SUMIF(基データ!$Q:$Q,RIGHT(配賦額!AL41,4),基データ!$T:$T)-AH41*5),0),0) -> 0 | AN41: =使い方!$B$7&使い方!$C$7&"賞与見積(現業)" -> 2023夏季賞与見積(現業) | AP41: 7700201 | AQ41: NS-0138 | AR41: =-IFERROR(ROUND(SUMIF(基データ!$Q:$Q,RIGHT(配賦額!AQ41,4),基データ!$T:$T),0),0) -> 0 | AS41: =使い方!$B$7&使い方!$C$7&"賞与見積戻し(現業)" -> 2023夏季賞与見積戻し(現業) | AU41: 7700202 | AV41: NS-0138 | AW41: =IFERROR(ROUND(SUMIF(基データ!$Q:$Q,RIGHT(配賦額!AV41,4),基データ!$U:$U)/6,0),0) -> 0 | AX41: =使い方!$B$7&使い方!$C$7&"賞与法定福利見積(現業)" -> 2023夏季賞与法定福利見積(現業) | AZ41: 7700202 | BA41: NS-0138 | BB41: =IFERROR(ROUND((SUMIF(基データ!$Q:$Q,RIGHT(配賦額!BA41,4),基データ!$U:$U)-AW41*5),0),0) -> 0 | BC41: =使い方!$B$7&使い方!$C$7&"賞与法定福利見積(現業)" -> 2023夏季賞与法定福利見積(現業) | BE41: 7700202 | BF41: NS-0138 | BG41: =-IFERROR(ROUND(SUMIF(基データ!$Q:$Q,RIGHT(配賦額!BF41,4),基データ!$U:$U),0),0) -> 0 | BH41: =使い方!$B$7&使い方!$C$7&"賞与法定福利見積戻し(現業)" -> 2023夏季賞与法定福利見積戻し(現業)
B42: 7700303 | C42: NS-0139 | D42: =IFERROR(ROUND(SUMIF(基データ!$C:$C,RIGHT(配賦額!C42,4),基データ!$I:$I)/6,0),0) -> 594833 | E42: =使い方!$B$7&使い方!$C$7&"賞与見積" -> 2023夏季賞与見積 | G42: 7700303 | H42: NS-0139 | I42: =IFERROR(ROUND((SUMIF(基データ!$C:$C,RIGHT(配賦額!H42,4),基データ!$I:$I)-D42*5),0),0) -> 594835 | J42: =使い方!$B$7&使い方!$C$7&"賞与見積" -> 2023夏季賞与見積 | L42: 7700303 | M42: NS-0139 | N42: =-IFERROR(ROUND(SUMIF(基データ!$C:$C,RIGHT(配賦額!M42,4),基データ!$I:$I),0),0) -> -3569000 | O42: =使い方!$B$7&使い方!$C$7&"賞与見積戻し" -> 2023夏季賞与見積戻し | Q42: 7700305 | R42: NS-0139 | S42: =IFERROR(ROUND(SUMIF(基データ!$C:$C,RIGHT(配賦額!R42,4),基データ!$L:$L)/6,0),0) -> 92971 | T42: =使い方!$B$7&使い方!$C$7&"賞与法定福利見積" -> 2023夏季賞与法定福利見積 | V42: 7700305 | W42: NS-0139 | X42: =IFERROR(ROUND((SUMIF(基データ!$C:$C,RIGHT(配賦額!W42,4),基データ!$L:$L)-S42*5),0),0) -> 92969 | Y42: =使い方!$B$7&使い方!$C$7&"賞与法定福利見積" -> 2023夏季賞与法定福利見積 | AA42: 7700305 | AB42: NS-0139 | AC42: =-IFERROR(ROUND(SUMIF(基データ!$C:$C,RIGHT(配賦額!AB42,4),基データ!$L:$L),0),0) -> -557824 | AD42: =使い方!$B$7&使い方!$C$7&"賞与法定福利見積戻し" -> 2023夏季賞与法定福利見積戻し | AF42: 7700201 | AG42: NS-0139 | AH42: =IFERROR(ROUND(SUMIF(基データ!$Q:$Q,RIGHT(配賦額!AG42,4),基データ!$T:$T)/6,0),0) -> 0 | AI42: =使い方!$B$7&使い方!$C$7&"賞与見積(現業)" -> 2023夏季賞与見積(現業) | AK42: 7700201 | AL42: NS-0139 | AM42: =IFERROR(ROUND((SUMIF(基データ!$Q:$Q,RIGHT(配賦額!AL42,4),基データ!$T:$T)-AH42*5),0),0) -> 0 | AN42: =使い方!$B$7&使い方!$C$7&"賞与見積(現業)" -> 2023夏季賞与見積(現業) | AP42: 7700201 | AQ42: NS-0139 | AR42: =-IFERROR(ROUND(SUMIF(基データ!$Q:$Q,RIGHT(配賦額!AQ42,4),基データ!$T:$T),0),0) -> 0 | AS42: =使い方!$B$7&使い方!$C$7&"賞与見積戻し(現業)" -> 2023夏季賞与見積戻し(現業) | AU42: 7700202 | AV42: NS-0139 | AW42: =IFERROR(ROUND(SUMIF(基データ!$Q:$Q,RIGHT(配賦額!AV42,4),基データ!$U:$U)/6,0),0) -> 0 | AX42: =使い方!$B$7&使い方!$C$7&"賞与法定福利見積(現業)" -> 2023夏季賞与法定福利見積(現業) | AZ42: 7700202 | BA42: NS-0139 | BB42: =IFERROR(ROUND((SUMIF(基データ!$Q:$Q,RIGHT(配賦額!BA42,4),基データ!$U:$U)-AW42*5),0),0) -> 0 | BC42: =使い方!$B$7&使い方!$C$7&"賞与法定福利見積(現業)" -> 2023夏季賞与法定福利見積(現業) | BE42: 7700202 | BF42: NS-0139 | BG42: =-IFERROR(ROUND(SUMIF(基データ!$Q:$Q,RIGHT(配賦額!BF42,4),基データ!$U:$U),0),0) -> 0 | BH42: =使い方!$B$7&使い方!$C$7&"賞与法定福利見積戻し(現業)" -> 2023夏季賞与法定福利見積戻し(現業)
B43: 7700303 | C43: NS-0140 | D43: =IFERROR(ROUND(SUMIF(基データ!$C:$C,RIGHT(配賦額!C43,4),基データ!$I:$I)/6,0),0) -> 1447667 | E43: =使い方!$B$7&使い方!$C$7&"賞与見積" -> 2023夏季賞与見積 | G43: 7700303 | H43: NS-0140 | I43: =IFERROR(ROUND((SUMIF(基データ!$C:$C,RIGHT(配賦額!H43,4),基データ!$I:$I)-D43*5),0),0) -> 1447665 | J43: =使い方!$B$7&使い方!$C$7&"賞与見積" -> 2023夏季賞与見積 | L43: 7700303 | M43: NS-0140 | N43: =-IFERROR(ROUND(SUMIF(基データ!$C:$C,RIGHT(配賦額!M43,4),基データ!$I:$I),0),0) -> -8686000 | O43: =使い方!$B$7&使い方!$C$7&"賞与見積戻し" -> 2023夏季賞与見積戻し | Q43: 7700305 | R43: NS-0140 | S43: =IFERROR(ROUND(SUMIF(基データ!$C:$C,RIGHT(配賦額!R43,4),基データ!$L:$L)/6,0),0) -> 196600 | T43: =使い方!$B$7&使い方!$C$7&"賞与法定福利見積" -> 2023夏季賞与法定福利見積 | V43: 7700305 | W43: NS-0140 | X43: =IFERROR(ROUND((SUMIF(基データ!$C:$C,RIGHT(配賦額!W43,4),基データ!$L:$L)-S43*5),0),0) -> 196602 | Y43: =使い方!$B$7&使い方!$C$7&"賞与法定福利見積" -> 2023夏季賞与法定福利見積 | AA43: 7700305 | AB43: NS-0140 | AC43: =-IFERROR(ROUND(SUMIF(基データ!$C:$C,RIGHT(配賦額!AB43,4),基データ!$L:$L),0),0) -> -1179602 | AD43: =使い方!$B$7&使い方!$C$7&"賞与法定福利見積戻し" -> 2023夏季賞与法定福利見積戻し | AF43: 7700201 | AG43: NS-0140 | AH43: =IFERROR(ROUND(SUMIF(基データ!$Q:$Q,RIGHT(配賦額!AG43,4),基データ!$T:$T)/6,0),0) -> 0 | AI43: =使い方!$B$7&使い方!$C$7&"賞与見積(現業)" -> 2023夏季賞与見積(現業) | AK43: 7700201 | AL43: NS-0140 | AM43: =IFERROR(ROUND((SUMIF(基データ!$Q:$Q,RIGHT(配賦額!AL43,4),基データ!$T:$T)-AH43*5),0),0) -> 0 | AN43: =使い方!$B$7&使い方!$C$7&"賞与見積(現業)" -> 2023夏季賞与見積(現業) | AP43: 7700201 | AQ43: NS-0140 | AR43: =-IFERROR(ROUND(SUMIF(基データ!$Q:$Q,RIGHT(配賦額!AQ43,4),基データ!$T:$T),0),0) -> 0 | AS43: =使い方!$B$7&使い方!$C$7&"賞与見積戻し(現業)" -> 2023夏季賞与見積戻し(現業) | AU43: 7700202 | AV43: NS-0140 | AW43: =IFERROR(ROUND(SUMIF(基データ!$Q:$Q,RIGHT(配賦額!AV43,4),基データ!$U:$U)/6,0),0) -> 0 | AX43: =使い方!$B$7&使い方!$C$7&"賞与法定福利見積(現業)" -> 2023夏季賞与法定福利見積(現業) | AZ43: 7700202 | BA43: NS-0140 | BB43: =IFERROR(ROUND((SUMIF(基データ!$Q:$Q,RIGHT(配賦額!BA43,4),基データ!$U:$U)-AW43*5),0),0) -> 0 | BC43: =使い方!$B$7&使い方!$C$7&"賞与法定福利見積(現業)" -> 2023夏季賞与法定福利見積(現業) | BE43: 7700202 | BF43: NS-0140 | BG43: =-IFERROR(ROUND(SUMIF(基データ!$Q:$Q,RIGHT(配賦額!BF43,4),基データ!$U:$U),0),0) -> 0 | BH43: =使い方!$B$7&使い方!$C$7&"賞与法定福利見積戻し(現業)" -> 2023夏季賞与法定福利見積戻し(現業)
B44: 7700303 | C44: NS-0141 | D44: =IFERROR(ROUND(SUMIF(基データ!$C:$C,RIGHT(配賦額!C44,4),基データ!$I:$I)/6,0),0) -> 1108167 | E44: =使い方!$B$7&使い方!$C$7&"賞与見積" -> 2023夏季賞与見積 | G44: 7700303 | H44: NS-0141 | I44: =IFERROR(ROUND((SUMIF(基データ!$C:$C,RIGHT(配賦額!H44,4),基データ!$I:$I)-D44*5),0),0) -> 1108165 | J44: =使い方!$B$7&使い方!$C$7&"賞与見積" -> 2023夏季賞与見積 | L44: 7700303 | M44: NS-0141 | N44: =-IFERROR(ROUND(SUMIF(基データ!$C:$C,RIGHT(配賦額!M44,4),基データ!$I:$I),0),0) -> -6649000 | O44: =使い方!$B$7&使い方!$C$7&"賞与見積戻し" -> 2023夏季賞与見積戻し | Q44: 7700305 | R44: NS-0141 | S44: =IFERROR(ROUND(SUMIF(基データ!$C:$C,RIGHT(配賦額!R44,4),基データ!$L:$L)/6,0),0) -> 173165 | T44: =使い方!$B$7&使い方!$C$7&"賞与法定福利見積" -> 2023夏季賞与法定福利見積 | V44: 7700305 | W44: NS-0141 | X44: =IFERROR(ROUND((SUMIF(基データ!$C:$C,RIGHT(配賦額!W44,4),基データ!$L:$L)-S44*5),0),0) -> 173167 | Y44: =使い方!$B$7&使い方!$C$7&"賞与法定福利見積" -> 2023夏季賞与法定福利見積 | AA44: 7700305 | AB44: NS-0141 | AC44: =-IFERROR(ROUND(SUMIF(基データ!$C:$C,RIGHT(配賦額!AB44,4),基データ!$L:$L),0),0) -> -1038992 | AD44: =使い方!$B$7&使い方!$C$7&"賞与法定福利見積戻し" -> 2023夏季賞与法定福利見積戻し | AF44: 7700201 | AG44: NS-0141 | AH44: =IFERROR(ROUND(SUMIF(基データ!$Q:$Q,RIGHT(配賦額!AG44,4),基データ!$T:$T)/6,0),0) -> 0 | AI44: =使い方!$B$7&使い方!$C$7&"賞与見積(現業)" -> 2023夏季賞与見積(現業) | AK44: 7700201 | AL44: NS-0141 | AM44: =IFERROR(ROUND((SUMIF(基データ!$Q:$Q,RIGHT(配賦額!AL44,4),基データ!$T:$T)-AH44*5),0),0) -> 0 | AN44: =使い方!$B$7&使い方!$C$7&"賞与見積(現業)" -> 2023夏季賞与見積(現業) | AP44: 7700201 | AQ44: NS-0141 | AR44: =-IFERROR(ROUND(SUMIF(基データ!$Q:$Q,RIGHT(配賦額!AQ44,4),基データ!$T:$T),0),0) -> 0 | AS44: =使い方!$B$7&使い方!$C$7&"賞与見積戻し(現業)" -> 2023夏季賞与見積戻し(現業) | AU44: 7700202 | AV44: NS-0141 | AW44: =IFERROR(ROUND(SUMIF(基データ!$Q:$Q,RIGHT(配賦額!AV44,4),基データ!$U:$U)/6,0),0) -> 0 | AX44: =使い方!$B$7&使い方!$C$7&"賞与法定福利見積(現業)" -> 2023夏季賞与法定福利見積(現業) | AZ44: 7700202 | BA44: NS-0141 | BB44: =IFERROR(ROUND((SUMIF(基データ!$Q:$Q,RIGHT(配賦額!BA44,4),基データ!$U:$U)-AW44*5),0),0) -> 0 | BC44: =使い方!$B$7&使い方!$C$7&"賞与法定福利見積(現業)" -> 2023夏季賞与法定福利見積(現業) | BE44: 7700202 | BF44: NS-0141 | BG44: =-IFERROR(ROUND(SUMIF(基データ!$Q:$Q,RIGHT(配賦額!BF44,4),基データ!$U:$U),0),0) -> 0 | BH44: =使い方!$B$7&使い方!$C$7&"賞与法定福利見積戻し(現業)" -> 2023夏季賞与法定福利見積戻し(現業)
B45: 7700303 | C45: NS-0142 | D45: =IFERROR(ROUND(SUMIF(基データ!$C:$C,RIGHT(配賦額!C45,4),基データ!$I:$I)/6,0),0) -> 871000 | E45: =使い方!$B$7&使い方!$C$7&"賞与見積" -> 2023夏季賞与見積 | G45: 7700303 | H45: NS-0142 | I45: =IFERROR(ROUND((SUMIF(基データ!$C:$C,RIGHT(配賦額!H45,4),基データ!$I:$I)-D45*5),0),0) -> 871000 | J45: =使い方!$B$7&使い方!$C$7&"賞与見積" -> 2023夏季賞与見積 | L45: 7700303 | M45: NS-0142 | N45: =-IFERROR(ROUND(SUMIF(基データ!$C:$C,RIGHT(配賦額!M45,4),基データ!$I:$I),0),0) -> -5226000 | O45: =使い方!$B$7&使い方!$C$7&"賞与見積戻し" -> 2023夏季賞与見積戻し | Q45: 7700305 | R45: NS-0142 | S45: =IFERROR(ROUND(SUMIF(基データ!$C:$C,RIGHT(配賦額!R45,4),基データ!$L:$L)/6,0),0) -> 137351 | T45: =使い方!$B$7&使い方!$C$7&"賞与法定福利見積" -> 2023夏季賞与法定福利見積 | V45: 7700305 | W45: NS-0142 | X45: =IFERROR(ROUND((SUMIF(基データ!$C:$C,RIGHT(配賦額!W45,4),基データ!$L:$L)-S45*5),0),0) -> 137350 | Y45: =使い方!$B$7&使い方!$C$7&"賞与法定福利見積" -> 2023夏季賞与法定福利見積 | AA45: 7700305 | AB45: NS-0142 | AC45: =-IFERROR(ROUND(SUMIF(基データ!$C:$C,RIGHT(配賦額!AB45,4),基データ!$L:$L),0),0) -> -824105 | AD45: =使い方!$B$7&使い方!$C$7&"賞与法定福利見積戻し" -> 2023夏季賞与法定福利見積戻し | AF45: 7700201 | AG45: NS-0142 | AH45: =IFERROR(ROUND(SUMIF(基データ!$Q:$Q,RIGHT(配賦額!AG45,4),基データ!$T:$T)/6,0),0) -> 0 | AI45: =使い方!$B$7&使い方!$C$7&"賞与見積(現業)" -> 2023夏季賞与見積(現業) | AK45: 7700201 | AL45: NS-0142 | AM45: =IFERROR(ROUND((SUMIF(基データ!$Q:$Q,RIGHT(配賦額!AL45,4),基データ!$T:$T)-AH45*5),0),0) -> 0 | AN45: =使い方!$B$7&使い方!$C$7&"賞与見積(現業)" -> 2023夏季賞与見積(現業) | AP45: 7700201 | AQ45: NS-0142 | AR45: =-IFERROR(ROUND(SUMIF(基データ!$Q:$Q,RIGHT(配賦額!AQ45,4),基データ!$T:$T),0),0) -> 0 | AS45: =使い方!$B$7&使い方!$C$7&"賞与見積戻し(現業)" -> 2023夏季賞与見積戻し(現業) | AU45: 7700202 | AV45: NS-0142 | AW45: =IFERROR(ROUND(SUMIF(基データ!$Q:$Q,RIGHT(配賦額!AV45,4),基データ!$U:$U)/6,0),0) -> 0 | AX45: =使い方!$B$7&使い方!$C$7&"賞与法定福利見積(現業)" -> 2023夏季賞与法定福利見積(現業) | AZ45: 7700202 | BA45: NS-0142 | BB45: =IFERROR(ROUND((SUMIF(基データ!$Q:$Q,RIGHT(配賦額!BA45,4),基データ!$U:$U)-AW45*5),0),0) -> 0 | BC45: =使い方!$B$7&使い方!$C$7&"賞与法定福利見積(現業)" -> 2023夏季賞与法定福利見積(現業) | BE45: 7700202 | BF45: NS-0142 | BG45: =-IFERROR(ROUND(SUMIF(基データ!$Q:$Q,RIGHT(配賦額!BF45,4),基データ!$U:$U),0),0) -> 0 | BH45: =使い方!$B$7&使い方!$C$7&"賞与法定福利見積戻し(現業)" -> 2023夏季賞与法定福利見積戻し(現業)
B46: 7700303 | C46: NS-0143 | D46: =IFERROR(ROUND(SUMIF(基データ!$C:$C,RIGHT(配賦額!C46,4),基データ!$I:$I)/6,0),0) -> 550333 | E46: =使い方!$B$7&使い方!$C$7&"賞与見積" -> 2023夏季賞与見積 | G46: 7700303 | H46: NS-0143 | I46: =IFERROR(ROUND((SUMIF(基データ!$C:$C,RIGHT(配賦額!H46,4),基データ!$I:$I)-D46*5),0),0) -> 550335 | J46: =使い方!$B$7&使い方!$C$7&"賞与見積" -> 2023夏季賞与見積 | L46: 7700303 | M46: NS-0143 | N46: =-IFERROR(ROUND(SUMIF(基データ!$C:$C,RIGHT(配賦額!M46,4),基データ!$I:$I),0),0) -> -3302000 | O46: =使い方!$B$7&使い方!$C$7&"賞与見積戻し" -> 2023夏季賞与見積戻し | Q46: 7700305 | R46: NS-0143 | S46: =IFERROR(ROUND(SUMIF(基データ!$C:$C,RIGHT(配賦額!R46,4),基データ!$L:$L)/6,0),0) -> 85737 | T46: =使い方!$B$7&使い方!$C$7&"賞与法定福利見積" -> 2023夏季賞与法定福利見積 | V46: 7700305 | W46: NS-0143 | X46: =IFERROR(ROUND((SUMIF(基データ!$C:$C,RIGHT(配賦額!W46,4),基データ!$L:$L)-S46*5),0),0) -> 85734 | Y46: =使い方!$B$7&使い方!$C$7&"賞与法定福利見積" -> 2023夏季賞与法定福利見積 | AA46: 7700305 | AB46: NS-0143 | AC46: =-IFERROR(ROUND(SUMIF(基データ!$C:$C,RIGHT(配賦額!AB46,4),基データ!$L:$L),0),0) -> -514419 | AD46: =使い方!$B$7&使い方!$C$7&"賞与法定福利見積戻し" -> 2023夏季賞与法定福利見積戻し | AF46: 7700201 | AG46: NS-0143 | AH46: =IFERROR(ROUND(SUMIF(基データ!$Q:$Q,RIGHT(配賦額!AG46,4),基データ!$T:$T)/6,0),0) -> 0 | AI46: =使い方!$B$7&使い方!$C$7&"賞与見積(現業)" -> 2023夏季賞与見積(現業) | AK46: 7700201 | AL46: NS-0143 | AM46: =IFERROR(ROUND((SUMIF(基データ!$Q:$Q,RIGHT(配賦額!AL46,4),基データ!$T:$T)-AH46*5),0),0) -> 0 | AN46: =使い方!$B$7&使い方!$C$7&"賞与見積(現業)" -> 2023夏季賞与見積(現業) | AP46: 7700201 | AQ46: NS-0143 | AR46: =-IFERROR(ROUND(SUMIF(基データ!$Q:$Q,RIGHT(配賦額!AQ46,4),基データ!$T:$T),0),0) -> 0 | AS46: =使い方!$B$7&使い方!$C$7&"賞与見積戻し(現業)" -> 2023夏季賞与見積戻し(現業) | AU46: 7700202 | AV46: NS-0143 | AW46: =IFERROR(ROUND(SUMIF(基データ!$Q:$Q,RIGHT(配賦額!AV46,4),基データ!$U:$U)/6,0),0) -> 0 | AX46: =使い方!$B$7&使い方!$C$7&"賞与法定福利見積(現業)" -> 2023夏季賞与法定福利見積(現業) | AZ46: 7700202 | BA46: NS-0143 | BB46: =IFERROR(ROUND((SUMIF(基データ!$Q:$Q,RIGHT(配賦額!BA46,4),基データ!$U:$U)-AW46*5),0),0) -> 0 | BC46: =使い方!$B$7&使い方!$C$7&"賞与法定福利見積(現業)" -> 2023夏季賞与法定福利見積(現業) | BE46: 7700202 | BF46: NS-0143 | BG46: =-IFERROR(ROUND(SUMIF(基データ!$Q:$Q,RIGHT(配賦額!BF46,4),基データ!$U:$U),0),0) -> 0 | BH46: =使い方!$B$7&使い方!$C$7&"賞与法定福利見積戻し(現業)" -> 2023夏季賞与法定福利見積戻し(現業)
B47: 7700303 | C47: NS-0144 | D47: =IFERROR(ROUND(SUMIF(基データ!$C:$C,RIGHT(配賦額!C47,4),基データ!$I:$I)/6,0),0) -> 1009667 | E47: =使い方!$B$7&使い方!$C$7&"賞与見積" -> 2023夏季賞与見積 | G47: 7700303 | H47: NS-0144 | I47: =IFERROR(ROUND((SUMIF(基データ!$C:$C,RIGHT(配賦額!H47,4),基データ!$I:$I)-D47*5),0),0) -> 1009665 | J47: =使い方!$B$7&使い方!$C$7&"賞与見積" -> 2023夏季賞与見積 | L47: 7700303 | M47: NS-0144 | N47: =-IFERROR(ROUND(SUMIF(基データ!$C:$C,RIGHT(配賦額!M47,4),基データ!$I:$I),0),0) -> -6058000 | O47: =使い方!$B$7&使い方!$C$7&"賞与見積戻し" -> 2023夏季賞与見積戻し | Q47: 7700305 | R47: NS-0144 | S47: =IFERROR(ROUND(SUMIF(基データ!$C:$C,RIGHT(配賦額!R47,4),基データ!$L:$L)/6,0),0) -> 135664 | T47: =使い方!$B$7&使い方!$C$7&"賞与法定福利見積" -> 2023夏季賞与法定福利見積 | V47: 7700305 | W47: NS-0144 | X47: =IFERROR(ROUND((SUMIF(基データ!$C:$C,RIGHT(配賦額!W47,4),基データ!$L:$L)-S47*5),0),0) -> 135666 | Y47: =使い方!$B$7&使い方!$C$7&"賞与法定福利見積" -> 2023夏季賞与法定福利見積 | AA47: 7700305 | AB47: NS-0144 | AC47: =-IFERROR(ROUND(SUMIF(基データ!$C:$C,RIGHT(配賦額!AB47,4),基データ!$L:$L),0),0) -> -813986 | AD47: =使い方!$B$7&使い方!$C$7&"賞与法定福利見積戻し" -> 2023夏季賞与法定福利見積戻し | AF47: 7700201 | AG47: NS-0144 | AH47: =IFERROR(ROUND(SUMIF(基データ!$Q:$Q,RIGHT(配賦額!AG47,4),基データ!$T:$T)/6,0),0) -> 0 | AI47: =使い方!$B$7&使い方!$C$7&"賞与見積(現業)" -> 2023夏季賞与見積(現業) | AK47: 7700201 | AL47: NS-0144 | AM47: =IFERROR(ROUND((SUMIF(基データ!$Q:$Q,RIGHT(配賦額!AL47,4),基データ!$T:$T)-AH47*5),0),0) -> 0 | AN47: =使い方!$B$7&使い方!$C$7&"賞与見積(現業)" -> 2023夏季賞与見積(現業) | AP47: 7700201 | AQ47: NS-0144 | AR47: =-IFERROR(ROUND(SUMIF(基データ!$Q:$Q,RIGHT(配賦額!AQ47,4),基データ!$T:$T),0),0) -> 0 | AS47: =使い方!$B$7&使い方!$C$7&"賞与見積戻し(現業)" -> 2023夏季賞与見積戻し(現業) | AU47: 7700202 | AV47: NS-0144 | AW47: =IFERROR(ROUND(SUMIF(基データ!$Q:$Q,RIGHT(配賦額!AV47,4),基データ!$U:$U)/6,0),0) -> 0 | AX47: =使い方!$B$7&使い方!$C$7&"賞与法定福利見積(現業)" -> 2023夏季賞与法定福利見積(現業) | AZ47: 7700202 | BA47: NS-0144 | BB47: =IFERROR(ROUND((SUMIF(基データ!$Q:$Q,RIGHT(配賦額!BA47,4),基データ!$U:$U)-AW47*5),0),0) -> 0 | BC47: =使い方!$B$7&使い方!$C$7&"賞与法定福利見積(現業)" -> 2023夏季賞与法定福利見積(現業) | BE47: 7700202 | BF47: NS-0144 | BG47: =-IFERROR(ROUND(SUMIF(基データ!$Q:$Q,RIGHT(配賦額!BF47,4),基データ!$U:$U),0),0) -> 0 | BH47: =使い方!$B$7&使い方!$C$7&"賞与法定福利見積戻し(現業)" -> 2023夏季賞与法定福利見積戻し(現業)
B48: 7700303 | C48: NS-0145 | D48: =IFERROR(ROUND(SUMIF(基データ!$C:$C,RIGHT(配賦額!C48,4),基データ!$I:$I)/6,0),0) -> 474583 | E48: =使い方!$B$7&使い方!$C$7&"賞与見積" -> 2023夏季賞与見積 | G48: 7700303 | H48: NS-0145 | I48: =IFERROR(ROUND((SUMIF(基データ!$C:$C,RIGHT(配賦額!H48,4),基データ!$I:$I)-D48*5),0),0) -> 474585 | J48: =使い方!$B$7&使い方!$C$7&"賞与見積" -> 2023夏季賞与見積 | L48: 7700303 | M48: NS-0145 | N48: =-IFERROR(ROUND(SUMIF(基データ!$C:$C,RIGHT(配賦額!M48,4),基データ!$I:$I),0),0) -> -2847500 | O48: =使い方!$B$7&使い方!$C$7&"賞与見積戻し" -> 2023夏季賞与見積戻し | Q48: 7700305 | R48: NS-0145 | S48: =IFERROR(ROUND(SUMIF(基データ!$C:$C,RIGHT(配賦額!R48,4),基データ!$L:$L)/6,0),0) -> 73831 | T48: =使い方!$B$7&使い方!$C$7&"賞与法定福利見積" -> 2023夏季賞与法定福利見積 | V48: 7700305 | W48: NS-0145 | X48: =IFERROR(ROUND((SUMIF(基データ!$C:$C,RIGHT(配賦額!W48,4),基データ!$L:$L)-S48*5),0),0) -> 73832 | Y48: =使い方!$B$7&使い方!$C$7&"賞与法定福利見積" -> 2023夏季賞与法定福利見積 | AA48: 7700305 | AB48: NS-0145 | AC48: =-IFERROR(ROUND(SUMIF(基データ!$C:$C,RIGHT(配賦額!AB48,4),基データ!$L:$L),0),0) -> -442987 | AD48: =使い方!$B$7&使い方!$C$7&"賞与法定福利見積戻し" -> 2023夏季賞与法定福利見積戻し | AF48: 7700201 | AG48: NS-0145 | AH48: =IFERROR(ROUND(SUMIF(基データ!$Q:$Q,RIGHT(配賦額!AG48,4),基データ!$T:$T)/6,0),0) -> 0 | AI48: =使い方!$B$7&使い方!$C$7&"賞与見積(現業)" -> 2023夏季賞与見積(現業) | AK48: 7700201 | AL48: NS-0145 | AM48: =IFERROR(ROUND((SUMIF(基データ!$Q:$Q,RIGHT(配賦額!AL48,4),基データ!$T:$T)-AH48*5),0),0) -> 0 | AN48: =使い方!$B$7&使い方!$C$7&"賞与見積(現業)" -> 2023夏季賞与見積(現業) | AP48: 7700201 | AQ48: NS-0145 | AR48: =-IFERROR(ROUND(SUMIF(基データ!$Q:$Q,RIGHT(配賦額!AQ48,4),基データ!$T:$T),0),0) -> 0 | AS48: =使い方!$B$7&使い方!$C$7&"賞与見積戻し(現業)" -> 2023夏季賞与見積戻し(現業) | AU48: 7700202 | AV48: NS-0145 | AW48: =IFERROR(ROUND(SUMIF(基データ!$Q:$Q,RIGHT(配賦額!AV48,4),基データ!$U:$U)/6,0),0) -> 0 | AX48: =使い方!$B$7&使い方!$C$7&"賞与法定福利見積(現業)" -> 2023夏季賞与法定福利見積(現業) | AZ48: 7700202 | BA48: NS-0145 | BB48: =IFERROR(ROUND((SUMIF(基データ!$Q:$Q,RIGHT(配賦額!BA48,4),基データ!$U:$U)-AW48*5),0),0) -> 0 | BC48: =使い方!$B$7&使い方!$C$7&"賞与法定福利見積(現業)" -> 2023夏季賞与法定福利見積(現業) | BE48: 7700202 | BF48: NS-0145 | BG48: =-IFERROR(ROUND(SUMIF(基データ!$Q:$Q,RIGHT(配賦額!BF48,4),基データ!$U:$U),0),0) -> 0 | BH48: =使い方!$B$7&使い方!$C$7&"賞与法定福利見積戻し(現業)" -> 2023夏季賞与法定福利見積戻し(現業)
B49: 7700303 | C49: NS-0146 | D49: =IFERROR(ROUND(SUMIF(基データ!$C:$C,RIGHT(配賦額!C49,4),基データ!$I:$I)/6,0),0) -> 0 | E49: =使い方!$B$7&使い方!$C$7&"賞与見積" -> 2023夏季賞与見積 | G49: 7700303 | H49: NS-0146 | I49: =IFERROR(ROUND((SUMIF(基データ!$C:$C,RIGHT(配賦額!H49,4),基データ!$I:$I)-D49*5),0),0) -> 0 | J49: =使い方!$B$7&使い方!$C$7&"賞与見積" -> 2023夏季賞与見積 | L49: 7700303 | M49: NS-0146 | N49: =-IFERROR(ROUND(SUMIF(基データ!$C:$C,RIGHT(配賦額!M49,4),基データ!$I:$I),0),0) -> 0 | O49: =使い方!$B$7&使い方!$C$7&"賞与見積戻し" -> 2023夏季賞与見積戻し | Q49: 7700305 | R49: NS-0146 | S49: =IFERROR(ROUND(SUMIF(基データ!$C:$C,RIGHT(配賦額!R49,4),基データ!$L:$L)/6,0),0) -> 0 | T49: =使い方!$B$7&使い方!$C$7&"賞与法定福利見積" -> 2023夏季賞与法定福利見積 | V49: 7700305 | W49: NS-0146 | X49: =IFERROR(ROUND((SUMIF(基データ!$C:$C,RIGHT(配賦額!W49,4),基データ!$L:$L)-S49*5),0),0) -> 0 | Y49: =使い方!$B$7&使い方!$C$7&"賞与法定福利見積" -> 2023夏季賞与法定福利見積 | AA49: 7700305 | AB49: NS-0146 | AC49: =-IFERROR(ROUND(SUMIF(基データ!$C:$C,RIGHT(配賦額!AB49,4),基データ!$L:$L),0),0) -> 0 | AD49: =使い方!$B$7&使い方!$C$7&"賞与法定福利見積戻し" -> 2023夏季賞与法定福利見積戻し | AF49: 7700201 | AG49: NS-0146 | AH49: =IFERROR(ROUND(SUMIF(基データ!$Q:$Q,RIGHT(配賦額!AG49,4),基データ!$T:$T)/6,0),0) -> 0 | AI49: =使い方!$B$7&使い方!$C$7&"賞与見積(現業)" -> 2023夏季賞与見積(現業) | AK49: 7700201 | AL49: NS-0146 | AM49: =IFERROR(ROUND((SUMIF(基データ!$Q:$Q,RIGHT(配賦額!AL49,4),基データ!$T:$T)-AH49*5),0),0) -> 0 | AN49: =使い方!$B$7&使い方!$C$7&"賞与見積(現業)" -> 2023夏季賞与見積(現業) | AP49: 7700201 | AQ49: NS-0146 | AR49: =-IFERROR(ROUND(SUMIF(基データ!$Q:$Q,RIGHT(配賦額!AQ49,4),基データ!$T:$T),0),0) -> 0 | AS49: =使い方!$B$7&使い方!$C$7&"賞与見積戻し(現業)" -> 2023夏季賞与見積戻し(現業) | AU49: 7700202 | AV49: NS-0146 | AW49: =IFERROR(ROUND(SUMIF(基データ!$Q:$Q,RIGHT(配賦額!AV49,4),基データ!$U:$U)/6,0),0) -> 0 | AX49: =使い方!$B$7&使い方!$C$7&"賞与法定福利見積(現業)" -> 2023夏季賞与法定福利見積(現業) | AZ49: 7700202 | BA49: NS-0146 | BB49: =IFERROR(ROUND((SUMIF(基データ!$Q:$Q,RIGHT(配賦額!BA49,4),基データ!$U:$U)-AW49*5),0),0) -> 0 | BC49: =使い方!$B$7&使い方!$C$7&"賞与法定福利見積(現業)" -> 2023夏季賞与法定福利見積(現業) | BE49: 7700202 | BF49: NS-0146 | BG49: =-IFERROR(ROUND(SUMIF(基データ!$Q:$Q,RIGHT(配賦額!BF49,4),基データ!$U:$U),0),0) -> 0 | BH49: =使い方!$B$7&使い方!$C$7&"賞与法定福利見積戻し(現業)" -> 2023夏季賞与法定福利見積戻し(現業)
B50: 7700303 | C50: NS-0147 | D50: =IFERROR(ROUND(SUMIF(基データ!$C:$C,RIGHT(配賦額!C50,4),基データ!$I:$I)/6,0),0) -> 932349 | E50: =使い方!$B$7&使い方!$C$7&"賞与見積" -> 2023夏季賞与見積 | G50: 7700303 | H50: NS-0147 | I50: =IFERROR(ROUND((SUMIF(基データ!$C:$C,RIGHT(配賦額!H50,4),基データ!$I:$I)-D50*5),0),0) -> 932348 | J50: =使い方!$B$7&使い方!$C$7&"賞与見積" -> 2023夏季賞与見積 | L50: 7700303 | M50: NS-0147 | N50: =-IFERROR(ROUND(SUMIF(基データ!$C:$C,RIGHT(配賦額!M50,4),基データ!$I:$I),0),0) -> -5594093 | O50: =使い方!$B$7&使い方!$C$7&"賞与見積戻し" -> 2023夏季賞与見積戻し | Q50: 7700305 | R50: NS-0147 | S50: =IFERROR(ROUND(SUMIF(基データ!$C:$C,RIGHT(配賦額!R50,4),基データ!$L:$L)/6,0),0) -> 124182 | T50: =使い方!$B$7&使い方!$C$7&"賞与法定福利見積" -> 2023夏季賞与法定福利見積 | V50: 7700305 | W50: NS-0147 | X50: =IFERROR(ROUND((SUMIF(基データ!$C:$C,RIGHT(配賦額!W50,4),基データ!$L:$L)-S50*5),0),0) -> 124183 | Y50: =使い方!$B$7&使い方!$C$7&"賞与法定福利見積" -> 2023夏季賞与法定福利見積 | AA50: 7700305 | AB50: NS-0147 | AC50: =-IFERROR(ROUND(SUMIF(基データ!$C:$C,RIGHT(配賦額!AB50,4),基データ!$L:$L),0),0) -> -745093 | AD50: =使い方!$B$7&使い方!$C$7&"賞与法定福利見積戻し" -> 2023夏季賞与法定福利見積戻し | AF50: 7700201 | AG50: NS-0147 | AH50: =IFERROR(ROUND(SUMIF(基データ!$Q:$Q,RIGHT(配賦額!AG50,4),基データ!$T:$T)/6,0),0) -> 0 | AI50: =使い方!$B$7&使い方!$C$7&"賞与見積(現業)" -> 2023夏季賞与見積(現業) | AK50: 7700201 | AL50: NS-0147 | AM50: =IFERROR(ROUND((SUMIF(基データ!$Q:$Q,RIGHT(配賦額!AL50,4),基データ!$T:$T)-AH50*5),0),0) -> 0 | AN50: =使い方!$B$7&使い方!$C$7&"賞与見積(現業)" -> 2023夏季賞与見積(現業) | AP50: 7700201 | AQ50: NS-0147 | AR50: =-IFERROR(ROUND(SUMIF(基データ!$Q:$Q,RIGHT(配賦額!AQ50,4),基データ!$T:$T),0),0) -> 0 | AS50: =使い方!$B$7&使い方!$C$7&"賞与見積戻し(現業)" -> 2023夏季賞与見積戻し(現業) | AU50: 7700202 | AV50: NS-0147 | AW50: =IFERROR(ROUND(SUMIF(基データ!$Q:$Q,RIGHT(配賦額!AV50,4),基データ!$U:$U)/6,0),0) -> 0 | AX50: =使い方!$B$7&使い方!$C$7&"賞与法定福利見積(現業)" -> 2023夏季賞与法定福利見積(現業) | AZ50: 7700202 | BA50: NS-0147 | BB50: =IFERROR(ROUND((SUMIF(基データ!$Q:$Q,RIGHT(配賦額!BA50,4),基データ!$U:$U)-AW50*5),0),0) -> 0 | BC50: =使い方!$B$7&使い方!$C$7&"賞与法定福利見積(現業)" -> 2023夏季賞与法定福利見積(現業) | BE50: 7700202 | BF50: NS-0147 | BG50: =-IFERROR(ROUND(SUMIF(基データ!$Q:$Q,RIGHT(配賦額!BF50,4),基データ!$U:$U),0),0) -> 0 | BH50: =使い方!$B$7&使い方!$C$7&"賞与法定福利見積戻し(現業)" -> 2023夏季賞与法定福利見積戻し(現業)
B51: 7700303 | C51: NS-0148 | D51: =IFERROR(ROUND(SUMIF(基データ!$C:$C,RIGHT(配賦額!C51,4),基データ!$I:$I)/6,0),0) -> 0 | E51: =使い方!$B$7&使い方!$C$7&"賞与見積" -> 2023夏季賞与見積 | G51: 7700303 | H51: NS-0148 | I51: =IFERROR(ROUND((SUMIF(基データ!$C:$C,RIGHT(配賦額!H51,4),基データ!$I:$I)-D51*5),0),0) -> 0 | J51: =使い方!$B$7&使い方!$C$7&"賞与見積" -> 2023夏季賞与見積 | L51: 7700303 | M51: NS-0148 | N51: =-IFERROR(ROUND(SUMIF(基データ!$C:$C,RIGHT(配賦額!M51,4),基データ!$I:$I),0),0) -> 0 | O51: =使い方!$B$7&使い方!$C$7&"賞与見積戻し" -> 2023夏季賞与見積戻し | Q51: 7700305 | R51: NS-0148 | S51: =IFERROR(ROUND(SUMIF(基データ!$C:$C,RIGHT(配賦額!R51,4),基データ!$L:$L)/6,0),0) -> 0 | T51: =使い方!$B$7&使い方!$C$7&"賞与法定福利見積" -> 2023夏季賞与法定福利見積 | V51: 7700305 | W51: NS-0148 | X51: =IFERROR(ROUND((SUMIF(基データ!$C:$C,RIGHT(配賦額!W51,4),基データ!$L:$L)-S51*5),0),0) -> 0 | Y51: =使い方!$B$7&使い方!$C$7&"賞与法定福利見積" -> 2023夏季賞与法定福利見積 | AA51: 7700305 | AB51: NS-0148 | AC51: =-IFERROR(ROUND(SUMIF(基データ!$C:$C,RIGHT(配賦額!AB51,4),基データ!$L:$L),0),0) -> 0 | AD51: =使い方!$B$7&使い方!$C$7&"賞与法定福利見積戻し" -> 2023夏季賞与法定福利見積戻し | AF51: 7700201 | AG51: NS-0148 | AH51: =IFERROR(ROUND(SUMIF(基データ!$Q:$Q,RIGHT(配賦額!AG51,4),基データ!$T:$T)/6,0),0) -> 0 | AI51: =使い方!$B$7&使い方!$C$7&"賞与見積(現業)" -> 2023夏季賞与見積(現業) | AK51: 7700201 | AL51: NS-0148 | AM51: =IFERROR(ROUND((SUMIF(基データ!$Q:$Q,RIGHT(配賦額!AL51,4),基データ!$T:$T)-AH51*5),0),0) -> 0 | AN51: =使い方!$B$7&使い方!$C$7&"賞与見積(現業)" -> 2023夏季賞与見積(現業) | AP51: 7700201 | AQ51: NS-0148 | AR51: =-IFERROR(ROUND(SUMIF(基データ!$Q:$Q,RIGHT(配賦額!AQ51,4),基データ!$T:$T),0),0) -> 0 | AS51: =使い方!$B$7&使い方!$C$7&"賞与見積戻し(現業)" -> 2023夏季賞与見積戻し(現業) | AU51: 7700202 | AV51: NS-0148 | AW51: =IFERROR(ROUND(SUMIF(基データ!$Q:$Q,RIGHT(配賦額!AV51,4),基データ!$U:$U)/6,0),0) -> 0 | AX51: =使い方!$B$7&使い方!$C$7&"賞与法定福利見積(現業)" -> 2023夏季賞与法定福利見積(現業) | AZ51: 7700202 | BA51: NS-0148 | BB51: =IFERROR(ROUND((SUMIF(基データ!$Q:$Q,RIGHT(配賦額!BA51,4),基データ!$U:$U)-AW51*5),0),0) -> 0 | BC51: =使い方!$B$7&使い方!$C$7&"賞与法定福利見積(現業)" -> 2023夏季賞与法定福利見積(現業) | BE51: 7700202 | BF51: NS-0148 | BG51: =-IFERROR(ROUND(SUMIF(基データ!$Q:$Q,RIGHT(配賦額!BF51,4),基データ!$U:$U),0),0) -> 0 | BH51: =使い方!$B$7&使い方!$C$7&"賞与法定福利見積戻し(現業)" -> 2023夏季賞与法定福利見積戻し(現業)
B52: 7700303 | C52: NS-0149 | D52: =IFERROR(ROUND(SUMIF(基データ!$C:$C,RIGHT(配賦額!C52,4),基データ!$I:$I)/6,0),0) -> 718333 | E52: =使い方!$B$7&使い方!$C$7&"賞与見積" -> 2023夏季賞与見積 | G52: 7700303 | H52: NS-0149 | I52: =IFERROR(ROUND((SUMIF(基データ!$C:$C,RIGHT(配賦額!H52,4),基データ!$I:$I)-D52*5),0),0) -> 718335 | J52: =使い方!$B$7&使い方!$C$7&"賞与見積" -> 2023夏季賞与見積 | L52: 7700303 | M52: NS-0149 | N52: =-IFERROR(ROUND(SUMIF(基データ!$C:$C,RIGHT(配賦額!M52,4),基データ!$I:$I),0),0) -> -4310000 | O52: =使い方!$B$7&使い方!$C$7&"賞与見積戻し" -> 2023夏季賞与見積戻し | Q52: 7700305 | R52: NS-0149 | S52: =IFERROR(ROUND(SUMIF(基データ!$C:$C,RIGHT(配賦額!R52,4),基データ!$L:$L)/6,0),0) -> 111414 | T52: =使い方!$B$7&使い方!$C$7&"賞与法定福利見積" -> 2023夏季賞与法定福利見積 | V52: 7700305 | W52: NS-0149 | X52: =IFERROR(ROUND((SUMIF(基データ!$C:$C,RIGHT(配賦額!W52,4),基データ!$L:$L)-S52*5),0),0) -> 111411 | Y52: =使い方!$B$7&使い方!$C$7&"賞与法定福利見積" -> 2023夏季賞与法定福利見積 | AA52: 7700305 | AB52: NS-0149 | AC52: =-IFERROR(ROUND(SUMIF(基データ!$C:$C,RIGHT(配賦額!AB52,4),基データ!$L:$L),0),0) -> -668481 | AD52: =使い方!$B$7&使い方!$C$7&"賞与法定福利見積戻し" -> 2023夏季賞与法定福利見積戻し | AF52: 7700201 | AG52: NS-0149 | AH52: =IFERROR(ROUND(SUMIF(基データ!$Q:$Q,RIGHT(配賦額!AG52,4),基データ!$T:$T)/6,0),0) -> 8333 | AI52: =使い方!$B$7&使い方!$C$7&"賞与見積(現業)" -> 2023夏季賞与見積(現業) | AK52: 7700201 | AL52: NS-0149 | AM52: =IFERROR(ROUND((SUMIF(基データ!$Q:$Q,RIGHT(配賦額!AL52,4),基データ!$T:$T)-AH52*5),0),0) -> 8335 | AN52: =使い方!$B$7&使い方!$C$7&"賞与見積(現業)" -> 2023夏季賞与見積(現業) | AP52: 7700201 | AQ52: NS-0149 | AR52: =-IFERROR(ROUND(SUMIF(基データ!$Q:$Q,RIGHT(配賦額!AQ52,4),基データ!$T:$T),0),0) -> -50000 | AS52: =使い方!$B$7&使い方!$C$7&"賞与見積戻し(現業)" -> 2023夏季賞与見積戻し(現業) | AU52: 7700202 | AV52: NS-0149 | AW52: =IFERROR(ROUND(SUMIF(基データ!$Q:$Q,RIGHT(配賦額!AV52,4),基データ!$U:$U)/6,0),0) -> 1293 | AX52: =使い方!$B$7&使い方!$C$7&"賞与法定福利見積(現業)" -> 2023夏季賞与法定福利見積(現業) | AZ52: 7700202 | BA52: NS-0149 | BB52: =IFERROR(ROUND((SUMIF(基データ!$Q:$Q,RIGHT(配賦額!BA52,4),基データ!$U:$U)-AW52*5),0),0) -> 1290 | BC52: =使い方!$B$7&使い方!$C$7&"賞与法定福利見積(現業)" -> 2023夏季賞与法定福利見積(現業) | BE52: 7700202 | BF52: NS-0149 | BG52: =-IFERROR(ROUND(SUMIF(基データ!$Q:$Q,RIGHT(配賦額!BF52,4),基データ!$U:$U),0),0) -> -7755 | BH52: =使い方!$B$7&使い方!$C$7&"賞与法定福利見積戻し(現業)" -> 2023夏季賞与法定福利見積戻し(現業)
B53: 7700303 | C53: NS-0150 | D53: =IFERROR(ROUND(SUMIF(基データ!$C:$C,RIGHT(配賦額!C53,4),基データ!$I:$I)/6,0),0) -> 581500 | E53: =使い方!$B$7&使い方!$C$7&"賞与見積" -> 2023夏季賞与見積 | G53: 7700303 | H53: NS-0150 | I53: =IFERROR(ROUND((SUMIF(基データ!$C:$C,RIGHT(配賦額!H53,4),基データ!$I:$I)-D53*5),0),0) -> 581500 | J53: =使い方!$B$7&使い方!$C$7&"賞与見積" -> 2023夏季賞与見積 | L53: 7700303 | M53: NS-0150 | N53: =-IFERROR(ROUND(SUMIF(基データ!$C:$C,RIGHT(配賦額!M53,4),基データ!$I:$I),0),0) -> -3489000 | O53: =使い方!$B$7&使い方!$C$7&"賞与見積戻し" -> 2023夏季賞与見積戻し | Q53: 7700305 | R53: NS-0150 | S53: =IFERROR(ROUND(SUMIF(基データ!$C:$C,RIGHT(配賦額!R53,4),基データ!$L:$L)/6,0),0) -> 94486 | T53: =使い方!$B$7&使い方!$C$7&"賞与法定福利見積" -> 2023夏季賞与法定福利見積 | V53: 7700305 | W53: NS-0150 | X53: =IFERROR(ROUND((SUMIF(基データ!$C:$C,RIGHT(配賦額!W53,4),基データ!$L:$L)-S53*5),0),0) -> 94487 | Y53: =使い方!$B$7&使い方!$C$7&"賞与法定福利見積" -> 2023夏季賞与法定福利見積 | AA53: 7700305 | AB53: NS-0150 | AC53: =-IFERROR(ROUND(SUMIF(基データ!$C:$C,RIGHT(配賦額!AB53,4),基データ!$L:$L),0),0) -> -566917 | AD53: =使い方!$B$7&使い方!$C$7&"賞与法定福利見積戻し" -> 2023夏季賞与法定福利見積戻し | AF53: 7700201 | AG53: NS-0150 | AH53: =IFERROR(ROUND(SUMIF(基データ!$Q:$Q,RIGHT(配賦額!AG53,4),基データ!$T:$T)/6,0),0) -> 0 | AI53: =使い方!$B$7&使い方!$C$7&"賞与見積(現業)" -> 2023夏季賞与見積(現業) | AK53: 7700201 | AL53: NS-0150 | AM53: =IFERROR(ROUND((SUMIF(基データ!$Q:$Q,RIGHT(配賦額!AL53,4),基データ!$T:$T)-AH53*5),0),0) -> 0 | AN53: =使い方!$B$7&使い方!$C$7&"賞与見積(現業)" -> 2023夏季賞与見積(現業) | AP53: 7700201 | AQ53: NS-0150 | AR53: =-IFERROR(ROUND(SUMIF(基データ!$Q:$Q,RIGHT(配賦額!AQ53,4),基データ!$T:$T),0),0) -> 0 | AS53: =使い方!$B$7&使い方!$C$7&"賞与見積戻し(現業)" -> 2023夏季賞与見積戻し(現業) | AU53: 7700202 | AV53: NS-0150 | AW53: =IFERROR(ROUND(SUMIF(基データ!$Q:$Q,RIGHT(配賦額!AV53,4),基データ!$U:$U)/6,0),0) -> 0 | AX53: =使い方!$B$7&使い方!$C$7&"賞与法定福利見積(現業)" -> 2023夏季賞与法定福利見積(現業) | AZ53: 7700202 | BA53: NS-0150 | BB53: =IFERROR(ROUND((SUMIF(基データ!$Q:$Q,RIGHT(配賦額!BA53,4),基データ!$U:$U)-AW53*5),0),0) -> 0 | BC53: =使い方!$B$7&使い方!$C$7&"賞与法定福利見積(現業)" -> 2023夏季賞与法定福利見積(現業) | BE53: 7700202 | BF53: NS-0150 | BG53: =-IFERROR(ROUND(SUMIF(基データ!$Q:$Q,RIGHT(配賦額!BF53,4),基データ!$U:$U),0),0) -> 0 | BH53: =使い方!$B$7&使い方!$C$7&"賞与法定福利見積戻し(現業)" -> 2023夏季賞与法定福利見積戻し(現業)
B54: 7700303 | C54: NS-0151 | D54: =IFERROR(ROUND(SUMIF(基データ!$C:$C,RIGHT(配賦額!C54,4),基データ!$I:$I)/6,0),0) -> 0 | E54: =使い方!$B$7&使い方!$C$7&"賞与見積" -> 2023夏季賞与見積 | G54: 7700303 | H54: NS-0151 | I54: =IFERROR(ROUND((SUMIF(基データ!$C:$C,RIGHT(配賦額!H54,4),基データ!$I:$I)-D54*5),0),0) -> 0 | J54: =使い方!$B$7&使い方!$C$7&"賞与見積" -> 2023夏季賞与見積 | L54: 7700303 | M54: NS-0151 | N54: =-IFERROR(ROUND(SUMIF(基データ!$C:$C,RIGHT(配賦額!M54,4),基データ!$I:$I),0),0) -> 0 | O54: =使い方!$B$7&使い方!$C$7&"賞与見積戻し" -> 2023夏季賞与見積戻し | Q54: 7700305 | R54: NS-0151 | S54: =IFERROR(ROUND(SUMIF(基データ!$C:$C,RIGHT(配賦額!R54,4),基データ!$L:$L)/6,0),0) -> 0 | T54: =使い方!$B$7&使い方!$C$7&"賞与法定福利見積" -> 2023夏季賞与法定福利見積 | V54: 7700305 | W54: NS-0151 | X54: =IFERROR(ROUND((SUMIF(基データ!$C:$C,RIGHT(配賦額!W54,4),基データ!$L:$L)-S54*5),0),0) -> 0 | Y54: =使い方!$B$7&使い方!$C$7&"賞与法定福利見積" -> 2023夏季賞与法定福利見積 | AA54: 7700305 | AB54: NS-0151 | AC54: =-IFERROR(ROUND(SUMIF(基データ!$C:$C,RIGHT(配賦額!AB54,4),基データ!$L:$L),0),0) -> 0 | AD54: =使い方!$B$7&使い方!$C$7&"賞与法定福利見積戻し" -> 2023夏季賞与法定福利見積戻し | AF54: 7700201 | AG54: NS-0151 | AH54: =IFERROR(ROUND(SUMIF(基データ!$Q:$Q,RIGHT(配賦額!AG54,4),基データ!$T:$T)/6,0),0) -> 0 | AI54: =使い方!$B$7&使い方!$C$7&"賞与見積(現業)" -> 2023夏季賞与見積(現業) | AK54: 7700201 | AL54: NS-0151 | AM54: =IFERROR(ROUND((SUMIF(基データ!$Q:$Q,RIGHT(配賦額!AL54,4),基データ!$T:$T)-AH54*5),0),0) -> 0 | AN54: =使い方!$B$7&使い方!$C$7&"賞与見積(現業)" -> 2023夏季賞与見積(現業) | AP54: 7700201 | AQ54: NS-0151 | AR54: =-IFERROR(ROUND(SUMIF(基データ!$Q:$Q,RIGHT(配賦額!AQ54,4),基データ!$T:$T),0),0) -> 0 | AS54: =使い方!$B$7&使い方!$C$7&"賞与見積戻し(現業)" -> 2023夏季賞与見積戻し(現業) | AU54: 7700202 | AV54: NS-0151 | AW54: =IFERROR(ROUND(SUMIF(基データ!$Q:$Q,RIGHT(配賦額!AV54,4),基データ!$U:$U)/6,0),0) -> 0 | AX54: =使い方!$B$7&使い方!$C$7&"賞与法定福利見積(現業)" -> 2023夏季賞与法定福利見積(現業) | AZ54: 7700202 | BA54: NS-0151 | BB54: =IFERROR(ROUND((SUMIF(基データ!$Q:$Q,RIGHT(配賦額!BA54,4),基データ!$U:$U)-AW54*5),0),0) -> 0 | BC54: =使い方!$B$7&使い方!$C$7&"賞与法定福利見積(現業)" -> 2023夏季賞与法定福利見積(現業) | BE54: 7700202 | BF54: NS-0151 | BG54: =-IFERROR(ROUND(SUMIF(基データ!$Q:$Q,RIGHT(配賦額!BF54,4),基データ!$U:$U),0),0) -> 0 | BH54: =使い方!$B$7&使い方!$C$7&"賞与法定福利見積戻し(現業)" -> 2023夏季賞与法定福利見積戻し(現業)
B55: 7700303 | C55: NS-0152 | D55: =IFERROR(ROUND(SUMIF(基データ!$C:$C,RIGHT(配賦額!C55,4),基データ!$I:$I)/6,0),0) -> 0 | E55: =使い方!$B$7&使い方!$C$7&"賞与見積" -> 2023夏季賞与見積 | G55: 7700303 | H55: NS-0152 | I55: =IFERROR(ROUND((SUMIF(基データ!$C:$C,RIGHT(配賦額!H55,4),基データ!$I:$I)-D55*5),0),0) -> 0 | J55: =使い方!$B$7&使い方!$C$7&"賞与見積" -> 2023夏季賞与見積 | L55: 7700303 | M55: NS-0152 | N55: =-IFERROR(ROUND(SUMIF(基データ!$C:$C,RIGHT(配賦額!M55,4),基データ!$I:$I),0),0) -> 0 | O55: =使い方!$B$7&使い方!$C$7&"賞与見積戻し" -> 2023夏季賞与見積戻し | Q55: 7700305 | R55: NS-0152 | S55: =IFERROR(ROUND(SUMIF(基データ!$C:$C,RIGHT(配賦額!R55,4),基データ!$L:$L)/6,0),0) -> 0 | T55: =使い方!$B$7&使い方!$C$7&"賞与法定福利見積" -> 2023夏季賞与法定福利見積 | V55: 7700305 | W55: NS-0152 | X55: =IFERROR(ROUND((SUMIF(基データ!$C:$C,RIGHT(配賦額!W55,4),基データ!$L:$L)-S55*5),0),0) -> 0 | Y55: =使い方!$B$7&使い方!$C$7&"賞与法定福利見積" -> 2023夏季賞与法定福利見積 | AA55: 7700305 | AB55: NS-0152 | AC55: =-IFERROR(ROUND(SUMIF(基データ!$C:$C,RIGHT(配賦額!AB55,4),基データ!$L:$L),0),0) -> 0 | AD55: =使い方!$B$7&使い方!$C$7&"賞与法定福利見積戻し" -> 2023夏季賞与法定福利見積戻し | AF55: 7700201 | AG55: NS-0152 | AH55: =IFERROR(ROUND(SUMIF(基データ!$Q:$Q,RIGHT(配賦額!AG55,4),基データ!$T:$T)/6,0),0) -> 0 | AI55: =使い方!$B$7&使い方!$C$7&"賞与見積(現業)" -> 2023夏季賞与見積(現業) | AK55: 7700201 | AL55: NS-0152 | AM55: =IFERROR(ROUND((SUMIF(基データ!$Q:$Q,RIGHT(配賦額!AL55,4),基データ!$T:$T)-AH55*5),0),0) -> 0 | AN55: =使い方!$B$7&使い方!$C$7&"賞与見積(現業)" -> 2023夏季賞与見積(現業) | AP55: 7700201 | AQ55: NS-0152 | AR55: =-IFERROR(ROUND(SUMIF(基データ!$Q:$Q,RIGHT(配賦額!AQ55,4),基データ!$T:$T),0),0) -> 0 | AS55: =使い方!$B$7&使い方!$C$7&"賞与見積戻し(現業)" -> 2023夏季賞与見積戻し(現業) | AU55: 7700202 | AV55: NS-0152 | AW55: =IFERROR(ROUND(SUMIF(基データ!$Q:$Q,RIGHT(配賦額!AV55,4),基データ!$U:$U)/6,0),0) -> 0 | AX55: =使い方!$B$7&使い方!$C$7&"賞与法定福利見積(現業)" -> 2023夏季賞与法定福利見積(現業) | AZ55: 7700202 | BA55: NS-0152 | BB55: =IFERROR(ROUND((SUMIF(基データ!$Q:$Q,RIGHT(配賦額!BA55,4),基データ!$U:$U)-AW55*5),0),0) -> 0 | BC55: =使い方!$B$7&使い方!$C$7&"賞与法定福利見積(現業)" -> 2023夏季賞与法定福利見積(現業) | BE55: 7700202 | BF55: NS-0152 | BG55: =-IFERROR(ROUND(SUMIF(基データ!$Q:$Q,RIGHT(配賦額!BF55,4),基データ!$U:$U),0),0) -> 0 | BH55: =使い方!$B$7&使い方!$C$7&"賞与法定福利見積戻し(現業)" -> 2023夏季賞与法定福利見積戻し(現業)
B56: 7700303 | C56: NS-0153 | D56: =IFERROR(ROUND(SUMIF(基データ!$C:$C,RIGHT(配賦額!C56,4),基データ!$I:$I)/6,0),0) -> 0 | E56: =使い方!$B$7&使い方!$C$7&"賞与見積" -> 2023夏季賞与見積 | G56: 7700303 | H56: NS-0153 | I56: =IFERROR(ROUND((SUMIF(基データ!$C:$C,RIGHT(配賦額!H56,4),基データ!$I:$I)-D56*5),0),0) -> 0 | J56: =使い方!$B$7&使い方!$C$7&"賞与見積" -> 2023夏季賞与見積 | L56: 7700303 | M56: NS-0153 | N56: =-IFERROR(ROUND(SUMIF(基データ!$C:$C,RIGHT(配賦額!M56,4),基データ!$I:$I),0),0) -> 0 | O56: =使い方!$B$7&使い方!$C$7&"賞与見積戻し" -> 2023夏季賞与見積戻し | Q56: 7700305 | R56: NS-0153 | S56: =IFERROR(ROUND(SUMIF(基データ!$C:$C,RIGHT(配賦額!R56,4),基データ!$L:$L)/6,0),0) -> 0 | T56: =使い方!$B$7&使い方!$C$7&"賞与法定福利見積" -> 2023夏季賞与法定福利見積 | V56: 7700305 | W56: NS-0153 | X56: =IFERROR(ROUND((SUMIF(基データ!$C:$C,RIGHT(配賦額!W56,4),基データ!$L:$L)-S56*5),0),0) -> 0 | Y56: =使い方!$B$7&使い方!$C$7&"賞与法定福利見積" -> 2023夏季賞与法定福利見積 | AA56: 7700305 | AB56: NS-0153 | AC56: =-IFERROR(ROUND(SUMIF(基データ!$C:$C,RIGHT(配賦額!AB56,4),基データ!$L:$L),0),0) -> 0 | AD56: =使い方!$B$7&使い方!$C$7&"賞与法定福利見積戻し" -> 2023夏季賞与法定福利見積戻し | AF56: 7700201 | AG56: NS-0153 | AH56: =IFERROR(ROUND(SUMIF(基データ!$Q:$Q,RIGHT(配賦額!AG56,4),基データ!$T:$T)/6,0),0) -> 0 | AI56: =使い方!$B$7&使い方!$C$7&"賞与見積(現業)" -> 2023夏季賞与見積(現業) | AK56: 7700201 | AL56: NS-0153 | AM56: =IFERROR(ROUND((SUMIF(基データ!$Q:$Q,RIGHT(配賦額!AL56,4),基データ!$T:$T)-AH56*5),0),0) -> 0 | AN56: =使い方!$B$7&使い方!$C$7&"賞与見積(現業)" -> 2023夏季賞与見積(現業) | AP56: 7700201 | AQ56: NS-0153 | AR56: =-IFERROR(ROUND(SUMIF(基データ!$Q:$Q,RIGHT(配賦額!AQ56,4),基データ!$T:$T),0),0) -> 0 | AS56: =使い方!$B$7&使い方!$C$7&"賞与見積戻し(現業)" -> 2023夏季賞与見積戻し(現業) | AU56: 7700202 | AV56: NS-0153 | AW56: =IFERROR(ROUND(SUMIF(基データ!$Q:$Q,RIGHT(配賦額!AV56,4),基データ!$U:$U)/6,0),0) -> 0 | AX56: =使い方!$B$7&使い方!$C$7&"賞与法定福利見積(現業)" -> 2023夏季賞与法定福利見積(現業) | AZ56: 7700202 | BA56: NS-0153 | BB56: =IFERROR(ROUND((SUMIF(基データ!$Q:$Q,RIGHT(配賦額!BA56,4),基データ!$U:$U)-AW56*5),0),0) -> 0 | BC56: =使い方!$B$7&使い方!$C$7&"賞与法定福利見積(現業)" -> 2023夏季賞与法定福利見積(現業) | BE56: 7700202 | BF56: NS-0153 | BG56: =-IFERROR(ROUND(SUMIF(基データ!$Q:$Q,RIGHT(配賦額!BF56,4),基データ!$U:$U),0),0) -> 0 | BH56: =使い方!$B$7&使い方!$C$7&"賞与法定福利見積戻し(現業)" -> 2023夏季賞与法定福利見積戻し(現業)
B57: 7700303 | C57: NS-0154 | D57: =IFERROR(ROUND(SUMIF(基データ!$C:$C,RIGHT(配賦額!C57,4),基データ!$I:$I)/6,0),0) -> 0 | E57: =使い方!$B$7&使い方!$C$7&"賞与見積" -> 2023夏季賞与見積 | G57: 7700303 | H57: NS-0154 | I57: =IFERROR(ROUND((SUMIF(基データ!$C:$C,RIGHT(配賦額!H57,4),基データ!$I:$I)-D57*5),0),0) -> 0 | J57: =使い方!$B$7&使い方!$C$7&"賞与見積" -> 2023夏季賞与見積 | L57: 7700303 | M57: NS-0154 | N57: =-IFERROR(ROUND(SUMIF(基データ!$C:$C,RIGHT(配賦額!M57,4),基データ!$I:$I),0),0) -> 0 | O57: =使い方!$B$7&使い方!$C$7&"賞与見積戻し" -> 2023夏季賞与見積戻し | Q57: 7700305 | R57: NS-0154 | S57: =IFERROR(ROUND(SUMIF(基データ!$C:$C,RIGHT(配賦額!R57,4),基データ!$L:$L)/6,0),0) -> 0 | T57: =使い方!$B$7&使い方!$C$7&"賞与法定福利見積" -> 2023夏季賞与法定福利見積 | V57: 7700305 | W57: NS-0154 | X57: =IFERROR(ROUND((SUMIF(基データ!$C:$C,RIGHT(配賦額!W57,4),基データ!$L:$L)-S57*5),0),0) -> 0 | Y57: =使い方!$B$7&使い方!$C$7&"賞与法定福利見積" -> 2023夏季賞与法定福利見積 | AA57: 7700305 | AB57: NS-0154 | AC57: =-IFERROR(ROUND(SUMIF(基データ!$C:$C,RIGHT(配賦額!AB57,4),基データ!$L:$L),0),0) -> 0 | AD57: =使い方!$B$7&使い方!$C$7&"賞与法定福利見積戻し" -> 2023夏季賞与法定福利見積戻し | AF57: 7700201 | AG57: NS-0154 | AH57: =IFERROR(ROUND(SUMIF(基データ!$Q:$Q,RIGHT(配賦額!AG57,4),基データ!$T:$T)/6,0),0) -> 0 | AI57: =使い方!$B$7&使い方!$C$7&"賞与見積(現業)" -> 2023夏季賞与見積(現業) | AK57: 7700201 | AL57: NS-0154 | AM57: =IFERROR(ROUND((SUMIF(基データ!$Q:$Q,RIGHT(配賦額!AL57,4),基データ!$T:$T)-AH57*5),0),0) -> 0 | AN57: =使い方!$B$7&使い方!$C$7&"賞与見積(現業)" -> 2023夏季賞与見積(現業) | AP57: 7700201 | AQ57: NS-0154 | AR57: =-IFERROR(ROUND(SUMIF(基データ!$Q:$Q,RIGHT(配賦額!AQ57,4),基データ!$T:$T),0),0) -> 0 | AS57: =使い方!$B$7&使い方!$C$7&"賞与見積戻し(現業)" -> 2023夏季賞与見積戻し(現業) | AU57: 7700202 | AV57: NS-0154 | AW57: =IFERROR(ROUND(SUMIF(基データ!$Q:$Q,RIGHT(配賦額!AV57,4),基データ!$U:$U)/6,0),0) -> 0 | AX57: =使い方!$B$7&使い方!$C$7&"賞与法定福利見積(現業)" -> 2023夏季賞与法定福利見積(現業) | AZ57: 7700202 | BA57: NS-0154 | BB57: =IFERROR(ROUND((SUMIF(基データ!$Q:$Q,RIGHT(配賦額!BA57,4),基データ!$U:$U)-AW57*5),0),0) -> 0 | BC57: =使い方!$B$7&使い方!$C$7&"賞与法定福利見積(現業)" -> 2023夏季賞与法定福利見積(現業) | BE57: 7700202 | BF57: NS-0154 | BG57: =-IFERROR(ROUND(SUMIF(基データ!$Q:$Q,RIGHT(配賦額!BF57,4),基データ!$U:$U),0),0) -> 0 | BH57: =使い方!$B$7&使い方!$C$7&"賞与法定福利見積戻し(現業)" -> 2023夏季賞与法定福利見積戻し(現業)
B58: 7700303 | C58: NS-0155 | D58: =IFERROR(ROUND(SUMIF(基データ!$C:$C,RIGHT(配賦額!C58,4),基データ!$I:$I)/6,0),0) -> 0 | E58: =使い方!$B$7&使い方!$C$7&"賞与見積" -> 2023夏季賞与見積 | G58: 7700303 | H58: NS-0155 | I58: =IFERROR(ROUND((SUMIF(基データ!$C:$C,RIGHT(配賦額!H58,4),基データ!$I:$I)-D58*5),0),0) -> 0 | J58: =使い方!$B$7&使い方!$C$7&"賞与見積" -> 2023夏季賞与見積 | L58: 7700303 | M58: NS-0155 | N58: =-IFERROR(ROUND(SUMIF(基データ!$C:$C,RIGHT(配賦額!M58,4),基データ!$I:$I),0),0) -> 0 | O58: =使い方!$B$7&使い方!$C$7&"賞与見積戻し" -> 2023夏季賞与見積戻し | Q58: 7700305 | R58: NS-0155 | S58: =IFERROR(ROUND(SUMIF(基データ!$C:$C,RIGHT(配賦額!R58,4),基データ!$L:$L)/6,0),0) -> 0 | T58: =使い方!$B$7&使い方!$C$7&"賞与法定福利見積" -> 2023夏季賞与法定福利見積 | V58: 7700305 | W58: NS-0155 | X58: =IFERROR(ROUND((SUMIF(基データ!$C:$C,RIGHT(配賦額!W58,4),基データ!$L:$L)-S58*5),0),0) -> 0 | Y58: =使い方!$B$7&使い方!$C$7&"賞与法定福利見積" -> 2023夏季賞与法定福利見積 | AA58: 7700305 | AB58: NS-0155 | AC58: =-IFERROR(ROUND(SUMIF(基データ!$C:$C,RIGHT(配賦額!AB58,4),基データ!$L:$L),0),0) -> 0 | AD58: =使い方!$B$7&使い方!$C$7&"賞与法定福利見積戻し" -> 2023夏季賞与法定福利見積戻し | AF58: 7700201 | AG58: NS-0155 | AH58: =IFERROR(ROUND(SUMIF(基データ!$Q:$Q,RIGHT(配賦額!AG58,4),基データ!$T:$T)/6,0),0) -> 0 | AI58: =使い方!$B$7&使い方!$C$7&"賞与見積(現業)" -> 2023夏季賞与見積(現業) | AK58: 7700201 | AL58: NS-0155 | AM58: =IFERROR(ROUND((SUMIF(基データ!$Q:$Q,RIGHT(配賦額!AL58,4),基データ!$T:$T)-AH58*5),0),0) -> 0 | AN58: =使い方!$B$7&使い方!$C$7&"賞与見積(現業)" -> 2023夏季賞与見積(現業) | AP58: 7700201 | AQ58: NS-0155 | AR58: =-IFERROR(ROUND(SUMIF(基データ!$Q:$Q,RIGHT(配賦額!AQ58,4),基データ!$T:$T),0),0) -> 0 | AS58: =使い方!$B$7&使い方!$C$7&"賞与見積戻し(現業)" -> 2023夏季賞与見積戻し(現業) | AU58: 7700202 | AV58: NS-0155 | AW58: =IFERROR(ROUND(SUMIF(基データ!$Q:$Q,RIGHT(配賦額!AV58,4),基データ!$U:$U)/6,0),0) -> 0 | AX58: =使い方!$B$7&使い方!$C$7&"賞与法定福利見積(現業)" -> 2023夏季賞与法定福利見積(現業) | AZ58: 7700202 | BA58: NS-0155 | BB58: =IFERROR(ROUND((SUMIF(基データ!$Q:$Q,RIGHT(配賦額!BA58,4),基データ!$U:$U)-AW58*5),0),0) -> 0 | BC58: =使い方!$B$7&使い方!$C$7&"賞与法定福利見積(現業)" -> 2023夏季賞与法定福利見積(現業) | BE58: 7700202 | BF58: NS-0155 | BG58: =-IFERROR(ROUND(SUMIF(基データ!$Q:$Q,RIGHT(配賦額!BF58,4),基データ!$U:$U),0),0) -> 0 | BH58: =使い方!$B$7&使い方!$C$7&"賞与法定福利見積戻し(現業)" -> 2023夏季賞与法定福利見積戻し(現業)
B59: 7700303 | C59: NS-0156 | D59: =IFERROR(ROUND(SUMIF(基データ!$C:$C,RIGHT(配賦額!C59,4),基データ!$I:$I)/6,0),0) -> 0 | E59: =使い方!$B$7&使い方!$C$7&"賞与見積" -> 2023夏季賞与見積 | G59: 7700303 | H59: NS-0156 | I59: =IFERROR(ROUND((SUMIF(基データ!$C:$C,RIGHT(配賦額!H59,4),基データ!$I:$I)-D59*5),0),0) -> 0 | J59: =使い方!$B$7&使い方!$C$7&"賞与見積" -> 2023夏季賞与見積 | L59: 7700303 | M59: NS-0156 | N59: =-IFERROR(ROUND(SUMIF(基データ!$C:$C,RIGHT(配賦額!M59,4),基データ!$I:$I),0),0) -> 0 | O59: =使い方!$B$7&使い方!$C$7&"賞与見積戻し" -> 2023夏季賞与見積戻し | Q59: 7700305 | R59: NS-0156 | S59: =IFERROR(ROUND(SUMIF(基データ!$C:$C,RIGHT(配賦額!R59,4),基データ!$L:$L)/6,0),0) -> 0 | T59: =使い方!$B$7&使い方!$C$7&"賞与法定福利見積" -> 2023夏季賞与法定福利見積 | V59: 7700305 | W59: NS-0156 | X59: =IFERROR(ROUND((SUMIF(基データ!$C:$C,RIGHT(配賦額!W59,4),基データ!$L:$L)-S59*5),0),0) -> 0 | Y59: =使い方!$B$7&使い方!$C$7&"賞与法定福利見積" -> 2023夏季賞与法定福利見積 | AA59: 7700305 | AB59: NS-0156 | AC59: =-IFERROR(ROUND(SUMIF(基データ!$C:$C,RIGHT(配賦額!AB59,4),基データ!$L:$L),0),0) -> 0 | AD59: =使い方!$B$7&使い方!$C$7&"賞与法定福利見積戻し" -> 2023夏季賞与法定福利見積戻し | AF59: 7700201 | AG59: NS-0156 | AH59: =IFERROR(ROUND(SUMIF(基データ!$Q:$Q,RIGHT(配賦額!AG59,4),基データ!$T:$T)/6,0),0) -> 0 | AI59: =使い方!$B$7&使い方!$C$7&"賞与見積(現業)" -> 2023夏季賞与見積(現業) | AK59: 7700201 | AL59: NS-0156 | AM59: =IFERROR(ROUND((SUMIF(基データ!$Q:$Q,RIGHT(配賦額!AL59,4),基データ!$T:$T)-AH59*5),0),0) -> 0 | AN59: =使い方!$B$7&使い方!$C$7&"賞与見積(現業)" -> 2023夏季賞与見積(現業) | AP59: 7700201 | AQ59: NS-0156 | AR59: =-IFERROR(ROUND(SUMIF(基データ!$Q:$Q,RIGHT(配賦額!AQ59,4),基データ!$T:$T),0),0) -> 0 | AS59: =使い方!$B$7&使い方!$C$7&"賞与見積戻し(現業)" -> 2023夏季賞与見積戻し(現業) | AU59: 7700202 | AV59: NS-0156 | AW59: =IFERROR(ROUND(SUMIF(基データ!$Q:$Q,RIGHT(配賦額!AV59,4),基データ!$U:$U)/6,0),0) -> 0 | AX59: =使い方!$B$7&使い方!$C$7&"賞与法定福利見積(現業)" -> 2023夏季賞与法定福利見積(現業) | AZ59: 7700202 | BA59: NS-0156 | BB59: =IFERROR(ROUND((SUMIF(基データ!$Q:$Q,RIGHT(配賦額!BA59,4),基データ!$U:$U)-AW59*5),0),0) -> 0 | BC59: =使い方!$B$7&使い方!$C$7&"賞与法定福利見積(現業)" -> 2023夏季賞与法定福利見積(現業) | BE59: 7700202 | BF59: NS-0156 | BG59: =-IFERROR(ROUND(SUMIF(基データ!$Q:$Q,RIGHT(配賦額!BF59,4),基データ!$U:$U),0),0) -> 0 | BH59: =使い方!$B$7&使い方!$C$7&"賞与法定福利見積戻し(現業)" -> 2023夏季賞与法定福利見積戻し(現業)
B60: 7700303 | C60: NS-0157 | D60: =IFERROR(ROUND(SUMIF(基データ!$C:$C,RIGHT(配賦額!C60,4),基データ!$I:$I)/6,0),0) -> 0 | E60: =使い方!$B$7&使い方!$C$7&"賞与見積" -> 2023夏季賞与見積 | G60: 7700303 | H60: NS-0157 | I60: =IFERROR(ROUND((SUMIF(基データ!$C:$C,RIGHT(配賦額!H60,4),基データ!$I:$I)-D60*5),0),0) -> 0 | J60: =使い方!$B$7&使い方!$C$7&"賞与見積" -> 2023夏季賞与見積 | L60: 7700303 | M60: NS-0157 | N60: =-IFERROR(ROUND(SUMIF(基データ!$C:$C,RIGHT(配賦額!M60,4),基データ!$I:$I),0),0) -> 0 | O60: =使い方!$B$7&使い方!$C$7&"賞与見積戻し" -> 2023夏季賞与見積戻し | Q60: 7700305 | R60: NS-0157 | S60: =IFERROR(ROUND(SUMIF(基データ!$C:$C,RIGHT(配賦額!R60,4),基データ!$L:$L)/6,0),0) -> 0 | T60: =使い方!$B$7&使い方!$C$7&"賞与法定福利見積" -> 2023夏季賞与法定福利見積 | V60: 7700305 | W60: NS-0157 | X60: =IFERROR(ROUND((SUMIF(基データ!$C:$C,RIGHT(配賦額!W60,4),基データ!$L:$L)-S60*5),0),0) -> 0 | Y60: =使い方!$B$7&使い方!$C$7&"賞与法定福利見積" -> 2023夏季賞与法定福利見積 | AA60: 7700305 | AB60: NS-0157 | AC60: =-IFERROR(ROUND(SUMIF(基データ!$C:$C,RIGHT(配賦額!AB60,4),基データ!$L:$L),0),0) -> 0 | AD60: =使い方!$B$7&使い方!$C$7&"賞与法定福利見積戻し" -> 2023夏季賞与法定福利見積戻し | AF60: 7700201 | AG60: NS-0157 | AH60: =IFERROR(ROUND(SUMIF(基データ!$Q:$Q,RIGHT(配賦額!AG60,4),基データ!$T:$T)/6,0),0) -> 0 | AI60: =使い方!$B$7&使い方!$C$7&"賞与見積(現業)" -> 2023夏季賞与見積(現業) | AK60: 7700201 | AL60: NS-0157 | AM60: =IFERROR(ROUND((SUMIF(基データ!$Q:$Q,RIGHT(配賦額!AL60,4),基データ!$T:$T)-AH60*5),0),0) -> 0 | AN60: =使い方!$B$7&使い方!$C$7&"賞与見積(現業)" -> 2023夏季賞与見積(現業) | AP60: 7700201 | AQ60: NS-0157 | AR60: =-IFERROR(ROUND(SUMIF(基データ!$Q:$Q,RIGHT(配賦額!AQ60,4),基データ!$T:$T),0),0) -> 0 | AS60: =使い方!$B$7&使い方!$C$7&"賞与見積戻し(現業)" -> 2023夏季賞与見積戻し(現業) | AU60: 7700202 | AV60: NS-0157 | AW60: =IFERROR(ROUND(SUMIF(基データ!$Q:$Q,RIGHT(配賦額!AV60,4),基データ!$U:$U)/6,0),0) -> 0 | AX60: =使い方!$B$7&使い方!$C$7&"賞与法定福利見積(現業)" -> 2023夏季賞与法定福利見積(現業) | AZ60: 7700202 | BA60: NS-0157 | BB60: =IFERROR(ROUND((SUMIF(基データ!$Q:$Q,RIGHT(配賦額!BA60,4),基データ!$U:$U)-AW60*5),0),0) -> 0 | BC60: =使い方!$B$7&使い方!$C$7&"賞与法定福利見積(現業)" -> 2023夏季賞与法定福利見積(現業) | BE60: 7700202 | BF60: NS-0157 | BG60: =-IFERROR(ROUND(SUMIF(基データ!$Q:$Q,RIGHT(配賦額!BF60,4),基データ!$U:$U),0),0) -> 0 | BH60: =使い方!$B$7&使い方!$C$7&"賞与法定福利見積戻し(現業)" -> 2023夏季賞与法定福利見積戻し(現業)
B61: 7700303 | C61: NS-0158 | D61: =IFERROR(ROUND(SUMIF(基データ!$C:$C,RIGHT(配賦額!C61,4),基データ!$I:$I)/6,0),0) -> 0 | E61: =使い方!$B$7&使い方!$C$7&"賞与見積" -> 2023夏季賞与見積 | G61: 7700303 | H61: NS-0158 | I61: =IFERROR(ROUND((SUMIF(基データ!$C:$C,RIGHT(配賦額!H61,4),基データ!$I:$I)-D61*5),0),0) -> 0 | J61: =使い方!$B$7&使い方!$C$7&"賞与見積" -> 2023夏季賞与見積 | L61: 7700303 | M61: NS-0158 | N61: =-IFERROR(ROUND(SUMIF(基データ!$C:$C,RIGHT(配賦額!M61,4),基データ!$I:$I),0),0) -> 0 | O61: =使い方!$B$7&使い方!$C$7&"賞与見積戻し" -> 2023夏季賞与見積戻し | Q61: 7700305 | R61: NS-0158 | S61: =IFERROR(ROUND(SUMIF(基データ!$C:$C,RIGHT(配賦額!R61,4),基データ!$L:$L)/6,0),0) -> 0 | T61: =使い方!$B$7&使い方!$C$7&"賞与法定福利見積" -> 2023夏季賞与法定福利見積 | V61: 7700305 | W61: NS-0158 | X61: =IFERROR(ROUND((SUMIF(基データ!$C:$C,RIGHT(配賦額!W61,4),基データ!$L:$L)-S61*5),0),0) -> 0 | Y61: =使い方!$B$7&使い方!$C$7&"賞与法定福利見積" -> 2023夏季賞与法定福利見積 | AA61: 7700305 | AB61: NS-0158 | AC61: =-IFERROR(ROUND(SUMIF(基データ!$C:$C,RIGHT(配賦額!AB61,4),基データ!$L:$L),0),0) -> 0 | AD61: =使い方!$B$7&使い方!$C$7&"賞与法定福利見積戻し" -> 2023夏季賞与法定福利見積戻し | AF61: 7700201 | AG61: NS-0158 | AH61: =IFERROR(ROUND(SUMIF(基データ!$Q:$Q,RIGHT(配賦額!AG61,4),基データ!$T:$T)/6,0),0) -> 0 | AI61: =使い方!$B$7&使い方!$C$7&"賞与見積(現業)" -> 2023夏季賞与見積(現業) | AK61: 7700201 | AL61: NS-0158 | AM61: =IFERROR(ROUND((SUMIF(基データ!$Q:$Q,RIGHT(配賦額!AL61,4),基データ!$T:$T)-AH61*5),0),0) -> 0 | AN61: =使い方!$B$7&使い方!$C$7&"賞与見積(現業)" -> 2023夏季賞与見積(現業) | AP61: 7700201 | AQ61: NS-0158 | AR61: =-IFERROR(ROUND(SUMIF(基データ!$Q:$Q,RIGHT(配賦額!AQ61,4),基データ!$T:$T),0),0) -> 0 | AS61: =使い方!$B$7&使い方!$C$7&"賞与見積戻し(現業)" -> 2023夏季賞与見積戻し(現業) | AU61: 7700202 | AV61: NS-0158 | AW61: =IFERROR(ROUND(SUMIF(基データ!$Q:$Q,RIGHT(配賦額!AV61,4),基データ!$U:$U)/6,0),0) -> 0 | AX61: =使い方!$B$7&使い方!$C$7&"賞与法定福利見積(現業)" -> 2023夏季賞与法定福利見積(現業) | AZ61: 7700202 | BA61: NS-0158 | BB61: =IFERROR(ROUND((SUMIF(基データ!$Q:$Q,RIGHT(配賦額!BA61,4),基データ!$U:$U)-AW61*5),0),0) -> 0 | BC61: =使い方!$B$7&使い方!$C$7&"賞与法定福利見積(現業)" -> 2023夏季賞与法定福利見積(現業) | BE61: 7700202 | BF61: NS-0158 | BG61: =-IFERROR(ROUND(SUMIF(基データ!$Q:$Q,RIGHT(配賦額!BF61,4),基データ!$U:$U),0),0) -> 0 | BH61: =使い方!$B$7&使い方!$C$7&"賞与法定福利見積戻し(現業)" -> 2023夏季賞与法定福利見積戻し(現業)
B62: 7700303 | C62: NS-0159 | D62: =IFERROR(ROUND(SUMIF(基データ!$C:$C,RIGHT(配賦額!C62,4),基データ!$I:$I)/6,0),0) -> 0 | E62: =使い方!$B$7&使い方!$C$7&"賞与見積" -> 2023夏季賞与見積 | G62: 7700303 | H62: NS-0159 | I62: =IFERROR(ROUND((SUMIF(基データ!$C:$C,RIGHT(配賦額!H62,4),基データ!$I:$I)-D62*5),0),0) -> 0 | J62: =使い方!$B$7&使い方!$C$7&"賞与見積" -> 2023夏季賞与見積 | L62: 7700303 | M62: NS-0159 | N62: =-IFERROR(ROUND(SUMIF(基データ!$C:$C,RIGHT(配賦額!M62,4),基データ!$I:$I),0),0) -> 0 | O62: =使い方!$B$7&使い方!$C$7&"賞与見積戻し" -> 2023夏季賞与見積戻し | Q62: 7700305 | R62: NS-0159 | S62: =IFERROR(ROUND(SUMIF(基データ!$C:$C,RIGHT(配賦額!R62,4),基データ!$L:$L)/6,0),0) -> 0 | T62: =使い方!$B$7&使い方!$C$7&"賞与法定福利見積" -> 2023夏季賞与法定福利見積 | V62: 7700305 | W62: NS-0159 | X62: =IFERROR(ROUND((SUMIF(基データ!$C:$C,RIGHT(配賦額!W62,4),基データ!$L:$L)-S62*5),0),0) -> 0 | Y62: =使い方!$B$7&使い方!$C$7&"賞与法定福利見積" -> 2023夏季賞与法定福利見積 | AA62: 7700305 | AB62: NS-0159 | AC62: =-IFERROR(ROUND(SUMIF(基データ!$C:$C,RIGHT(配賦額!AB62,4),基データ!$L:$L),0),0) -> 0 | AD62: =使い方!$B$7&使い方!$C$7&"賞与法定福利見積戻し" -> 2023夏季賞与法定福利見積戻し | AF62: 7700201 | AG62: NS-0159 | AH62: =IFERROR(ROUND(SUMIF(基データ!$Q:$Q,RIGHT(配賦額!AG62,4),基データ!$T:$T)/6,0),0) -> 0 | AI62: =使い方!$B$7&使い方!$C$7&"賞与見積(現業)" -> 2023夏季賞与見積(現業) | AK62: 7700201 | AL62: NS-0159 | AM62: =IFERROR(ROUND((SUMIF(基データ!$Q:$Q,RIGHT(配賦額!AL62,4),基データ!$T:$T)-AH62*5),0),0) -> 0 | AN62: =使い方!$B$7&使い方!$C$7&"賞与見積(現業)" -> 2023夏季賞与見積(現業) | AP62: 7700201 | AQ62: NS-0159 | AR62: =-IFERROR(ROUND(SUMIF(基データ!$Q:$Q,RIGHT(配賦額!AQ62,4),基データ!$T:$T),0),0) -> 0 | AS62: =使い方!$B$7&使い方!$C$7&"賞与見積戻し(現業)" -> 2023夏季賞与見積戻し(現業) | AU62: 7700202 | AV62: NS-0159 | AW62: =IFERROR(ROUND(SUMIF(基データ!$Q:$Q,RIGHT(配賦額!AV62,4),基データ!$U:$U)/6,0),0) -> 0 | AX62: =使い方!$B$7&使い方!$C$7&"賞与法定福利見積(現業)" -> 2023夏季賞与法定福利見積(現業) | AZ62: 7700202 | BA62: NS-0159 | BB62: =IFERROR(ROUND((SUMIF(基データ!$Q:$Q,RIGHT(配賦額!BA62,4),基データ!$U:$U)-AW62*5),0),0) -> 0 | BC62: =使い方!$B$7&使い方!$C$7&"賞与法定福利見積(現業)" -> 2023夏季賞与法定福利見積(現業) | BE62: 7700202 | BF62: NS-0159 | BG62: =-IFERROR(ROUND(SUMIF(基データ!$Q:$Q,RIGHT(配賦額!BF62,4),基データ!$U:$U),0),0) -> 0 | BH62: =使い方!$B$7&使い方!$C$7&"賞与法定福利見積戻し(現業)" -> 2023夏季賞与法定福利見積戻し(現業)
B63: 7700303 | C63: NS-0160 | D63: =IFERROR(ROUND(SUMIF(基データ!$C:$C,RIGHT(配賦額!C63,4),基データ!$I:$I)/6,0),0) -> 937500 | E63: =使い方!$B$7&使い方!$C$7&"賞与見積" -> 2023夏季賞与見積 | G63: 7700303 | H63: NS-0160 | I63: =IFERROR(ROUND((SUMIF(基データ!$C:$C,RIGHT(配賦額!H63,4),基データ!$I:$I)-D63*5),0),0) -> 937500 | J63: =使い方!$B$7&使い方!$C$7&"賞与見積" -> 2023夏季賞与見積 | L63: 7700303 | M63: NS-0160 | N63: =-IFERROR(ROUND(SUMIF(基データ!$C:$C,RIGHT(配賦額!M63,4),基データ!$I:$I),0),0) -> -5625000 | O63: =使い方!$B$7&使い方!$C$7&"賞与見積戻し" -> 2023夏季賞与見積戻し | Q63: 7700305 | R63: NS-0160 | S63: =IFERROR(ROUND(SUMIF(基データ!$C:$C,RIGHT(配賦額!R63,4),基データ!$L:$L)/6,0),0) -> 135925 | T63: =使い方!$B$7&使い方!$C$7&"賞与法定福利見積" -> 2023夏季賞与法定福利見積 | V63: 7700305 | W63: NS-0160 | X63: =IFERROR(ROUND((SUMIF(基データ!$C:$C,RIGHT(配賦額!W63,4),基データ!$L:$L)-S63*5),0),0) -> 135924 | Y63: =使い方!$B$7&使い方!$C$7&"賞与法定福利見積" -> 2023夏季賞与法定福利見積 | AA63: 7700305 | AB63: NS-0160 | AC63: =-IFERROR(ROUND(SUMIF(基データ!$C:$C,RIGHT(配賦額!AB63,4),基データ!$L:$L),0),0) -> -815549 | AD63: =使い方!$B$7&使い方!$C$7&"賞与法定福利見積戻し" -> 2023夏季賞与法定福利見積戻し | AF63: 7700201 | AG63: NS-0160 | AH63: =IFERROR(ROUND(SUMIF(基データ!$Q:$Q,RIGHT(配賦額!AG63,4),基データ!$T:$T)/6,0),0) -> 0 | AI63: =使い方!$B$7&使い方!$C$7&"賞与見積(現業)" -> 2023夏季賞与見積(現業) | AK63: 7700201 | AL63: NS-0160 | AM63: =IFERROR(ROUND((SUMIF(基データ!$Q:$Q,RIGHT(配賦額!AL63,4),基データ!$T:$T)-AH63*5),0),0) -> 0 | AN63: =使い方!$B$7&使い方!$C$7&"賞与見積(現業)" -> 2023夏季賞与見積(現業) | AP63: 7700201 | AQ63: NS-0160 | AR63: =-IFERROR(ROUND(SUMIF(基データ!$Q:$Q,RIGHT(配賦額!AQ63,4),基データ!$T:$T),0),0) -> 0 | AS63: =使い方!$B$7&使い方!$C$7&"賞与見積戻し(現業)" -> 2023夏季賞与見積戻し(現業) | AU63: 7700202 | AV63: NS-0160 | AW63: =IFERROR(ROUND(SUMIF(基データ!$Q:$Q,RIGHT(配賦額!AV63,4),基データ!$U:$U)/6,0),0) -> 0 | AX63: =使い方!$B$7&使い方!$C$7&"賞与法定福利見積(現業)" -> 2023夏季賞与法定福利見積(現業) | AZ63: 7700202 | BA63: NS-0160 | BB63: =IFERROR(ROUND((SUMIF(基データ!$Q:$Q,RIGHT(配賦額!BA63,4),基データ!$U:$U)-AW63*5),0),0) -> 0 | BC63: =使い方!$B$7&使い方!$C$7&"賞与法定福利見積(現業)" -> 2023夏季賞与法定福利見積(現業) | BE63: 7700202 | BF63: NS-0160 | BG63: =-IFERROR(ROUND(SUMIF(基データ!$Q:$Q,RIGHT(配賦額!BF63,4),基データ!$U:$U),0),0) -> 0 | BH63: =使い方!$B$7&使い方!$C$7&"賞与法定福利見積戻し(現業)" -> 2023夏季賞与法定福利見積戻し(現業)
B64: 7700303 | C64: NS-0161 | D64: =IFERROR(ROUND(SUMIF(基データ!$C:$C,RIGHT(配賦額!C64,4),基データ!$I:$I)/6,0),0) -> 675333 | E64: =使い方!$B$7&使い方!$C$7&"賞与見積" -> 2023夏季賞与見積 | G64: 7700303 | H64: NS-0161 | I64: =IFERROR(ROUND((SUMIF(基データ!$C:$C,RIGHT(配賦額!H64,4),基データ!$I:$I)-D64*5),0),0) -> 675335 | J64: =使い方!$B$7&使い方!$C$7&"賞与見積" -> 2023夏季賞与見積 | L64: 7700303 | M64: NS-0161 | N64: =-IFERROR(ROUND(SUMIF(基データ!$C:$C,RIGHT(配賦額!M64,4),基データ!$I:$I),0),0) -> -4052000 | O64: =使い方!$B$7&使い方!$C$7&"賞与見積戻し" -> 2023夏季賞与見積戻し | Q64: 7700305 | R64: NS-0161 | S64: =IFERROR(ROUND(SUMIF(基データ!$C:$C,RIGHT(配賦額!R64,4),基データ!$L:$L)/6,0),0) -> 108626 | T64: =使い方!$B$7&使い方!$C$7&"賞与法定福利見積" -> 2023夏季賞与法定福利見積 | V64: 7700305 | W64: NS-0161 | X64: =IFERROR(ROUND((SUMIF(基データ!$C:$C,RIGHT(配賦額!W64,4),基データ!$L:$L)-S64*5),0),0) -> 108625 | Y64: =使い方!$B$7&使い方!$C$7&"賞与法定福利見積" -> 2023夏季賞与法定福利見積 | AA64: 7700305 | AB64: NS-0161 | AC64: =-IFERROR(ROUND(SUMIF(基データ!$C:$C,RIGHT(配賦額!AB64,4),基データ!$L:$L),0),0) -> -651755 | AD64: =使い方!$B$7&使い方!$C$7&"賞与法定福利見積戻し" -> 2023夏季賞与法定福利見積戻し | AF64: 7700201 | AG64: NS-0161 | AH64: =IFERROR(ROUND(SUMIF(基データ!$Q:$Q,RIGHT(配賦額!AG64,4),基データ!$T:$T)/6,0),0) -> 0 | AI64: =使い方!$B$7&使い方!$C$7&"賞与見積(現業)" -> 2023夏季賞与見積(現業) | AK64: 7700201 | AL64: NS-0161 | AM64: =IFERROR(ROUND((SUMIF(基データ!$Q:$Q,RIGHT(配賦額!AL64,4),基データ!$T:$T)-AH64*5),0),0) -> 0 | AN64: =使い方!$B$7&使い方!$C$7&"賞与見積(現業)" -> 2023夏季賞与見積(現業) | AP64: 7700201 | AQ64: NS-0161 | AR64: =-IFERROR(ROUND(SUMIF(基データ!$Q:$Q,RIGHT(配賦額!AQ64,4),基データ!$T:$T),0),0) -> 0 | AS64: =使い方!$B$7&使い方!$C$7&"賞与見積戻し(現業)" -> 2023夏季賞与見積戻し(現業) | AU64: 7700202 | AV64: NS-0161 | AW64: =IFERROR(ROUND(SUMIF(基データ!$Q:$Q,RIGHT(配賦額!AV64,4),基データ!$U:$U)/6,0),0) -> 0 | AX64: =使い方!$B$7&使い方!$C$7&"賞与法定福利見積(現業)" -> 2023夏季賞与法定福利見積(現業) | AZ64: 7700202 | BA64: NS-0161 | BB64: =IFERROR(ROUND((SUMIF(基データ!$Q:$Q,RIGHT(配賦額!BA64,4),基データ!$U:$U)-AW64*5),0),0) -> 0 | BC64: =使い方!$B$7&使い方!$C$7&"賞与法定福利見積(現業)" -> 2023夏季賞与法定福利見積(現業) | BE64: 7700202 | BF64: NS-0161 | BG64: =-IFERROR(ROUND(SUMIF(基データ!$Q:$Q,RIGHT(配賦額!BF64,4),基データ!$U:$U),0),0) -> 0 | BH64: =使い方!$B$7&使い方!$C$7&"賞与法定福利見積戻し(現業)" -> 2023夏季賞与法定福利見積戻し(現業)
B65: 7700303 | C65: NS-0162 | D65: =IFERROR(ROUND(SUMIF(基データ!$C:$C,RIGHT(配賦額!C65,4),基データ!$I:$I)/6,0),0) -> 717583 | E65: =使い方!$B$7&使い方!$C$7&"賞与見積" -> 2023夏季賞与見積 | G65: 7700303 | H65: NS-0162 | I65: =IFERROR(ROUND((SUMIF(基データ!$C:$C,RIGHT(配賦額!H65,4),基データ!$I:$I)-D65*5),0),0) -> 717585 | J65: =使い方!$B$7&使い方!$C$7&"賞与見積" -> 2023夏季賞与見積 | L65: 7700303 | M65: NS-0162 | N65: =-IFERROR(ROUND(SUMIF(基データ!$C:$C,RIGHT(配賦額!M65,4),基データ!$I:$I),0),0) -> -4305500 | O65: =使い方!$B$7&使い方!$C$7&"賞与見積戻し" -> 2023夏季賞与見積戻し | Q65: 7700305 | R65: NS-0162 | S65: =IFERROR(ROUND(SUMIF(基データ!$C:$C,RIGHT(配賦額!R65,4),基データ!$L:$L)/6,0),0) -> 115559 | T65: =使い方!$B$7&使い方!$C$7&"賞与法定福利見積" -> 2023夏季賞与法定福利見積 | V65: 7700305 | W65: NS-0162 | X65: =IFERROR(ROUND((SUMIF(基データ!$C:$C,RIGHT(配賦額!W65,4),基データ!$L:$L)-S65*5),0),0) -> 115560 | Y65: =使い方!$B$7&使い方!$C$7&"賞与法定福利見積" -> 2023夏季賞与法定福利見積 | AA65: 7700305 | AB65: NS-0162 | AC65: =-IFERROR(ROUND(SUMIF(基データ!$C:$C,RIGHT(配賦額!AB65,4),基データ!$L:$L),0),0) -> -693355 | AD65: =使い方!$B$7&使い方!$C$7&"賞与法定福利見積戻し" -> 2023夏季賞与法定福利見積戻し | AF65: 7700201 | AG65: NS-0162 | AH65: =IFERROR(ROUND(SUMIF(基データ!$Q:$Q,RIGHT(配賦額!AG65,4),基データ!$T:$T)/6,0),0) -> 0 | AI65: =使い方!$B$7&使い方!$C$7&"賞与見積(現業)" -> 2023夏季賞与見積(現業) | AK65: 7700201 | AL65: NS-0162 | AM65: =IFERROR(ROUND((SUMIF(基データ!$Q:$Q,RIGHT(配賦額!AL65,4),基データ!$T:$T)-AH65*5),0),0) -> 0 | AN65: =使い方!$B$7&使い方!$C$7&"賞与見積(現業)" -> 2023夏季賞与見積(現業) | AP65: 7700201 | AQ65: NS-0162 | AR65: =-IFERROR(ROUND(SUMIF(基データ!$Q:$Q,RIGHT(配賦額!AQ65,4),基データ!$T:$T),0),0) -> 0 | AS65: =使い方!$B$7&使い方!$C$7&"賞与見積戻し(現業)" -> 2023夏季賞与見積戻し(現業) | AU65: 7700202 | AV65: NS-0162 | AW65: =IFERROR(ROUND(SUMIF(基データ!$Q:$Q,RIGHT(配賦額!AV65,4),基データ!$U:$U)/6,0),0) -> 0 | AX65: =使い方!$B$7&使い方!$C$7&"賞与法定福利見積(現業)" -> 2023夏季賞与法定福利見積(現業) | AZ65: 7700202 | BA65: NS-0162 | BB65: =IFERROR(ROUND((SUMIF(基データ!$Q:$Q,RIGHT(配賦額!BA65,4),基データ!$U:$U)-AW65*5),0),0) -> 0 | BC65: =使い方!$B$7&使い方!$C$7&"賞与法定福利見積(現業)" -> 2023夏季賞与法定福利見積(現業) | BE65: 7700202 | BF65: NS-0162 | BG65: =-IFERROR(ROUND(SUMIF(基データ!$Q:$Q,RIGHT(配賦額!BF65,4),基データ!$U:$U),0),0) -> 0 | BH65: =使い方!$B$7&使い方!$C$7&"賞与法定福利見積戻し(現業)" -> 2023夏季賞与法定福利見積戻し(現業)
B66: 7700303 | C66: NS-0163 | D66: =IFERROR(ROUND(SUMIF(基データ!$C:$C,RIGHT(配賦額!C66,4),基データ!$I:$I)/6,0),0) -> 0 | E66: =使い方!$B$7&使い方!$C$7&"賞与見積" -> 2023夏季賞与見積 | G66: 7700303 | H66: NS-0163 | I66: =IFERROR(ROUND((SUMIF(基データ!$C:$C,RIGHT(配賦額!H66,4),基データ!$I:$I)-D66*5),0),0) -> 0 | J66: =使い方!$B$7&使い方!$C$7&"賞与見積" -> 2023夏季賞与見積 | L66: 7700303 | M66: NS-0163 | N66: =-IFERROR(ROUND(SUMIF(基データ!$C:$C,RIGHT(配賦額!M66,4),基データ!$I:$I),0),0) -> 0 | O66: =使い方!$B$7&使い方!$C$7&"賞与見積戻し" -> 2023夏季賞与見積戻し | Q66: 7700305 | R66: NS-0163 | S66: =IFERROR(ROUND(SUMIF(基データ!$C:$C,RIGHT(配賦額!R66,4),基データ!$L:$L)/6,0),0) -> 0 | T66: =使い方!$B$7&使い方!$C$7&"賞与法定福利見積" -> 2023夏季賞与法定福利見積 | V66: 7700305 | W66: NS-0163 | X66: =IFERROR(ROUND((SUMIF(基データ!$C:$C,RIGHT(配賦額!W66,4),基データ!$L:$L)-S66*5),0),0) -> 0 | Y66: =使い方!$B$7&使い方!$C$7&"賞与法定福利見積" -> 2023夏季賞与法定福利見積 | AA66: 7700305 | AB66: NS-0163 | AC66: =-IFERROR(ROUND(SUMIF(基データ!$C:$C,RIGHT(配賦額!AB66,4),基データ!$L:$L),0),0) -> 0 | AD66: =使い方!$B$7&使い方!$C$7&"賞与法定福利見積戻し" -> 2023夏季賞与法定福利見積戻し | AF66: 7700201 | AG66: NS-0163 | AH66: =IFERROR(ROUND(SUMIF(基データ!$Q:$Q,RIGHT(配賦額!AG66,4),基データ!$T:$T)/6,0),0) -> 0 | AI66: =使い方!$B$7&使い方!$C$7&"賞与見積(現業)" -> 2023夏季賞与見積(現業) | AK66: 7700201 | AL66: NS-0163 | AM66: =IFERROR(ROUND((SUMIF(基データ!$Q:$Q,RIGHT(配賦額!AL66,4),基データ!$T:$T)-AH66*5),0),0) -> 0 | AN66: =使い方!$B$7&使い方!$C$7&"賞与見積(現業)" -> 2023夏季賞与見積(現業) | AP66: 7700201 | AQ66: NS-0163 | AR66: =-IFERROR(ROUND(SUMIF(基データ!$Q:$Q,RIGHT(配賦額!AQ66,4),基データ!$T:$T),0),0) -> 0 | AS66: =使い方!$B$7&使い方!$C$7&"賞与見積戻し(現業)" -> 2023夏季賞与見積戻し(現業) | AU66: 7700202 | AV66: NS-0163 | AW66: =IFERROR(ROUND(SUMIF(基データ!$Q:$Q,RIGHT(配賦額!AV66,4),基データ!$U:$U)/6,0),0) -> 0 | AX66: =使い方!$B$7&使い方!$C$7&"賞与法定福利見積(現業)" -> 2023夏季賞与法定福利見積(現業) | AZ66: 7700202 | BA66: NS-0163 | BB66: =IFERROR(ROUND((SUMIF(基データ!$Q:$Q,RIGHT(配賦額!BA66,4),基データ!$U:$U)-AW66*5),0),0) -> 0 | BC66: =使い方!$B$7&使い方!$C$7&"賞与法定福利見積(現業)" -> 2023夏季賞与法定福利見積(現業) | BE66: 7700202 | BF66: NS-0163 | BG66: =-IFERROR(ROUND(SUMIF(基データ!$Q:$Q,RIGHT(配賦額!BF66,4),基データ!$U:$U),0),0) -> 0 | BH66: =使い方!$B$7&使い方!$C$7&"賞与法定福利見積戻し(現業)" -> 2023夏季賞与法定福利見積戻し(現業)
B67: 7700303 | C67: NS-0164 | D67: =IFERROR(ROUND(SUMIF(基データ!$C:$C,RIGHT(配賦額!C67,4),基データ!$I:$I)/6,0),0) -> 439333 | E67: =使い方!$B$7&使い方!$C$7&"賞与見積" -> 2023夏季賞与見積 | G67: 7700303 | H67: NS-0164 | I67: =IFERROR(ROUND((SUMIF(基データ!$C:$C,RIGHT(配賦額!H67,4),基データ!$I:$I)-D67*5),0),0) -> 439335 | J67: =使い方!$B$7&使い方!$C$7&"賞与見積" -> 2023夏季賞与見積 | L67: 7700303 | M67: NS-0164 | N67: =-IFERROR(ROUND(SUMIF(基データ!$C:$C,RIGHT(配賦額!M67,4),基データ!$I:$I),0),0) -> -2636000 | O67: =使い方!$B$7&使い方!$C$7&"賞与見積戻し" -> 2023夏季賞与見積戻し | Q67: 7700305 | R67: NS-0164 | S67: =IFERROR(ROUND(SUMIF(基データ!$C:$C,RIGHT(配賦額!R67,4),基データ!$L:$L)/6,0),0) -> 66774 | T67: =使い方!$B$7&使い方!$C$7&"賞与法定福利見積" -> 2023夏季賞与法定福利見積 | V67: 7700305 | W67: NS-0164 | X67: =IFERROR(ROUND((SUMIF(基データ!$C:$C,RIGHT(配賦額!W67,4),基データ!$L:$L)-S67*5),0),0) -> 66776 | Y67: =使い方!$B$7&使い方!$C$7&"賞与法定福利見積" -> 2023夏季賞与法定福利見積 | AA67: 7700305 | AB67: NS-0164 | AC67: =-IFERROR(ROUND(SUMIF(基データ!$C:$C,RIGHT(配賦額!AB67,4),基データ!$L:$L),0),0) -> -400646 | AD67: =使い方!$B$7&使い方!$C$7&"賞与法定福利見積戻し" -> 2023夏季賞与法定福利見積戻し | AF67: 7700201 | AG67: NS-0164 | AH67: =IFERROR(ROUND(SUMIF(基データ!$Q:$Q,RIGHT(配賦額!AG67,4),基データ!$T:$T)/6,0),0) -> 0 | AI67: =使い方!$B$7&使い方!$C$7&"賞与見積(現業)" -> 2023夏季賞与見積(現業) | AK67: 7700201 | AL67: NS-0164 | AM67: =IFERROR(ROUND((SUMIF(基データ!$Q:$Q,RIGHT(配賦額!AL67,4),基データ!$T:$T)-AH67*5),0),0) -> 0 | AN67: =使い方!$B$7&使い方!$C$7&"賞与見積(現業)" -> 2023夏季賞与見積(現業) | AP67: 7700201 | AQ67: NS-0164 | AR67: =-IFERROR(ROUND(SUMIF(基データ!$Q:$Q,RIGHT(配賦額!AQ67,4),基データ!$T:$T),0),0) -> 0 | AS67: =使い方!$B$7&使い方!$C$7&"賞与見積戻し(現業)" -> 2023夏季賞与見積戻し(現業) | AU67: 7700202 | AV67: NS-0164 | AW67: =IFERROR(ROUND(SUMIF(基データ!$Q:$Q,RIGHT(配賦額!AV67,4),基データ!$U:$U)/6,0),0) -> 0 | AX67: =使い方!$B$7&使い方!$C$7&"賞与法定福利見積(現業)" -> 2023夏季賞与法定福利見積(現業) | AZ67: 7700202 | BA67: NS-0164 | BB67: =IFERROR(ROUND((SUMIF(基データ!$Q:$Q,RIGHT(配賦額!BA67,4),基データ!$U:$U)-AW67*5),0),0) -> 0 | BC67: =使い方!$B$7&使い方!$C$7&"賞与法定福利見積(現業)" -> 2023夏季賞与法定福利見積(現業) | BE67: 7700202 | BF67: NS-0164 | BG67: =-IFERROR(ROUND(SUMIF(基データ!$Q:$Q,RIGHT(配賦額!BF67,4),基データ!$U:$U),0),0) -> 0 | BH67: =使い方!$B$7&使い方!$C$7&"賞与法定福利見積戻し(現業)" -> 2023夏季賞与法定福利見積戻し(現業)
B68: 7700303 | C68: NS-0165 | D68: =IFERROR(ROUND(SUMIF(基データ!$C:$C,RIGHT(配賦額!C68,4),基データ!$I:$I)/6,0),0) -> 0 | E68: =使い方!$B$7&使い方!$C$7&"賞与見積" -> 2023夏季賞与見積 | G68: 7700303 | H68: NS-0165 | I68: =IFERROR(ROUND((SUMIF(基データ!$C:$C,RIGHT(配賦額!H68,4),基データ!$I:$I)-D68*5),0),0) -> 0 | J68: =使い方!$B$7&使い方!$C$7&"賞与見積" -> 2023夏季賞与見積 | L68: 7700303 | M68: NS-0165 | N68: =-IFERROR(ROUND(SUMIF(基データ!$C:$C,RIGHT(配賦額!M68,4),基データ!$I:$I),0),0) -> 0 | O68: =使い方!$B$7&使い方!$C$7&"賞与見積戻し" -> 2023夏季賞与見積戻し | Q68: 7700305 | R68: NS-0165 | S68: =IFERROR(ROUND(SUMIF(基データ!$C:$C,RIGHT(配賦額!R68,4),基データ!$L:$L)/6,0),0) -> 0 | T68: =使い方!$B$7&使い方!$C$7&"賞与法定福利見積" -> 2023夏季賞与法定福利見積 | V68: 7700305 | W68: NS-0165 | X68: =IFERROR(ROUND((SUMIF(基データ!$C:$C,RIGHT(配賦額!W68,4),基データ!$L:$L)-S68*5),0),0) -> 0 | Y68: =使い方!$B$7&使い方!$C$7&"賞与法定福利見積" -> 2023夏季賞与法定福利見積 | AA68: 7700305 | AB68: NS-0165 | AC68: =-IFERROR(ROUND(SUMIF(基データ!$C:$C,RIGHT(配賦額!AB68,4),基データ!$L:$L),0),0) -> 0 | AD68: =使い方!$B$7&使い方!$C$7&"賞与法定福利見積戻し" -> 2023夏季賞与法定福利見積戻し | AF68: 7700201 | AG68: NS-0165 | AH68: =IFERROR(ROUND(SUMIF(基データ!$Q:$Q,RIGHT(配賦額!AG68,4),基データ!$T:$T)/6,0),0) -> 0 | AI68: =使い方!$B$7&使い方!$C$7&"賞与見積(現業)" -> 2023夏季賞与見積(現業) | AK68: 7700201 | AL68: NS-0165 | AM68: =IFERROR(ROUND((SUMIF(基データ!$Q:$Q,RIGHT(配賦額!AL68,4),基データ!$T:$T)-AH68*5),0),0) -> 0 | AN68: =使い方!$B$7&使い方!$C$7&"賞与見積(現業)" -> 2023夏季賞与見積(現業) | AP68: 7700201 | AQ68: NS-0165 | AR68: =-IFERROR(ROUND(SUMIF(基データ!$Q:$Q,RIGHT(配賦額!AQ68,4),基データ!$T:$T),0),0) -> 0 | AS68: =使い方!$B$7&使い方!$C$7&"賞与見積戻し(現業)" -> 2023夏季賞与見積戻し(現業) | AU68: 7700202 | AV68: NS-0165 | AW68: =IFERROR(ROUND(SUMIF(基データ!$Q:$Q,RIGHT(配賦額!AV68,4),基データ!$U:$U)/6,0),0) -> 0 | AX68: =使い方!$B$7&使い方!$C$7&"賞与法定福利見積(現業)" -> 2023夏季賞与法定福利見積(現業) | AZ68: 7700202 | BA68: NS-0165 | BB68: =IFERROR(ROUND((SUMIF(基データ!$Q:$Q,RIGHT(配賦額!BA68,4),基データ!$U:$U)-AW68*5),0),0) -> 0 | BC68: =使い方!$B$7&使い方!$C$7&"賞与法定福利見積(現業)" -> 2023夏季賞与法定福利見積(現業) | BE68: 7700202 | BF68: NS-0165 | BG68: =-IFERROR(ROUND(SUMIF(基データ!$Q:$Q,RIGHT(配賦額!BF68,4),基データ!$U:$U),0),0) -> 0 | BH68: =使い方!$B$7&使い方!$C$7&"賞与法定福利見積戻し(現業)" -> 2023夏季賞与法定福利見積戻し(現業)
B69: 7700303 | C69: NS-0166 | D69: =IFERROR(ROUND(SUMIF(基データ!$C:$C,RIGHT(配賦額!C69,4),基データ!$I:$I)/6,0),0) -> 0 | E69: =使い方!$B$7&使い方!$C$7&"賞与見積" -> 2023夏季賞与見積 | G69: 7700303 | H69: NS-0166 | I69: =IFERROR(ROUND((SUMIF(基データ!$C:$C,RIGHT(配賦額!H69,4),基データ!$I:$I)-D69*5),0),0) -> 0 | J69: =使い方!$B$7&使い方!$C$7&"賞与見積" -> 2023夏季賞与見積 | L69: 7700303 | M69: NS-0166 | N69: =-IFERROR(ROUND(SUMIF(基データ!$C:$C,RIGHT(配賦額!M69,4),基データ!$I:$I),0),0) -> 0 | O69: =使い方!$B$7&使い方!$C$7&"賞与見積戻し" -> 2023夏季賞与見積戻し | Q69: 7700305 | R69: NS-0166 | S69: =IFERROR(ROUND(SUMIF(基データ!$C:$C,RIGHT(配賦額!R69,4),基データ!$L:$L)/6,0),0) -> 0 | T69: =使い方!$B$7&使い方!$C$7&"賞与法定福利見積" -> 2023夏季賞与法定福利見積 | V69: 7700305 | W69: NS-0166 | X69: =IFERROR(ROUND((SUMIF(基データ!$C:$C,RIGHT(配賦額!W69,4),基データ!$L:$L)-S69*5),0),0) -> 0 | Y69: =使い方!$B$7&使い方!$C$7&"賞与法定福利見積" -> 2023夏季賞与法定福利見積 | AA69: 7700305 | AB69: NS-0166 | AC69: =-IFERROR(ROUND(SUMIF(基データ!$C:$C,RIGHT(配賦額!AB69,4),基データ!$L:$L),0),0) -> 0 | AD69: =使い方!$B$7&使い方!$C$7&"賞与法定福利見積戻し" -> 2023夏季賞与法定福利見積戻し | AF69: 7700201 | AG69: NS-0166 | AH69: =IFERROR(ROUND(SUMIF(基データ!$Q:$Q,RIGHT(配賦額!AG69,4),基データ!$T:$T)/6,0),0) -> 0 | AI69: =使い方!$B$7&使い方!$C$7&"賞与見積(現業)" -> 2023夏季賞与見積(現業) | AK69: 7700201 | AL69: NS-0166 | AM69: =IFERROR(ROUND((SUMIF(基データ!$Q:$Q,RIGHT(配賦額!AL69,4),基データ!$T:$T)-AH69*5),0),0) -> 0 | AN69: =使い方!$B$7&使い方!$C$7&"賞与見積(現業)" -> 2023夏季賞与見積(現業) | AP69: 7700201 | AQ69: NS-0166 | AR69: =-IFERROR(ROUND(SUMIF(基データ!$Q:$Q,RIGHT(配賦額!AQ69,4),基データ!$T:$T),0),0) -> 0 | AS69: =使い方!$B$7&使い方!$C$7&"賞与見積戻し(現業)" -> 2023夏季賞与見積戻し(現業) | AU69: 7700202 | AV69: NS-0166 | AW69: =IFERROR(ROUND(SUMIF(基データ!$Q:$Q,RIGHT(配賦額!AV69,4),基データ!$U:$U)/6,0),0) -> 0 | AX69: =使い方!$B$7&使い方!$C$7&"賞与法定福利見積(現業)" -> 2023夏季賞与法定福利見積(現業) | AZ69: 7700202 | BA69: NS-0166 | BB69: =IFERROR(ROUND((SUMIF(基データ!$Q:$Q,RIGHT(配賦額!BA69,4),基データ!$U:$U)-AW69*5),0),0) -> 0 | BC69: =使い方!$B$7&使い方!$C$7&"賞与法定福利見積(現業)" -> 2023夏季賞与法定福利見積(現業) | BE69: 7700202 | BF69: NS-0166 | BG69: =-IFERROR(ROUND(SUMIF(基データ!$Q:$Q,RIGHT(配賦額!BF69,4),基データ!$U:$U),0),0) -> 0 | BH69: =使い方!$B$7&使い方!$C$7&"賞与法定福利見積戻し(現業)" -> 2023夏季賞与法定福利見積戻し(現業)
B70: 7700303 | C70: NS-0167 | D70: =IFERROR(ROUND(SUMIF(基データ!$C:$C,RIGHT(配賦額!C70,4),基データ!$I:$I)/6,0),0) -> 0 | E70: =使い方!$B$7&使い方!$C$7&"賞与見積" -> 2023夏季賞与見積 | G70: 7700303 | H70: NS-0167 | I70: =IFERROR(ROUND((SUMIF(基データ!$C:$C,RIGHT(配賦額!H70,4),基データ!$I:$I)-D70*5),0),0) -> 0 | J70: =使い方!$B$7&使い方!$C$7&"賞与見積" -> 2023夏季賞与見積 | L70: 7700303 | M70: NS-0167 | N70: =-IFERROR(ROUND(SUMIF(基データ!$C:$C,RIGHT(配賦額!M70,4),基データ!$I:$I),0),0) -> 0 | O70: =使い方!$B$7&使い方!$C$7&"賞与見積戻し" -> 2023夏季賞与見積戻し | Q70: 7700305 | R70: NS-0167 | S70: =IFERROR(ROUND(SUMIF(基データ!$C:$C,RIGHT(配賦額!R70,4),基データ!$L:$L)/6,0),0) -> 0 | T70: =使い方!$B$7&使い方!$C$7&"賞与法定福利見積" -> 2023夏季賞与法定福利見積 | V70: 7700305 | W70: NS-0167 | X70: =IFERROR(ROUND((SUMIF(基データ!$C:$C,RIGHT(配賦額!W70,4),基データ!$L:$L)-S70*5),0),0) -> 0 | Y70: =使い方!$B$7&使い方!$C$7&"賞与法定福利見積" -> 2023夏季賞与法定福利見積 | AA70: 7700305 | AB70: NS-0167 | AC70: =-IFERROR(ROUND(SUMIF(基データ!$C:$C,RIGHT(配賦額!AB70,4),基データ!$L:$L),0),0) -> 0 | AD70: =使い方!$B$7&使い方!$C$7&"賞与法定福利見積戻し" -> 2023夏季賞与法定福利見積戻し | AF70: 7700201 | AG70: NS-0167 | AH70: =IFERROR(ROUND(SUMIF(基データ!$Q:$Q,RIGHT(配賦額!AG70,4),基データ!$T:$T)/6,0),0) -> 0 | AI70: =使い方!$B$7&使い方!$C$7&"賞与見積(現業)" -> 2023夏季賞与見積(現業) | AK70: 7700201 | AL70: NS-0167 | AM70: =IFERROR(ROUND((SUMIF(基データ!$Q:$Q,RIGHT(配賦額!AL70,4),基データ!$T:$T)-AH70*5),0),0) -> 0 | AN70: =使い方!$B$7&使い方!$C$7&"賞与見積(現業)" -> 2023夏季賞与見積(現業) | AP70: 7700201 | AQ70: NS-0167 | AR70: =-IFERROR(ROUND(SUMIF(基データ!$Q:$Q,RIGHT(配賦額!AQ70,4),基データ!$T:$T),0),0) -> 0 | AS70: =使い方!$B$7&使い方!$C$7&"賞与見積戻し(現業)" -> 2023夏季賞与見積戻し(現業) | AU70: 7700202 | AV70: NS-0167 | AW70: =IFERROR(ROUND(SUMIF(基データ!$Q:$Q,RIGHT(配賦額!AV70,4),基データ!$U:$U)/6,0),0) -> 0 | AX70: =使い方!$B$7&使い方!$C$7&"賞与法定福利見積(現業)" -> 2023夏季賞与法定福利見積(現業) | AZ70: 7700202 | BA70: NS-0167 | BB70: =IFERROR(ROUND((SUMIF(基データ!$Q:$Q,RIGHT(配賦額!BA70,4),基データ!$U:$U)-AW70*5),0),0) -> 0 | BC70: =使い方!$B$7&使い方!$C$7&"賞与法定福利見積(現業)" -> 2023夏季賞与法定福利見積(現業) | BE70: 7700202 | BF70: NS-0167 | BG70: =-IFERROR(ROUND(SUMIF(基データ!$Q:$Q,RIGHT(配賦額!BF70,4),基データ!$U:$U),0),0) -> 0 | BH70: =使い方!$B$7&使い方!$C$7&"賞与法定福利見積戻し(現業)" -> 2023夏季賞与法定福利見積戻し(現業)
B71: 7700303 | C71: NS-0168 | D71: =IFERROR(ROUND(SUMIF(基データ!$C:$C,RIGHT(配賦額!C71,4),基データ!$I:$I)/6,0),0) -> 0 | E71: =使い方!$B$7&使い方!$C$7&"賞与見積" -> 2023夏季賞与見積 | G71: 7700303 | H71: NS-0168 | I71: =IFERROR(ROUND((SUMIF(基データ!$C:$C,RIGHT(配賦額!H71,4),基データ!$I:$I)-D71*5),0),0) -> 0 | J71: =使い方!$B$7&使い方!$C$7&"賞与見積" -> 2023夏季賞与見積 | L71: 7700303 | M71: NS-0168 | N71: =-IFERROR(ROUND(SUMIF(基データ!$C:$C,RIGHT(配賦額!M71,4),基データ!$I:$I),0),0) -> 0 | O71: =使い方!$B$7&使い方!$C$7&"賞与見積戻し" -> 2023夏季賞与見積戻し | Q71: 7700305 | R71: NS-0168 | S71: =IFERROR(ROUND(SUMIF(基データ!$C:$C,RIGHT(配賦額!R71,4),基データ!$L:$L)/6,0),0) -> 0 | T71: =使い方!$B$7&使い方!$C$7&"賞与法定福利見積" -> 2023夏季賞与法定福利見積 | V71: 7700305 | W71: NS-0168 | X71: =IFERROR(ROUND((SUMIF(基データ!$C:$C,RIGHT(配賦額!W71,4),基データ!$L:$L)-S71*5),0),0) -> 0 | Y71: =使い方!$B$7&使い方!$C$7&"賞与法定福利見積" -> 2023夏季賞与法定福利見積 | AA71: 7700305 | AB71: NS-0168 | AC71: =-IFERROR(ROUND(SUMIF(基データ!$C:$C,RIGHT(配賦額!AB71,4),基データ!$L:$L),0),0) -> 0 | AD71: =使い方!$B$7&使い方!$C$7&"賞与法定福利見積戻し" -> 2023夏季賞与法定福利見積戻し | AF71: 7700201 | AG71: NS-0168 | AH71: =IFERROR(ROUND(SUMIF(基データ!$Q:$Q,RIGHT(配賦額!AG71,4),基データ!$T:$T)/6,0),0) -> 0 | AI71: =使い方!$B$7&使い方!$C$7&"賞与見積(現業)" -> 2023夏季賞与見積(現業) | AK71: 7700201 | AL71: NS-0168 | AM71: =IFERROR(ROUND((SUMIF(基データ!$Q:$Q,RIGHT(配賦額!AL71,4),基データ!$T:$T)-AH71*5),0),0) -> 0 | AN71: =使い方!$B$7&使い方!$C$7&"賞与見積(現業)" -> 2023夏季賞与見積(現業) | AP71: 7700201 | AQ71: NS-0168 | AR71: =-IFERROR(ROUND(SUMIF(基データ!$Q:$Q,RIGHT(配賦額!AQ71,4),基データ!$T:$T),0),0) -> 0 | AS71: =使い方!$B$7&使い方!$C$7&"賞与見積戻し(現業)" -> 2023夏季賞与見積戻し(現業) | AU71: 7700202 | AV71: NS-0168 | AW71: =IFERROR(ROUND(SUMIF(基データ!$Q:$Q,RIGHT(配賦額!AV71,4),基データ!$U:$U)/6,0),0) -> 0 | AX71: =使い方!$B$7&使い方!$C$7&"賞与法定福利見積(現業)" -> 2023夏季賞与法定福利見積(現業) | AZ71: 7700202 | BA71: NS-0168 | BB71: =IFERROR(ROUND((SUMIF(基データ!$Q:$Q,RIGHT(配賦額!BA71,4),基データ!$U:$U)-AW71*5),0),0) -> 0 | BC71: =使い方!$B$7&使い方!$C$7&"賞与法定福利見積(現業)" -> 2023夏季賞与法定福利見積(現業) | BE71: 7700202 | BF71: NS-0168 | BG71: =-IFERROR(ROUND(SUMIF(基データ!$Q:$Q,RIGHT(配賦額!BF71,4),基データ!$U:$U),0),0) -> 0 | BH71: =使い方!$B$7&使い方!$C$7&"賞与法定福利見積戻し(現業)" -> 2023夏季賞与法定福利見積戻し(現業)
B72: 7700303 | C72: NS-0169 | D72: =IFERROR(ROUND(SUMIF(基データ!$C:$C,RIGHT(配賦額!C72,4),基データ!$I:$I)/6,0),0) -> 0 | E72: =使い方!$B$7&使い方!$C$7&"賞与見積" -> 2023夏季賞与見積 | G72: 7700303 | H72: NS-0169 | I72: =IFERROR(ROUND((SUMIF(基データ!$C:$C,RIGHT(配賦額!H72,4),基データ!$I:$I)-D72*5),0),0) -> 0 | J72: =使い方!$B$7&使い方!$C$7&"賞与見積" -> 2023夏季賞与見積 | L72: 7700303 | M72: NS-0169 | N72: =-IFERROR(ROUND(SUMIF(基データ!$C:$C,RIGHT(配賦額!M72,4),基データ!$I:$I),0),0) -> 0 | O72: =使い方!$B$7&使い方!$C$7&"賞与見積戻し" -> 2023夏季賞与見積戻し | Q72: 7700305 | R72: NS-0169 | S72: =IFERROR(ROUND(SUMIF(基データ!$C:$C,RIGHT(配賦額!R72,4),基データ!$L:$L)/6,0),0) -> 0 | T72: =使い方!$B$7&使い方!$C$7&"賞与法定福利見積" -> 2023夏季賞与法定福利見積 | V72: 7700305 | W72: NS-0169 | X72: =IFERROR(ROUND((SUMIF(基データ!$C:$C,RIGHT(配賦額!W72,4),基データ!$L:$L)-S72*5),0),0) -> 0 | Y72: =使い方!$B$7&使い方!$C$7&"賞与法定福利見積" -> 2023夏季賞与法定福利見積 | AA72: 7700305 | AB72: NS-0169 | AC72: =-IFERROR(ROUND(SUMIF(基データ!$C:$C,RIGHT(配賦額!AB72,4),基データ!$L:$L),0),0) -> 0 | AD72: =使い方!$B$7&使い方!$C$7&"賞与法定福利見積戻し" -> 2023夏季賞与法定福利見積戻し | AF72: 7700201 | AG72: NS-0169 | AH72: =IFERROR(ROUND(SUMIF(基データ!$Q:$Q,RIGHT(配賦額!AG72,4),基データ!$T:$T)/6,0),0) -> 0 | AI72: =使い方!$B$7&使い方!$C$7&"賞与見積(現業)" -> 2023夏季賞与見積(現業) | AK72: 7700201 | AL72: NS-0169 | AM72: =IFERROR(ROUND((SUMIF(基データ!$Q:$Q,RIGHT(配賦額!AL72,4),基データ!$T:$T)-AH72*5),0),0) -> 0 | AN72: =使い方!$B$7&使い方!$C$7&"賞与見積(現業)" -> 2023夏季賞与見積(現業) | AP72: 7700201 | AQ72: NS-0169 | AR72: =-IFERROR(ROUND(SUMIF(基データ!$Q:$Q,RIGHT(配賦額!AQ72,4),基データ!$T:$T),0),0) -> 0 | AS72: =使い方!$B$7&使い方!$C$7&"賞与見積戻し(現業)" -> 2023夏季賞与見積戻し(現業) | AU72: 7700202 | AV72: NS-0169 | AW72: =IFERROR(ROUND(SUMIF(基データ!$Q:$Q,RIGHT(配賦額!AV72,4),基データ!$U:$U)/6,0),0) -> 0 | AX72: =使い方!$B$7&使い方!$C$7&"賞与法定福利見積(現業)" -> 2023夏季賞与法定福利見積(現業) | AZ72: 7700202 | BA72: NS-0169 | BB72: =IFERROR(ROUND((SUMIF(基データ!$Q:$Q,RIGHT(配賦額!BA72,4),基データ!$U:$U)-AW72*5),0),0) -> 0 | BC72: =使い方!$B$7&使い方!$C$7&"賞与法定福利見積(現業)" -> 2023夏季賞与法定福利見積(現業) | BE72: 7700202 | BF72: NS-0169 | BG72: =-IFERROR(ROUND(SUMIF(基データ!$Q:$Q,RIGHT(配賦額!BF72,4),基データ!$U:$U),0),0) -> 0 | BH72: =使い方!$B$7&使い方!$C$7&"賞与法定福利見積戻し(現業)" -> 2023夏季賞与法定福利見積戻し(現業)
B73: 7700303 | C73: NS-0170 | D73: =IFERROR(ROUND(SUMIF(基データ!$C:$C,RIGHT(配賦額!C73,4),基データ!$I:$I)/6,0),0) -> 0 | E73: =使い方!$B$7&使い方!$C$7&"賞与見積" -> 2023夏季賞与見積 | G73: 7700303 | H73: NS-0170 | I73: =IFERROR(ROUND((SUMIF(基データ!$C:$C,RIGHT(配賦額!H73,4),基データ!$I:$I)-D73*5),0),0) -> 0 | J73: =使い方!$B$7&使い方!$C$7&"賞与見積" -> 2023夏季賞与見積 | L73: 7700303 | M73: NS-0170 | N73: =-IFERROR(ROUND(SUMIF(基データ!$C:$C,RIGHT(配賦額!M73,4),基データ!$I:$I),0),0) -> 0 | O73: =使い方!$B$7&使い方!$C$7&"賞与見積戻し" -> 2023夏季賞与見積戻し | Q73: 7700305 | R73: NS-0170 | S73: =IFERROR(ROUND(SUMIF(基データ!$C:$C,RIGHT(配賦額!R73,4),基データ!$L:$L)/6,0),0) -> 0 | T73: =使い方!$B$7&使い方!$C$7&"賞与法定福利見積" -> 2023夏季賞与法定福利見積 | V73: 7700305 | W73: NS-0170 | X73: =IFERROR(ROUND((SUMIF(基データ!$C:$C,RIGHT(配賦額!W73,4),基データ!$L:$L)-S73*5),0),0) -> 0 | Y73: =使い方!$B$7&使い方!$C$7&"賞与法定福利見積" -> 2023夏季賞与法定福利見積 | AA73: 7700305 | AB73: NS-0170 | AC73: =-IFERROR(ROUND(SUMIF(基データ!$C:$C,RIGHT(配賦額!AB73,4),基データ!$L:$L),0),0) -> 0 | AD73: =使い方!$B$7&使い方!$C$7&"賞与法定福利見積戻し" -> 2023夏季賞与法定福利見積戻し | AF73: 7700201 | AG73: NS-0170 | AH73: =IFERROR(ROUND(SUMIF(基データ!$Q:$Q,RIGHT(配賦額!AG73,4),基データ!$T:$T)/6,0),0) -> 0 | AI73: =使い方!$B$7&使い方!$C$7&"賞与見積(現業)" -> 2023夏季賞与見積(現業) | AK73: 7700201 | AL73: NS-0170 | AM73: =IFERROR(ROUND((SUMIF(基データ!$Q:$Q,RIGHT(配賦額!AL73,4),基データ!$T:$T)-AH73*5),0),0) -> 0 | AN73: =使い方!$B$7&使い方!$C$7&"賞与見積(現業)" -> 2023夏季賞与見積(現業) | AP73: 7700201 | AQ73: NS-0170 | AR73: =-IFERROR(ROUND(SUMIF(基データ!$Q:$Q,RIGHT(配賦額!AQ73,4),基データ!$T:$T),0),0) -> 0 | AS73: =使い方!$B$7&使い方!$C$7&"賞与見積戻し(現業)" -> 2023夏季賞与見積戻し(現業) | AU73: 7700202 | AV73: NS-0170 | AW73: =IFERROR(ROUND(SUMIF(基データ!$Q:$Q,RIGHT(配賦額!AV73,4),基データ!$U:$U)/6,0),0) -> 0 | AX73: =使い方!$B$7&使い方!$C$7&"賞与法定福利見積(現業)" -> 2023夏季賞与法定福利見積(現業) | AZ73: 7700202 | BA73: NS-0170 | BB73: =IFERROR(ROUND((SUMIF(基データ!$Q:$Q,RIGHT(配賦額!BA73,4),基データ!$U:$U)-AW73*5),0),0) -> 0 | BC73: =使い方!$B$7&使い方!$C$7&"賞与法定福利見積(現業)" -> 2023夏季賞与法定福利見積(現業) | BE73: 7700202 | BF73: NS-0170 | BG73: =-IFERROR(ROUND(SUMIF(基データ!$Q:$Q,RIGHT(配賦額!BF73,4),基データ!$U:$U),0),0) -> 0 | BH73: =使い方!$B$7&使い方!$C$7&"賞与法定福利見積戻し(現業)" -> 2023夏季賞与法定福利見積戻し(現業)
B74: 7700303 | C74: NS-0171 | D74: =IFERROR(ROUND(SUMIF(基データ!$C:$C,RIGHT(配賦額!C74,4),基データ!$I:$I)/6,0),0) -> 0 | E74: =使い方!$B$7&使い方!$C$7&"賞与見積" -> 2023夏季賞与見積 | G74: 7700303 | H74: NS-0171 | I74: =IFERROR(ROUND((SUMIF(基データ!$C:$C,RIGHT(配賦額!H74,4),基データ!$I:$I)-D74*5),0),0) -> 0 | J74: =使い方!$B$7&使い方!$C$7&"賞与見積" -> 2023夏季賞与見積 | L74: 7700303 | M74: NS-0171 | N74: =-IFERROR(ROUND(SUMIF(基データ!$C:$C,RIGHT(配賦額!M74,4),基データ!$I:$I),0),0) -> 0 | O74: =使い方!$B$7&使い方!$C$7&"賞与見積戻し" -> 2023夏季賞与見積戻し | Q74: 7700305 | R74: NS-0171 | S74: =IFERROR(ROUND(SUMIF(基データ!$C:$C,RIGHT(配賦額!R74,4),基データ!$L:$L)/6,0),0) -> 0 | T74: =使い方!$B$7&使い方!$C$7&"賞与法定福利見積" -> 2023夏季賞与法定福利見積 | V74: 7700305 | W74: NS-0171 | X74: =IFERROR(ROUND((SUMIF(基データ!$C:$C,RIGHT(配賦額!W74,4),基データ!$L:$L)-S74*5),0),0) -> 0 | Y74: =使い方!$B$7&使い方!$C$7&"賞与法定福利見積" -> 2023夏季賞与法定福利見積 | AA74: 7700305 | AB74: NS-0171 | AC74: =-IFERROR(ROUND(SUMIF(基データ!$C:$C,RIGHT(配賦額!AB74,4),基データ!$L:$L),0),0) -> 0 | AD74: =使い方!$B$7&使い方!$C$7&"賞与法定福利見積戻し" -> 2023夏季賞与法定福利見積戻し | AF74: 7700201 | AG74: NS-0171 | AH74: =IFERROR(ROUND(SUMIF(基データ!$Q:$Q,RIGHT(配賦額!AG74,4),基データ!$T:$T)/6,0),0) -> 0 | AI74: =使い方!$B$7&使い方!$C$7&"賞与見積(現業)" -> 2023夏季賞与見積(現業) | AK74: 7700201 | AL74: NS-0171 | AM74: =IFERROR(ROUND((SUMIF(基データ!$Q:$Q,RIGHT(配賦額!AL74,4),基データ!$T:$T)-AH74*5),0),0) -> 0 | AN74: =使い方!$B$7&使い方!$C$7&"賞与見積(現業)" -> 2023夏季賞与見積(現業) | AP74: 7700201 | AQ74: NS-0171 | AR74: =-IFERROR(ROUND(SUMIF(基データ!$Q:$Q,RIGHT(配賦額!AQ74,4),基データ!$T:$T),0),0) -> 0 | AS74: =使い方!$B$7&使い方!$C$7&"賞与見積戻し(現業)" -> 2023夏季賞与見積戻し(現業) | AU74: 7700202 | AV74: NS-0171 | AW74: =IFERROR(ROUND(SUMIF(基データ!$Q:$Q,RIGHT(配賦額!AV74,4),基データ!$U:$U)/6,0),0) -> 0 | AX74: =使い方!$B$7&使い方!$C$7&"賞与法定福利見積(現業)" -> 2023夏季賞与法定福利見積(現業) | AZ74: 7700202 | BA74: NS-0171 | BB74: =IFERROR(ROUND((SUMIF(基データ!$Q:$Q,RIGHT(配賦額!BA74,4),基データ!$U:$U)-AW74*5),0),0) -> 0 | BC74: =使い方!$B$7&使い方!$C$7&"賞与法定福利見積(現業)" -> 2023夏季賞与法定福利見積(現業) | BE74: 7700202 | BF74: NS-0171 | BG74: =-IFERROR(ROUND(SUMIF(基データ!$Q:$Q,RIGHT(配賦額!BF74,4),基データ!$U:$U),0),0) -> 0 | BH74: =使い方!$B$7&使い方!$C$7&"賞与法定福利見積戻し(現業)" -> 2023夏季賞与法定福利見積戻し(現業)
B75: 7700303 | C75: NS-0172 | D75: =IFERROR(ROUND(SUMIF(基データ!$C:$C,RIGHT(配賦額!C75,4),基データ!$I:$I)/6,0),0) -> 0 | E75: =使い方!$B$7&使い方!$C$7&"賞与見積" -> 2023夏季賞与見積 | G75: 7700303 | H75: NS-0172 | I75: =IFERROR(ROUND((SUMIF(基データ!$C:$C,RIGHT(配賦額!H75,4),基データ!$I:$I)-D75*5),0),0) -> 0 | J75: =使い方!$B$7&使い方!$C$7&"賞与見積" -> 2023夏季賞与見積 | L75: 7700303 | M75: NS-0172 | N75: =-IFERROR(ROUND(SUMIF(基データ!$C:$C,RIGHT(配賦額!M75,4),基データ!$I:$I),0),0) -> 0 | O75: =使い方!$B$7&使い方!$C$7&"賞与見積戻し" -> 2023夏季賞与見積戻し | Q75: 7700305 | R75: NS-0172 | S75: =IFERROR(ROUND(SUMIF(基データ!$C:$C,RIGHT(配賦額!R75,4),基データ!$L:$L)/6,0),0) -> 0 | T75: =使い方!$B$7&使い方!$C$7&"賞与法定福利見積" -> 2023夏季賞与法定福利見積 | V75: 7700305 | W75: NS-0172 | X75: =IFERROR(ROUND((SUMIF(基データ!$C:$C,RIGHT(配賦額!W75,4),基データ!$L:$L)-S75*5),0),0) -> 0 | Y75: =使い方!$B$7&使い方!$C$7&"賞与法定福利見積" -> 2023夏季賞与法定福利見積 | AA75: 7700305 | AB75: NS-0172 | AC75: =-IFERROR(ROUND(SUMIF(基データ!$C:$C,RIGHT(配賦額!AB75,4),基データ!$L:$L),0),0) -> 0 | AD75: =使い方!$B$7&使い方!$C$7&"賞与法定福利見積戻し" -> 2023夏季賞与法定福利見積戻し | AF75: 7700201 | AG75: NS-0172 | AH75: =IFERROR(ROUND(SUMIF(基データ!$Q:$Q,RIGHT(配賦額!AG75,4),基データ!$T:$T)/6,0),0) -> 0 | AI75: =使い方!$B$7&使い方!$C$7&"賞与見積(現業)" -> 2023夏季賞与見積(現業) | AK75: 7700201 | AL75: NS-0172 | AM75: =IFERROR(ROUND((SUMIF(基データ!$Q:$Q,RIGHT(配賦額!AL75,4),基データ!$T:$T)-AH75*5),0),0) -> 0 | AN75: =使い方!$B$7&使い方!$C$7&"賞与見積(現業)" -> 2023夏季賞与見積(現業) | AP75: 7700201 | AQ75: NS-0172 | AR75: =-IFERROR(ROUND(SUMIF(基データ!$Q:$Q,RIGHT(配賦額!AQ75,4),基データ!$T:$T),0),0) -> 0 | AS75: =使い方!$B$7&使い方!$C$7&"賞与見積戻し(現業)" -> 2023夏季賞与見積戻し(現業) | AU75: 7700202 | AV75: NS-0172 | AW75: =IFERROR(ROUND(SUMIF(基データ!$Q:$Q,RIGHT(配賦額!AV75,4),基データ!$U:$U)/6,0),0) -> 0 | AX75: =使い方!$B$7&使い方!$C$7&"賞与法定福利見積(現業)" -> 2023夏季賞与法定福利見積(現業) | AZ75: 7700202 | BA75: NS-0172 | BB75: =IFERROR(ROUND((SUMIF(基データ!$Q:$Q,RIGHT(配賦額!BA75,4),基データ!$U:$U)-AW75*5),0),0) -> 0 | BC75: =使い方!$B$7&使い方!$C$7&"賞与法定福利見積(現業)" -> 2023夏季賞与法定福利見積(現業) | BE75: 7700202 | BF75: NS-0172 | BG75: =-IFERROR(ROUND(SUMIF(基データ!$Q:$Q,RIGHT(配賦額!BF75,4),基データ!$U:$U),0),0) -> 0 | BH75: =使い方!$B$7&使い方!$C$7&"賞与法定福利見積戻し(現業)" -> 2023夏季賞与法定福利見積戻し(現業)
B76: 7700303 | C76: NS-0173 | D76: =IFERROR(ROUND(SUMIF(基データ!$C:$C,RIGHT(配賦額!C76,4),基データ!$I:$I)/6,0),0) -> 0 | E76: =使い方!$B$7&使い方!$C$7&"賞与見積" -> 2023夏季賞与見積 | G76: 7700303 | H76: NS-0173 | I76: =IFERROR(ROUND((SUMIF(基データ!$C:$C,RIGHT(配賦額!H76,4),基データ!$I:$I)-D76*5),0),0) -> 0 | J76: =使い方!$B$7&使い方!$C$7&"賞与見積" -> 2023夏季賞与見積 | L76: 7700303 | M76: NS-0173 | N76: =-IFERROR(ROUND(SUMIF(基データ!$C:$C,RIGHT(配賦額!M76,4),基データ!$I:$I),0),0) -> 0 | O76: =使い方!$B$7&使い方!$C$7&"賞与見積戻し" -> 2023夏季賞与見積戻し | Q76: 7700305 | R76: NS-0173 | S76: =IFERROR(ROUND(SUMIF(基データ!$C:$C,RIGHT(配賦額!R76,4),基データ!$L:$L)/6,0),0) -> 0 | T76: =使い方!$B$7&使い方!$C$7&"賞与法定福利見積" -> 2023夏季賞与法定福利見積 | V76: 7700305 | W76: NS-0173 | X76: =IFERROR(ROUND((SUMIF(基データ!$C:$C,RIGHT(配賦額!W76,4),基データ!$L:$L)-S76*5),0),0) -> 0 | Y76: =使い方!$B$7&使い方!$C$7&"賞与法定福利見積" -> 2023夏季賞与法定福利見積 | AA76: 7700305 | AB76: NS-0173 | AC76: =-IFERROR(ROUND(SUMIF(基データ!$C:$C,RIGHT(配賦額!AB76,4),基データ!$L:$L),0),0) -> 0 | AD76: =使い方!$B$7&使い方!$C$7&"賞与法定福利見積戻し" -> 2023夏季賞与法定福利見積戻し | AF76: 7700201 | AG76: NS-0173 | AH76: =IFERROR(ROUND(SUMIF(基データ!$Q:$Q,RIGHT(配賦額!AG76,4),基データ!$T:$T)/6,0),0) -> 0 | AI76: =使い方!$B$7&使い方!$C$7&"賞与見積(現業)" -> 2023夏季賞与見積(現業) | AK76: 7700201 | AL76: NS-0173 | AM76: =IFERROR(ROUND((SUMIF(基データ!$Q:$Q,RIGHT(配賦額!AL76,4),基データ!$T:$T)-AH76*5),0),0) -> 0 | AN76: =使い方!$B$7&使い方!$C$7&"賞与見積(現業)" -> 2023夏季賞与見積(現業) | AP76: 7700201 | AQ76: NS-0173 | AR76: =-IFERROR(ROUND(SUMIF(基データ!$Q:$Q,RIGHT(配賦額!AQ76,4),基データ!$T:$T),0),0) -> 0 | AS76: =使い方!$B$7&使い方!$C$7&"賞与見積戻し(現業)" -> 2023夏季賞与見積戻し(現業) | AU76: 7700202 | AV76: NS-0173 | AW76: =IFERROR(ROUND(SUMIF(基データ!$Q:$Q,RIGHT(配賦額!AV76,4),基データ!$U:$U)/6,0),0) -> 0 | AX76: =使い方!$B$7&使い方!$C$7&"賞与法定福利見積(現業)" -> 2023夏季賞与法定福利見積(現業) | AZ76: 7700202 | BA76: NS-0173 | BB76: =IFERROR(ROUND((SUMIF(基データ!$Q:$Q,RIGHT(配賦額!BA76,4),基データ!$U:$U)-AW76*5),0),0) -> 0 | BC76: =使い方!$B$7&使い方!$C$7&"賞与法定福利見積(現業)" -> 2023夏季賞与法定福利見積(現業) | BE76: 7700202 | BF76: NS-0173 | BG76: =-IFERROR(ROUND(SUMIF(基データ!$Q:$Q,RIGHT(配賦額!BF76,4),基データ!$U:$U),0),0) -> 0 | BH76: =使い方!$B$7&使い方!$C$7&"賞与法定福利見積戻し(現業)" -> 2023夏季賞与法定福利見積戻し(現業)
B77: 7700303 | C77: NS-0174 | D77: =IFERROR(ROUND(SUMIF(基データ!$C:$C,RIGHT(配賦額!C77,4),基データ!$I:$I)/6,0),0) -> 0 | E77: =使い方!$B$7&使い方!$C$7&"賞与見積" -> 2023夏季賞与見積 | G77: 7700303 | H77: NS-0174 | I77: =IFERROR(ROUND((SUMIF(基データ!$C:$C,RIGHT(配賦額!H77,4),基データ!$I:$I)-D77*5),0),0) -> 0 | J77: =使い方!$B$7&使い方!$C$7&"賞与見積" -> 2023夏季賞与見積 | L77: 7700303 | M77: NS-0174 | N77: =-IFERROR(ROUND(SUMIF(基データ!$C:$C,RIGHT(配賦額!M77,4),基データ!$I:$I),0),0) -> 0 | O77: =使い方!$B$7&使い方!$C$7&"賞与見積戻し" -> 2023夏季賞与見積戻し | Q77: 7700305 | R77: NS-0174 | S77: =IFERROR(ROUND(SUMIF(基データ!$C:$C,RIGHT(配賦額!R77,4),基データ!$L:$L)/6,0),0) -> 0 | T77: =使い方!$B$7&使い方!$C$7&"賞与法定福利見積" -> 2023夏季賞与法定福利見積 | V77: 7700305 | W77: NS-0174 | X77: =IFERROR(ROUND((SUMIF(基データ!$C:$C,RIGHT(配賦額!W77,4),基データ!$L:$L)-S77*5),0),0) -> 0 | Y77: =使い方!$B$7&使い方!$C$7&"賞与法定福利見積" -> 2023夏季賞与法定福利見積 | AA77: 7700305 | AB77: NS-0174 | AC77: =-IFERROR(ROUND(SUMIF(基データ!$C:$C,RIGHT(配賦額!AB77,4),基データ!$L:$L),0),0) -> 0 | AD77: =使い方!$B$7&使い方!$C$7&"賞与法定福利見積戻し" -> 2023夏季賞与法定福利見積戻し | AF77: 7700201 | AG77: NS-0174 | AH77: =IFERROR(ROUND(SUMIF(基データ!$Q:$Q,RIGHT(配賦額!AG77,4),基データ!$T:$T)/6,0),0) -> 0 | AI77: =使い方!$B$7&使い方!$C$7&"賞与見積(現業)" -> 2023夏季賞与見積(現業) | AK77: 7700201 | AL77: NS-0174 | AM77: =IFERROR(ROUND((SUMIF(基データ!$Q:$Q,RIGHT(配賦額!AL77,4),基データ!$T:$T)-AH77*5),0),0) -> 0 | AN77: =使い方!$B$7&使い方!$C$7&"賞与見積(現業)" -> 2023夏季賞与見積(現業) | AP77: 7700201 | AQ77: NS-0174 | AR77: =-IFERROR(ROUND(SUMIF(基データ!$Q:$Q,RIGHT(配賦額!AQ77,4),基データ!$T:$T),0),0) -> 0 | AS77: =使い方!$B$7&使い方!$C$7&"賞与見積戻し(現業)" -> 2023夏季賞与見積戻し(現業) | AU77: 7700202 | AV77: NS-0174 | AW77: =IFERROR(ROUND(SUMIF(基データ!$Q:$Q,RIGHT(配賦額!AV77,4),基データ!$U:$U)/6,0),0) -> 0 | AX77: =使い方!$B$7&使い方!$C$7&"賞与法定福利見積(現業)" -> 2023夏季賞与法定福利見積(現業) | AZ77: 7700202 | BA77: NS-0174 | BB77: =IFERROR(ROUND((SUMIF(基データ!$Q:$Q,RIGHT(配賦額!BA77,4),基データ!$U:$U)-AW77*5),0),0) -> 0 | BC77: =使い方!$B$7&使い方!$C$7&"賞与法定福利見積(現業)" -> 2023夏季賞与法定福利見積(現業) | BE77: 7700202 | BF77: NS-0174 | BG77: =-IFERROR(ROUND(SUMIF(基データ!$Q:$Q,RIGHT(配賦額!BF77,4),基データ!$U:$U),0),0) -> 0 | BH77: =使い方!$B$7&使い方!$C$7&"賞与法定福利見積戻し(現業)" -> 2023夏季賞与法定福利見積戻し(現業)
B78: 7700303 | C78: NS-0175 | D78: =IFERROR(ROUND(SUMIF(基データ!$C:$C,RIGHT(配賦額!C78,4),基データ!$I:$I)/6,0),0) -> 0 | E78: =使い方!$B$7&使い方!$C$7&"賞与見積" -> 2023夏季賞与見積 | G78: 7700303 | H78: NS-0175 | I78: =IFERROR(ROUND((SUMIF(基データ!$C:$C,RIGHT(配賦額!H78,4),基データ!$I:$I)-D78*5),0),0) -> 0 | J78: =使い方!$B$7&使い方!$C$7&"賞与見積" -> 2023夏季賞与見積 | L78: 7700303 | M78: NS-0175 | N78: =-IFERROR(ROUND(SUMIF(基データ!$C:$C,RIGHT(配賦額!M78,4),基データ!$I:$I),0),0) -> 0 | O78: =使い方!$B$7&使い方!$C$7&"賞与見積戻し" -> 2023夏季賞与見積戻し | Q78: 7700305 | R78: NS-0175 | S78: =IFERROR(ROUND(SUMIF(基データ!$C:$C,RIGHT(配賦額!R78,4),基データ!$L:$L)/6,0),0) -> 0 | T78: =使い方!$B$7&使い方!$C$7&"賞与法定福利見積" -> 2023夏季賞与法定福利見積 | V78: 7700305 | W78: NS-0175 | X78: =IFERROR(ROUND((SUMIF(基データ!$C:$C,RIGHT(配賦額!W78,4),基データ!$L:$L)-S78*5),0),0) -> 0 | Y78: =使い方!$B$7&使い方!$C$7&"賞与法定福利見積" -> 2023夏季賞与法定福利見積 | AA78: 7700305 | AB78: NS-0175 | AC78: =-IFERROR(ROUND(SUMIF(基データ!$C:$C,RIGHT(配賦額!AB78,4),基データ!$L:$L),0),0) -> 0 | AD78: =使い方!$B$7&使い方!$C$7&"賞与法定福利見積戻し" -> 2023夏季賞与法定福利見積戻し | AF78: 7700201 | AG78: NS-0175 | AH78: =IFERROR(ROUND(SUMIF(基データ!$Q:$Q,RIGHT(配賦額!AG78,4),基データ!$T:$T)/6,0),0) -> 0 | AI78: =使い方!$B$7&使い方!$C$7&"賞与見積(現業)" -> 2023夏季賞与見積(現業) | AK78: 7700201 | AL78: NS-0175 | AM78: =IFERROR(ROUND((SUMIF(基データ!$Q:$Q,RIGHT(配賦額!AL78,4),基データ!$T:$T)-AH78*5),0),0) -> 0 | AN78: =使い方!$B$7&使い方!$C$7&"賞与見積(現業)" -> 2023夏季賞与見積(現業) | AP78: 7700201 | AQ78: NS-0175 | AR78: =-IFERROR(ROUND(SUMIF(基データ!$Q:$Q,RIGHT(配賦額!AQ78,4),基データ!$T:$T),0),0) -> 0 | AS78: =使い方!$B$7&使い方!$C$7&"賞与見積戻し(現業)" -> 2023夏季賞与見積戻し(現業) | AU78: 7700202 | AV78: NS-0175 | AW78: =IFERROR(ROUND(SUMIF(基データ!$Q:$Q,RIGHT(配賦額!AV78,4),基データ!$U:$U)/6,0),0) -> 0 | AX78: =使い方!$B$7&使い方!$C$7&"賞与法定福利見積(現業)" -> 2023夏季賞与法定福利見積(現業) | AZ78: 7700202 | BA78: NS-0175 | BB78: =IFERROR(ROUND((SUMIF(基データ!$Q:$Q,RIGHT(配賦額!BA78,4),基データ!$U:$U)-AW78*5),0),0) -> 0 | BC78: =使い方!$B$7&使い方!$C$7&"賞与法定福利見積(現業)" -> 2023夏季賞与法定福利見積(現業) | BE78: 7700202 | BF78: NS-0175 | BG78: =-IFERROR(ROUND(SUMIF(基データ!$Q:$Q,RIGHT(配賦額!BF78,4),基データ!$U:$U),0),0) -> 0 | BH78: =使い方!$B$7&使い方!$C$7&"賞与法定福利見積戻し(現業)" -> 2023夏季賞与法定福利見積戻し(現業)
B79: 7700303 | C79: NS-0176 | D79: =IFERROR(ROUND(SUMIF(基データ!$C:$C,RIGHT(配賦額!C79,4),基データ!$I:$I)/6,0),0) -> 0 | E79: =使い方!$B$7&使い方!$C$7&"賞与見積" -> 2023夏季賞与見積 | G79: 7700303 | H79: NS-0176 | I79: =IFERROR(ROUND((SUMIF(基データ!$C:$C,RIGHT(配賦額!H79,4),基データ!$I:$I)-D79*5),0),0) -> 0 | J79: =使い方!$B$7&使い方!$C$7&"賞与見積" -> 2023夏季賞与見積 | L79: 7700303 | M79: NS-0176 | N79: =-IFERROR(ROUND(SUMIF(基データ!$C:$C,RIGHT(配賦額!M79,4),基データ!$I:$I),0),0) -> 0 | O79: =使い方!$B$7&使い方!$C$7&"賞与見積戻し" -> 2023夏季賞与見積戻し | Q79: 7700305 | R79: NS-0176 | S79: =IFERROR(ROUND(SUMIF(基データ!$C:$C,RIGHT(配賦額!R79,4),基データ!$L:$L)/6,0),0) -> 0 | T79: =使い方!$B$7&使い方!$C$7&"賞与法定福利見積" -> 2023夏季賞与法定福利見積 | V79: 7700305 | W79: NS-0176 | X79: =IFERROR(ROUND((SUMIF(基データ!$C:$C,RIGHT(配賦額!W79,4),基データ!$L:$L)-S79*5),0),0) -> 0 | Y79: =使い方!$B$7&使い方!$C$7&"賞与法定福利見積" -> 2023夏季賞与法定福利見積 | AA79: 7700305 | AB79: NS-0176 | AC79: =-IFERROR(ROUND(SUMIF(基データ!$C:$C,RIGHT(配賦額!AB79,4),基データ!$L:$L),0),0) -> 0 | AD79: =使い方!$B$7&使い方!$C$7&"賞与法定福利見積戻し" -> 2023夏季賞与法定福利見積戻し | AF79: 7700201 | AG79: NS-0176 | AH79: =IFERROR(ROUND(SUMIF(基データ!$Q:$Q,RIGHT(配賦額!AG79,4),基データ!$T:$T)/6,0),0) -> 0 | AI79: =使い方!$B$7&使い方!$C$7&"賞与見積(現業)" -> 2023夏季賞与見積(現業) | AK79: 7700201 | AL79: NS-0176 | AM79: =IFERROR(ROUND((SUMIF(基データ!$Q:$Q,RIGHT(配賦額!AL79,4),基データ!$T:$T)-AH79*5),0),0) -> 0 | AN79: =使い方!$B$7&使い方!$C$7&"賞与見積(現業)" -> 2023夏季賞与見積(現業) | AP79: 7700201 | AQ79: NS-0176 | AR79: =-IFERROR(ROUND(SUMIF(基データ!$Q:$Q,RIGHT(配賦額!AQ79,4),基データ!$T:$T),0),0) -> 0 | AS79: =使い方!$B$7&使い方!$C$7&"賞与見積戻し(現業)" -> 2023夏季賞与見積戻し(現業) | AU79: 7700202 | AV79: NS-0176 | AW79: =IFERROR(ROUND(SUMIF(基データ!$Q:$Q,RIGHT(配賦額!AV79,4),基データ!$U:$U)/6,0),0) -> 0 | AX79: =使い方!$B$7&使い方!$C$7&"賞与法定福利見積(現業)" -> 2023夏季賞与法定福利見積(現業) | AZ79: 7700202 | BA79: NS-0176 | BB79: =IFERROR(ROUND((SUMIF(基データ!$Q:$Q,RIGHT(配賦額!BA79,4),基データ!$U:$U)-AW79*5),0),0) -> 0 | BC79: =使い方!$B$7&使い方!$C$7&"賞与法定福利見積(現業)" -> 2023夏季賞与法定福利見積(現業) | BE79: 7700202 | BF79: NS-0176 | BG79: =-IFERROR(ROUND(SUMIF(基データ!$Q:$Q,RIGHT(配賦額!BF79,4),基データ!$U:$U),0),0) -> 0 | BH79: =使い方!$B$7&使い方!$C$7&"賞与法定福利見積戻し(現業)" -> 2023夏季賞与法定福利見積戻し(現業)
B80: 7700303 | C80: NS-0177 | D80: =IFERROR(ROUND(SUMIF(基データ!$C:$C,RIGHT(配賦額!C80,4),基データ!$I:$I)/6,0),0) -> 0 | E80: =使い方!$B$7&使い方!$C$7&"賞与見積" -> 2023夏季賞与見積 | G80: 7700303 | H80: NS-0177 | I80: =IFERROR(ROUND((SUMIF(基データ!$C:$C,RIGHT(配賦額!H80,4),基データ!$I:$I)-D80*5),0),0) -> 0 | J80: =使い方!$B$7&使い方!$C$7&"賞与見積" -> 2023夏季賞与見積 | L80: 7700303 | M80: NS-0177 | N80: =-IFERROR(ROUND(SUMIF(基データ!$C:$C,RIGHT(配賦額!M80,4),基データ!$I:$I),0),0) -> 0 | O80: =使い方!$B$7&使い方!$C$7&"賞与見積戻し" -> 2023夏季賞与見積戻し | Q80: 7700305 | R80: NS-0177 | S80: =IFERROR(ROUND(SUMIF(基データ!$C:$C,RIGHT(配賦額!R80,4),基データ!$L:$L)/6,0),0) -> 0 | T80: =使い方!$B$7&使い方!$C$7&"賞与法定福利見積" -> 2023夏季賞与法定福利見積 | V80: 7700305 | W80: NS-0177 | X80: =IFERROR(ROUND((SUMIF(基データ!$C:$C,RIGHT(配賦額!W80,4),基データ!$L:$L)-S80*5),0),0) -> 0 | Y80: =使い方!$B$7&使い方!$C$7&"賞与法定福利見積" -> 2023夏季賞与法定福利見積 | AA80: 7700305 | AB80: NS-0177 | AC80: =-IFERROR(ROUND(SUMIF(基データ!$C:$C,RIGHT(配賦額!AB80,4),基データ!$L:$L),0),0) -> 0 | AD80: =使い方!$B$7&使い方!$C$7&"賞与法定福利見積戻し" -> 2023夏季賞与法定福利見積戻し | AF80: 7700201 | AG80: NS-0177 | AH80: =IFERROR(ROUND(SUMIF(基データ!$Q:$Q,RIGHT(配賦額!AG80,4),基データ!$T:$T)/6,0),0) -> 0 | AI80: =使い方!$B$7&使い方!$C$7&"賞与見積(現業)" -> 2023夏季賞与見積(現業) | AK80: 7700201 | AL80: NS-0177 | AM80: =IFERROR(ROUND((SUMIF(基データ!$Q:$Q,RIGHT(配賦額!AL80,4),基データ!$T:$T)-AH80*5),0),0) -> 0 | AN80: =使い方!$B$7&使い方!$C$7&"賞与見積(現業)" -> 2023夏季賞与見積(現業) | AP80: 7700201 | AQ80: NS-0177 | AR80: =-IFERROR(ROUND(SUMIF(基データ!$Q:$Q,RIGHT(配賦額!AQ80,4),基データ!$T:$T),0),0) -> 0 | AS80: =使い方!$B$7&使い方!$C$7&"賞与見積戻し(現業)" -> 2023夏季賞与見積戻し(現業) | AU80: 7700202 | AV80: NS-0177 | AW80: =IFERROR(ROUND(SUMIF(基データ!$Q:$Q,RIGHT(配賦額!AV80,4),基データ!$U:$U)/6,0),0) -> 0 | AX80: =使い方!$B$7&使い方!$C$7&"賞与法定福利見積(現業)" -> 2023夏季賞与法定福利見積(現業) | AZ80: 7700202 | BA80: NS-0177 | BB80: =IFERROR(ROUND((SUMIF(基データ!$Q:$Q,RIGHT(配賦額!BA80,4),基データ!$U:$U)-AW80*5),0),0) -> 0 | BC80: =使い方!$B$7&使い方!$C$7&"賞与法定福利見積(現業)" -> 2023夏季賞与法定福利見積(現業) | BE80: 7700202 | BF80: NS-0177 | BG80: =-IFERROR(ROUND(SUMIF(基データ!$Q:$Q,RIGHT(配賦額!BF80,4),基データ!$U:$U),0),0) -> 0 | BH80: =使い方!$B$7&使い方!$C$7&"賞与法定福利見積戻し(現業)" -> 2023夏季賞与法定福利見積戻し(現業)
B81: 7700303 | C81: NS-0178 | D81: =IFERROR(ROUND(SUMIF(基データ!$C:$C,RIGHT(配賦額!C81,4),基データ!$I:$I)/6,0),0) -> 0 | E81: =使い方!$B$7&使い方!$C$7&"賞与見積" -> 2023夏季賞与見積 | G81: 7700303 | H81: NS-0178 | I81: =IFERROR(ROUND((SUMIF(基データ!$C:$C,RIGHT(配賦額!H81,4),基データ!$I:$I)-D81*5),0),0) -> 0 | J81: =使い方!$B$7&使い方!$C$7&"賞与見積" -> 2023夏季賞与見積 | L81: 7700303 | M81: NS-0178 | N81: =-IFERROR(ROUND(SUMIF(基データ!$C:$C,RIGHT(配賦額!M81,4),基データ!$I:$I),0),0) -> 0 | O81: =使い方!$B$7&使い方!$C$7&"賞与見積戻し" -> 2023夏季賞与見積戻し | Q81: 7700305 | R81: NS-0178 | S81: =IFERROR(ROUND(SUMIF(基データ!$C:$C,RIGHT(配賦額!R81,4),基データ!$L:$L)/6,0),0) -> 0 | T81: =使い方!$B$7&使い方!$C$7&"賞与法定福利見積" -> 2023夏季賞与法定福利見積 | V81: 7700305 | W81: NS-0178 | X81: =IFERROR(ROUND((SUMIF(基データ!$C:$C,RIGHT(配賦額!W81,4),基データ!$L:$L)-S81*5),0),0) -> 0 | Y81: =使い方!$B$7&使い方!$C$7&"賞与法定福利見積" -> 2023夏季賞与法定福利見積 | AA81: 7700305 | AB81: NS-0178 | AC81: =-IFERROR(ROUND(SUMIF(基データ!$C:$C,RIGHT(配賦額!AB81,4),基データ!$L:$L),0),0) -> 0 | AD81: =使い方!$B$7&使い方!$C$7&"賞与法定福利見積戻し" -> 2023夏季賞与法定福利見積戻し | AF81: 7700201 | AG81: NS-0178 | AH81: =IFERROR(ROUND(SUMIF(基データ!$Q:$Q,RIGHT(配賦額!AG81,4),基データ!$T:$T)/6,0),0) -> 0 | AI81: =使い方!$B$7&使い方!$C$7&"賞与見積(現業)" -> 2023夏季賞与見積(現業) | AK81: 7700201 | AL81: NS-0178 | AM81: =IFERROR(ROUND((SUMIF(基データ!$Q:$Q,RIGHT(配賦額!AL81,4),基データ!$T:$T)-AH81*5),0),0) -> 0 | AN81: =使い方!$B$7&使い方!$C$7&"賞与見積(現業)" -> 2023夏季賞与見積(現業) | AP81: 7700201 | AQ81: NS-0178 | AR81: =-IFERROR(ROUND(SUMIF(基データ!$Q:$Q,RIGHT(配賦額!AQ81,4),基データ!$T:$T),0),0) -> 0 | AS81: =使い方!$B$7&使い方!$C$7&"賞与見積戻し(現業)" -> 2023夏季賞与見積戻し(現業) | AU81: 7700202 | AV81: NS-0178 | AW81: =IFERROR(ROUND(SUMIF(基データ!$Q:$Q,RIGHT(配賦額!AV81,4),基データ!$U:$U)/6,0),0) -> 0 | AX81: =使い方!$B$7&使い方!$C$7&"賞与法定福利見積(現業)" -> 2023夏季賞与法定福利見積(現業) | AZ81: 7700202 | BA81: NS-0178 | BB81: =IFERROR(ROUND((SUMIF(基データ!$Q:$Q,RIGHT(配賦額!BA81,4),基データ!$U:$U)-AW81*5),0),0) -> 0 | BC81: =使い方!$B$7&使い方!$C$7&"賞与法定福利見積(現業)" -> 2023夏季賞与法定福利見積(現業) | BE81: 7700202 | BF81: NS-0178 | BG81: =-IFERROR(ROUND(SUMIF(基データ!$Q:$Q,RIGHT(配賦額!BF81,4),基データ!$U:$U),0),0) -> 0 | BH81: =使い方!$B$7&使い方!$C$7&"賞与法定福利見積戻し(現業)" -> 2023夏季賞与法定福利見積戻し(現業)
B82: 7700303 | C82: NS-0179 | D82: =IFERROR(ROUND(SUMIF(基データ!$C:$C,RIGHT(配賦額!C82,4),基データ!$I:$I)/6,0),0) -> 0 | E82: =使い方!$B$7&使い方!$C$7&"賞与見積" -> 2023夏季賞与見積 | G82: 7700303 | H82: NS-0179 | I82: =IFERROR(ROUND((SUMIF(基データ!$C:$C,RIGHT(配賦額!H82,4),基データ!$I:$I)-D82*5),0),0) -> 0 | J82: =使い方!$B$7&使い方!$C$7&"賞与見積" -> 2023夏季賞与見積 | L82: 7700303 | M82: NS-0179 | N82: =-IFERROR(ROUND(SUMIF(基データ!$C:$C,RIGHT(配賦額!M82,4),基データ!$I:$I),0),0) -> 0 | O82: =使い方!$B$7&使い方!$C$7&"賞与見積戻し" -> 2023夏季賞与見積戻し | Q82: 7700305 | R82: NS-0179 | S82: =IFERROR(ROUND(SUMIF(基データ!$C:$C,RIGHT(配賦額!R82,4),基データ!$L:$L)/6,0),0) -> 0 | T82: =使い方!$B$7&使い方!$C$7&"賞与法定福利見積" -> 2023夏季賞与法定福利見積 | V82: 7700305 | W82: NS-0179 | X82: =IFERROR(ROUND((SUMIF(基データ!$C:$C,RIGHT(配賦額!W82,4),基データ!$L:$L)-S82*5),0),0) -> 0 | Y82: =使い方!$B$7&使い方!$C$7&"賞与法定福利見積" -> 2023夏季賞与法定福利見積 | AA82: 7700305 | AB82: NS-0179 | AC82: =-IFERROR(ROUND(SUMIF(基データ!$C:$C,RIGHT(配賦額!AB82,4),基データ!$L:$L),0),0) -> 0 | AD82: =使い方!$B$7&使い方!$C$7&"賞与法定福利見積戻し" -> 2023夏季賞与法定福利見積戻し | AF82: 7700201 | AG82: NS-0179 | AH82: =IFERROR(ROUND(SUMIF(基データ!$Q:$Q,RIGHT(配賦額!AG82,4),基データ!$T:$T)/6,0),0) -> 0 | AI82: =使い方!$B$7&使い方!$C$7&"賞与見積(現業)" -> 2023夏季賞与見積(現業) | AK82: 7700201 | AL82: NS-0179 | AM82: =IFERROR(ROUND((SUMIF(基データ!$Q:$Q,RIGHT(配賦額!AL82,4),基データ!$T:$T)-AH82*5),0),0) -> 0 | AN82: =使い方!$B$7&使い方!$C$7&"賞与見積(現業)" -> 2023夏季賞与見積(現業) | AP82: 7700201 | AQ82: NS-0179 | AR82: =-IFERROR(ROUND(SUMIF(基データ!$Q:$Q,RIGHT(配賦額!AQ82,4),基データ!$T:$T),0),0) -> 0 | AS82: =使い方!$B$7&使い方!$C$7&"賞与見積戻し(現業)" -> 2023夏季賞与見積戻し(現業) | AU82: 7700202 | AV82: NS-0179 | AW82: =IFERROR(ROUND(SUMIF(基データ!$Q:$Q,RIGHT(配賦額!AV82,4),基データ!$U:$U)/6,0),0) -> 0 | AX82: =使い方!$B$7&使い方!$C$7&"賞与法定福利見積(現業)" -> 2023夏季賞与法定福利見積(現業) | AZ82: 7700202 | BA82: NS-0179 | BB82: =IFERROR(ROUND((SUMIF(基データ!$Q:$Q,RIGHT(配賦額!BA82,4),基データ!$U:$U)-AW82*5),0),0) -> 0 | BC82: =使い方!$B$7&使い方!$C$7&"賞与法定福利見積(現業)" -> 2023夏季賞与法定福利見積(現業) | BE82: 7700202 | BF82: NS-0179 | BG82: =-IFERROR(ROUND(SUMIF(基データ!$Q:$Q,RIGHT(配賦額!BF82,4),基データ!$U:$U),0),0) -> 0 | BH82: =使い方!$B$7&使い方!$C$7&"賞与法定福利見積戻し(現業)" -> 2023夏季賞与法定福利見積戻し(現業)
B83: 7700303 | C83: NS-0180 | D83: =IFERROR(ROUND(SUMIF(基データ!$C:$C,RIGHT(配賦額!C83,4),基データ!$I:$I)/6,0),0) -> 0 | E83: =使い方!$B$7&使い方!$C$7&"賞与見積" -> 2023夏季賞与見積 | G83: 7700303 | H83: NS-0180 | I83: =IFERROR(ROUND((SUMIF(基データ!$C:$C,RIGHT(配賦額!H83,4),基データ!$I:$I)-D83*5),0),0) -> 0 | J83: =使い方!$B$7&使い方!$C$7&"賞与見積" -> 2023夏季賞与見積 | L83: 7700303 | M83: NS-0180 | N83: =-IFERROR(ROUND(SUMIF(基データ!$C:$C,RIGHT(配賦額!M83,4),基データ!$I:$I),0),0) -> 0 | O83: =使い方!$B$7&使い方!$C$7&"賞与見積戻し" -> 2023夏季賞与見積戻し | Q83: 7700305 | R83: NS-0180 | S83: =IFERROR(ROUND(SUMIF(基データ!$C:$C,RIGHT(配賦額!R83,4),基データ!$L:$L)/6,0),0) -> 0 | T83: =使い方!$B$7&使い方!$C$7&"賞与法定福利見積" -> 2023夏季賞与法定福利見積 | V83: 7700305 | W83: NS-0180 | X83: =IFERROR(ROUND((SUMIF(基データ!$C:$C,RIGHT(配賦額!W83,4),基データ!$L:$L)-S83*5),0),0) -> 0 | Y83: =使い方!$B$7&使い方!$C$7&"賞与法定福利見積" -> 2023夏季賞与法定福利見積 | AA83: 7700305 | AB83: NS-0180 | AC83: =-IFERROR(ROUND(SUMIF(基データ!$C:$C,RIGHT(配賦額!AB83,4),基データ!$L:$L),0),0) -> 0 | AD83: =使い方!$B$7&使い方!$C$7&"賞与法定福利見積戻し" -> 2023夏季賞与法定福利見積戻し | AF83: 7700201 | AG83: NS-0180 | AH83: =IFERROR(ROUND(SUMIF(基データ!$Q:$Q,RIGHT(配賦額!AG83,4),基データ!$T:$T)/6,0),0) -> 0 | AI83: =使い方!$B$7&使い方!$C$7&"賞与見積(現業)" -> 2023夏季賞与見積(現業) | AK83: 7700201 | AL83: NS-0180 | AM83: =IFERROR(ROUND((SUMIF(基データ!$Q:$Q,RIGHT(配賦額!AL83,4),基データ!$T:$T)-AH83*5),0),0) -> 0 | AN83: =使い方!$B$7&使い方!$C$7&"賞与見積(現業)" -> 2023夏季賞与見積(現業) | AP83: 7700201 | AQ83: NS-0180 | AR83: =-IFERROR(ROUND(SUMIF(基データ!$Q:$Q,RIGHT(配賦額!AQ83,4),基データ!$T:$T),0),0) -> 0 | AS83: =使い方!$B$7&使い方!$C$7&"賞与見積戻し(現業)" -> 2023夏季賞与見積戻し(現業) | AU83: 7700202 | AV83: NS-0180 | AW83: =IFERROR(ROUND(SUMIF(基データ!$Q:$Q,RIGHT(配賦額!AV83,4),基データ!$U:$U)/6,0),0) -> 0 | AX83: =使い方!$B$7&使い方!$C$7&"賞与法定福利見積(現業)" -> 2023夏季賞与法定福利見積(現業) | AZ83: 7700202 | BA83: NS-0180 | BB83: =IFERROR(ROUND((SUMIF(基データ!$Q:$Q,RIGHT(配賦額!BA83,4),基データ!$U:$U)-AW83*5),0),0) -> 0 | BC83: =使い方!$B$7&使い方!$C$7&"賞与法定福利見積(現業)" -> 2023夏季賞与法定福利見積(現業) | BE83: 7700202 | BF83: NS-0180 | BG83: =-IFERROR(ROUND(SUMIF(基データ!$Q:$Q,RIGHT(配賦額!BF83,4),基データ!$U:$U),0),0) -> 0 | BH83: =使い方!$B$7&使い方!$C$7&"賞与法定福利見積戻し(現業)" -> 2023夏季賞与法定福利見積戻し(現業)
B84: 7700303 | C84: NS-0181 | D84: =IFERROR(ROUND(SUMIF(基データ!$C:$C,RIGHT(配賦額!C84,4),基データ!$I:$I)/6,0),0) -> 0 | E84: =使い方!$B$7&使い方!$C$7&"賞与見積" -> 2023夏季賞与見積 | G84: 7700303 | H84: NS-0181 | I84: =IFERROR(ROUND((SUMIF(基データ!$C:$C,RIGHT(配賦額!H84,4),基データ!$I:$I)-D84*5),0),0) -> 0 | J84: =使い方!$B$7&使い方!$C$7&"賞与見積" -> 2023夏季賞与見積 | L84: 7700303 | M84: NS-0181 | N84: =-IFERROR(ROUND(SUMIF(基データ!$C:$C,RIGHT(配賦額!M84,4),基データ!$I:$I),0),0) -> 0 | O84: =使い方!$B$7&使い方!$C$7&"賞与見積戻し" -> 2023夏季賞与見積戻し | Q84: 7700305 | R84: NS-0181 | S84: =IFERROR(ROUND(SUMIF(基データ!$C:$C,RIGHT(配賦額!R84,4),基データ!$L:$L)/6,0),0) -> 0 | T84: =使い方!$B$7&使い方!$C$7&"賞与法定福利見積" -> 2023夏季賞与法定福利見積 | V84: 7700305 | W84: NS-0181 | X84: =IFERROR(ROUND((SUMIF(基データ!$C:$C,RIGHT(配賦額!W84,4),基データ!$L:$L)-S84*5),0),0) -> 0 | Y84: =使い方!$B$7&使い方!$C$7&"賞与法定福利見積" -> 2023夏季賞与法定福利見積 | AA84: 7700305 | AB84: NS-0181 | AC84: =-IFERROR(ROUND(SUMIF(基データ!$C:$C,RIGHT(配賦額!AB84,4),基データ!$L:$L),0),0) -> 0 | AD84: =使い方!$B$7&使い方!$C$7&"賞与法定福利見積戻し" -> 2023夏季賞与法定福利見積戻し | AF84: 7700201 | AG84: NS-0181 | AH84: =IFERROR(ROUND(SUMIF(基データ!$Q:$Q,RIGHT(配賦額!AG84,4),基データ!$T:$T)/6,0),0) -> 0 | AI84: =使い方!$B$7&使い方!$C$7&"賞与見積(現業)" -> 2023夏季賞与見積(現業) | AK84: 7700201 | AL84: NS-0181 | AM84: =IFERROR(ROUND((SUMIF(基データ!$Q:$Q,RIGHT(配賦額!AL84,4),基データ!$T:$T)-AH84*5),0),0) -> 0 | AN84: =使い方!$B$7&使い方!$C$7&"賞与見積(現業)" -> 2023夏季賞与見積(現業) | AP84: 7700201 | AQ84: NS-0181 | AR84: =-IFERROR(ROUND(SUMIF(基データ!$Q:$Q,RIGHT(配賦額!AQ84,4),基データ!$T:$T),0),0) -> 0 | AS84: =使い方!$B$7&使い方!$C$7&"賞与見積戻し(現業)" -> 2023夏季賞与見積戻し(現業) | AU84: 7700202 | AV84: NS-0181 | AW84: =IFERROR(ROUND(SUMIF(基データ!$Q:$Q,RIGHT(配賦額!AV84,4),基データ!$U:$U)/6,0),0) -> 0 | AX84: =使い方!$B$7&使い方!$C$7&"賞与法定福利見積(現業)" -> 2023夏季賞与法定福利見積(現業) | AZ84: 7700202 | BA84: NS-0181 | BB84: =IFERROR(ROUND((SUMIF(基データ!$Q:$Q,RIGHT(配賦額!BA84,4),基データ!$U:$U)-AW84*5),0),0) -> 0 | BC84: =使い方!$B$7&使い方!$C$7&"賞与法定福利見積(現業)" -> 2023夏季賞与法定福利見積(現業) | BE84: 7700202 | BF84: NS-0181 | BG84: =-IFERROR(ROUND(SUMIF(基データ!$Q:$Q,RIGHT(配賦額!BF84,4),基データ!$U:$U),0),0) -> 0 | BH84: =使い方!$B$7&使い方!$C$7&"賞与法定福利見積戻し(現業)" -> 2023夏季賞与法定福利見積戻し(現業)
B85: 7700303 | C85: NS-0182 | D85: =IFERROR(ROUND(SUMIF(基データ!$C:$C,RIGHT(配賦額!C85,4),基データ!$I:$I)/6,0),0) -> 0 | E85: =使い方!$B$7&使い方!$C$7&"賞与見積" -> 2023夏季賞与見積 | G85: 7700303 | H85: NS-0182 | I85: =IFERROR(ROUND((SUMIF(基データ!$C:$C,RIGHT(配賦額!H85,4),基データ!$I:$I)-D85*5),0),0) -> 0 | J85: =使い方!$B$7&使い方!$C$7&"賞与見積" -> 2023夏季賞与見積 | L85: 7700303 | M85: NS-0182 | N85: =-IFERROR(ROUND(SUMIF(基データ!$C:$C,RIGHT(配賦額!M85,4),基データ!$I:$I),0),0) -> 0 | O85: =使い方!$B$7&使い方!$C$7&"賞与見積戻し" -> 2023夏季賞与見積戻し | Q85: 7700305 | R85: NS-0182 | S85: =IFERROR(ROUND(SUMIF(基データ!$C:$C,RIGHT(配賦額!R85,4),基データ!$L:$L)/6,0),0) -> 0 | T85: =使い方!$B$7&使い方!$C$7&"賞与法定福利見積" -> 2023夏季賞与法定福利見積 | V85: 7700305 | W85: NS-0182 | X85: =IFERROR(ROUND((SUMIF(基データ!$C:$C,RIGHT(配賦額!W85,4),基データ!$L:$L)-S85*5),0),0) -> 0 | Y85: =使い方!$B$7&使い方!$C$7&"賞与法定福利見積" -> 2023夏季賞与法定福利見積 | AA85: 7700305 | AB85: NS-0182 | AC85: =-IFERROR(ROUND(SUMIF(基データ!$C:$C,RIGHT(配賦額!AB85,4),基データ!$L:$L),0),0) -> 0 | AD85: =使い方!$B$7&使い方!$C$7&"賞与法定福利見積戻し" -> 2023夏季賞与法定福利見積戻し | AF85: 7700201 | AG85: NS-0182 | AH85: =IFERROR(ROUND(SUMIF(基データ!$Q:$Q,RIGHT(配賦額!AG85,4),基データ!$T:$T)/6,0),0) -> 0 | AI85: =使い方!$B$7&使い方!$C$7&"賞与見積(現業)" -> 2023夏季賞与見積(現業) | AK85: 7700201 | AL85: NS-0182 | AM85: =IFERROR(ROUND((SUMIF(基データ!$Q:$Q,RIGHT(配賦額!AL85,4),基データ!$T:$T)-AH85*5),0),0) -> 0 | AN85: =使い方!$B$7&使い方!$C$7&"賞与見積(現業)" -> 2023夏季賞与見積(現業) | AP85: 7700201 | AQ85: NS-0182 | AR85: =-IFERROR(ROUND(SUMIF(基データ!$Q:$Q,RIGHT(配賦額!AQ85,4),基データ!$T:$T),0),0) -> 0 | AS85: =使い方!$B$7&使い方!$C$7&"賞与見積戻し(現業)" -> 2023夏季賞与見積戻し(現業) | AU85: 7700202 | AV85: NS-0182 | AW85: =IFERROR(ROUND(SUMIF(基データ!$Q:$Q,RIGHT(配賦額!AV85,4),基データ!$U:$U)/6,0),0) -> 0 | AX85: =使い方!$B$7&使い方!$C$7&"賞与法定福利見積(現業)" -> 2023夏季賞与法定福利見積(現業) | AZ85: 7700202 | BA85: NS-0182 | BB85: =IFERROR(ROUND((SUMIF(基データ!$Q:$Q,RIGHT(配賦額!BA85,4),基データ!$U:$U)-AW85*5),0),0) -> 0 | BC85: =使い方!$B$7&使い方!$C$7&"賞与法定福利見積(現業)" -> 2023夏季賞与法定福利見積(現業) | BE85: 7700202 | BF85: NS-0182 | BG85: =-IFERROR(ROUND(SUMIF(基データ!$Q:$Q,RIGHT(配賦額!BF85,4),基データ!$U:$U),0),0) -> 0 | BH85: =使い方!$B$7&使い方!$C$7&"賞与法定福利見積戻し(現業)" -> 2023夏季賞与法定福利見積戻し(現業)
B86: 7700303 | C86: NS-0183 | D86: =IFERROR(ROUND(SUMIF(基データ!$C:$C,RIGHT(配賦額!C86,4),基データ!$I:$I)/6,0),0) -> 0 | E86: =使い方!$B$7&使い方!$C$7&"賞与見積" -> 2023夏季賞与見積 | G86: 7700303 | H86: NS-0183 | I86: =IFERROR(ROUND((SUMIF(基データ!$C:$C,RIGHT(配賦額!H86,4),基データ!$I:$I)-D86*5),0),0) -> 0 | J86: =使い方!$B$7&使い方!$C$7&"賞与見積" -> 2023夏季賞与見積 | L86: 7700303 | M86: NS-0183 | N86: =-IFERROR(ROUND(SUMIF(基データ!$C:$C,RIGHT(配賦額!M86,4),基データ!$I:$I),0),0) -> 0 | O86: =使い方!$B$7&使い方!$C$7&"賞与見積戻し" -> 2023夏季賞与見積戻し | Q86: 7700305 | R86: NS-0183 | S86: =IFERROR(ROUND(SUMIF(基データ!$C:$C,RIGHT(配賦額!R86,4),基データ!$L:$L)/6,0),0) -> 0 | T86: =使い方!$B$7&使い方!$C$7&"賞与法定福利見積" -> 2023夏季賞与法定福利見積 | V86: 7700305 | W86: NS-0183 | X86: =IFERROR(ROUND((SUMIF(基データ!$C:$C,RIGHT(配賦額!W86,4),基データ!$L:$L)-S86*5),0),0) -> 0 | Y86: =使い方!$B$7&使い方!$C$7&"賞与法定福利見積" -> 2023夏季賞与法定福利見積 | AA86: 7700305 | AB86: NS-0183 | AC86: =-IFERROR(ROUND(SUMIF(基データ!$C:$C,RIGHT(配賦額!AB86,4),基データ!$L:$L),0),0) -> 0 | AD86: =使い方!$B$7&使い方!$C$7&"賞与法定福利見積戻し" -> 2023夏季賞与法定福利見積戻し | AF86: 7700201 | AG86: NS-0183 | AH86: =IFERROR(ROUND(SUMIF(基データ!$Q:$Q,RIGHT(配賦額!AG86,4),基データ!$T:$T)/6,0),0) -> 0 | AI86: =使い方!$B$7&使い方!$C$7&"賞与見積(現業)" -> 2023夏季賞与見積(現業) | AK86: 7700201 | AL86: NS-0183 | AM86: =IFERROR(ROUND((SUMIF(基データ!$Q:$Q,RIGHT(配賦額!AL86,4),基データ!$T:$T)-AH86*5),0),0) -> 0 | AN86: =使い方!$B$7&使い方!$C$7&"賞与見積(現業)" -> 2023夏季賞与見積(現業) | AP86: 7700201 | AQ86: NS-0183 | AR86: =-IFERROR(ROUND(SUMIF(基データ!$Q:$Q,RIGHT(配賦額!AQ86,4),基データ!$T:$T),0),0) -> 0 | AS86: =使い方!$B$7&使い方!$C$7&"賞与見積戻し(現業)" -> 2023夏季賞与見積戻し(現業) | AU86: 7700202 | AV86: NS-0183 | AW86: =IFERROR(ROUND(SUMIF(基データ!$Q:$Q,RIGHT(配賦額!AV86,4),基データ!$U:$U)/6,0),0) -> 0 | AX86: =使い方!$B$7&使い方!$C$7&"賞与法定福利見積(現業)" -> 2023夏季賞与法定福利見積(現業) | AZ86: 7700202 | BA86: NS-0183 | BB86: =IFERROR(ROUND((SUMIF(基データ!$Q:$Q,RIGHT(配賦額!BA86,4),基データ!$U:$U)-AW86*5),0),0) -> 0 | BC86: =使い方!$B$7&使い方!$C$7&"賞与法定福利見積(現業)" -> 2023夏季賞与法定福利見積(現業) | BE86: 7700202 | BF86: NS-0183 | BG86: =-IFERROR(ROUND(SUMIF(基データ!$Q:$Q,RIGHT(配賦額!BF86,4),基データ!$U:$U),0),0) -> 0 | BH86: =使い方!$B$7&使い方!$C$7&"賞与法定福利見積戻し(現業)" -> 2023夏季賞与法定福利見積戻し(現業)
B87: 7700303 | C87: NS-0184 | D87: =IFERROR(ROUND(SUMIF(基データ!$C:$C,RIGHT(配賦額!C87,4),基データ!$I:$I)/6,0),0) -> 0 | E87: =使い方!$B$7&使い方!$C$7&"賞与見積" -> 2023夏季賞与見積 | G87: 7700303 | H87: NS-0184 | I87: =IFERROR(ROUND((SUMIF(基データ!$C:$C,RIGHT(配賦額!H87,4),基データ!$I:$I)-D87*5),0),0) -> 0 | J87: =使い方!$B$7&使い方!$C$7&"賞与見積" -> 2023夏季賞与見積 | L87: 7700303 | M87: NS-0184 | N87: =-IFERROR(ROUND(SUMIF(基データ!$C:$C,RIGHT(配賦額!M87,4),基データ!$I:$I),0),0) -> 0 | O87: =使い方!$B$7&使い方!$C$7&"賞与見積戻し" -> 2023夏季賞与見積戻し | Q87: 7700305 | R87: NS-0184 | S87: =IFERROR(ROUND(SUMIF(基データ!$C:$C,RIGHT(配賦額!R87,4),基データ!$L:$L)/6,0),0) -> 0 | T87: =使い方!$B$7&使い方!$C$7&"賞与法定福利見積" -> 2023夏季賞与法定福利見積 | V87: 7700305 | W87: NS-0184 | X87: =IFERROR(ROUND((SUMIF(基データ!$C:$C,RIGHT(配賦額!W87,4),基データ!$L:$L)-S87*5),0),0) -> 0 | Y87: =使い方!$B$7&使い方!$C$7&"賞与法定福利見積" -> 2023夏季賞与法定福利見積 | AA87: 7700305 | AB87: NS-0184 | AC87: =-IFERROR(ROUND(SUMIF(基データ!$C:$C,RIGHT(配賦額!AB87,4),基データ!$L:$L),0),0) -> 0 | AD87: =使い方!$B$7&使い方!$C$7&"賞与法定福利見積戻し" -> 2023夏季賞与法定福利見積戻し | AF87: 7700201 | AG87: NS-0184 | AH87: =IFERROR(ROUND(SUMIF(基データ!$Q:$Q,RIGHT(配賦額!AG87,4),基データ!$T:$T)/6,0),0) -> 0 | AI87: =使い方!$B$7&使い方!$C$7&"賞与見積(現業)" -> 2023夏季賞与見積(現業) | AK87: 7700201 | AL87: NS-0184 | AM87: =IFERROR(ROUND((SUMIF(基データ!$Q:$Q,RIGHT(配賦額!AL87,4),基データ!$T:$T)-AH87*5),0),0) -> 0 | AN87: =使い方!$B$7&使い方!$C$7&"賞与見積(現業)" -> 2023夏季賞与見積(現業) | AP87: 7700201 | AQ87: NS-0184 | AR87: =-IFERROR(ROUND(SUMIF(基データ!$Q:$Q,RIGHT(配賦額!AQ87,4),基データ!$T:$T),0),0) -> 0 | AS87: =使い方!$B$7&使い方!$C$7&"賞与見積戻し(現業)" -> 2023夏季賞与見積戻し(現業) | AU87: 7700202 | AV87: NS-0184 | AW87: =IFERROR(ROUND(SUMIF(基データ!$Q:$Q,RIGHT(配賦額!AV87,4),基データ!$U:$U)/6,0),0) -> 0 | AX87: =使い方!$B$7&使い方!$C$7&"賞与法定福利見積(現業)" -> 2023夏季賞与法定福利見積(現業) | AZ87: 7700202 | BA87: NS-0184 | BB87: =IFERROR(ROUND((SUMIF(基データ!$Q:$Q,RIGHT(配賦額!BA87,4),基データ!$U:$U)-AW87*5),0),0) -> 0 | BC87: =使い方!$B$7&使い方!$C$7&"賞与法定福利見積(現業)" -> 2023夏季賞与法定福利見積(現業) | BE87: 7700202 | BF87: NS-0184 | BG87: =-IFERROR(ROUND(SUMIF(基データ!$Q:$Q,RIGHT(配賦額!BF87,4),基データ!$U:$U),0),0) -> 0 | BH87: =使い方!$B$7&使い方!$C$7&"賞与法定福利見積戻し(現業)" -> 2023夏季賞与法定福利見積戻し(現業)
B88: 7700303 | C88: NS-0185 | D88: =IFERROR(ROUND(SUMIF(基データ!$C:$C,RIGHT(配賦額!C88,4),基データ!$I:$I)/6,0),0) -> 0 | E88: =使い方!$B$7&使い方!$C$7&"賞与見積" -> 2023夏季賞与見積 | G88: 7700303 | H88: NS-0185 | I88: =IFERROR(ROUND((SUMIF(基データ!$C:$C,RIGHT(配賦額!H88,4),基データ!$I:$I)-D88*5),0),0) -> 0 | J88: =使い方!$B$7&使い方!$C$7&"賞与見積" -> 2023夏季賞与見積 | L88: 7700303 | M88: NS-0185 | N88: =-IFERROR(ROUND(SUMIF(基データ!$C:$C,RIGHT(配賦額!M88,4),基データ!$I:$I),0),0) -> 0 | O88: =使い方!$B$7&使い方!$C$7&"賞与見積戻し" -> 2023夏季賞与見積戻し | Q88: 7700305 | R88: NS-0185 | S88: =IFERROR(ROUND(SUMIF(基データ!$C:$C,RIGHT(配賦額!R88,4),基データ!$L:$L)/6,0),0) -> 0 | T88: =使い方!$B$7&使い方!$C$7&"賞与法定福利見積" -> 2023夏季賞与法定福利見積 | V88: 7700305 | W88: NS-0185 | X88: =IFERROR(ROUND((SUMIF(基データ!$C:$C,RIGHT(配賦額!W88,4),基データ!$L:$L)-S88*5),0),0) -> 0 | Y88: =使い方!$B$7&使い方!$C$7&"賞与法定福利見積" -> 2023夏季賞与法定福利見積 | AA88: 7700305 | AB88: NS-0185 | AC88: =-IFERROR(ROUND(SUMIF(基データ!$C:$C,RIGHT(配賦額!AB88,4),基データ!$L:$L),0),0) -> 0 | AD88: =使い方!$B$7&使い方!$C$7&"賞与法定福利見積戻し" -> 2023夏季賞与法定福利見積戻し | AF88: 7700201 | AG88: NS-0185 | AH88: =IFERROR(ROUND(SUMIF(基データ!$Q:$Q,RIGHT(配賦額!AG88,4),基データ!$T:$T)/6,0),0) -> 0 | AI88: =使い方!$B$7&使い方!$C$7&"賞与見積(現業)" -> 2023夏季賞与見積(現業) | AK88: 7700201 | AL88: NS-0185 | AM88: =IFERROR(ROUND((SUMIF(基データ!$Q:$Q,RIGHT(配賦額!AL88,4),基データ!$T:$T)-AH88*5),0),0) -> 0 | AN88: =使い方!$B$7&使い方!$C$7&"賞与見積(現業)" -> 2023夏季賞与見積(現業) | AP88: 7700201 | AQ88: NS-0185 | AR88: =-IFERROR(ROUND(SUMIF(基データ!$Q:$Q,RIGHT(配賦額!AQ88,4),基データ!$T:$T),0),0) -> 0 | AS88: =使い方!$B$7&使い方!$C$7&"賞与見積戻し(現業)" -> 2023夏季賞与見積戻し(現業) | AU88: 7700202 | AV88: NS-0185 | AW88: =IFERROR(ROUND(SUMIF(基データ!$Q:$Q,RIGHT(配賦額!AV88,4),基データ!$U:$U)/6,0),0) -> 0 | AX88: =使い方!$B$7&使い方!$C$7&"賞与法定福利見積(現業)" -> 2023夏季賞与法定福利見積(現業) | AZ88: 7700202 | BA88: NS-0185 | BB88: =IFERROR(ROUND((SUMIF(基データ!$Q:$Q,RIGHT(配賦額!BA88,4),基データ!$U:$U)-AW88*5),0),0) -> 0 | BC88: =使い方!$B$7&使い方!$C$7&"賞与法定福利見積(現業)" -> 2023夏季賞与法定福利見積(現業) | BE88: 7700202 | BF88: NS-0185 | BG88: =-IFERROR(ROUND(SUMIF(基データ!$Q:$Q,RIGHT(配賦額!BF88,4),基データ!$U:$U),0),0) -> 0 | BH88: =使い方!$B$7&使い方!$C$7&"賞与法定福利見積戻し(現業)" -> 2023夏季賞与法定福利見積戻し(現業)
B89: 7700303 | C89: NS-0186 | D89: =IFERROR(ROUND(SUMIF(基データ!$C:$C,RIGHT(配賦額!C89,4),基データ!$I:$I)/6,0),0) -> 0 | E89: =使い方!$B$7&使い方!$C$7&"賞与見積" -> 2023夏季賞与見積 | G89: 7700303 | H89: NS-0186 | I89: =IFERROR(ROUND((SUMIF(基データ!$C:$C,RIGHT(配賦額!H89,4),基データ!$I:$I)-D89*5),0),0) -> 0 | J89: =使い方!$B$7&使い方!$C$7&"賞与見積" -> 2023夏季賞与見積 | L89: 7700303 | M89: NS-0186 | N89: =-IFERROR(ROUND(SUMIF(基データ!$C:$C,RIGHT(配賦額!M89,4),基データ!$I:$I),0),0) -> 0 | O89: =使い方!$B$7&使い方!$C$7&"賞与見積戻し" -> 2023夏季賞与見積戻し | Q89: 7700305 | R89: NS-0186 | S89: =IFERROR(ROUND(SUMIF(基データ!$C:$C,RIGHT(配賦額!R89,4),基データ!$L:$L)/6,0),0) -> 0 | T89: =使い方!$B$7&使い方!$C$7&"賞与法定福利見積" -> 2023夏季賞与法定福利見積 | V89: 7700305 | W89: NS-0186 | X89: =IFERROR(ROUND((SUMIF(基データ!$C:$C,RIGHT(配賦額!W89,4),基データ!$L:$L)-S89*5),0),0) -> 0 | Y89: =使い方!$B$7&使い方!$C$7&"賞与法定福利見積" -> 2023夏季賞与法定福利見積 | AA89: 7700305 | AB89: NS-0186 | AC89: =-IFERROR(ROUND(SUMIF(基データ!$C:$C,RIGHT(配賦額!AB89,4),基データ!$L:$L),0),0) -> 0 | AD89: =使い方!$B$7&使い方!$C$7&"賞与法定福利見積戻し" -> 2023夏季賞与法定福利見積戻し | AF89: 7700201 | AG89: NS-0186 | AH89: =IFERROR(ROUND(SUMIF(基データ!$Q:$Q,RIGHT(配賦額!AG89,4),基データ!$T:$T)/6,0),0) -> 0 | AI89: =使い方!$B$7&使い方!$C$7&"賞与見積(現業)" -> 2023夏季賞与見積(現業) | AK89: 7700201 | AL89: NS-0186 | AM89: =IFERROR(ROUND((SUMIF(基データ!$Q:$Q,RIGHT(配賦額!AL89,4),基データ!$T:$T)-AH89*5),0),0) -> 0 | AN89: =使い方!$B$7&使い方!$C$7&"賞与見積(現業)" -> 2023夏季賞与見積(現業) | AP89: 7700201 | AQ89: NS-0186 | AR89: =-IFERROR(ROUND(SUMIF(基データ!$Q:$Q,RIGHT(配賦額!AQ89,4),基データ!$T:$T),0),0) -> 0 | AS89: =使い方!$B$7&使い方!$C$7&"賞与見積戻し(現業)" -> 2023夏季賞与見積戻し(現業) | AU89: 7700202 | AV89: NS-0186 | AW89: =IFERROR(ROUND(SUMIF(基データ!$Q:$Q,RIGHT(配賦額!AV89,4),基データ!$U:$U)/6,0),0) -> 0 | AX89: =使い方!$B$7&使い方!$C$7&"賞与法定福利見積(現業)" -> 2023夏季賞与法定福利見積(現業) | AZ89: 7700202 | BA89: NS-0186 | BB89: =IFERROR(ROUND((SUMIF(基データ!$Q:$Q,RIGHT(配賦額!BA89,4),基データ!$U:$U)-AW89*5),0),0) -> 0 | BC89: =使い方!$B$7&使い方!$C$7&"賞与法定福利見積(現業)" -> 2023夏季賞与法定福利見積(現業) | BE89: 7700202 | BF89: NS-0186 | BG89: =-IFERROR(ROUND(SUMIF(基データ!$Q:$Q,RIGHT(配賦額!BF89,4),基データ!$U:$U),0),0) -> 0 | BH89: =使い方!$B$7&使い方!$C$7&"賞与法定福利見積戻し(現業)" -> 2023夏季賞与法定福利見積戻し(現業)
B90: 7700303 | C90: NS-0187 | D90: =IFERROR(ROUND(SUMIF(基データ!$C:$C,RIGHT(配賦額!C90,4),基データ!$I:$I)/6,0),0) -> 0 | E90: =使い方!$B$7&使い方!$C$7&"賞与見積" -> 2023夏季賞与見積 | G90: 7700303 | H90: NS-0187 | I90: =IFERROR(ROUND((SUMIF(基データ!$C:$C,RIGHT(配賦額!H90,4),基データ!$I:$I)-D90*5),0),0) -> 0 | J90: =使い方!$B$7&使い方!$C$7&"賞与見積" -> 2023夏季賞与見積 | L90: 7700303 | M90: NS-0187 | N90: =-IFERROR(ROUND(SUMIF(基データ!$C:$C,RIGHT(配賦額!M90,4),基データ!$I:$I),0),0) -> 0 | O90: =使い方!$B$7&使い方!$C$7&"賞与見積戻し" -> 2023夏季賞与見積戻し | Q90: 7700305 | R90: NS-0187 | S90: =IFERROR(ROUND(SUMIF(基データ!$C:$C,RIGHT(配賦額!R90,4),基データ!$L:$L)/6,0),0) -> 0 | T90: =使い方!$B$7&使い方!$C$7&"賞与法定福利見積" -> 2023夏季賞与法定福利見積 | V90: 7700305 | W90: NS-0187 | X90: =IFERROR(ROUND((SUMIF(基データ!$C:$C,RIGHT(配賦額!W90,4),基データ!$L:$L)-S90*5),0),0) -> 0 | Y90: =使い方!$B$7&使い方!$C$7&"賞与法定福利見積" -> 2023夏季賞与法定福利見積 | AA90: 7700305 | AB90: NS-0187 | AC90: =-IFERROR(ROUND(SUMIF(基データ!$C:$C,RIGHT(配賦額!AB90,4),基データ!$L:$L),0),0) -> 0 | AD90: =使い方!$B$7&使い方!$C$7&"賞与法定福利見積戻し" -> 2023夏季賞与法定福利見積戻し | AF90: 7700201 | AG90: NS-0187 | AH90: =IFERROR(ROUND(SUMIF(基データ!$Q:$Q,RIGHT(配賦額!AG90,4),基データ!$T:$T)/6,0),0) -> 0 | AI90: =使い方!$B$7&使い方!$C$7&"賞与見積(現業)" -> 2023夏季賞与見積(現業) | AK90: 7700201 | AL90: NS-0187 | AM90: =IFERROR(ROUND((SUMIF(基データ!$Q:$Q,RIGHT(配賦額!AL90,4),基データ!$T:$T)-AH90*5),0),0) -> 0 | AN90: =使い方!$B$7&使い方!$C$7&"賞与見積(現業)" -> 2023夏季賞与見積(現業) | AP90: 7700201 | AQ90: NS-0187 | AR90: =-IFERROR(ROUND(SUMIF(基データ!$Q:$Q,RIGHT(配賦額!AQ90,4),基データ!$T:$T),0),0) -> 0 | AS90: =使い方!$B$7&使い方!$C$7&"賞与見積戻し(現業)" -> 2023夏季賞与見積戻し(現業) | AU90: 7700202 | AV90: NS-0187 | AW90: =IFERROR(ROUND(SUMIF(基データ!$Q:$Q,RIGHT(配賦額!AV90,4),基データ!$U:$U)/6,0),0) -> 0 | AX90: =使い方!$B$7&使い方!$C$7&"賞与法定福利見積(現業)" -> 2023夏季賞与法定福利見積(現業) | AZ90: 7700202 | BA90: NS-0187 | BB90: =IFERROR(ROUND((SUMIF(基データ!$Q:$Q,RIGHT(配賦額!BA90,4),基データ!$U:$U)-AW90*5),0),0) -> 0 | BC90: =使い方!$B$7&使い方!$C$7&"賞与法定福利見積(現業)" -> 2023夏季賞与法定福利見積(現業) | BE90: 7700202 | BF90: NS-0187 | BG90: =-IFERROR(ROUND(SUMIF(基データ!$Q:$Q,RIGHT(配賦額!BF90,4),基データ!$U:$U),0),0) -> 0 | BH90: =使い方!$B$7&使い方!$C$7&"賞与法定福利見積戻し(現業)" -> 2023夏季賞与法定福利見積戻し(現業)
B91: 7700303 | C91: NS-0188 | D91: =IFERROR(ROUND(SUMIF(基データ!$C:$C,RIGHT(配賦額!C91,4),基データ!$I:$I)/6,0),0) -> 0 | E91: =使い方!$B$7&使い方!$C$7&"賞与見積" -> 2023夏季賞与見積 | G91: 7700303 | H91: NS-0188 | I91: =IFERROR(ROUND((SUMIF(基データ!$C:$C,RIGHT(配賦額!H91,4),基データ!$I:$I)-D91*5),0),0) -> 0 | J91: =使い方!$B$7&使い方!$C$7&"賞与見積" -> 2023夏季賞与見積 | L91: 7700303 | M91: NS-0188 | N91: =-IFERROR(ROUND(SUMIF(基データ!$C:$C,RIGHT(配賦額!M91,4),基データ!$I:$I),0),0) -> 0 | O91: =使い方!$B$7&使い方!$C$7&"賞与見積戻し" -> 2023夏季賞与見積戻し | Q91: 7700305 | R91: NS-0188 | S91: =IFERROR(ROUND(SUMIF(基データ!$C:$C,RIGHT(配賦額!R91,4),基データ!$L:$L)/6,0),0) -> 0 | T91: =使い方!$B$7&使い方!$C$7&"賞与法定福利見積" -> 2023夏季賞与法定福利見積 | V91: 7700305 | W91: NS-0188 | X91: =IFERROR(ROUND((SUMIF(基データ!$C:$C,RIGHT(配賦額!W91,4),基データ!$L:$L)-S91*5),0),0) -> 0 | Y91: =使い方!$B$7&使い方!$C$7&"賞与法定福利見積" -> 2023夏季賞与法定福利見積 | AA91: 7700305 | AB91: NS-0188 | AC91: =-IFERROR(ROUND(SUMIF(基データ!$C:$C,RIGHT(配賦額!AB91,4),基データ!$L:$L),0),0) -> 0 | AD91: =使い方!$B$7&使い方!$C$7&"賞与法定福利見積戻し" -> 2023夏季賞与法定福利見積戻し | AF91: 7700201 | AG91: NS-0188 | AH91: =IFERROR(ROUND(SUMIF(基データ!$Q:$Q,RIGHT(配賦額!AG91,4),基データ!$T:$T)/6,0),0) -> 0 | AI91: =使い方!$B$7&使い方!$C$7&"賞与見積(現業)" -> 2023夏季賞与見積(現業) | AK91: 7700201 | AL91: NS-0188 | AM91: =IFERROR(ROUND((SUMIF(基データ!$Q:$Q,RIGHT(配賦額!AL91,4),基データ!$T:$T)-AH91*5),0),0) -> 0 | AN91: =使い方!$B$7&使い方!$C$7&"賞与見積(現業)" -> 2023夏季賞与見積(現業) | AP91: 7700201 | AQ91: NS-0188 | AR91: =-IFERROR(ROUND(SUMIF(基データ!$Q:$Q,RIGHT(配賦額!AQ91,4),基データ!$T:$T),0),0) -> 0 | AS91: =使い方!$B$7&使い方!$C$7&"賞与見積戻し(現業)" -> 2023夏季賞与見積戻し(現業) | AU91: 7700202 | AV91: NS-0188 | AW91: =IFERROR(ROUND(SUMIF(基データ!$Q:$Q,RIGHT(配賦額!AV91,4),基データ!$U:$U)/6,0),0) -> 0 | AX91: =使い方!$B$7&使い方!$C$7&"賞与法定福利見積(現業)" -> 2023夏季賞与法定福利見積(現業) | AZ91: 7700202 | BA91: NS-0188 | BB91: =IFERROR(ROUND((SUMIF(基データ!$Q:$Q,RIGHT(配賦額!BA91,4),基データ!$U:$U)-AW91*5),0),0) -> 0 | BC91: =使い方!$B$7&使い方!$C$7&"賞与法定福利見積(現業)" -> 2023夏季賞与法定福利見積(現業) | BE91: 7700202 | BF91: NS-0188 | BG91: =-IFERROR(ROUND(SUMIF(基データ!$Q:$Q,RIGHT(配賦額!BF91,4),基データ!$U:$U),0),0) -> 0 | BH91: =使い方!$B$7&使い方!$C$7&"賞与法定福利見積戻し(現業)" -> 2023夏季賞与法定福利見積戻し(現業)
B92: 7700303 | C92: NS-0189 | D92: =IFERROR(ROUND(SUMIF(基データ!$C:$C,RIGHT(配賦額!C92,4),基データ!$I:$I)/6,0),0) -> 0 | E92: =使い方!$B$7&使い方!$C$7&"賞与見積" -> 2023夏季賞与見積 | G92: 7700303 | H92: NS-0189 | I92: =IFERROR(ROUND((SUMIF(基データ!$C:$C,RIGHT(配賦額!H92,4),基データ!$I:$I)-D92*5),0),0) -> 0 | J92: =使い方!$B$7&使い方!$C$7&"賞与見積" -> 2023夏季賞与見積 | L92: 7700303 | M92: NS-0189 | N92: =-IFERROR(ROUND(SUMIF(基データ!$C:$C,RIGHT(配賦額!M92,4),基データ!$I:$I),0),0) -> 0 | O92: =使い方!$B$7&使い方!$C$7&"賞与見積戻し" -> 2023夏季賞与見積戻し | Q92: 7700305 | R92: NS-0189 | S92: =IFERROR(ROUND(SUMIF(基データ!$C:$C,RIGHT(配賦額!R92,4),基データ!$L:$L)/6,0),0) -> 0 | T92: =使い方!$B$7&使い方!$C$7&"賞与法定福利見積" -> 2023夏季賞与法定福利見積 | V92: 7700305 | W92: NS-0189 | X92: =IFERROR(ROUND((SUMIF(基データ!$C:$C,RIGHT(配賦額!W92,4),基データ!$L:$L)-S92*5),0),0) -> 0 | Y92: =使い方!$B$7&使い方!$C$7&"賞与法定福利見積" -> 2023夏季賞与法定福利見積 | AA92: 7700305 | AB92: NS-0189 | AC92: =-IFERROR(ROUND(SUMIF(基データ!$C:$C,RIGHT(配賦額!AB92,4),基データ!$L:$L),0),0) -> 0 | AD92: =使い方!$B$7&使い方!$C$7&"賞与法定福利見積戻し" -> 2023夏季賞与法定福利見積戻し | AF92: 7700201 | AG92: NS-0189 | AH92: =IFERROR(ROUND(SUMIF(基データ!$Q:$Q,RIGHT(配賦額!AG92,4),基データ!$T:$T)/6,0),0) -> 0 | AI92: =使い方!$B$7&使い方!$C$7&"賞与見積(現業)" -> 2023夏季賞与見積(現業) | AK92: 7700201 | AL92: NS-0189 | AM92: =IFERROR(ROUND((SUMIF(基データ!$Q:$Q,RIGHT(配賦額!AL92,4),基データ!$T:$T)-AH92*5),0),0) -> 0 | AN92: =使い方!$B$7&使い方!$C$7&"賞与見積(現業)" -> 2023夏季賞与見積(現業) | AP92: 7700201 | AQ92: NS-0189 | AR92: =-IFERROR(ROUND(SUMIF(基データ!$Q:$Q,RIGHT(配賦額!AQ92,4),基データ!$T:$T),0),0) -> 0 | AS92: =使い方!$B$7&使い方!$C$7&"賞与見積戻し(現業)" -> 2023夏季賞与見積戻し(現業) | AU92: 7700202 | AV92: NS-0189 | AW92: =IFERROR(ROUND(SUMIF(基データ!$Q:$Q,RIGHT(配賦額!AV92,4),基データ!$U:$U)/6,0),0) -> 0 | AX92: =使い方!$B$7&使い方!$C$7&"賞与法定福利見積(現業)" -> 2023夏季賞与法定福利見積(現業) | AZ92: 7700202 | BA92: NS-0189 | BB92: =IFERROR(ROUND((SUMIF(基データ!$Q:$Q,RIGHT(配賦額!BA92,4),基データ!$U:$U)-AW92*5),0),0) -> 0 | BC92: =使い方!$B$7&使い方!$C$7&"賞与法定福利見積(現業)" -> 2023夏季賞与法定福利見積(現業) | BE92: 7700202 | BF92: NS-0189 | BG92: =-IFERROR(ROUND(SUMIF(基データ!$Q:$Q,RIGHT(配賦額!BF92,4),基データ!$U:$U),0),0) -> 0 | BH92: =使い方!$B$7&使い方!$C$7&"賞与法定福利見積戻し(現業)" -> 2023夏季賞与法定福利見積戻し(現業)
B93: 7700303 | C93: NS-0190 | D93: =IFERROR(ROUND(SUMIF(基データ!$C:$C,RIGHT(配賦額!C93,4),基データ!$I:$I)/6,0),0) -> 0 | E93: =使い方!$B$7&使い方!$C$7&"賞与見積" -> 2023夏季賞与見積 | G93: 7700303 | H93: NS-0190 | I93: =IFERROR(ROUND((SUMIF(基データ!$C:$C,RIGHT(配賦額!H93,4),基データ!$I:$I)-D93*5),0),0) -> 0 | J93: =使い方!$B$7&使い方!$C$7&"賞与見積" -> 2023夏季賞与見積 | L93: 7700303 | M93: NS-0190 | N93: =-IFERROR(ROUND(SUMIF(基データ!$C:$C,RIGHT(配賦額!M93,4),基データ!$I:$I),0),0) -> 0 | O93: =使い方!$B$7&使い方!$C$7&"賞与見積戻し" -> 2023夏季賞与見積戻し | Q93: 7700305 | R93: NS-0190 | S93: =IFERROR(ROUND(SUMIF(基データ!$C:$C,RIGHT(配賦額!R93,4),基データ!$L:$L)/6,0),0) -> 0 | T93: =使い方!$B$7&使い方!$C$7&"賞与法定福利見積" -> 2023夏季賞与法定福利見積 | V93: 7700305 | W93: NS-0190 | X93: =IFERROR(ROUND((SUMIF(基データ!$C:$C,RIGHT(配賦額!W93,4),基データ!$L:$L)-S93*5),0),0) -> 0 | Y93: =使い方!$B$7&使い方!$C$7&"賞与法定福利見積" -> 2023夏季賞与法定福利見積 | AA93: 7700305 | AB93: NS-0190 | AC93: =-IFERROR(ROUND(SUMIF(基データ!$C:$C,RIGHT(配賦額!AB93,4),基データ!$L:$L),0),0) -> 0 | AD93: =使い方!$B$7&使い方!$C$7&"賞与法定福利見積戻し" -> 2023夏季賞与法定福利見積戻し | AF93: 7700201 | AG93: NS-0190 | AH93: =IFERROR(ROUND(SUMIF(基データ!$Q:$Q,RIGHT(配賦額!AG93,4),基データ!$T:$T)/6,0),0) -> 0 | AI93: =使い方!$B$7&使い方!$C$7&"賞与見積(現業)" -> 2023夏季賞与見積(現業) | AK93: 7700201 | AL93: NS-0190 | AM93: =IFERROR(ROUND((SUMIF(基データ!$Q:$Q,RIGHT(配賦額!AL93,4),基データ!$T:$T)-AH93*5),0),0) -> 0 | AN93: =使い方!$B$7&使い方!$C$7&"賞与見積(現業)" -> 2023夏季賞与見積(現業) | AP93: 7700201 | AQ93: NS-0190 | AR93: =-IFERROR(ROUND(SUMIF(基データ!$Q:$Q,RIGHT(配賦額!AQ93,4),基データ!$T:$T),0),0) -> 0 | AS93: =使い方!$B$7&使い方!$C$7&"賞与見積戻し(現業)" -> 2023夏季賞与見積戻し(現業) | AU93: 7700202 | AV93: NS-0190 | AW93: =IFERROR(ROUND(SUMIF(基データ!$Q:$Q,RIGHT(配賦額!AV93,4),基データ!$U:$U)/6,0),0) -> 0 | AX93: =使い方!$B$7&使い方!$C$7&"賞与法定福利見積(現業)" -> 2023夏季賞与法定福利見積(現業) | AZ93: 7700202 | BA93: NS-0190 | BB93: =IFERROR(ROUND((SUMIF(基データ!$Q:$Q,RIGHT(配賦額!BA93,4),基データ!$U:$U)-AW93*5),0),0) -> 0 | BC93: =使い方!$B$7&使い方!$C$7&"賞与法定福利見積(現業)" -> 2023夏季賞与法定福利見積(現業) | BE93: 7700202 | BF93: NS-0190 | BG93: =-IFERROR(ROUND(SUMIF(基データ!$Q:$Q,RIGHT(配賦額!BF93,4),基データ!$U:$U),0),0) -> 0 | BH93: =使い方!$B$7&使い方!$C$7&"賞与法定福利見積戻し(現業)" -> 2023夏季賞与法定福利見積戻し(現業)
B94: 7700303 | C94: NS-0191 | D94: =IFERROR(ROUND(SUMIF(基データ!$C:$C,RIGHT(配賦額!C94,4),基データ!$D:$D)/6,0),0) -> 11778117 | E94: =使い方!$B$7&使い方!$C$7&"賞与見積" -> 2023夏季賞与見積 | G94: 7700303 | H94: NS-0191 | I94: =IFERROR(ROUND((SUMIF(基データ!$C:$C,RIGHT(配賦額!H94,4),基データ!$D:$D)-D94*5),0),0) -> 11778115 | J94: =使い方!$B$7&使い方!$C$7&"賞与見積" -> 2023夏季賞与見積 | L94: 7700303 | M94: NS-0191 | N94: =-IFERROR(ROUND(SUMIF(基データ!$C:$C,RIGHT(配賦額!M94,4),基データ!$D:$D),0),0) -> -70668700 | O94: =使い方!$B$7&使い方!$C$7&"賞与見積戻し" -> 2023夏季賞与見積戻し | Q94: 7700305 | R94: NS-0191 | S94: =IFERROR(ROUND(SUMIF(基データ!$C:$C,RIGHT(配賦額!R94,4),基データ!$J:$J)/6,0),0) -> 1731036 | T94: =使い方!$B$7&使い方!$C$7&"賞与法定福利見積" -> 2023夏季賞与法定福利見積 | V94: 7700305 | W94: NS-0191 | X94: =IFERROR(ROUND((SUMIF(基データ!$C:$C,RIGHT(配賦額!W94,4),基データ!$L:$L)-S94*5),0),0) -> 1731036 | Y94: =使い方!$B$7&使い方!$C$7&"賞与法定福利見積" -> 2023夏季賞与法定福利見積 | AA94: 7700305 | AB94: NS-0191 | AC94: =-IFERROR(ROUND(SUMIF(基データ!$C:$C,RIGHT(配賦額!AB94,4),基データ!$J:$J),0),0) -> -10386216 | AD94: =使い方!$B$7&使い方!$C$7&"賞与法定福利見積戻し" -> 2023夏季賞与法定福利見積戻し | AF94: 7700201 | AG94: NS-0191 | AH94: =IFERROR(ROUND(SUMIF(基データ!$Q:$Q,RIGHT(配賦額!AG94,4),基データ!$T:$T)/6,0),0) -> 1646333 | AI94: =使い方!$B$7&使い方!$C$7&"賞与見積(現業)" -> 2023夏季賞与見積(現業) | AK94: 7700201 | AL94: NS-0191 | AM94: =IFERROR(ROUND((SUMIF(基データ!$Q:$Q,RIGHT(配賦額!AL94,4),基データ!$T:$T)-AH94*5),0),0) -> 1646335 | AN94: =使い方!$B$7&使い方!$C$7&"賞与見積(現業)" -> 2023夏季賞与見積(現業) | AP94: 7700201 | AQ94: NS-0191 | AR94: =-IFERROR(ROUND(SUMIF(基データ!$Q:$Q,RIGHT(配賦額!AQ94,4),基データ!$T:$T),0),0) -> -9878000 | AS94: =使い方!$B$7&使い方!$C$7&"賞与見積戻し(現業)" -> 2023夏季賞与見積戻し(現業) | AU94: 7700202 | AV94: NS-0191 | AW94: =IFERROR(ROUND(SUMIF(基データ!$Q:$Q,RIGHT(配賦額!AV94,4),基データ!$U:$U)/6,0),0) -> 266211 | AX94: =使い方!$B$7&使い方!$C$7&"賞与法定福利見積(現業)" -> 2023夏季賞与法定福利見積(現業) | AZ94: 7700202 | BA94: NS-0191 | BB94: =IFERROR(ROUND((SUMIF(基データ!$Q:$Q,RIGHT(配賦額!BA94,4),基データ!$U:$U)-AW94*5),0),0) -> 266211 | BC94: =使い方!$B$7&使い方!$C$7&"賞与法定福利見積(現業)" -> 2023夏季賞与法定福利見積(現業) | BE94: 7700202 | BF94: NS-0191 | BG94: =-IFERROR(ROUND(SUMIF(基データ!$Q:$Q,RIGHT(配賦額!BF94,4),基データ!$U:$U),0),0) -> -1597266 | BH94: =使い方!$B$7&使い方!$C$7&"賞与法定福利見積戻し(現業)" -> 2023夏季賞与法定福利見積戻し(現業)
B95: 7700303 | C95: NS-0192 | D95: =IFERROR(ROUND(SUMIF(基データ!$C:$C,RIGHT(配賦額!C95,4),基データ!$I:$I)/6,0),0) -> 0 | E95: =使い方!$B$7&使い方!$C$7&"賞与見積" -> 2023夏季賞与見積 | G95: 7700303 | H95: NS-0192 | I95: =IFERROR(ROUND((SUMIF(基データ!$C:$C,RIGHT(配賦額!H95,4),基データ!$I:$I)-D95*5),0),0) -> 0 | J95: =使い方!$B$7&使い方!$C$7&"賞与見積" -> 2023夏季賞与見積 | L95: 7700303 | M95: NS-0192 | N95: =-IFERROR(ROUND(SUMIF(基データ!$C:$C,RIGHT(配賦額!M95,4),基データ!$I:$I),0),0) -> 0 | O95: =使い方!$B$7&使い方!$C$7&"賞与見積戻し" -> 2023夏季賞与見積戻し | Q95: 7700305 | R95: NS-0192 | S95: =IFERROR(ROUND(SUMIF(基データ!$C:$C,RIGHT(配賦額!R95,4),基データ!$L:$L)/6,0),0) -> 0 | T95: =使い方!$B$7&使い方!$C$7&"賞与法定福利見積" -> 2023夏季賞与法定福利見積 | V95: 7700305 | W95: NS-0192 | X95: =IFERROR(ROUND((SUMIF(基データ!$C:$C,RIGHT(配賦額!W95,4),基データ!$L:$L)-S95*5),0),0) -> 0 | Y95: =使い方!$B$7&使い方!$C$7&"賞与法定福利見積" -> 2023夏季賞与法定福利見積 | AA95: 7700305 | AB95: NS-0192 | AC95: =-IFERROR(ROUND(SUMIF(基データ!$C:$C,RIGHT(配賦額!AB95,4),基データ!$L:$L),0),0) -> 0 | AD95: =使い方!$B$7&使い方!$C$7&"賞与法定福利見積戻し" -> 2023夏季賞与法定福利見積戻し | AF95: 7700201 | AG95: NS-0192 | AH95: =IFERROR(ROUND(SUMIF(基データ!$Q:$Q,RIGHT(配賦額!AG95,4),基データ!$T:$T)/6,0),0) -> 0 | AI95: =使い方!$B$7&使い方!$C$7&"賞与見積(現業)" -> 2023夏季賞与見積(現業) | AK95: 7700201 | AL95: NS-0192 | AM95: =IFERROR(ROUND((SUMIF(基データ!$Q:$Q,RIGHT(配賦額!AL95,4),基データ!$T:$T)-AH95*5),0),0) -> 0 | AN95: =使い方!$B$7&使い方!$C$7&"賞与見積(現業)" -> 2023夏季賞与見積(現業) | AP95: 7700201 | AQ95: NS-0192 | AR95: =-IFERROR(ROUND(SUMIF(基データ!$Q:$Q,RIGHT(配賦額!AQ95,4),基データ!$T:$T),0),0) -> 0 | AS95: =使い方!$B$7&使い方!$C$7&"賞与見積戻し(現業)" -> 2023夏季賞与見積戻し(現業) | AU95: 7700202 | AV95: NS-0192 | AW95: =IFERROR(ROUND(SUMIF(基データ!$Q:$Q,RIGHT(配賦額!AV95,4),基データ!$U:$U)/6,0),0) -> 0 | AX95: =使い方!$B$7&使い方!$C$7&"賞与法定福利見積(現業)" -> 2023夏季賞与法定福利見積(現業) | AZ95: 7700202 | BA95: NS-0192 | BB95: =IFERROR(ROUND((SUMIF(基データ!$Q:$Q,RIGHT(配賦額!BA95,4),基データ!$U:$U)-AW95*5),0),0) -> 0 | BC95: =使い方!$B$7&使い方!$C$7&"賞与法定福利見積(現業)" -> 2023夏季賞与法定福利見積(現業) | BE95: 7700202 | BF95: NS-0192 | BG95: =-IFERROR(ROUND(SUMIF(基データ!$Q:$Q,RIGHT(配賦額!BF95,4),基データ!$U:$U),0),0) -> 0 | BH95: =使い方!$B$7&使い方!$C$7&"賞与法定福利見積戻し(現業)" -> 2023夏季賞与法定福利見積戻し(現業)
B96: 7700303 | C96: NS-0193 | D96: =IFERROR(ROUND(SUMIF(基データ!$C:$C,RIGHT(配賦額!C96,4),基データ!$I:$I)/6,0),0) -> 16667 | E96: =使い方!$B$7&使い方!$C$7&"賞与見積" -> 2023夏季賞与見積 | G96: 7700303 | H96: NS-0193 | I96: =IFERROR(ROUND((SUMIF(基データ!$C:$C,RIGHT(配賦額!H96,4),基データ!$I:$I)-D96*5),0),0) -> 16665 | J96: =使い方!$B$7&使い方!$C$7&"賞与見積" -> 2023夏季賞与見積 | L96: 7700303 | M96: NS-0193 | N96: =-IFERROR(ROUND(SUMIF(基データ!$C:$C,RIGHT(配賦額!M96,4),基データ!$I:$I),0),0) -> -100000 | O96: =使い方!$B$7&使い方!$C$7&"賞与見積戻し" -> 2023夏季賞与見積戻し | Q96: 7700305 | R96: NS-0193 | S96: =IFERROR(ROUND(SUMIF(基データ!$C:$C,RIGHT(配賦額!R96,4),基データ!$L:$L)/6,0),0) -> 1060 | T96: =使い方!$B$7&使い方!$C$7&"賞与法定福利見積" -> 2023夏季賞与法定福利見積 | V96: 7700305 | W96: NS-0193 | X96: =IFERROR(ROUND((SUMIF(基データ!$C:$C,RIGHT(配賦額!W96,4),基データ!$L:$L)-S96*5),0),0) -> 1060 | Y96: =使い方!$B$7&使い方!$C$7&"賞与法定福利見積" -> 2023夏季賞与法定福利見積 | AA96: 7700305 | AB96: NS-0193 | AC96: =-IFERROR(ROUND(SUMIF(基データ!$C:$C,RIGHT(配賦額!AB96,4),基データ!$L:$L),0),0) -> -6360 | AD96: =使い方!$B$7&使い方!$C$7&"賞与法定福利見積戻し" -> 2023夏季賞与法定福利見積戻し | AF96: 7700201 | AG96: NS-0193 | AH96: =IFERROR(ROUND(SUMIF(基データ!$Q:$Q,RIGHT(配賦額!AG96,4),基データ!$T:$T)/6,0),0) -> 0 | AI96: =使い方!$B$7&使い方!$C$7&"賞与見積(現業)" -> 2023夏季賞与見積(現業) | AK96: 7700201 | AL96: NS-0193 | AM96: =IFERROR(ROUND((SUMIF(基データ!$Q:$Q,RIGHT(配賦額!AL96,4),基データ!$T:$T)-AH96*5),0),0) -> 0 | AN96: =使い方!$B$7&使い方!$C$7&"賞与見積(現業)" -> 2023夏季賞与見積(現業) | AP96: 7700201 | AQ96: NS-0193 | AR96: =-IFERROR(ROUND(SUMIF(基データ!$Q:$Q,RIGHT(配賦額!AQ96,4),基データ!$T:$T),0),0) -> 0 | AS96: =使い方!$B$7&使い方!$C$7&"賞与見積戻し(現業)" -> 2023夏季賞与見積戻し(現業) | AU96: 7700202 | AV96: NS-0193 | AW96: =IFERROR(ROUND(SUMIF(基データ!$Q:$Q,RIGHT(配賦額!AV96,4),基データ!$U:$U)/6,0),0) -> 0 | AX96: =使い方!$B$7&使い方!$C$7&"賞与法定福利見積(現業)" -> 2023夏季賞与法定福利見積(現業) | AZ96: 7700202 | BA96: NS-0193 | BB96: =IFERROR(ROUND((SUMIF(基データ!$Q:$Q,RIGHT(配賦額!BA96,4),基データ!$U:$U)-AW96*5),0),0) -> 0 | BC96: =使い方!$B$7&使い方!$C$7&"賞与法定福利見積(現業)" -> 2023夏季賞与法定福利見積(現業) | BE96: 7700202 | BF96: NS-0193 | BG96: =-IFERROR(ROUND(SUMIF(基データ!$Q:$Q,RIGHT(配賦額!BF96,4),基データ!$U:$U),0),0) -> 0 | BH96: =使い方!$B$7&使い方!$C$7&"賞与法定福利見積戻し(現業)" -> 2023夏季賞与法定福利見積戻し(現業)
B97: 7700303 | C97: NS-0194 | D97: =IFERROR(ROUND(SUMIF(基データ!$C:$C,RIGHT(配賦額!C97,4),基データ!$I:$I)/6,0),0) -> 0 | E97: =使い方!$B$7&使い方!$C$7&"賞与見積" -> 2023夏季賞与見積 | G97: 7700303 | H97: NS-0194 | I97: =IFERROR(ROUND((SUMIF(基データ!$C:$C,RIGHT(配賦額!H97,4),基データ!$I:$I)-D97*5),0),0) -> 0 | J97: =使い方!$B$7&使い方!$C$7&"賞与見積" -> 2023夏季賞与見積 | L97: 7700303 | M97: NS-0194 | N97: =-IFERROR(ROUND(SUMIF(基データ!$C:$C,RIGHT(配賦額!M97,4),基データ!$I:$I),0),0) -> 0 | O97: =使い方!$B$7&使い方!$C$7&"賞与見積戻し" -> 2023夏季賞与見積戻し | Q97: 7700305 | R97: NS-0194 | S97: =IFERROR(ROUND(SUMIF(基データ!$C:$C,RIGHT(配賦額!R97,4),基データ!$L:$L)/6,0),0) -> 0 | T97: =使い方!$B$7&使い方!$C$7&"賞与法定福利見積" -> 2023夏季賞与法定福利見積 | V97: 7700305 | W97: NS-0194 | X97: =IFERROR(ROUND((SUMIF(基データ!$C:$C,RIGHT(配賦額!W97,4),基データ!$L:$L)-S97*5),0),0) -> 0 | Y97: =使い方!$B$7&使い方!$C$7&"賞与法定福利見積" -> 2023夏季賞与法定福利見積 | AA97: 7700305 | AB97: NS-0194 | AC97: =-IFERROR(ROUND(SUMIF(基データ!$C:$C,RIGHT(配賦額!AB97,4),基データ!$L:$L),0),0) -> 0 | AD97: =使い方!$B$7&使い方!$C$7&"賞与法定福利見積戻し" -> 2023夏季賞与法定福利見積戻し | AF97: 7700201 | AG97: NS-0194 | AH97: =IFERROR(ROUND(SUMIF(基データ!$Q:$Q,RIGHT(配賦額!AG97,4),基データ!$T:$T)/6,0),0) -> 0 | AI97: =使い方!$B$7&使い方!$C$7&"賞与見積(現業)" -> 2023夏季賞与見積(現業) | AK97: 7700201 | AL97: NS-0194 | AM97: =IFERROR(ROUND((SUMIF(基データ!$Q:$Q,RIGHT(配賦額!AL97,4),基データ!$T:$T)-AH97*5),0),0) -> 0 | AN97: =使い方!$B$7&使い方!$C$7&"賞与見積(現業)" -> 2023夏季賞与見積(現業) | AP97: 7700201 | AQ97: NS-0194 | AR97: =-IFERROR(ROUND(SUMIF(基データ!$Q:$Q,RIGHT(配賦額!AQ97,4),基データ!$T:$T),0),0) -> 0 | AS97: =使い方!$B$7&使い方!$C$7&"賞与見積戻し(現業)" -> 2023夏季賞与見積戻し(現業) | AU97: 7700202 | AV97: NS-0194 | AW97: =IFERROR(ROUND(SUMIF(基データ!$Q:$Q,RIGHT(配賦額!AV97,4),基データ!$U:$U)/6,0),0) -> 0 | AX97: =使い方!$B$7&使い方!$C$7&"賞与法定福利見積(現業)" -> 2023夏季賞与法定福利見積(現業) | AZ97: 7700202 | BA97: NS-0194 | BB97: =IFERROR(ROUND((SUMIF(基データ!$Q:$Q,RIGHT(配賦額!BA97,4),基データ!$U:$U)-AW97*5),0),0) -> 0 | BC97: =使い方!$B$7&使い方!$C$7&"賞与法定福利見積(現業)" -> 2023夏季賞与法定福利見積(現業) | BE97: 7700202 | BF97: NS-0194 | BG97: =-IFERROR(ROUND(SUMIF(基データ!$Q:$Q,RIGHT(配賦額!BF97,4),基データ!$U:$U),0),0) -> 0 | BH97: =使い方!$B$7&使い方!$C$7&"賞与法定福利見積戻し(現業)" -> 2023夏季賞与法定福利見積戻し(現業)
B98: 7700303 | C98: NS-0195 | D98: =IFERROR(ROUND(SUMIF(基データ!$C:$C,RIGHT(配賦額!C98,4),基データ!$I:$I)/6,0),0) -> 0 | E98: =使い方!$B$7&使い方!$C$7&"賞与見積" -> 2023夏季賞与見積 | G98: 7700303 | H98: NS-0195 | I98: =IFERROR(ROUND((SUMIF(基データ!$C:$C,RIGHT(配賦額!H98,4),基データ!$I:$I)-D98*5),0),0) -> 0 | J98: =使い方!$B$7&使い方!$C$7&"賞与見積" -> 2023夏季賞与見積 | L98: 7700303 | M98: NS-0195 | N98: =-IFERROR(ROUND(SUMIF(基データ!$C:$C,RIGHT(配賦額!M98,4),基データ!$I:$I),0),0) -> 0 | O98: =使い方!$B$7&使い方!$C$7&"賞与見積戻し" -> 2023夏季賞与見積戻し | Q98: 7700305 | R98: NS-0195 | S98: =IFERROR(ROUND(SUMIF(基データ!$C:$C,RIGHT(配賦額!R98,4),基データ!$L:$L)/6,0),0) -> 0 | T98: =使い方!$B$7&使い方!$C$7&"賞与法定福利見積" -> 2023夏季賞与法定福利見積 | V98: 7700305 | W98: NS-0195 | X98: =IFERROR(ROUND((SUMIF(基データ!$C:$C,RIGHT(配賦額!W98,4),基データ!$L:$L)-S98*5),0),0) -> 0 | Y98: =使い方!$B$7&使い方!$C$7&"賞与法定福利見積" -> 2023夏季賞与法定福利見積 | AA98: 7700305 | AB98: NS-0195 | AC98: =-IFERROR(ROUND(SUMIF(基データ!$C:$C,RIGHT(配賦額!AB98,4),基データ!$L:$L),0),0) -> 0 | AD98: =使い方!$B$7&使い方!$C$7&"賞与法定福利見積戻し" -> 2023夏季賞与法定福利見積戻し | AF98: 7700201 | AG98: NS-0195 | AH98: =IFERROR(ROUND(SUMIF(基データ!$Q:$Q,RIGHT(配賦額!AG98,4),基データ!$T:$T)/6,0),0) -> 0 | AI98: =使い方!$B$7&使い方!$C$7&"賞与見積(現業)" -> 2023夏季賞与見積(現業) | AK98: 7700201 | AL98: NS-0195 | AM98: =IFERROR(ROUND((SUMIF(基データ!$Q:$Q,RIGHT(配賦額!AL98,4),基データ!$T:$T)-AH98*5),0),0) -> 0 | AN98: =使い方!$B$7&使い方!$C$7&"賞与見積(現業)" -> 2023夏季賞与見積(現業) | AP98: 7700201 | AQ98: NS-0195 | AR98: =-IFERROR(ROUND(SUMIF(基データ!$Q:$Q,RIGHT(配賦額!AQ98,4),基データ!$T:$T),0),0) -> 0 | AS98: =使い方!$B$7&使い方!$C$7&"賞与見積戻し(現業)" -> 2023夏季賞与見積戻し(現業) | AU98: 7700202 | AV98: NS-0195 | AW98: =IFERROR(ROUND(SUMIF(基データ!$Q:$Q,RIGHT(配賦額!AV98,4),基データ!$U:$U)/6,0),0) -> 0 | AX98: =使い方!$B$7&使い方!$C$7&"賞与法定福利見積(現業)" -> 2023夏季賞与法定福利見積(現業) | AZ98: 7700202 | BA98: NS-0195 | BB98: =IFERROR(ROUND((SUMIF(基データ!$Q:$Q,RIGHT(配賦額!BA98,4),基データ!$U:$U)-AW98*5),0),0) -> 0 | BC98: =使い方!$B$7&使い方!$C$7&"賞与法定福利見積(現業)" -> 2023夏季賞与法定福利見積(現業) | BE98: 7700202 | BF98: NS-0195 | BG98: =-IFERROR(ROUND(SUMIF(基データ!$Q:$Q,RIGHT(配賦額!BF98,4),基データ!$U:$U),0),0) -> 0 | BH98: =使い方!$B$7&使い方!$C$7&"賞与法定福利見積戻し(現業)" -> 2023夏季賞与法定福利見積戻し(現業)
B99: 7700303 | C99: NS-0196 | D99: =IFERROR(ROUND(SUMIF(基データ!$C:$C,RIGHT(配賦額!C99,4),基データ!$I:$I)/6,0),0) -> 0 | E99: =使い方!$B$7&使い方!$C$7&"賞与見積" -> 2023夏季賞与見積 | G99: 7700303 | H99: NS-0196 | I99: =IFERROR(ROUND((SUMIF(基データ!$C:$C,RIGHT(配賦額!H99,4),基データ!$I:$I)-D99*5),0),0) -> 0 | J99: =使い方!$B$7&使い方!$C$7&"賞与見積" -> 2023夏季賞与見積 | L99: 7700303 | M99: NS-0196 | N99: =-IFERROR(ROUND(SUMIF(基データ!$C:$C,RIGHT(配賦額!M99,4),基データ!$I:$I),0),0) -> 0 | O99: =使い方!$B$7&使い方!$C$7&"賞与見積戻し" -> 2023夏季賞与見積戻し | Q99: 7700305 | R99: NS-0196 | S99: =IFERROR(ROUND(SUMIF(基データ!$C:$C,RIGHT(配賦額!R99,4),基データ!$L:$L)/6,0),0) -> 0 | T99: =使い方!$B$7&使い方!$C$7&"賞与法定福利見積" -> 2023夏季賞与法定福利見積 | V99: 7700305 | W99: NS-0196 | X99: =IFERROR(ROUND((SUMIF(基データ!$C:$C,RIGHT(配賦額!W99,4),基データ!$L:$L)-S99*5),0),0) -> 0 | Y99: =使い方!$B$7&使い方!$C$7&"賞与法定福利見積" -> 2023夏季賞与法定福利見積 | AA99: 7700305 | AB99: NS-0196 | AC99: =-IFERROR(ROUND(SUMIF(基データ!$C:$C,RIGHT(配賦額!AB99,4),基データ!$L:$L),0),0) -> 0 | AD99: =使い方!$B$7&使い方!$C$7&"賞与法定福利見積戻し" -> 2023夏季賞与法定福利見積戻し | AF99: 7700201 | AG99: NS-0196 | AH99: =IFERROR(ROUND(SUMIF(基データ!$Q:$Q,RIGHT(配賦額!AG99,4),基データ!$T:$T)/6,0),0) -> 0 | AI99: =使い方!$B$7&使い方!$C$7&"賞与見積(現業)" -> 2023夏季賞与見積(現業) | AK99: 7700201 | AL99: NS-0196 | AM99: =IFERROR(ROUND((SUMIF(基データ!$Q:$Q,RIGHT(配賦額!AL99,4),基データ!$T:$T)-AH99*5),0),0) -> 0 | AN99: =使い方!$B$7&使い方!$C$7&"賞与見積(現業)" -> 2023夏季賞与見積(現業) | AP99: 7700201 | AQ99: NS-0196 | AR99: =-IFERROR(ROUND(SUMIF(基データ!$Q:$Q,RIGHT(配賦額!AQ99,4),基データ!$T:$T),0),0) -> 0 | AS99: =使い方!$B$7&使い方!$C$7&"賞与見積戻し(現業)" -> 2023夏季賞与見積戻し(現業) | AU99: 7700202 | AV99: NS-0196 | AW99: =IFERROR(ROUND(SUMIF(基データ!$Q:$Q,RIGHT(配賦額!AV99,4),基データ!$U:$U)/6,0),0) -> 0 | AX99: =使い方!$B$7&使い方!$C$7&"賞与法定福利見積(現業)" -> 2023夏季賞与法定福利見積(現業) | AZ99: 7700202 | BA99: NS-0196 | BB99: =IFERROR(ROUND((SUMIF(基データ!$Q:$Q,RIGHT(配賦額!BA99,4),基データ!$U:$U)-AW99*5),0),0) -> 0 | BC99: =使い方!$B$7&使い方!$C$7&"賞与法定福利見積(現業)" -> 2023夏季賞与法定福利見積(現業) | BE99: 7700202 | BF99: NS-0196 | BG99: =-IFERROR(ROUND(SUMIF(基データ!$Q:$Q,RIGHT(配賦額!BF99,4),基データ!$U:$U),0),0) -> 0 | BH99: =使い方!$B$7&使い方!$C$7&"賞与法定福利見積戻し(現業)" -> 2023夏季賞与法定福利見積戻し(現業)
B100: 7700303 | C100: NS-0197 | D100: =IFERROR(ROUND(SUMIF(基データ!$C:$C,RIGHT(配賦額!C100,4),基データ!$I:$I)/6,0),0) -> 0 | E100: =使い方!$B$7&使い方!$C$7&"賞与見積" -> 2023夏季賞与見積 | G100: 7700303 | H100: NS-0197 | I100: =IFERROR(ROUND((SUMIF(基データ!$C:$C,RIGHT(配賦額!H100,4),基データ!$I:$I)-D100*5),0),0) -> 0 | J100: =使い方!$B$7&使い方!$C$7&"賞与見積" -> 2023夏季賞与見積 | L100: 7700303 | M100: NS-0197 | N100: =-IFERROR(ROUND(SUMIF(基データ!$C:$C,RIGHT(配賦額!M100,4),基データ!$I:$I),0),0) -> 0 | O100: =使い方!$B$7&使い方!$C$7&"賞与見積戻し" -> 2023夏季賞与見積戻し | Q100: 7700305 | R100: NS-0197 | S100: =IFERROR(ROUND(SUMIF(基データ!$C:$C,RIGHT(配賦額!R100,4),基データ!$L:$L)/6,0),0) -> 0 | T100: =使い方!$B$7&使い方!$C$7&"賞与法定福利見積" -> 2023夏季賞与法定福利見積 | V100: 7700305 | W100: NS-0197 | X100: =IFERROR(ROUND((SUMIF(基データ!$C:$C,RIGHT(配賦額!W100,4),基データ!$L:$L)-S100*5),0),0) -> 0 | Y100: =使い方!$B$7&使い方!$C$7&"賞与法定福利見積" -> 2023夏季賞与法定福利見積 | AA100: 7700305 | AB100: NS-0197 | AC100: =-IFERROR(ROUND(SUMIF(基データ!$C:$C,RIGHT(配賦額!AB100,4),基データ!$L:$L),0),0) -> 0 | AD100: =使い方!$B$7&使い方!$C$7&"賞与法定福利見積戻し" -> 2023夏季賞与法定福利見積戻し | AF100: 7700201 | AG100: NS-0197 | AH100: =IFERROR(ROUND(SUMIF(基データ!$Q:$Q,RIGHT(配賦額!AG100,4),基データ!$T:$T)/6,0),0) -> 0 | AI100: =使い方!$B$7&使い方!$C$7&"賞与見積(現業)" -> 2023夏季賞与見積(現業) | AK100: 7700201 | AL100: NS-0197 | AM100: =IFERROR(ROUND((SUMIF(基データ!$Q:$Q,RIGHT(配賦額!AL100,4),基データ!$T:$T)-AH100*5),0),0) -> 0 | AN100: =使い方!$B$7&使い方!$C$7&"賞与見積(現業)" -> 2023夏季賞与見積(現業) | AP100: 7700201 | AQ100: NS-0197 | AR100: =-IFERROR(ROUND(SUMIF(基データ!$Q:$Q,RIGHT(配賦額!AQ100,4),基データ!$T:$T),0),0) -> 0 | AS100: =使い方!$B$7&使い方!$C$7&"賞与見積戻し(現業)" -> 2023夏季賞与見積戻し(現業) | AU100: 7700202 | AV100: NS-0197 | AW100: =IFERROR(ROUND(SUMIF(基データ!$Q:$Q,RIGHT(配賦額!AV100,4),基データ!$U:$U)/6,0),0) -> 0 | AX100: =使い方!$B$7&使い方!$C$7&"賞与法定福利見積(現業)" -> 2023夏季賞与法定福利見積(現業) | AZ100: 7700202 | BA100: NS-0197 | BB100: =IFERROR(ROUND((SUMIF(基データ!$Q:$Q,RIGHT(配賦額!BA100,4),基データ!$U:$U)-AW100*5),0),0) -> 0 | BC100: =使い方!$B$7&使い方!$C$7&"賞与法定福利見積(現業)" -> 2023夏季賞与法定福利見積(現業) | BE100: 7700202 | BF100: NS-0197 | BG100: =-IFERROR(ROUND(SUMIF(基データ!$Q:$Q,RIGHT(配賦額!BF100,4),基データ!$U:$U),0),0) -> 0 | BH100: =使い方!$B$7&使い方!$C$7&"賞与法定福利見積戻し(現業)" -> 2023夏季賞与法定福利見積戻し(現業)
B101: 7700303 | C101: NS-0198 | D101: =IFERROR(ROUND(SUMIF(基データ!$C:$C,RIGHT(配賦額!C101,4),基データ!$I:$I)/6,0),0) -> 0 | E101: =使い方!$B$7&使い方!$C$7&"賞与見積" -> 2023夏季賞与見積 | G101: 7700303 | H101: NS-0198 | I101: =IFERROR(ROUND((SUMIF(基データ!$C:$C,RIGHT(配賦額!H101,4),基データ!$I:$I)-D101*5),0),0) -> 0 | J101: =使い方!$B$7&使い方!$C$7&"賞与見積" -> 2023夏季賞与見積 | L101: 7700303 | M101: NS-0198 | N101: =-IFERROR(ROUND(SUMIF(基データ!$C:$C,RIGHT(配賦額!M101,4),基データ!$I:$I),0),0) -> 0 | O101: =使い方!$B$7&使い方!$C$7&"賞与見積戻し" -> 2023夏季賞与見積戻し | Q101: 7700305 | R101: NS-0198 | S101: =IFERROR(ROUND(SUMIF(基データ!$C:$C,RIGHT(配賦額!R101,4),基データ!$L:$L)/6,0),0) -> 0 | T101: =使い方!$B$7&使い方!$C$7&"賞与法定福利見積" -> 2023夏季賞与法定福利見積 | V101: 7700305 | W101: NS-0198 | X101: =IFERROR(ROUND((SUMIF(基データ!$C:$C,RIGHT(配賦額!W101,4),基データ!$L:$L)-S101*5),0),0) -> 0 | Y101: =使い方!$B$7&使い方!$C$7&"賞与法定福利見積" -> 2023夏季賞与法定福利見積 | AA101: 7700305 | AB101: NS-0198 | AC101: =-IFERROR(ROUND(SUMIF(基データ!$C:$C,RIGHT(配賦額!AB101,4),基データ!$L:$L),0),0) -> 0 | AD101: =使い方!$B$7&使い方!$C$7&"賞与法定福利見積戻し" -> 2023夏季賞与法定福利見積戻し | AF101: 7700201 | AG101: NS-0198 | AH101: =IFERROR(ROUND(SUMIF(基データ!$Q:$Q,RIGHT(配賦額!AG101,4),基データ!$T:$T)/6,0),0) -> 0 | AI101: =使い方!$B$7&使い方!$C$7&"賞与見積(現業)" -> 2023夏季賞与見積(現業) | AK101: 7700201 | AL101: NS-0198 | AM101: =IFERROR(ROUND((SUMIF(基データ!$Q:$Q,RIGHT(配賦額!AL101,4),基データ!$T:$T)-AH101*5),0),0) -> 0 | AN101: =使い方!$B$7&使い方!$C$7&"賞与見積(現業)" -> 2023夏季賞与見積(現業) | AP101: 7700201 | AQ101: NS-0198 | AR101: =-IFERROR(ROUND(SUMIF(基データ!$Q:$Q,RIGHT(配賦額!AQ101,4),基データ!$T:$T),0),0) -> 0 | AS101: =使い方!$B$7&使い方!$C$7&"賞与見積戻し(現業)" -> 2023夏季賞与見積戻し(現業) | AU101: 7700202 | AV101: NS-0198 | AW101: =IFERROR(ROUND(SUMIF(基データ!$Q:$Q,RIGHT(配賦額!AV101,4),基データ!$U:$U)/6,0),0) -> 0 | AX101: =使い方!$B$7&使い方!$C$7&"賞与法定福利見積(現業)" -> 2023夏季賞与法定福利見積(現業) | AZ101: 7700202 | BA101: NS-0198 | BB101: =IFERROR(ROUND((SUMIF(基データ!$Q:$Q,RIGHT(配賦額!BA101,4),基データ!$U:$U)-AW101*5),0),0) -> 0 | BC101: =使い方!$B$7&使い方!$C$7&"賞与法定福利見積(現業)" -> 2023夏季賞与法定福利見積(現業) | BE101: 7700202 | BF101: NS-0198 | BG101: =-IFERROR(ROUND(SUMIF(基データ!$Q:$Q,RIGHT(配賦額!BF101,4),基データ!$U:$U),0),0) -> 0 | BH101: =使い方!$B$7&使い方!$C$7&"賞与法定福利見積戻し(現業)" -> 2023夏季賞与法定福利見積戻し(現業)
B102: 7700303 | C102: NS-0199 | D102: =IFERROR(ROUND(SUMIF(基データ!$C:$C,RIGHT(配賦額!C102,4),基データ!$I:$I)/6,0),0) -> 0 | E102: =使い方!$B$7&使い方!$C$7&"賞与見積" -> 2023夏季賞与見積 | G102: 7700303 | H102: NS-0199 | I102: =IFERROR(ROUND((SUMIF(基データ!$C:$C,RIGHT(配賦額!H102,4),基データ!$I:$I)-D102*5),0),0) -> 0 | J102: =使い方!$B$7&使い方!$C$7&"賞与見積" -> 2023夏季賞与見積 | L102: 7700303 | M102: NS-0199 | N102: =-IFERROR(ROUND(SUMIF(基データ!$C:$C,RIGHT(配賦額!M102,4),基データ!$I:$I),0),0) -> 0 | O102: =使い方!$B$7&使い方!$C$7&"賞与見積戻し" -> 2023夏季賞与見積戻し | Q102: 7700305 | R102: NS-0199 | S102: =IFERROR(ROUND(SUMIF(基データ!$C:$C,RIGHT(配賦額!R102,4),基データ!$L:$L)/6,0),0) -> 0 | T102: =使い方!$B$7&使い方!$C$7&"賞与法定福利見積" -> 2023夏季賞与法定福利見積 | V102: 7700305 | W102: NS-0199 | X102: =IFERROR(ROUND((SUMIF(基データ!$C:$C,RIGHT(配賦額!W102,4),基データ!$L:$L)-S102*5),0),0) -> 0 | Y102: =使い方!$B$7&使い方!$C$7&"賞与法定福利見積" -> 2023夏季賞与法定福利見積 | AA102: 7700305 | AB102: NS-0199 | AC102: =-IFERROR(ROUND(SUMIF(基データ!$C:$C,RIGHT(配賦額!AB102,4),基データ!$L:$L),0),0) -> 0 | AD102: =使い方!$B$7&使い方!$C$7&"賞与法定福利見積戻し" -> 2023夏季賞与法定福利見積戻し | AF102: 7700201 | AG102: NS-0199 | AH102: =IFERROR(ROUND(SUMIF(基データ!$Q:$Q,RIGHT(配賦額!AG102,4),基データ!$T:$T)/6,0),0) -> 0 | AI102: =使い方!$B$7&使い方!$C$7&"賞与見積(現業)" -> 2023夏季賞与見積(現業) | AK102: 7700201 | AL102: NS-0199 | AM102: =IFERROR(ROUND((SUMIF(基データ!$Q:$Q,RIGHT(配賦額!AL102,4),基データ!$T:$T)-AH102*5),0),0) -> 0 | AN102: =使い方!$B$7&使い方!$C$7&"賞与見積(現業)" -> 2023夏季賞与見積(現業) | AP102: 7700201 | AQ102: NS-0199 | AR102: =-IFERROR(ROUND(SUMIF(基データ!$Q:$Q,RIGHT(配賦額!AQ102,4),基データ!$T:$T),0),0) -> 0 | AS102: =使い方!$B$7&使い方!$C$7&"賞与見積戻し(現業)" -> 2023夏季賞与見積戻し(現業) | AU102: 7700202 | AV102: NS-0199 | AW102: =IFERROR(ROUND(SUMIF(基データ!$Q:$Q,RIGHT(配賦額!AV102,4),基データ!$U:$U)/6,0),0) -> 0 | AX102: =使い方!$B$7&使い方!$C$7&"賞与法定福利見積(現業)" -> 2023夏季賞与法定福利見積(現業) | AZ102: 7700202 | BA102: NS-0199 | BB102: =IFERROR(ROUND((SUMIF(基データ!$Q:$Q,RIGHT(配賦額!BA102,4),基データ!$U:$U)-AW102*5),0),0) -> 0 | BC102: =使い方!$B$7&使い方!$C$7&"賞与法定福利見積(現業)" -> 2023夏季賞与法定福利見積(現業) | BE102: 7700202 | BF102: NS-0199 | BG102: =-IFERROR(ROUND(SUMIF(基データ!$Q:$Q,RIGHT(配賦額!BF102,4),基データ!$U:$U),0),0) -> 0 | BH102: =使い方!$B$7&使い方!$C$7&"賞与法定福利見積戻し(現業)" -> 2023夏季賞与法定福利見積戻し(現業)
B103: 7700303 | C103: NS-0200 | D103: =IFERROR(ROUND(SUMIF(基データ!$C:$C,RIGHT(配賦額!C103,4),基データ!$I:$I)/6,0),0) -> 0 | E103: =使い方!$B$7&使い方!$C$7&"賞与見積" -> 2023夏季賞与見積 | G103: 7700303 | H103: NS-0200 | I103: =IFERROR(ROUND((SUMIF(基データ!$C:$C,RIGHT(配賦額!H103,4),基データ!$I:$I)-D103*5),0),0) -> 0 | J103: =使い方!$B$7&使い方!$C$7&"賞与見積" -> 2023夏季賞与見積 | L103: 7700303 | M103: NS-0200 | N103: =-IFERROR(ROUND(SUMIF(基データ!$C:$C,RIGHT(配賦額!M103,4),基データ!$I:$I),0),0) -> 0 | O103: =使い方!$B$7&使い方!$C$7&"賞与見積戻し" -> 2023夏季賞与見積戻し | Q103: 7700305 | R103: NS-0200 | S103: =IFERROR(ROUND(SUMIF(基データ!$C:$C,RIGHT(配賦額!R103,4),基データ!$L:$L)/6,0),0) -> 0 | T103: =使い方!$B$7&使い方!$C$7&"賞与法定福利見積" -> 2023夏季賞与法定福利見積 | V103: 7700305 | W103: NS-0200 | X103: =IFERROR(ROUND((SUMIF(基データ!$C:$C,RIGHT(配賦額!W103,4),基データ!$L:$L)-S103*5),0),0) -> 0 | Y103: =使い方!$B$7&使い方!$C$7&"賞与法定福利見積" -> 2023夏季賞与法定福利見積 | AA103: 7700305 | AB103: NS-0200 | AC103: =-IFERROR(ROUND(SUMIF(基データ!$C:$C,RIGHT(配賦額!AB103,4),基データ!$L:$L),0),0) -> 0 | AD103: =使い方!$B$7&使い方!$C$7&"賞与法定福利見積戻し" -> 2023夏季賞与法定福利見積戻し | AF103: 7700201 | AG103: NS-0200 | AH103: =IFERROR(ROUND(SUMIF(基データ!$Q:$Q,RIGHT(配賦額!AG103,4),基データ!$T:$T)/6,0),0) -> 0 | AI103: =使い方!$B$7&使い方!$C$7&"賞与見積(現業)" -> 2023夏季賞与見積(現業) | AK103: 7700201 | AL103: NS-0200 | AM103: =IFERROR(ROUND((SUMIF(基データ!$Q:$Q,RIGHT(配賦額!AL103,4),基データ!$T:$T)-AH103*5),0),0) -> 0 | AN103: =使い方!$B$7&使い方!$C$7&"賞与見積(現業)" -> 2023夏季賞与見積(現業) | AP103: 7700201 | AQ103: NS-0200 | AR103: =-IFERROR(ROUND(SUMIF(基データ!$Q:$Q,RIGHT(配賦額!AQ103,4),基データ!$T:$T),0),0) -> 0 | AS103: =使い方!$B$7&使い方!$C$7&"賞与見積戻し(現業)" -> 2023夏季賞与見積戻し(現業) | AU103: 7700202 | AV103: NS-0200 | AW103: =IFERROR(ROUND(SUMIF(基データ!$Q:$Q,RIGHT(配賦額!AV103,4),基データ!$U:$U)/6,0),0) -> 0 | AX103: =使い方!$B$7&使い方!$C$7&"賞与法定福利見積(現業)" -> 2023夏季賞与法定福利見積(現業) | AZ103: 7700202 | BA103: NS-0200 | BB103: =IFERROR(ROUND((SUMIF(基データ!$Q:$Q,RIGHT(配賦額!BA103,4),基データ!$U:$U)-AW103*5),0),0) -> 0 | BC103: =使い方!$B$7&使い方!$C$7&"賞与法定福利見積(現業)" -> 2023夏季賞与法定福利見積(現業) | BE103: 7700202 | BF103: NS-0200 | BG103: =-IFERROR(ROUND(SUMIF(基データ!$Q:$Q,RIGHT(配賦額!BF103,4),基データ!$U:$U),0),0) -> 0 | BH103: =使い方!$B$7&使い方!$C$7&"賞与法定福利見積戻し(現業)" -> 2023夏季賞与法定福利見積戻し(現業)
B104: 7700303 | C104: NS-0201 | D104: =IFERROR(ROUND(SUMIF(基データ!$C:$C,RIGHT(配賦額!C104,4),基データ!$I:$I)/6,0),0) -> 0 | E104: =使い方!$B$7&使い方!$C$7&"賞与見積" -> 2023夏季賞与見積 | G104: 7700303 | H104: NS-0201 | I104: =IFERROR(ROUND((SUMIF(基データ!$C:$C,RIGHT(配賦額!H104,4),基データ!$I:$I)-D104*5),0),0) -> 0 | J104: =使い方!$B$7&使い方!$C$7&"賞与見積" -> 2023夏季賞与見積 | L104: 7700303 | M104: NS-0201 | N104: =-IFERROR(ROUND(SUMIF(基データ!$C:$C,RIGHT(配賦額!M104,4),基データ!$I:$I),0),0) -> 0 | O104: =使い方!$B$7&使い方!$C$7&"賞与見積戻し" -> 2023夏季賞与見積戻し | Q104: 7700305 | R104: NS-0201 | S104: =IFERROR(ROUND(SUMIF(基データ!$C:$C,RIGHT(配賦額!R104,4),基データ!$L:$L)/6,0),0) -> 0 | T104: =使い方!$B$7&使い方!$C$7&"賞与法定福利見積" -> 2023夏季賞与法定福利見積 | V104: 7700305 | W104: NS-0201 | X104: =IFERROR(ROUND((SUMIF(基データ!$C:$C,RIGHT(配賦額!W104,4),基データ!$L:$L)-S104*5),0),0) -> 0 | Y104: =使い方!$B$7&使い方!$C$7&"賞与法定福利見積" -> 2023夏季賞与法定福利見積 | AA104: 7700305 | AB104: NS-0201 | AC104: =-IFERROR(ROUND(SUMIF(基データ!$C:$C,RIGHT(配賦額!AB104,4),基データ!$L:$L),0),0) -> 0 | AD104: =使い方!$B$7&使い方!$C$7&"賞与法定福利見積戻し" -> 2023夏季賞与法定福利見積戻し | AF104: 7700201 | AG104: NS-0201 | AH104: =IFERROR(ROUND(SUMIF(基データ!$Q:$Q,RIGHT(配賦額!AG104,4),基データ!$T:$T)/6,0),0) -> 0 | AI104: =使い方!$B$7&使い方!$C$7&"賞与見積(現業)" -> 2023夏季賞与見積(現業) | AK104: 7700201 | AL104: NS-0201 | AM104: =IFERROR(ROUND((SUMIF(基データ!$Q:$Q,RIGHT(配賦額!AL104,4),基データ!$T:$T)-AH104*5),0),0) -> 0 | AN104: =使い方!$B$7&使い方!$C$7&"賞与見積(現業)" -> 2023夏季賞与見積(現業) | AP104: 7700201 | AQ104: NS-0201 | AR104: =-IFERROR(ROUND(SUMIF(基データ!$Q:$Q,RIGHT(配賦額!AQ104,4),基データ!$T:$T),0),0) -> 0 | AS104: =使い方!$B$7&使い方!$C$7&"賞与見積戻し(現業)" -> 2023夏季賞与見積戻し(現業) | AU104: 7700202 | AV104: NS-0201 | AW104: =IFERROR(ROUND(SUMIF(基データ!$Q:$Q,RIGHT(配賦額!AV104,4),基データ!$U:$U)/6,0),0) -> 0 | AX104: =使い方!$B$7&使い方!$C$7&"賞与法定福利見積(現業)" -> 2023夏季賞与法定福利見積(現業) | AZ104: 7700202 | BA104: NS-0201 | BB104: =IFERROR(ROUND((SUMIF(基データ!$Q:$Q,RIGHT(配賦額!BA104,4),基データ!$U:$U)-AW104*5),0),0) -> 0 | BC104: =使い方!$B$7&使い方!$C$7&"賞与法定福利見積(現業)" -> 2023夏季賞与法定福利見積(現業) | BE104: 7700202 | BF104: NS-0201 | BG104: =-IFERROR(ROUND(SUMIF(基データ!$Q:$Q,RIGHT(配賦額!BF104,4),基データ!$U:$U),0),0) -> 0 | BH104: =使い方!$B$7&使い方!$C$7&"賞与法定福利見積戻し(現業)" -> 2023夏季賞与法定福利見積戻し(現業)
B105: 7700303 | C105: NS-0202 | D105: =IFERROR(ROUND(SUMIF(基データ!$C:$C,RIGHT(配賦額!C105,4),基データ!$I:$I)/6,0),0) -> 0 | E105: =使い方!$B$7&使い方!$C$7&"賞与見積" -> 2023夏季賞与見積 | G105: 7700303 | H105: NS-0202 | I105: =IFERROR(ROUND((SUMIF(基データ!$C:$C,RIGHT(配賦額!H105,4),基データ!$I:$I)-D105*5),0),0) -> 0 | J105: =使い方!$B$7&使い方!$C$7&"賞与見積" -> 2023夏季賞与見積 | L105: 7700303 | M105: NS-0202 | N105: =-IFERROR(ROUND(SUMIF(基データ!$C:$C,RIGHT(配賦額!M105,4),基データ!$I:$I),0),0) -> 0 | O105: =使い方!$B$7&使い方!$C$7&"賞与見積戻し" -> 2023夏季賞与見積戻し | Q105: 7700305 | R105: NS-0202 | S105: =IFERROR(ROUND(SUMIF(基データ!$C:$C,RIGHT(配賦額!R105,4),基データ!$L:$L)/6,0),0) -> 0 | T105: =使い方!$B$7&使い方!$C$7&"賞与法定福利見積" -> 2023夏季賞与法定福利見積 | V105: 7700305 | W105: NS-0202 | X105: =IFERROR(ROUND((SUMIF(基データ!$C:$C,RIGHT(配賦額!W105,4),基データ!$L:$L)-S105*5),0),0) -> 0 | Y105: =使い方!$B$7&使い方!$C$7&"賞与法定福利見積" -> 2023夏季賞与法定福利見積 | AA105: 7700305 | AB105: NS-0202 | AC105: =-IFERROR(ROUND(SUMIF(基データ!$C:$C,RIGHT(配賦額!AB105,4),基データ!$L:$L),0),0) -> 0 | AD105: =使い方!$B$7&使い方!$C$7&"賞与法定福利見積戻し" -> 2023夏季賞与法定福利見積戻し | AF105: 7700201 | AG105: NS-0202 | AH105: =IFERROR(ROUND(SUMIF(基データ!$Q:$Q,RIGHT(配賦額!AG105,4),基データ!$T:$T)/6,0),0) -> 0 | AI105: =使い方!$B$7&使い方!$C$7&"賞与見積(現業)" -> 2023夏季賞与見積(現業) | AK105: 7700201 | AL105: NS-0202 | AM105: =IFERROR(ROUND((SUMIF(基データ!$Q:$Q,RIGHT(配賦額!AL105,4),基データ!$T:$T)-AH105*5),0),0) -> 0 | AN105: =使い方!$B$7&使い方!$C$7&"賞与見積(現業)" -> 2023夏季賞与見積(現業) | AP105: 7700201 | AQ105: NS-0202 | AR105: =-IFERROR(ROUND(SUMIF(基データ!$Q:$Q,RIGHT(配賦額!AQ105,4),基データ!$T:$T),0),0) -> 0 | AS105: =使い方!$B$7&使い方!$C$7&"賞与見積戻し(現業)" -> 2023夏季賞与見積戻し(現業) | AU105: 7700202 | AV105: NS-0202 | AW105: =IFERROR(ROUND(SUMIF(基データ!$Q:$Q,RIGHT(配賦額!AV105,4),基データ!$U:$U)/6,0),0) -> 0 | AX105: =使い方!$B$7&使い方!$C$7&"賞与法定福利見積(現業)" -> 2023夏季賞与法定福利見積(現業) | AZ105: 7700202 | BA105: NS-0202 | BB105: =IFERROR(ROUND((SUMIF(基データ!$Q:$Q,RIGHT(配賦額!BA105,4),基データ!$U:$U)-AW105*5),0),0) -> 0 | BC105: =使い方!$B$7&使い方!$C$7&"賞与法定福利見積(現業)" -> 2023夏季賞与法定福利見積(現業) | BE105: 7700202 | BF105: NS-0202 | BG105: =-IFERROR(ROUND(SUMIF(基データ!$Q:$Q,RIGHT(配賦額!BF105,4),基データ!$U:$U),0),0) -> 0 | BH105: =使い方!$B$7&使い方!$C$7&"賞与法定福利見積戻し(現業)" -> 2023夏季賞与法定福利見積戻し(現業)
B106: 7700303 | C106: NS-0203 | D106: =IFERROR(ROUND(SUMIF(基データ!$C:$C,RIGHT(配賦額!C106,4),基データ!$I:$I)/6,0),0) -> 0 | E106: =使い方!$B$7&使い方!$C$7&"賞与見積" -> 2023夏季賞与見積 | G106: 7700303 | H106: NS-0203 | I106: =IFERROR(ROUND((SUMIF(基データ!$C:$C,RIGHT(配賦額!H106,4),基データ!$I:$I)-D106*5),0),0) -> 0 | J106: =使い方!$B$7&使い方!$C$7&"賞与見積" -> 2023夏季賞与見積 | L106: 7700303 | M106: NS-0203 | N106: =-IFERROR(ROUND(SUMIF(基データ!$C:$C,RIGHT(配賦額!M106,4),基データ!$I:$I),0),0) -> 0 | O106: =使い方!$B$7&使い方!$C$7&"賞与見積戻し" -> 2023夏季賞与見積戻し | Q106: 7700305 | R106: NS-0203 | S106: =IFERROR(ROUND(SUMIF(基データ!$C:$C,RIGHT(配賦額!R106,4),基データ!$L:$L)/6,0),0) -> 0 | T106: =使い方!$B$7&使い方!$C$7&"賞与法定福利見積" -> 2023夏季賞与法定福利見積 | V106: 7700305 | W106: NS-0203 | X106: =IFERROR(ROUND((SUMIF(基データ!$C:$C,RIGHT(配賦額!W106,4),基データ!$L:$L)-S106*5),0),0) -> 0 | Y106: =使い方!$B$7&使い方!$C$7&"賞与法定福利見積" -> 2023夏季賞与法定福利見積 | AA106: 7700305 | AB106: NS-0203 | AC106: =-IFERROR(ROUND(SUMIF(基データ!$C:$C,RIGHT(配賦額!AB106,4),基データ!$L:$L),0),0) -> 0 | AD106: =使い方!$B$7&使い方!$C$7&"賞与法定福利見積戻し" -> 2023夏季賞与法定福利見積戻し | AF106: 7700201 | AG106: NS-0203 | AH106: =IFERROR(ROUND(SUMIF(基データ!$Q:$Q,RIGHT(配賦額!AG106,4),基データ!$T:$T)/6,0),0) -> 0 | AI106: =使い方!$B$7&使い方!$C$7&"賞与見積(現業)" -> 2023夏季賞与見積(現業) | AK106: 7700201 | AL106: NS-0203 | AM106: =IFERROR(ROUND((SUMIF(基データ!$Q:$Q,RIGHT(配賦額!AL106,4),基データ!$T:$T)-AH106*5),0),0) -> 0 | AN106: =使い方!$B$7&使い方!$C$7&"賞与見積(現業)" -> 2023夏季賞与見積(現業) | AP106: 7700201 | AQ106: NS-0203 | AR106: =-IFERROR(ROUND(SUMIF(基データ!$Q:$Q,RIGHT(配賦額!AQ106,4),基データ!$T:$T),0),0) -> 0 | AS106: =使い方!$B$7&使い方!$C$7&"賞与見積戻し(現業)" -> 2023夏季賞与見積戻し(現業) | AU106: 7700202 | AV106: NS-0203 | AW106: =IFERROR(ROUND(SUMIF(基データ!$Q:$Q,RIGHT(配賦額!AV106,4),基データ!$U:$U)/6,0),0) -> 0 | AX106: =使い方!$B$7&使い方!$C$7&"賞与法定福利見積(現業)" -> 2023夏季賞与法定福利見積(現業) | AZ106: 7700202 | BA106: NS-0203 | BB106: =IFERROR(ROUND((SUMIF(基データ!$Q:$Q,RIGHT(配賦額!BA106,4),基データ!$U:$U)-AW106*5),0),0) -> 0 | BC106: =使い方!$B$7&使い方!$C$7&"賞与法定福利見積(現業)" -> 2023夏季賞与法定福利見積(現業) | BE106: 7700202 | BF106: NS-0203 | BG106: =-IFERROR(ROUND(SUMIF(基データ!$Q:$Q,RIGHT(配賦額!BF106,4),基データ!$U:$U),0),0) -> 0 | BH106: =使い方!$B$7&使い方!$C$7&"賞与法定福利見積戻し(現業)" -> 2023夏季賞与法定福利見積戻し(現業)
B107: 7700303 | C107: NS-0204 | D107: =IFERROR(ROUND(SUMIF(基データ!$C:$C,RIGHT(配賦額!C107,4),基データ!$I:$I)/6,0),0) -> 0 | E107: =使い方!$B$7&使い方!$C$7&"賞与見積" -> 2023夏季賞与見積 | G107: 7700303 | H107: NS-0204 | I107: =IFERROR(ROUND((SUMIF(基データ!$C:$C,RIGHT(配賦額!H107,4),基データ!$I:$I)-D107*5),0),0) -> 0 | J107: =使い方!$B$7&使い方!$C$7&"賞与見積" -> 2023夏季賞与見積 | L107: 7700303 | M107: NS-0204 | N107: =-IFERROR(ROUND(SUMIF(基データ!$C:$C,RIGHT(配賦額!M107,4),基データ!$I:$I),0),0) -> 0 | O107: =使い方!$B$7&使い方!$C$7&"賞与見積戻し" -> 2023夏季賞与見積戻し | Q107: 7700305 | R107: NS-0204 | S107: =IFERROR(ROUND(SUMIF(基データ!$C:$C,RIGHT(配賦額!R107,4),基データ!$L:$L)/6,0),0) -> 0 | T107: =使い方!$B$7&使い方!$C$7&"賞与法定福利見積" -> 2023夏季賞与法定福利見積 | V107: 7700305 | W107: NS-0204 | X107: =IFERROR(ROUND((SUMIF(基データ!$C:$C,RIGHT(配賦額!W107,4),基データ!$L:$L)-S107*5),0),0) -> 0 | Y107: =使い方!$B$7&使い方!$C$7&"賞与法定福利見積" -> 2023夏季賞与法定福利見積 | AA107: 7700305 | AB107: NS-0204 | AC107: =-IFERROR(ROUND(SUMIF(基データ!$C:$C,RIGHT(配賦額!AB107,4),基データ!$L:$L),0),0) -> 0 | AD107: =使い方!$B$7&使い方!$C$7&"賞与法定福利見積戻し" -> 2023夏季賞与法定福利見積戻し | AF107: 7700201 | AG107: NS-0204 | AH107: =IFERROR(ROUND(SUMIF(基データ!$Q:$Q,RIGHT(配賦額!AG107,4),基データ!$T:$T)/6,0),0) -> 0 | AI107: =使い方!$B$7&使い方!$C$7&"賞与見積(現業)" -> 2023夏季賞与見積(現業) | AK107: 7700201 | AL107: NS-0204 | AM107: =IFERROR(ROUND((SUMIF(基データ!$Q:$Q,RIGHT(配賦額!AL107,4),基データ!$T:$T)-AH107*5),0),0) -> 0 | AN107: =使い方!$B$7&使い方!$C$7&"賞与見積(現業)" -> 2023夏季賞与見積(現業) | AP107: 7700201 | AQ107: NS-0204 | AR107: =-IFERROR(ROUND(SUMIF(基データ!$Q:$Q,RIGHT(配賦額!AQ107,4),基データ!$T:$T),0),0) -> 0 | AS107: =使い方!$B$7&使い方!$C$7&"賞与見積戻し(現業)" -> 2023夏季賞与見積戻し(現業) | AU107: 7700202 | AV107: NS-0204 | AW107: =IFERROR(ROUND(SUMIF(基データ!$Q:$Q,RIGHT(配賦額!AV107,4),基データ!$U:$U)/6,0),0) -> 0 | AX107: =使い方!$B$7&使い方!$C$7&"賞与法定福利見積(現業)" -> 2023夏季賞与法定福利見積(現業) | AZ107: 7700202 | BA107: NS-0204 | BB107: =IFERROR(ROUND((SUMIF(基データ!$Q:$Q,RIGHT(配賦額!BA107,4),基データ!$U:$U)-AW107*5),0),0) -> 0 | BC107: =使い方!$B$7&使い方!$C$7&"賞与法定福利見積(現業)" -> 2023夏季賞与法定福利見積(現業) | BE107: 7700202 | BF107: NS-0204 | BG107: =-IFERROR(ROUND(SUMIF(基データ!$Q:$Q,RIGHT(配賦額!BF107,4),基データ!$U:$U),0),0) -> 0 | BH107: =使い方!$B$7&使い方!$C$7&"賞与法定福利見積戻し(現業)" -> 2023夏季賞与法定福利見積戻し(現業)
B108: 7700303 | C108: NS-0205 | D108: =IFERROR(ROUND(SUMIF(基データ!$C:$C,RIGHT(配賦額!C108,4),基データ!$I:$I)/6,0),0) -> 570500 | E108: =使い方!$B$7&使い方!$C$7&"賞与見積" -> 2023夏季賞与見積 | G108: 7700303 | H108: NS-0205 | I108: =IFERROR(ROUND((SUMIF(基データ!$C:$C,RIGHT(配賦額!H108,4),基データ!$I:$I)-D108*5),0),0) -> 570500 | J108: =使い方!$B$7&使い方!$C$7&"賞与見積" -> 2023夏季賞与見積 | L108: 7700303 | M108: NS-0205 | N108: =-IFERROR(ROUND(SUMIF(基データ!$C:$C,RIGHT(配賦額!M108,4),基データ!$I:$I),0),0) -> -3423000 | O108: =使い方!$B$7&使い方!$C$7&"賞与見積戻し" -> 2023夏季賞与見積戻し | Q108: 7700305 | R108: NS-0205 | S108: =IFERROR(ROUND(SUMIF(基データ!$C:$C,RIGHT(配賦額!R108,4),基データ!$L:$L)/6,0),0) -> 75731 | T108: =使い方!$B$7&使い方!$C$7&"賞与法定福利見積" -> 2023夏季賞与法定福利見積 | V108: 7700305 | W108: NS-0205 | X108: =IFERROR(ROUND((SUMIF(基データ!$C:$C,RIGHT(配賦額!W108,4),基データ!$L:$L)-S108*5),0),0) -> 75730 | Y108: =使い方!$B$7&使い方!$C$7&"賞与法定福利見積" -> 2023夏季賞与法定福利見積 | AA108: 7700305 | AB108: NS-0205 | AC108: =-IFERROR(ROUND(SUMIF(基データ!$C:$C,RIGHT(配賦額!AB108,4),基データ!$L:$L),0),0) -> -454385 | AD108: =使い方!$B$7&使い方!$C$7&"賞与法定福利見積戻し" -> 2023夏季賞与法定福利見積戻し | AF108: 7700201 | AG108: NS-0205 | AH108: =IFERROR(ROUND(SUMIF(基データ!$Q:$Q,RIGHT(配賦額!AG108,4),基データ!$T:$T)/6,0),0) -> 0 | AI108: =使い方!$B$7&使い方!$C$7&"賞与見積(現業)" -> 2023夏季賞与見積(現業) | AK108: 7700201 | AL108: NS-0205 | AM108: =IFERROR(ROUND((SUMIF(基データ!$Q:$Q,RIGHT(配賦額!AL108,4),基データ!$T:$T)-AH108*5),0),0) -> 0 | AN108: =使い方!$B$7&使い方!$C$7&"賞与見積(現業)" -> 2023夏季賞与見積(現業) | AP108: 7700201 | AQ108: NS-0205 | AR108: =-IFERROR(ROUND(SUMIF(基データ!$Q:$Q,RIGHT(配賦額!AQ108,4),基データ!$T:$T),0),0) -> 0 | AS108: =使い方!$B$7&使い方!$C$7&"賞与見積戻し(現業)" -> 2023夏季賞与見積戻し(現業) | AU108: 7700202 | AV108: NS-0205 | AW108: =IFERROR(ROUND(SUMIF(基データ!$Q:$Q,RIGHT(配賦額!AV108,4),基データ!$U:$U)/6,0),0) -> 0 | AX108: =使い方!$B$7&使い方!$C$7&"賞与法定福利見積(現業)" -> 2023夏季賞与法定福利見積(現業) | AZ108: 7700202 | BA108: NS-0205 | BB108: =IFERROR(ROUND((SUMIF(基データ!$Q:$Q,RIGHT(配賦額!BA108,4),基データ!$U:$U)-AW108*5),0),0) -> 0 | BC108: =使い方!$B$7&使い方!$C$7&"賞与法定福利見積(現業)" -> 2023夏季賞与法定福利見積(現業) | BE108: 7700202 | BF108: NS-0205 | BG108: =-IFERROR(ROUND(SUMIF(基データ!$Q:$Q,RIGHT(配賦額!BF108,4),基データ!$U:$U),0),0) -> 0 | BH108: =使い方!$B$7&使い方!$C$7&"賞与法定福利見積戻し(現業)" -> 2023夏季賞与法定福利見積戻し(現業)
B109: 7700303 | C109: NS-0206 | D109: =IFERROR(ROUND(SUMIF(基データ!$C:$C,RIGHT(配賦額!C109,4),基データ!$I:$I)/6,0),0) -> 0 | E109: =使い方!$B$7&使い方!$C$7&"賞与見積" -> 2023夏季賞与見積 | G109: 7700303 | H109: NS-0206 | I109: =IFERROR(ROUND((SUMIF(基データ!$C:$C,RIGHT(配賦額!H109,4),基データ!$I:$I)-D109*5),0),0) -> 0 | J109: =使い方!$B$7&使い方!$C$7&"賞与見積" -> 2023夏季賞与見積 | L109: 7700303 | M109: NS-0206 | N109: =-IFERROR(ROUND(SUMIF(基データ!$C:$C,RIGHT(配賦額!M109,4),基データ!$I:$I),0),0) -> 0 | O109: =使い方!$B$7&使い方!$C$7&"賞与見積戻し" -> 2023夏季賞与見積戻し | Q109: 7700305 | R109: NS-0206 | S109: =IFERROR(ROUND(SUMIF(基データ!$C:$C,RIGHT(配賦額!R109,4),基データ!$L:$L)/6,0),0) -> 0 | T109: =使い方!$B$7&使い方!$C$7&"賞与法定福利見積" -> 2023夏季賞与法定福利見積 | V109: 7700305 | W109: NS-0206 | X109: =IFERROR(ROUND((SUMIF(基データ!$C:$C,RIGHT(配賦額!W109,4),基データ!$L:$L)-S109*5),0),0) -> 0 | Y109: =使い方!$B$7&使い方!$C$7&"賞与法定福利見積" -> 2023夏季賞与法定福利見積 | AA109: 7700305 | AB109: NS-0206 | AC109: =-IFERROR(ROUND(SUMIF(基データ!$C:$C,RIGHT(配賦額!AB109,4),基データ!$L:$L),0),0) -> 0 | AD109: =使い方!$B$7&使い方!$C$7&"賞与法定福利見積戻し" -> 2023夏季賞与法定福利見積戻し | AF109: 7700201 | AG109: NS-0206 | AH109: =IFERROR(ROUND(SUMIF(基データ!$Q:$Q,RIGHT(配賦額!AG109,4),基データ!$T:$T)/6,0),0) -> 0 | AI109: =使い方!$B$7&使い方!$C$7&"賞与見積(現業)" -> 2023夏季賞与見積(現業) | AK109: 7700201 | AL109: NS-0206 | AM109: =IFERROR(ROUND((SUMIF(基データ!$Q:$Q,RIGHT(配賦額!AL109,4),基データ!$T:$T)-AH109*5),0),0) -> 0 | AN109: =使い方!$B$7&使い方!$C$7&"賞与見積(現業)" -> 2023夏季賞与見積(現業) | AP109: 7700201 | AQ109: NS-0206 | AR109: =-IFERROR(ROUND(SUMIF(基データ!$Q:$Q,RIGHT(配賦額!AQ109,4),基データ!$T:$T),0),0) -> 0 | AS109: =使い方!$B$7&使い方!$C$7&"賞与見積戻し(現業)" -> 2023夏季賞与見積戻し(現業) | AU109: 7700202 | AV109: NS-0206 | AW109: =IFERROR(ROUND(SUMIF(基データ!$Q:$Q,RIGHT(配賦額!AV109,4),基データ!$U:$U)/6,0),0) -> 0 | AX109: =使い方!$B$7&使い方!$C$7&"賞与法定福利見積(現業)" -> 2023夏季賞与法定福利見積(現業) | AZ109: 7700202 | BA109: NS-0206 | BB109: =IFERROR(ROUND((SUMIF(基データ!$Q:$Q,RIGHT(配賦額!BA109,4),基データ!$U:$U)-AW109*5),0),0) -> 0 | BC109: =使い方!$B$7&使い方!$C$7&"賞与法定福利見積(現業)" -> 2023夏季賞与法定福利見積(現業) | BE109: 7700202 | BF109: NS-0206 | BG109: =-IFERROR(ROUND(SUMIF(基データ!$Q:$Q,RIGHT(配賦額!BF109,4),基データ!$U:$U),0),0) -> 0 | BH109: =使い方!$B$7&使い方!$C$7&"賞与法定福利見積戻し(現業)" -> 2023夏季賞与法定福利見積戻し(現業)
B110: 7700303 | C110: NS-0207 | D110: =IFERROR(ROUND(SUMIF(基データ!$C:$C,RIGHT(配賦額!C110,4),基データ!$I:$I)/6,0),0) -> 2199765 | E110: =使い方!$B$7&使い方!$C$7&"賞与見積" -> 2023夏季賞与見積 | G110: 7700303 | H110: NS-0207 | I110: =IFERROR(ROUND((SUMIF(基データ!$C:$C,RIGHT(配賦額!H110,4),基データ!$I:$I)-D110*5),0),0) -> 2199767 | J110: =使い方!$B$7&使い方!$C$7&"賞与見積" -> 2023夏季賞与見積 | L110: 7700303 | M110: NS-0207 | N110: =-IFERROR(ROUND(SUMIF(基データ!$C:$C,RIGHT(配賦額!M110,4),基データ!$I:$I),0),0) -> -13198592 | O110: =使い方!$B$7&使い方!$C$7&"賞与見積戻し" -> 2023夏季賞与見積戻し | Q110: 7700305 | R110: NS-0207 | S110: =IFERROR(ROUND(SUMIF(基データ!$C:$C,RIGHT(配賦額!R110,4),基データ!$L:$L)/6,0),0) -> 264765 | T110: =使い方!$B$7&使い方!$C$7&"賞与法定福利見積" -> 2023夏季賞与法定福利見積 | V110: 7700305 | W110: NS-0207 | X110: =IFERROR(ROUND((SUMIF(基データ!$C:$C,RIGHT(配賦額!W110,4),基データ!$L:$L)-S110*5),0),0) -> 264767 | Y110: =使い方!$B$7&使い方!$C$7&"賞与法定福利見積" -> 2023夏季賞与法定福利見積 | AA110: 7700305 | AB110: NS-0207 | AC110: =-IFERROR(ROUND(SUMIF(基データ!$C:$C,RIGHT(配賦額!AB110,4),基データ!$L:$L),0),0) -> -1588592 | AD110: =使い方!$B$7&使い方!$C$7&"賞与法定福利見積戻し" -> 2023夏季賞与法定福利見積戻し | AF110: 7700201 | AG110: NS-0207 | AH110: =IFERROR(ROUND(SUMIF(基データ!$Q:$Q,RIGHT(配賦額!AG110,4),基データ!$T:$T)/6,0),0) -> 0 | AI110: =使い方!$B$7&使い方!$C$7&"賞与見積(現業)" -> 2023夏季賞与見積(現業) | AK110: 7700201 | AL110: NS-0207 | AM110: =IFERROR(ROUND((SUMIF(基データ!$Q:$Q,RIGHT(配賦額!AL110,4),基データ!$T:$T)-AH110*5),0),0) -> 0 | AN110: =使い方!$B$7&使い方!$C$7&"賞与見積(現業)" -> 2023夏季賞与見積(現業) | AP110: 7700201 | AQ110: NS-0207 | AR110: =-IFERROR(ROUND(SUMIF(基データ!$Q:$Q,RIGHT(配賦額!AQ110,4),基データ!$T:$T),0),0) -> 0 | AS110: =使い方!$B$7&使い方!$C$7&"賞与見積戻し(現業)" -> 2023夏季賞与見積戻し(現業) | AU110: 7700202 | AV110: NS-0207 | AW110: =IFERROR(ROUND(SUMIF(基データ!$Q:$Q,RIGHT(配賦額!AV110,4),基データ!$U:$U)/6,0),0) -> 0 | AX110: =使い方!$B$7&使い方!$C$7&"賞与法定福利見積(現業)" -> 2023夏季賞与法定福利見積(現業) | AZ110: 7700202 | BA110: NS-0207 | BB110: =IFERROR(ROUND((SUMIF(基データ!$Q:$Q,RIGHT(配賦額!BA110,4),基データ!$U:$U)-AW110*5),0),0) -> 0 | BC110: =使い方!$B$7&使い方!$C$7&"賞与法定福利見積(現業)" -> 2023夏季賞与法定福利見積(現業) | BE110: 7700202 | BF110: NS-0207 | BG110: =-IFERROR(ROUND(SUMIF(基データ!$Q:$Q,RIGHT(配賦額!BF110,4),基データ!$U:$U),0),0) -> 0 | BH110: =使い方!$B$7&使い方!$C$7&"賞与法定福利見積戻し(現業)" -> 2023夏季賞与法定福利見積戻し(現業)
B111: 7700303 | C111: NS-0208 | D111: =IFERROR(ROUND(SUMIF(基データ!$C:$C,RIGHT(配賦額!C111,4),基データ!$I:$I)/6,0),0) -> 0 | E111: =使い方!$B$7&使い方!$C$7&"賞与見積" -> 2023夏季賞与見積 | G111: 7700303 | H111: NS-0208 | I111: =IFERROR(ROUND((SUMIF(基データ!$C:$C,RIGHT(配賦額!H111,4),基データ!$I:$I)-D111*5),0),0) -> 0 | J111: =使い方!$B$7&使い方!$C$7&"賞与見積" -> 2023夏季賞与見積 | L111: 7700303 | M111: NS-0208 | N111: =-IFERROR(ROUND(SUMIF(基データ!$C:$C,RIGHT(配賦額!M111,4),基データ!$I:$I),0),0) -> 0 | O111: =使い方!$B$7&使い方!$C$7&"賞与見積戻し" -> 2023夏季賞与見積戻し | Q111: 7700305 | R111: NS-0208 | S111: =IFERROR(ROUND(SUMIF(基データ!$C:$C,RIGHT(配賦額!R111,4),基データ!$L:$L)/6,0),0) -> 0 | T111: =使い方!$B$7&使い方!$C$7&"賞与法定福利見積" -> 2023夏季賞与法定福利見積 | V111: 7700305 | W111: NS-0208 | X111: =IFERROR(ROUND((SUMIF(基データ!$C:$C,RIGHT(配賦額!W111,4),基データ!$L:$L)-S111*5),0),0) -> 0 | Y111: =使い方!$B$7&使い方!$C$7&"賞与法定福利見積" -> 2023夏季賞与法定福利見積 | AA111: 7700305 | AB111: NS-0208 | AC111: =-IFERROR(ROUND(SUMIF(基データ!$C:$C,RIGHT(配賦額!AB111,4),基データ!$L:$L),0),0) -> 0 | AD111: =使い方!$B$7&使い方!$C$7&"賞与法定福利見積戻し" -> 2023夏季賞与法定福利見積戻し | AF111: 7700201 | AG111: NS-0208 | AH111: =IFERROR(ROUND(SUMIF(基データ!$Q:$Q,RIGHT(配賦額!AG111,4),基データ!$T:$T)/6,0),0) -> 0 | AI111: =使い方!$B$7&使い方!$C$7&"賞与見積(現業)" -> 2023夏季賞与見積(現業) | AK111: 7700201 | AL111: NS-0208 | AM111: =IFERROR(ROUND((SUMIF(基データ!$Q:$Q,RIGHT(配賦額!AL111,4),基データ!$T:$T)-AH111*5),0),0) -> 0 | AN111: =使い方!$B$7&使い方!$C$7&"賞与見積(現業)" -> 2023夏季賞与見積(現業) | AP111: 7700201 | AQ111: NS-0208 | AR111: =-IFERROR(ROUND(SUMIF(基データ!$Q:$Q,RIGHT(配賦額!AQ111,4),基データ!$T:$T),0),0) -> 0 | AS111: =使い方!$B$7&使い方!$C$7&"賞与見積戻し(現業)" -> 2023夏季賞与見積戻し(現業) | AU111: 7700202 | AV111: NS-0208 | AW111: =IFERROR(ROUND(SUMIF(基データ!$Q:$Q,RIGHT(配賦額!AV111,4),基データ!$U:$U)/6,0),0) -> 0 | AX111: =使い方!$B$7&使い方!$C$7&"賞与法定福利見積(現業)" -> 2023夏季賞与法定福利見積(現業) | AZ111: 7700202 | BA111: NS-0208 | BB111: =IFERROR(ROUND((SUMIF(基データ!$Q:$Q,RIGHT(配賦額!BA111,4),基データ!$U:$U)-AW111*5),0),0) -> 0 | BC111: =使い方!$B$7&使い方!$C$7&"賞与法定福利見積(現業)" -> 2023夏季賞与法定福利見積(現業) | BE111: 7700202 | BF111: NS-0208 | BG111: =-IFERROR(ROUND(SUMIF(基データ!$Q:$Q,RIGHT(配賦額!BF111,4),基データ!$U:$U),0),0) -> 0 | BH111: =使い方!$B$7&使い方!$C$7&"賞与法定福利見積戻し(現業)" -> 2023夏季賞与法定福利見積戻し(現業)
B112: 7700303 | C112: NS-0209 | D112: =IFERROR(ROUND(SUMIF(基データ!$C:$C,RIGHT(配賦額!C112,4),基データ!$I:$I)/6,0),0) -> 1804071 | E112: =使い方!$B$7&使い方!$C$7&"賞与見積" -> 2023夏季賞与見積 | G112: 7700303 | H112: NS-0209 | I112: =IFERROR(ROUND((SUMIF(基データ!$C:$C,RIGHT(配賦額!H112,4),基データ!$I:$I)-D112*5),0),0) -> 1804068 | J112: =使い方!$B$7&使い方!$C$7&"賞与見積" -> 2023夏季賞与見積 | L112: 7700303 | M112: NS-0209 | N112: =-IFERROR(ROUND(SUMIF(基データ!$C:$C,RIGHT(配賦額!M112,4),基データ!$I:$I),0),0) -> -10824423 | O112: =使い方!$B$7&使い方!$C$7&"賞与見積戻し" -> 2023夏季賞与見積戻し | Q112: 7700305 | R112: NS-0209 | S112: =IFERROR(ROUND(SUMIF(基データ!$C:$C,RIGHT(配賦額!R112,4),基データ!$L:$L)/6,0),0) -> 220071 | T112: =使い方!$B$7&使い方!$C$7&"賞与法定福利見積" -> 2023夏季賞与法定福利見積 | V112: 7700305 | W112: NS-0209 | X112: =IFERROR(ROUND((SUMIF(基データ!$C:$C,RIGHT(配賦額!W112,4),基データ!$L:$L)-S112*5),0),0) -> 220068 | Y112: =使い方!$B$7&使い方!$C$7&"賞与法定福利見積" -> 2023夏季賞与法定福利見積 | AA112: 7700305 | AB112: NS-0209 | AC112: =-IFERROR(ROUND(SUMIF(基データ!$C:$C,RIGHT(配賦額!AB112,4),基データ!$L:$L),0),0) -> -1320423 | AD112: =使い方!$B$7&使い方!$C$7&"賞与法定福利見積戻し" -> 2023夏季賞与法定福利見積戻し | AF112: 7700201 | AG112: NS-0209 | AH112: =IFERROR(ROUND(SUMIF(基データ!$Q:$Q,RIGHT(配賦額!AG112,4),基データ!$T:$T)/6,0),0) -> 0 | AI112: =使い方!$B$7&使い方!$C$7&"賞与見積(現業)" -> 2023夏季賞与見積(現業) | AK112: 7700201 | AL112: NS-0209 | AM112: =IFERROR(ROUND((SUMIF(基データ!$Q:$Q,RIGHT(配賦額!AL112,4),基データ!$T:$T)-AH112*5),0),0) -> 0 | AN112: =使い方!$B$7&使い方!$C$7&"賞与見積(現業)" -> 2023夏季賞与見積(現業) | AP112: 7700201 | AQ112: NS-0209 | AR112: =-IFERROR(ROUND(SUMIF(基データ!$Q:$Q,RIGHT(配賦額!AQ112,4),基データ!$T:$T),0),0) -> 0 | AS112: =使い方!$B$7&使い方!$C$7&"賞与見積戻し(現業)" -> 2023夏季賞与見積戻し(現業) | AU112: 7700202 | AV112: NS-0209 | AW112: =IFERROR(ROUND(SUMIF(基データ!$Q:$Q,RIGHT(配賦額!AV112,4),基データ!$U:$U)/6,0),0) -> 0 | AX112: =使い方!$B$7&使い方!$C$7&"賞与法定福利見積(現業)" -> 2023夏季賞与法定福利見積(現業) | AZ112: 7700202 | BA112: NS-0209 | BB112: =IFERROR(ROUND((SUMIF(基データ!$Q:$Q,RIGHT(配賦額!BA112,4),基データ!$U:$U)-AW112*5),0),0) -> 0 | BC112: =使い方!$B$7&使い方!$C$7&"賞与法定福利見積(現業)" -> 2023夏季賞与法定福利見積(現業) | BE112: 7700202 | BF112: NS-0209 | BG112: =-IFERROR(ROUND(SUMIF(基データ!$Q:$Q,RIGHT(配賦額!BF112,4),基データ!$U:$U),0),0) -> 0 | BH112: =使い方!$B$7&使い方!$C$7&"賞与法定福利見積戻し(現業)" -> 2023夏季賞与法定福利見積戻し(現業)
B113: 7700303 | C113: NS-0210 | D113: =IFERROR(ROUND(SUMIF(基データ!$C:$C,RIGHT(配賦額!C113,4),基データ!$I:$I)/6,0),0) -> 0 | E113: =使い方!$B$7&使い方!$C$7&"賞与見積" -> 2023夏季賞与見積 | G113: 7700303 | H113: NS-0210 | I113: =IFERROR(ROUND((SUMIF(基データ!$C:$C,RIGHT(配賦額!H113,4),基データ!$I:$I)-D113*5),0),0) -> 0 | J113: =使い方!$B$7&使い方!$C$7&"賞与見積" -> 2023夏季賞与見積 | L113: 7700303 | M113: NS-0210 | N113: =-IFERROR(ROUND(SUMIF(基データ!$C:$C,RIGHT(配賦額!M113,4),基データ!$I:$I),0),0) -> 0 | O113: =使い方!$B$7&使い方!$C$7&"賞与見積戻し" -> 2023夏季賞与見積戻し | Q113: 7700305 | R113: NS-0210 | S113: =IFERROR(ROUND(SUMIF(基データ!$C:$C,RIGHT(配賦額!R113,4),基データ!$L:$L)/6,0),0) -> 0 | T113: =使い方!$B$7&使い方!$C$7&"賞与法定福利見積" -> 2023夏季賞与法定福利見積 | V113: 7700305 | W113: NS-0210 | X113: =IFERROR(ROUND((SUMIF(基データ!$C:$C,RIGHT(配賦額!W113,4),基データ!$L:$L)-S113*5),0),0) -> 0 | Y113: =使い方!$B$7&使い方!$C$7&"賞与法定福利見積" -> 2023夏季賞与法定福利見積 | AA113: 7700305 | AB113: NS-0210 | AC113: =-IFERROR(ROUND(SUMIF(基データ!$C:$C,RIGHT(配賦額!AB113,4),基データ!$L:$L),0),0) -> 0 | AD113: =使い方!$B$7&使い方!$C$7&"賞与法定福利見積戻し" -> 2023夏季賞与法定福利見積戻し | AF113: 7700201 | AG113: NS-0210 | AH113: =IFERROR(ROUND(SUMIF(基データ!$Q:$Q,RIGHT(配賦額!AG113,4),基データ!$T:$T)/6,0),0) -> 0 | AI113: =使い方!$B$7&使い方!$C$7&"賞与見積(現業)" -> 2023夏季賞与見積(現業) | AK113: 7700201 | AL113: NS-0210 | AM113: =IFERROR(ROUND((SUMIF(基データ!$Q:$Q,RIGHT(配賦額!AL113,4),基データ!$T:$T)-AH113*5),0),0) -> 0 | AN113: =使い方!$B$7&使い方!$C$7&"賞与見積(現業)" -> 2023夏季賞与見積(現業) | AP113: 7700201 | AQ113: NS-0210 | AR113: =-IFERROR(ROUND(SUMIF(基データ!$Q:$Q,RIGHT(配賦額!AQ113,4),基データ!$T:$T),0),0) -> 0 | AS113: =使い方!$B$7&使い方!$C$7&"賞与見積戻し(現業)" -> 2023夏季賞与見積戻し(現業) | AU113: 7700202 | AV113: NS-0210 | AW113: =IFERROR(ROUND(SUMIF(基データ!$Q:$Q,RIGHT(配賦額!AV113,4),基データ!$U:$U)/6,0),0) -> 0 | AX113: =使い方!$B$7&使い方!$C$7&"賞与法定福利見積(現業)" -> 2023夏季賞与法定福利見積(現業) | AZ113: 7700202 | BA113: NS-0210 | BB113: =IFERROR(ROUND((SUMIF(基データ!$Q:$Q,RIGHT(配賦額!BA113,4),基データ!$U:$U)-AW113*5),0),0) -> 0 | BC113: =使い方!$B$7&使い方!$C$7&"賞与法定福利見積(現業)" -> 2023夏季賞与法定福利見積(現業) | BE113: 7700202 | BF113: NS-0210 | BG113: =-IFERROR(ROUND(SUMIF(基データ!$Q:$Q,RIGHT(配賦額!BF113,4),基データ!$U:$U),0),0) -> 0 | BH113: =使い方!$B$7&使い方!$C$7&"賞与法定福利見積戻し(現業)" -> 2023夏季賞与法定福利見積戻し(現業)
B114: 7700303 | C114: NS-0211 | D114: =IFERROR(ROUND(SUMIF(基データ!$C:$C,RIGHT(配賦額!C114,4),基データ!$I:$I)/6,0),0) -> 0 | E114: =使い方!$B$7&使い方!$C$7&"賞与見積" -> 2023夏季賞与見積 | G114: 7700303 | H114: NS-0211 | I114: =IFERROR(ROUND((SUMIF(基データ!$C:$C,RIGHT(配賦額!H114,4),基データ!$I:$I)-D114*5),0),0) -> 0 | J114: =使い方!$B$7&使い方!$C$7&"賞与見積" -> 2023夏季賞与見積 | L114: 7700303 | M114: NS-0211 | N114: =-IFERROR(ROUND(SUMIF(基データ!$C:$C,RIGHT(配賦額!M114,4),基データ!$I:$I),0),0) -> 0 | O114: =使い方!$B$7&使い方!$C$7&"賞与見積戻し" -> 2023夏季賞与見積戻し | Q114: 7700305 | R114: NS-0211 | S114: =IFERROR(ROUND(SUMIF(基データ!$C:$C,RIGHT(配賦額!R114,4),基データ!$L:$L)/6,0),0) -> 0 | T114: =使い方!$B$7&使い方!$C$7&"賞与法定福利見積" -> 2023夏季賞与法定福利見積 | V114: 7700305 | W114: NS-0211 | X114: =IFERROR(ROUND((SUMIF(基データ!$C:$C,RIGHT(配賦額!W114,4),基データ!$L:$L)-S114*5),0),0) -> 0 | Y114: =使い方!$B$7&使い方!$C$7&"賞与法定福利見積" -> 2023夏季賞与法定福利見積 | AA114: 7700305 | AB114: NS-0211 | AC114: =-IFERROR(ROUND(SUMIF(基データ!$C:$C,RIGHT(配賦額!AB114,4),基データ!$L:$L),0),0) -> 0 | AD114: =使い方!$B$7&使い方!$C$7&"賞与法定福利見積戻し" -> 2023夏季賞与法定福利見積戻し | AF114: 7700201 | AG114: NS-0211 | AH114: =IFERROR(ROUND(SUMIF(基データ!$Q:$Q,RIGHT(配賦額!AG114,4),基データ!$T:$T)/6,0),0) -> 0 | AI114: =使い方!$B$7&使い方!$C$7&"賞与見積(現業)" -> 2023夏季賞与見積(現業) | AK114: 7700201 | AL114: NS-0211 | AM114: =IFERROR(ROUND((SUMIF(基データ!$Q:$Q,RIGHT(配賦額!AL114,4),基データ!$T:$T)-AH114*5),0),0) -> 0 | AN114: =使い方!$B$7&使い方!$C$7&"賞与見積(現業)" -> 2023夏季賞与見積(現業) | AP114: 7700201 | AQ114: NS-0211 | AR114: =-IFERROR(ROUND(SUMIF(基データ!$Q:$Q,RIGHT(配賦額!AQ114,4),基データ!$T:$T),0),0) -> 0 | AS114: =使い方!$B$7&使い方!$C$7&"賞与見積戻し(現業)" -> 2023夏季賞与見積戻し(現業) | AU114: 7700202 | AV114: NS-0211 | AW114: =IFERROR(ROUND(SUMIF(基データ!$Q:$Q,RIGHT(配賦額!AV114,4),基データ!$U:$U)/6,0),0) -> 0 | AX114: =使い方!$B$7&使い方!$C$7&"賞与法定福利見積(現業)" -> 2023夏季賞与法定福利見積(現業) | AZ114: 7700202 | BA114: NS-0211 | BB114: =IFERROR(ROUND((SUMIF(基データ!$Q:$Q,RIGHT(配賦額!BA114,4),基データ!$U:$U)-AW114*5),0),0) -> 0 | BC114: =使い方!$B$7&使い方!$C$7&"賞与法定福利見積(現業)" -> 2023夏季賞与法定福利見積(現業) | BE114: 7700202 | BF114: NS-0211 | BG114: =-IFERROR(ROUND(SUMIF(基データ!$Q:$Q,RIGHT(配賦額!BF114,4),基データ!$U:$U),0),0) -> 0 | BH114: =使い方!$B$7&使い方!$C$7&"賞与法定福利見積戻し(現業)" -> 2023夏季賞与法定福利見積戻し(現業)
B115: 7700303 | C115: NS-0212 | D115: =IFERROR(ROUND(SUMIF(基データ!$C:$C,RIGHT(配賦額!C115,4),基データ!$I:$I)/6,0),0) -> 0 | E115: =使い方!$B$7&使い方!$C$7&"賞与見積" -> 2023夏季賞与見積 | G115: 7700303 | H115: NS-0212 | I115: =IFERROR(ROUND((SUMIF(基データ!$C:$C,RIGHT(配賦額!H115,4),基データ!$I:$I)-D115*5),0),0) -> 0 | J115: =使い方!$B$7&使い方!$C$7&"賞与見積" -> 2023夏季賞与見積 | L115: 7700303 | M115: NS-0212 | N115: =-IFERROR(ROUND(SUMIF(基データ!$C:$C,RIGHT(配賦額!M115,4),基データ!$I:$I),0),0) -> 0 | O115: =使い方!$B$7&使い方!$C$7&"賞与見積戻し" -> 2023夏季賞与見積戻し | Q115: 7700305 | R115: NS-0212 | S115: =IFERROR(ROUND(SUMIF(基データ!$C:$C,RIGHT(配賦額!R115,4),基データ!$L:$L)/6,0),0) -> 0 | T115: =使い方!$B$7&使い方!$C$7&"賞与法定福利見積" -> 2023夏季賞与法定福利見積 | V115: 7700305 | W115: NS-0212 | X115: =IFERROR(ROUND((SUMIF(基データ!$C:$C,RIGHT(配賦額!W115,4),基データ!$L:$L)-S115*5),0),0) -> 0 | Y115: =使い方!$B$7&使い方!$C$7&"賞与法定福利見積" -> 2023夏季賞与法定福利見積 | AA115: 7700305 | AB115: NS-0212 | AC115: =-IFERROR(ROUND(SUMIF(基データ!$C:$C,RIGHT(配賦額!AB115,4),基データ!$L:$L),0),0) -> 0 | AD115: =使い方!$B$7&使い方!$C$7&"賞与法定福利見積戻し" -> 2023夏季賞与法定福利見積戻し | AF115: 7700201 | AG115: NS-0212 | AH115: =IFERROR(ROUND(SUMIF(基データ!$Q:$Q,RIGHT(配賦額!AG115,4),基データ!$T:$T)/6,0),0) -> 0 | AI115: =使い方!$B$7&使い方!$C$7&"賞与見積(現業)" -> 2023夏季賞与見積(現業) | AK115: 7700201 | AL115: NS-0212 | AM115: =IFERROR(ROUND((SUMIF(基データ!$Q:$Q,RIGHT(配賦額!AL115,4),基データ!$T:$T)-AH115*5),0),0) -> 0 | AN115: =使い方!$B$7&使い方!$C$7&"賞与見積(現業)" -> 2023夏季賞与見積(現業) | AP115: 7700201 | AQ115: NS-0212 | AR115: =-IFERROR(ROUND(SUMIF(基データ!$Q:$Q,RIGHT(配賦額!AQ115,4),基データ!$T:$T),0),0) -> 0 | AS115: =使い方!$B$7&使い方!$C$7&"賞与見積戻し(現業)" -> 2023夏季賞与見積戻し(現業) | AU115: 7700202 | AV115: NS-0212 | AW115: =IFERROR(ROUND(SUMIF(基データ!$Q:$Q,RIGHT(配賦額!AV115,4),基データ!$U:$U)/6,0),0) -> 0 | AX115: =使い方!$B$7&使い方!$C$7&"賞与法定福利見積(現業)" -> 2023夏季賞与法定福利見積(現業) | AZ115: 7700202 | BA115: NS-0212 | BB115: =IFERROR(ROUND((SUMIF(基データ!$Q:$Q,RIGHT(配賦額!BA115,4),基データ!$U:$U)-AW115*5),0),0) -> 0 | BC115: =使い方!$B$7&使い方!$C$7&"賞与法定福利見積(現業)" -> 2023夏季賞与法定福利見積(現業) | BE115: 7700202 | BF115: NS-0212 | BG115: =-IFERROR(ROUND(SUMIF(基データ!$Q:$Q,RIGHT(配賦額!BF115,4),基データ!$U:$U),0),0) -> 0 | BH115: =使い方!$B$7&使い方!$C$7&"賞与法定福利見積戻し(現業)" -> 2023夏季賞与法定福利見積戻し(現業)
B116: 7700303 | C116: NS-0213 | D116: =IFERROR(ROUND(SUMIF(基データ!$C:$C,RIGHT(配賦額!C116,4),基データ!$I:$I)/6,0),0) -> 0 | E116: =使い方!$B$7&使い方!$C$7&"賞与見積" -> 2023夏季賞与見積 | G116: 7700303 | H116: NS-0213 | I116: =IFERROR(ROUND((SUMIF(基データ!$C:$C,RIGHT(配賦額!H116,4),基データ!$I:$I)-D116*5),0),0) -> 0 | J116: =使い方!$B$7&使い方!$C$7&"賞与見積" -> 2023夏季賞与見積 | L116: 7700303 | M116: NS-0213 | N116: =-IFERROR(ROUND(SUMIF(基データ!$C:$C,RIGHT(配賦額!M116,4),基データ!$I:$I),0),0) -> 0 | O116: =使い方!$B$7&使い方!$C$7&"賞与見積戻し" -> 2023夏季賞与見積戻し | Q116: 7700305 | R116: NS-0213 | S116: =IFERROR(ROUND(SUMIF(基データ!$C:$C,RIGHT(配賦額!R116,4),基データ!$L:$L)/6,0),0) -> 0 | T116: =使い方!$B$7&使い方!$C$7&"賞与法定福利見積" -> 2023夏季賞与法定福利見積 | V116: 7700305 | W116: NS-0213 | X116: =IFERROR(ROUND((SUMIF(基データ!$C:$C,RIGHT(配賦額!W116,4),基データ!$L:$L)-S116*5),0),0) -> 0 | Y116: =使い方!$B$7&使い方!$C$7&"賞与法定福利見積" -> 2023夏季賞与法定福利見積 | AA116: 7700305 | AB116: NS-0213 | AC116: =-IFERROR(ROUND(SUMIF(基データ!$C:$C,RIGHT(配賦額!AB116,4),基データ!$L:$L),0),0) -> 0 | AD116: =使い方!$B$7&使い方!$C$7&"賞与法定福利見積戻し" -> 2023夏季賞与法定福利見積戻し | AF116: 7700201 | AG116: NS-0213 | AH116: =IFERROR(ROUND(SUMIF(基データ!$Q:$Q,RIGHT(配賦額!AG116,4),基データ!$T:$T)/6,0),0) -> 0 | AI116: =使い方!$B$7&使い方!$C$7&"賞与見積(現業)" -> 2023夏季賞与見積(現業) | AK116: 7700201 | AL116: NS-0213 | AM116: =IFERROR(ROUND((SUMIF(基データ!$Q:$Q,RIGHT(配賦額!AL116,4),基データ!$T:$T)-AH116*5),0),0) -> 0 | AN116: =使い方!$B$7&使い方!$C$7&"賞与見積(現業)" -> 2023夏季賞与見積(現業) | AP116: 7700201 | AQ116: NS-0213 | AR116: =-IFERROR(ROUND(SUMIF(基データ!$Q:$Q,RIGHT(配賦額!AQ116,4),基データ!$T:$T),0),0) -> 0 | AS116: =使い方!$B$7&使い方!$C$7&"賞与見積戻し(現業)" -> 2023夏季賞与見積戻し(現業) | AU116: 7700202 | AV116: NS-0213 | AW116: =IFERROR(ROUND(SUMIF(基データ!$Q:$Q,RIGHT(配賦額!AV116,4),基データ!$U:$U)/6,0),0) -> 0 | AX116: =使い方!$B$7&使い方!$C$7&"賞与法定福利見積(現業)" -> 2023夏季賞与法定福利見積(現業) | AZ116: 7700202 | BA116: NS-0213 | BB116: =IFERROR(ROUND((SUMIF(基データ!$Q:$Q,RIGHT(配賦額!BA116,4),基データ!$U:$U)-AW116*5),0),0) -> 0 | BC116: =使い方!$B$7&使い方!$C$7&"賞与法定福利見積(現業)" -> 2023夏季賞与法定福利見積(現業) | BE116: 7700202 | BF116: NS-0213 | BG116: =-IFERROR(ROUND(SUMIF(基データ!$Q:$Q,RIGHT(配賦額!BF116,4),基データ!$U:$U),0),0) -> 0 | BH116: =使い方!$B$7&使い方!$C$7&"賞与法定福利見積戻し(現業)" -> 2023夏季賞与法定福利見積戻し(現業)
B117: 7700303 | C117: NS-0214 | D117: =IFERROR(ROUND(SUMIF(基データ!$C:$C,RIGHT(配賦額!C117,4),基データ!$I:$I)/6,0),0) -> 0 | E117: =使い方!$B$7&使い方!$C$7&"賞与見積" -> 2023夏季賞与見積 | G117: 7700303 | H117: NS-0214 | I117: =IFERROR(ROUND((SUMIF(基データ!$C:$C,RIGHT(配賦額!H117,4),基データ!$I:$I)-D117*5),0),0) -> 0 | J117: =使い方!$B$7&使い方!$C$7&"賞与見積" -> 2023夏季賞与見積 | L117: 7700303 | M117: NS-0214 | N117: =-IFERROR(ROUND(SUMIF(基データ!$C:$C,RIGHT(配賦額!M117,4),基データ!$I:$I),0),0) -> 0 | O117: =使い方!$B$7&使い方!$C$7&"賞与見積戻し" -> 2023夏季賞与見積戻し | Q117: 7700305 | R117: NS-0214 | S117: =IFERROR(ROUND(SUMIF(基データ!$C:$C,RIGHT(配賦額!R117,4),基データ!$L:$L)/6,0),0) -> 0 | T117: =使い方!$B$7&使い方!$C$7&"賞与法定福利見積" -> 2023夏季賞与法定福利見積 | V117: 7700305 | W117: NS-0214 | X117: =IFERROR(ROUND((SUMIF(基データ!$C:$C,RIGHT(配賦額!W117,4),基データ!$L:$L)-S117*5),0),0) -> 0 | Y117: =使い方!$B$7&使い方!$C$7&"賞与法定福利見積" -> 2023夏季賞与法定福利見積 | AA117: 7700305 | AB117: NS-0214 | AC117: =-IFERROR(ROUND(SUMIF(基データ!$C:$C,RIGHT(配賦額!AB117,4),基データ!$L:$L),0),0) -> 0 | AD117: =使い方!$B$7&使い方!$C$7&"賞与法定福利見積戻し" -> 2023夏季賞与法定福利見積戻し | AF117: 7700201 | AG117: NS-0214 | AH117: =IFERROR(ROUND(SUMIF(基データ!$Q:$Q,RIGHT(配賦額!AG117,4),基データ!$T:$T)/6,0),0) -> 0 | AI117: =使い方!$B$7&使い方!$C$7&"賞与見積(現業)" -> 2023夏季賞与見積(現業) | AK117: 7700201 | AL117: NS-0214 | AM117: =IFERROR(ROUND((SUMIF(基データ!$Q:$Q,RIGHT(配賦額!AL117,4),基データ!$T:$T)-AH117*5),0),0) -> 0 | AN117: =使い方!$B$7&使い方!$C$7&"賞与見積(現業)" -> 2023夏季賞与見積(現業) | AP117: 7700201 | AQ117: NS-0214 | AR117: =-IFERROR(ROUND(SUMIF(基データ!$Q:$Q,RIGHT(配賦額!AQ117,4),基データ!$T:$T),0),0) -> 0 | AS117: =使い方!$B$7&使い方!$C$7&"賞与見積戻し(現業)" -> 2023夏季賞与見積戻し(現業) | AU117: 7700202 | AV117: NS-0214 | AW117: =IFERROR(ROUND(SUMIF(基データ!$Q:$Q,RIGHT(配賦額!AV117,4),基データ!$U:$U)/6,0),0) -> 0 | AX117: =使い方!$B$7&使い方!$C$7&"賞与法定福利見積(現業)" -> 2023夏季賞与法定福利見積(現業) | AZ117: 7700202 | BA117: NS-0214 | BB117: =IFERROR(ROUND((SUMIF(基データ!$Q:$Q,RIGHT(配賦額!BA117,4),基データ!$U:$U)-AW117*5),0),0) -> 0 | BC117: =使い方!$B$7&使い方!$C$7&"賞与法定福利見積(現業)" -> 2023夏季賞与法定福利見積(現業) | BE117: 7700202 | BF117: NS-0214 | BG117: =-IFERROR(ROUND(SUMIF(基データ!$Q:$Q,RIGHT(配賦額!BF117,4),基データ!$U:$U),0),0) -> 0 | BH117: =使い方!$B$7&使い方!$C$7&"賞与法定福利見積戻し(現業)" -> 2023夏季賞与法定福利見積戻し(現業)
B118: 7700303 | C118: NS-0215 | D118: =IFERROR(ROUND(SUMIF(基データ!$C:$C,RIGHT(配賦額!C118,4),基データ!$I:$I)/6,0),0) -> 0 | E118: =使い方!$B$7&使い方!$C$7&"賞与見積" -> 2023夏季賞与見積 | G118: 7700303 | H118: NS-0215 | I118: =IFERROR(ROUND((SUMIF(基データ!$C:$C,RIGHT(配賦額!H118,4),基データ!$I:$I)-D118*5),0),0) -> 0 | J118: =使い方!$B$7&使い方!$C$7&"賞与見積" -> 2023夏季賞与見積 | L118: 7700303 | M118: NS-0215 | N118: =-IFERROR(ROUND(SUMIF(基データ!$C:$C,RIGHT(配賦額!M118,4),基データ!$I:$I),0),0) -> 0 | O118: =使い方!$B$7&使い方!$C$7&"賞与見積戻し" -> 2023夏季賞与見積戻し | Q118: 7700305 | R118: NS-0215 | S118: =IFERROR(ROUND(SUMIF(基データ!$C:$C,RIGHT(配賦額!R118,4),基データ!$L:$L)/6,0),0) -> 0 | T118: =使い方!$B$7&使い方!$C$7&"賞与法定福利見積" -> 2023夏季賞与法定福利見積 | V118: 7700305 | W118: NS-0215 | X118: =IFERROR(ROUND((SUMIF(基データ!$C:$C,RIGHT(配賦額!W118,4),基データ!$L:$L)-S118*5),0),0) -> 0 | Y118: =使い方!$B$7&使い方!$C$7&"賞与法定福利見積" -> 2023夏季賞与法定福利見積 | AA118: 7700305 | AB118: NS-0215 | AC118: =-IFERROR(ROUND(SUMIF(基データ!$C:$C,RIGHT(配賦額!AB118,4),基データ!$L:$L),0),0) -> 0 | AD118: =使い方!$B$7&使い方!$C$7&"賞与法定福利見積戻し" -> 2023夏季賞与法定福利見積戻し | AF118: 7700201 | AG118: NS-0215 | AH118: =IFERROR(ROUND(SUMIF(基データ!$Q:$Q,RIGHT(配賦額!AG118,4),基データ!$T:$T)/6,0),0) -> 0 | AI118: =使い方!$B$7&使い方!$C$7&"賞与見積(現業)" -> 2023夏季賞与見積(現業) | AK118: 7700201 | AL118: NS-0215 | AM118: =IFERROR(ROUND((SUMIF(基データ!$Q:$Q,RIGHT(配賦額!AL118,4),基データ!$T:$T)-AH118*5),0),0) -> 0 | AN118: =使い方!$B$7&使い方!$C$7&"賞与見積(現業)" -> 2023夏季賞与見積(現業) | AP118: 7700201 | AQ118: NS-0215 | AR118: =-IFERROR(ROUND(SUMIF(基データ!$Q:$Q,RIGHT(配賦額!AQ118,4),基データ!$T:$T),0),0) -> 0 | AS118: =使い方!$B$7&使い方!$C$7&"賞与見積戻し(現業)" -> 2023夏季賞与見積戻し(現業) | AU118: 7700202 | AV118: NS-0215 | AW118: =IFERROR(ROUND(SUMIF(基データ!$Q:$Q,RIGHT(配賦額!AV118,4),基データ!$U:$U)/6,0),0) -> 0 | AX118: =使い方!$B$7&使い方!$C$7&"賞与法定福利見積(現業)" -> 2023夏季賞与法定福利見積(現業) | AZ118: 7700202 | BA118: NS-0215 | BB118: =IFERROR(ROUND((SUMIF(基データ!$Q:$Q,RIGHT(配賦額!BA118,4),基データ!$U:$U)-AW118*5),0),0) -> 0 | BC118: =使い方!$B$7&使い方!$C$7&"賞与法定福利見積(現業)" -> 2023夏季賞与法定福利見積(現業) | BE118: 7700202 | BF118: NS-0215 | BG118: =-IFERROR(ROUND(SUMIF(基データ!$Q:$Q,RIGHT(配賦額!BF118,4),基データ!$U:$U),0),0) -> 0 | BH118: =使い方!$B$7&使い方!$C$7&"賞与法定福利見積戻し(現業)" -> 2023夏季賞与法定福利見積戻し(現業)
B119: 7700303 | C119: NS-0216 | D119: =IFERROR(ROUND(SUMIF(基データ!$C:$C,RIGHT(配賦額!C119,4),基データ!$I:$I)/6,0),0) -> 0 | E119: =使い方!$B$7&使い方!$C$7&"賞与見積" -> 2023夏季賞与見積 | G119: 7700303 | H119: NS-0216 | I119: =IFERROR(ROUND((SUMIF(基データ!$C:$C,RIGHT(配賦額!H119,4),基データ!$I:$I)-D119*5),0),0) -> 0 | J119: =使い方!$B$7&使い方!$C$7&"賞与見積" -> 2023夏季賞与見積 | L119: 7700303 | M119: NS-0216 | N119: =-IFERROR(ROUND(SUMIF(基データ!$C:$C,RIGHT(配賦額!M119,4),基データ!$I:$I),0),0) -> 0 | O119: =使い方!$B$7&使い方!$C$7&"賞与見積戻し" -> 2023夏季賞与見積戻し | Q119: 7700305 | R119: NS-0216 | S119: =IFERROR(ROUND(SUMIF(基データ!$C:$C,RIGHT(配賦額!R119,4),基データ!$L:$L)/6,0),0) -> 0 | T119: =使い方!$B$7&使い方!$C$7&"賞与法定福利見積" -> 2023夏季賞与法定福利見積 | V119: 7700305 | W119: NS-0216 | X119: =IFERROR(ROUND((SUMIF(基データ!$C:$C,RIGHT(配賦額!W119,4),基データ!$L:$L)-S119*5),0),0) -> 0 | Y119: =使い方!$B$7&使い方!$C$7&"賞与法定福利見積" -> 2023夏季賞与法定福利見積 | AA119: 7700305 | AB119: NS-0216 | AC119: =-IFERROR(ROUND(SUMIF(基データ!$C:$C,RIGHT(配賦額!AB119,4),基データ!$L:$L),0),0) -> 0 | AD119: =使い方!$B$7&使い方!$C$7&"賞与法定福利見積戻し" -> 2023夏季賞与法定福利見積戻し | AF119: 7700201 | AG119: NS-0216 | AH119: =IFERROR(ROUND(SUMIF(基データ!$Q:$Q,RIGHT(配賦額!AG119,4),基データ!$T:$T)/6,0),0) -> 0 | AI119: =使い方!$B$7&使い方!$C$7&"賞与見積(現業)" -> 2023夏季賞与見積(現業) | AK119: 7700201 | AL119: NS-0216 | AM119: =IFERROR(ROUND((SUMIF(基データ!$Q:$Q,RIGHT(配賦額!AL119,4),基データ!$T:$T)-AH119*5),0),0) -> 0 | AN119: =使い方!$B$7&使い方!$C$7&"賞与見積(現業)" -> 2023夏季賞与見積(現業) | AP119: 7700201 | AQ119: NS-0216 | AR119: =-IFERROR(ROUND(SUMIF(基データ!$Q:$Q,RIGHT(配賦額!AQ119,4),基データ!$T:$T),0),0) -> 0 | AS119: =使い方!$B$7&使い方!$C$7&"賞与見積戻し(現業)" -> 2023夏季賞与見積戻し(現業) | AU119: 7700202 | AV119: NS-0216 | AW119: =IFERROR(ROUND(SUMIF(基データ!$Q:$Q,RIGHT(配賦額!AV119,4),基データ!$U:$U)/6,0),0) -> 0 | AX119: =使い方!$B$7&使い方!$C$7&"賞与法定福利見積(現業)" -> 2023夏季賞与法定福利見積(現業) | AZ119: 7700202 | BA119: NS-0216 | BB119: =IFERROR(ROUND((SUMIF(基データ!$Q:$Q,RIGHT(配賦額!BA119,4),基データ!$U:$U)-AW119*5),0),0) -> 0 | BC119: =使い方!$B$7&使い方!$C$7&"賞与法定福利見積(現業)" -> 2023夏季賞与法定福利見積(現業) | BE119: 7700202 | BF119: NS-0216 | BG119: =-IFERROR(ROUND(SUMIF(基データ!$Q:$Q,RIGHT(配賦額!BF119,4),基データ!$U:$U),0),0) -> 0 | BH119: =使い方!$B$7&使い方!$C$7&"賞与法定福利見積戻し(現業)" -> 2023夏季賞与法定福利見積戻し(現業)
B120: 7700303 | C120: NS-0217 | D120: =IFERROR(ROUND(SUMIF(基データ!$C:$C,RIGHT(配賦額!C120,4),基データ!$I:$I)/6,0),0) -> 0 | E120: =使い方!$B$7&使い方!$C$7&"賞与見積" -> 2023夏季賞与見積 | G120: 7700303 | H120: NS-0217 | I120: =IFERROR(ROUND((SUMIF(基データ!$C:$C,RIGHT(配賦額!H120,4),基データ!$I:$I)-D120*5),0),0) -> 0 | J120: =使い方!$B$7&使い方!$C$7&"賞与見積" -> 2023夏季賞与見積 | L120: 7700303 | M120: NS-0217 | N120: =-IFERROR(ROUND(SUMIF(基データ!$C:$C,RIGHT(配賦額!M120,4),基データ!$I:$I),0),0) -> 0 | O120: =使い方!$B$7&使い方!$C$7&"賞与見積戻し" -> 2023夏季賞与見積戻し | Q120: 7700305 | R120: NS-0217 | S120: =IFERROR(ROUND(SUMIF(基データ!$C:$C,RIGHT(配賦額!R120,4),基データ!$L:$L)/6,0),0) -> 0 | T120: =使い方!$B$7&使い方!$C$7&"賞与法定福利見積" -> 2023夏季賞与法定福利見積 | V120: 7700305 | W120: NS-0217 | X120: =IFERROR(ROUND((SUMIF(基データ!$C:$C,RIGHT(配賦額!W120,4),基データ!$L:$L)-S120*5),0),0) -> 0 | Y120: =使い方!$B$7&使い方!$C$7&"賞与法定福利見積" -> 2023夏季賞与法定福利見積 | AA120: 7700305 | AB120: NS-0217 | AC120: =-IFERROR(ROUND(SUMIF(基データ!$C:$C,RIGHT(配賦額!AB120,4),基データ!$L:$L),0),0) -> 0 | AD120: =使い方!$B$7&使い方!$C$7&"賞与法定福利見積戻し" -> 2023夏季賞与法定福利見積戻し | AF120: 7700201 | AG120: NS-0217 | AH120: =IFERROR(ROUND(SUMIF(基データ!$Q:$Q,RIGHT(配賦額!AG120,4),基データ!$T:$T)/6,0),0) -> 0 | AI120: =使い方!$B$7&使い方!$C$7&"賞与見積(現業)" -> 2023夏季賞与見積(現業) | AK120: 7700201 | AL120: NS-0217 | AM120: =IFERROR(ROUND((SUMIF(基データ!$Q:$Q,RIGHT(配賦額!AL120,4),基データ!$T:$T)-AH120*5),0),0) -> 0 | AN120: =使い方!$B$7&使い方!$C$7&"賞与見積(現業)" -> 2023夏季賞与見積(現業) | AP120: 7700201 | AQ120: NS-0217 | AR120: =-IFERROR(ROUND(SUMIF(基データ!$Q:$Q,RIGHT(配賦額!AQ120,4),基データ!$T:$T),0),0) -> 0 | AS120: =使い方!$B$7&使い方!$C$7&"賞与見積戻し(現業)" -> 2023夏季賞与見積戻し(現業) | AU120: 7700202 | AV120: NS-0217 | AW120: =IFERROR(ROUND(SUMIF(基データ!$Q:$Q,RIGHT(配賦額!AV120,4),基データ!$U:$U)/6,0),0) -> 0 | AX120: =使い方!$B$7&使い方!$C$7&"賞与法定福利見積(現業)" -> 2023夏季賞与法定福利見積(現業) | AZ120: 7700202 | BA120: NS-0217 | BB120: =IFERROR(ROUND((SUMIF(基データ!$Q:$Q,RIGHT(配賦額!BA120,4),基データ!$U:$U)-AW120*5),0),0) -> 0 | BC120: =使い方!$B$7&使い方!$C$7&"賞与法定福利見積(現業)" -> 2023夏季賞与法定福利見積(現業) | BE120: 7700202 | BF120: NS-0217 | BG120: =-IFERROR(ROUND(SUMIF(基データ!$Q:$Q,RIGHT(配賦額!BF120,4),基データ!$U:$U),0),0) -> 0 | BH120: =使い方!$B$7&使い方!$C$7&"賞与法定福利見積戻し(現業)" -> 2023夏季賞与法定福利見積戻し(現業)
B121: 7700303 | C121: NS-0218 | D121: =IFERROR(ROUND(SUMIF(基データ!$C:$C,RIGHT(配賦額!C121,4),基データ!$I:$I)/6,0),0) -> 0 | E121: =使い方!$B$7&使い方!$C$7&"賞与見積" -> 2023夏季賞与見積 | G121: 7700303 | H121: NS-0218 | I121: =IFERROR(ROUND((SUMIF(基データ!$C:$C,RIGHT(配賦額!H121,4),基データ!$I:$I)-D121*5),0),0) -> 0 | J121: =使い方!$B$7&使い方!$C$7&"賞与見積" -> 2023夏季賞与見積 | L121: 7700303 | M121: NS-0218 | N121: =-IFERROR(ROUND(SUMIF(基データ!$C:$C,RIGHT(配賦額!M121,4),基データ!$I:$I),0),0) -> 0 | O121: =使い方!$B$7&使い方!$C$7&"賞与見積戻し" -> 2023夏季賞与見積戻し | Q121: 7700305 | R121: NS-0218 | S121: =IFERROR(ROUND(SUMIF(基データ!$C:$C,RIGHT(配賦額!R121,4),基データ!$L:$L)/6,0),0) -> 0 | T121: =使い方!$B$7&使い方!$C$7&"賞与法定福利見積" -> 2023夏季賞与法定福利見積 | V121: 7700305 | W121: NS-0218 | X121: =IFERROR(ROUND((SUMIF(基データ!$C:$C,RIGHT(配賦額!W121,4),基データ!$L:$L)-S121*5),0),0) -> 0 | Y121: =使い方!$B$7&使い方!$C$7&"賞与法定福利見積" -> 2023夏季賞与法定福利見積 | AA121: 7700305 | AB121: NS-0218 | AC121: =-IFERROR(ROUND(SUMIF(基データ!$C:$C,RIGHT(配賦額!AB121,4),基データ!$L:$L),0),0) -> 0 | AD121: =使い方!$B$7&使い方!$C$7&"賞与法定福利見積戻し" -> 2023夏季賞与法定福利見積戻し | AF121: 7700201 | AG121: NS-0218 | AH121: =IFERROR(ROUND(SUMIF(基データ!$Q:$Q,RIGHT(配賦額!AG121,4),基データ!$T:$T)/6,0),0) -> 0 | AI121: =使い方!$B$7&使い方!$C$7&"賞与見積(現業)" -> 2023夏季賞与見積(現業) | AK121: 7700201 | AL121: NS-0218 | AM121: =IFERROR(ROUND((SUMIF(基データ!$Q:$Q,RIGHT(配賦額!AL121,4),基データ!$T:$T)-AH121*5),0),0) -> 0 | AN121: =使い方!$B$7&使い方!$C$7&"賞与見積(現業)" -> 2023夏季賞与見積(現業) | AP121: 7700201 | AQ121: NS-0218 | AR121: =-IFERROR(ROUND(SUMIF(基データ!$Q:$Q,RIGHT(配賦額!AQ121,4),基データ!$T:$T),0),0) -> 0 | AS121: =使い方!$B$7&使い方!$C$7&"賞与見積戻し(現業)" -> 2023夏季賞与見積戻し(現業) | AU121: 7700202 | AV121: NS-0218 | AW121: =IFERROR(ROUND(SUMIF(基データ!$Q:$Q,RIGHT(配賦額!AV121,4),基データ!$U:$U)/6,0),0) -> 0 | AX121: =使い方!$B$7&使い方!$C$7&"賞与法定福利見積(現業)" -> 2023夏季賞与法定福利見積(現業) | AZ121: 7700202 | BA121: NS-0218 | BB121: =IFERROR(ROUND((SUMIF(基データ!$Q:$Q,RIGHT(配賦額!BA121,4),基データ!$U:$U)-AW121*5),0),0) -> 0 | BC121: =使い方!$B$7&使い方!$C$7&"賞与法定福利見積(現業)" -> 2023夏季賞与法定福利見積(現業) | BE121: 7700202 | BF121: NS-0218 | BG121: =-IFERROR(ROUND(SUMIF(基データ!$Q:$Q,RIGHT(配賦額!BF121,4),基データ!$U:$U),0),0) -> 0 | BH121: =使い方!$B$7&使い方!$C$7&"賞与法定福利見積戻し(現業)" -> 2023夏季賞与法定福利見積戻し(現業)
B122: 7700303 | C122: NS-0219 | D122: =IFERROR(ROUND(SUMIF(基データ!$C:$C,RIGHT(配賦額!C122,4),基データ!$I:$I)/6,0),0) -> 0 | E122: =使い方!$B$7&使い方!$C$7&"賞与見積" -> 2023夏季賞与見積 | G122: 7700303 | H122: NS-0219 | I122: =IFERROR(ROUND((SUMIF(基データ!$C:$C,RIGHT(配賦額!H122,4),基データ!$I:$I)-D122*5),0),0) -> 0 | J122: =使い方!$B$7&使い方!$C$7&"賞与見積" -> 2023夏季賞与見積 | L122: 7700303 | M122: NS-0219 | N122: =-IFERROR(ROUND(SUMIF(基データ!$C:$C,RIGHT(配賦額!M122,4),基データ!$I:$I),0),0) -> 0 | O122: =使い方!$B$7&使い方!$C$7&"賞与見積戻し" -> 2023夏季賞与見積戻し | Q122: 7700305 | R122: NS-0219 | S122: =IFERROR(ROUND(SUMIF(基データ!$C:$C,RIGHT(配賦額!R122,4),基データ!$L:$L)/6,0),0) -> 0 | T122: =使い方!$B$7&使い方!$C$7&"賞与法定福利見積" -> 2023夏季賞与法定福利見積 | V122: 7700305 | W122: NS-0219 | X122: =IFERROR(ROUND((SUMIF(基データ!$C:$C,RIGHT(配賦額!W122,4),基データ!$L:$L)-S122*5),0),0) -> 0 | Y122: =使い方!$B$7&使い方!$C$7&"賞与法定福利見積" -> 2023夏季賞与法定福利見積 | AA122: 7700305 | AB122: NS-0219 | AC122: =-IFERROR(ROUND(SUMIF(基データ!$C:$C,RIGHT(配賦額!AB122,4),基データ!$L:$L),0),0) -> 0 | AD122: =使い方!$B$7&使い方!$C$7&"賞与法定福利見積戻し" -> 2023夏季賞与法定福利見積戻し | AF122: 7700201 | AG122: NS-0219 | AH122: =IFERROR(ROUND(SUMIF(基データ!$Q:$Q,RIGHT(配賦額!AG122,4),基データ!$T:$T)/6,0),0) -> 0 | AI122: =使い方!$B$7&使い方!$C$7&"賞与見積(現業)" -> 2023夏季賞与見積(現業) | AK122: 7700201 | AL122: NS-0219 | AM122: =IFERROR(ROUND((SUMIF(基データ!$Q:$Q,RIGHT(配賦額!AL122,4),基データ!$T:$T)-AH122*5),0),0) -> 0 | AN122: =使い方!$B$7&使い方!$C$7&"賞与見積(現業)" -> 2023夏季賞与見積(現業) | AP122: 7700201 | AQ122: NS-0219 | AR122: =-IFERROR(ROUND(SUMIF(基データ!$Q:$Q,RIGHT(配賦額!AQ122,4),基データ!$T:$T),0),0) -> 0 | AS122: =使い方!$B$7&使い方!$C$7&"賞与見積戻し(現業)" -> 2023夏季賞与見積戻し(現業) | AU122: 7700202 | AV122: NS-0219 | AW122: =IFERROR(ROUND(SUMIF(基データ!$Q:$Q,RIGHT(配賦額!AV122,4),基データ!$U:$U)/6,0),0) -> 0 | AX122: =使い方!$B$7&使い方!$C$7&"賞与法定福利見積(現業)" -> 2023夏季賞与法定福利見積(現業) | AZ122: 7700202 | BA122: NS-0219 | BB122: =IFERROR(ROUND((SUMIF(基データ!$Q:$Q,RIGHT(配賦額!BA122,4),基データ!$U:$U)-AW122*5),0),0) -> 0 | BC122: =使い方!$B$7&使い方!$C$7&"賞与法定福利見積(現業)" -> 2023夏季賞与法定福利見積(現業) | BE122: 7700202 | BF122: NS-0219 | BG122: =-IFERROR(ROUND(SUMIF(基データ!$Q:$Q,RIGHT(配賦額!BF122,4),基データ!$U:$U),0),0) -> 0 | BH122: =使い方!$B$7&使い方!$C$7&"賞与法定福利見積戻し(現業)" -> 2023夏季賞与法定福利見積戻し(現業)
B123: 7700303 | C123: NS-0220 | D123: =IFERROR(ROUND(SUMIF(基データ!$C:$C,RIGHT(配賦額!C123,4),基データ!$I:$I)/6,0),0) -> 0 | E123: =使い方!$B$7&使い方!$C$7&"賞与見積" -> 2023夏季賞与見積 | G123: 7700303 | H123: NS-0220 | I123: =IFERROR(ROUND((SUMIF(基データ!$C:$C,RIGHT(配賦額!H123,4),基データ!$I:$I)-D123*5),0),0) -> 0 | J123: =使い方!$B$7&使い方!$C$7&"賞与見積" -> 2023夏季賞与見積 | L123: 7700303 | M123: NS-0220 | N123: =-IFERROR(ROUND(SUMIF(基データ!$C:$C,RIGHT(配賦額!M123,4),基データ!$I:$I),0),0) -> 0 | O123: =使い方!$B$7&使い方!$C$7&"賞与見積戻し" -> 2023夏季賞与見積戻し | Q123: 7700305 | R123: NS-0220 | S123: =IFERROR(ROUND(SUMIF(基データ!$C:$C,RIGHT(配賦額!R123,4),基データ!$L:$L)/6,0),0) -> 0 | T123: =使い方!$B$7&使い方!$C$7&"賞与法定福利見積" -> 2023夏季賞与法定福利見積 | V123: 7700305 | W123: NS-0220 | X123: =IFERROR(ROUND((SUMIF(基データ!$C:$C,RIGHT(配賦額!W123,4),基データ!$L:$L)-S123*5),0),0) -> 0 | Y123: =使い方!$B$7&使い方!$C$7&"賞与法定福利見積" -> 2023夏季賞与法定福利見積 | AA123: 7700305 | AB123: NS-0220 | AC123: =-IFERROR(ROUND(SUMIF(基データ!$C:$C,RIGHT(配賦額!AB123,4),基データ!$L:$L),0),0) -> 0 | AD123: =使い方!$B$7&使い方!$C$7&"賞与法定福利見積戻し" -> 2023夏季賞与法定福利見積戻し | AF123: 7700201 | AG123: NS-0220 | AH123: =IFERROR(ROUND(SUMIF(基データ!$Q:$Q,RIGHT(配賦額!AG123,4),基データ!$T:$T)/6,0),0) -> 0 | AI123: =使い方!$B$7&使い方!$C$7&"賞与見積(現業)" -> 2023夏季賞与見積(現業) | AK123: 7700201 | AL123: NS-0220 | AM123: =IFERROR(ROUND((SUMIF(基データ!$Q:$Q,RIGHT(配賦額!AL123,4),基データ!$T:$T)-AH123*5),0),0) -> 0 | AN123: =使い方!$B$7&使い方!$C$7&"賞与見積(現業)" -> 2023夏季賞与見積(現業) | AP123: 7700201 | AQ123: NS-0220 | AR123: =-IFERROR(ROUND(SUMIF(基データ!$Q:$Q,RIGHT(配賦額!AQ123,4),基データ!$T:$T),0),0) -> 0 | AS123: =使い方!$B$7&使い方!$C$7&"賞与見積戻し(現業)" -> 2023夏季賞与見積戻し(現業) | AU123: 7700202 | AV123: NS-0220 | AW123: =IFERROR(ROUND(SUMIF(基データ!$Q:$Q,RIGHT(配賦額!AV123,4),基データ!$U:$U)/6,0),0) -> 0 | AX123: =使い方!$B$7&使い方!$C$7&"賞与法定福利見積(現業)" -> 2023夏季賞与法定福利見積(現業) | AZ123: 7700202 | BA123: NS-0220 | BB123: =IFERROR(ROUND((SUMIF(基データ!$Q:$Q,RIGHT(配賦額!BA123,4),基データ!$U:$U)-AW123*5),0),0) -> 0 | BC123: =使い方!$B$7&使い方!$C$7&"賞与法定福利見積(現業)" -> 2023夏季賞与法定福利見積(現業) | BE123: 7700202 | BF123: NS-0220 | BG123: =-IFERROR(ROUND(SUMIF(基データ!$Q:$Q,RIGHT(配賦額!BF123,4),基データ!$U:$U),0),0) -> 0 | BH123: =使い方!$B$7&使い方!$C$7&"賞与法定福利見積戻し(現業)" -> 2023夏季賞与法定福利見積戻し(現業)
B124: 7700303 | C124: NS-0221 | D124: =IFERROR(ROUND(SUMIF(基データ!$C:$C,RIGHT(配賦額!C124,4),基データ!$I:$I)/6,0),0) -> 0 | E124: =使い方!$B$7&使い方!$C$7&"賞与見積" -> 2023夏季賞与見積 | G124: 7700303 | H124: NS-0221 | I124: =IFERROR(ROUND((SUMIF(基データ!$C:$C,RIGHT(配賦額!H124,4),基データ!$I:$I)-D124*5),0),0) -> 0 | J124: =使い方!$B$7&使い方!$C$7&"賞与見積" -> 2023夏季賞与見積 | L124: 7700303 | M124: NS-0221 | N124: =-IFERROR(ROUND(SUMIF(基データ!$C:$C,RIGHT(配賦額!M124,4),基データ!$I:$I),0),0) -> 0 | O124: =使い方!$B$7&使い方!$C$7&"賞与見積戻し" -> 2023夏季賞与見積戻し | Q124: 7700305 | R124: NS-0221 | S124: =IFERROR(ROUND(SUMIF(基データ!$C:$C,RIGHT(配賦額!R124,4),基データ!$L:$L)/6,0),0) -> 0 | T124: =使い方!$B$7&使い方!$C$7&"賞与法定福利見積" -> 2023夏季賞与法定福利見積 | V124: 7700305 | W124: NS-0221 | X124: =IFERROR(ROUND((SUMIF(基データ!$C:$C,RIGHT(配賦額!W124,4),基データ!$L:$L)-S124*5),0),0) -> 0 | Y124: =使い方!$B$7&使い方!$C$7&"賞与法定福利見積" -> 2023夏季賞与法定福利見積 | AA124: 7700305 | AB124: NS-0221 | AC124: =-IFERROR(ROUND(SUMIF(基データ!$C:$C,RIGHT(配賦額!AB124,4),基データ!$L:$L),0),0) -> 0 | AD124: =使い方!$B$7&使い方!$C$7&"賞与法定福利見積戻し" -> 2023夏季賞与法定福利見積戻し | AF124: 7700201 | AG124: NS-0221 | AH124: =IFERROR(ROUND(SUMIF(基データ!$Q:$Q,RIGHT(配賦額!AG124,4),基データ!$T:$T)/6,0),0) -> 0 | AI124: =使い方!$B$7&使い方!$C$7&"賞与見積(現業)" -> 2023夏季賞与見積(現業) | AK124: 7700201 | AL124: NS-0221 | AM124: =IFERROR(ROUND((SUMIF(基データ!$Q:$Q,RIGHT(配賦額!AL124,4),基データ!$T:$T)-AH124*5),0),0) -> 0 | AN124: =使い方!$B$7&使い方!$C$7&"賞与見積(現業)" -> 2023夏季賞与見積(現業) | AP124: 7700201 | AQ124: NS-0221 | AR124: =-IFERROR(ROUND(SUMIF(基データ!$Q:$Q,RIGHT(配賦額!AQ124,4),基データ!$T:$T),0),0) -> 0 | AS124: =使い方!$B$7&使い方!$C$7&"賞与見積戻し(現業)" -> 2023夏季賞与見積戻し(現業) | AU124: 7700202 | AV124: NS-0221 | AW124: =IFERROR(ROUND(SUMIF(基データ!$Q:$Q,RIGHT(配賦額!AV124,4),基データ!$U:$U)/6,0),0) -> 0 | AX124: =使い方!$B$7&使い方!$C$7&"賞与法定福利見積(現業)" -> 2023夏季賞与法定福利見積(現業) | AZ124: 7700202 | BA124: NS-0221 | BB124: =IFERROR(ROUND((SUMIF(基データ!$Q:$Q,RIGHT(配賦額!BA124,4),基データ!$U:$U)-AW124*5),0),0) -> 0 | BC124: =使い方!$B$7&使い方!$C$7&"賞与法定福利見積(現業)" -> 2023夏季賞与法定福利見積(現業) | BE124: 7700202 | BF124: NS-0221 | BG124: =-IFERROR(ROUND(SUMIF(基データ!$Q:$Q,RIGHT(配賦額!BF124,4),基データ!$U:$U),0),0) -> 0 | BH124: =使い方!$B$7&使い方!$C$7&"賞与法定福利見積戻し(現業)" -> 2023夏季賞与法定福利見積戻し(現業)
B125: 7700303 | C125: NS-0222 | D125: =IFERROR(ROUND(SUMIF(基データ!$C:$C,RIGHT(配賦額!C125,4),基データ!$I:$I)/6,0),0) -> 0 | E125: =使い方!$B$7&使い方!$C$7&"賞与見積" -> 2023夏季賞与見積 | G125: 7700303 | H125: NS-0222 | I125: =IFERROR(ROUND((SUMIF(基データ!$C:$C,RIGHT(配賦額!H125,4),基データ!$I:$I)-D125*5),0),0) -> 0 | J125: =使い方!$B$7&使い方!$C$7&"賞与見積" -> 2023夏季賞与見積 | L125: 7700303 | M125: NS-0222 | N125: =-IFERROR(ROUND(SUMIF(基データ!$C:$C,RIGHT(配賦額!M125,4),基データ!$I:$I),0),0) -> 0 | O125: =使い方!$B$7&使い方!$C$7&"賞与見積戻し" -> 2023夏季賞与見積戻し | Q125: 7700305 | R125: NS-0222 | S125: =IFERROR(ROUND(SUMIF(基データ!$C:$C,RIGHT(配賦額!R125,4),基データ!$L:$L)/6,0),0) -> 0 | T125: =使い方!$B$7&使い方!$C$7&"賞与法定福利見積" -> 2023夏季賞与法定福利見積 | V125: 7700305 | W125: NS-0222 | X125: =IFERROR(ROUND((SUMIF(基データ!$C:$C,RIGHT(配賦額!W125,4),基データ!$L:$L)-S125*5),0),0) -> 0 | Y125: =使い方!$B$7&使い方!$C$7&"賞与法定福利見積" -> 2023夏季賞与法定福利見積 | AA125: 7700305 | AB125: NS-0222 | AC125: =-IFERROR(ROUND(SUMIF(基データ!$C:$C,RIGHT(配賦額!AB125,4),基データ!$L:$L),0),0) -> 0 | AD125: =使い方!$B$7&使い方!$C$7&"賞与法定福利見積戻し" -> 2023夏季賞与法定福利見積戻し | AF125: 7700201 | AG125: NS-0222 | AH125: =IFERROR(ROUND(SUMIF(基データ!$Q:$Q,RIGHT(配賦額!AG125,4),基データ!$T:$T)/6,0),0) -> 0 | AI125: =使い方!$B$7&使い方!$C$7&"賞与見積(現業)" -> 2023夏季賞与見積(現業) | AK125: 7700201 | AL125: NS-0222 | AM125: =IFERROR(ROUND((SUMIF(基データ!$Q:$Q,RIGHT(配賦額!AL125,4),基データ!$T:$T)-AH125*5),0),0) -> 0 | AN125: =使い方!$B$7&使い方!$C$7&"賞与見積(現業)" -> 2023夏季賞与見積(現業) | AP125: 7700201 | AQ125: NS-0222 | AR125: =-IFERROR(ROUND(SUMIF(基データ!$Q:$Q,RIGHT(配賦額!AQ125,4),基データ!$T:$T),0),0) -> 0 | AS125: =使い方!$B$7&使い方!$C$7&"賞与見積戻し(現業)" -> 2023夏季賞与見積戻し(現業) | AU125: 7700202 | AV125: NS-0222 | AW125: =IFERROR(ROUND(SUMIF(基データ!$Q:$Q,RIGHT(配賦額!AV125,4),基データ!$U:$U)/6,0),0) -> 0 | AX125: =使い方!$B$7&使い方!$C$7&"賞与法定福利見積(現業)" -> 2023夏季賞与法定福利見積(現業) | AZ125: 7700202 | BA125: NS-0222 | BB125: =IFERROR(ROUND((SUMIF(基データ!$Q:$Q,RIGHT(配賦額!BA125,4),基データ!$U:$U)-AW125*5),0),0) -> 0 | BC125: =使い方!$B$7&使い方!$C$7&"賞与法定福利見積(現業)" -> 2023夏季賞与法定福利見積(現業) | BE125: 7700202 | BF125: NS-0222 | BG125: =-IFERROR(ROUND(SUMIF(基データ!$Q:$Q,RIGHT(配賦額!BF125,4),基データ!$U:$U),0),0) -> 0 | BH125: =使い方!$B$7&使い方!$C$7&"賞与法定福利見積戻し(現業)" -> 2023夏季賞与法定福利見積戻し(現業)
